{"text_format":"1","workbook":"xlsx","n_sheets":5,"sheets":["PJ","Données (Carac, Sexe, Tributs)","Données (Défauts, Talents)","Données (Equipements)","Stat"],"not_rendered":{"charts":0,"images":17,"macros":1,"external_links":0,"defined_names":4,"comments":1,"pivot_tables":0},"unopened":[],"bounds":{"document_bytes":16777216,"sheet_cells":100000,"rows_first":2000,"rows_last":500,"rows_between":2000,"halvings":0,"cell_chars":16384,"cell_head_chars":4096},"cells_cut":0,"cells_raw":0,"read":"whole","date_system":"1900"}

{"sheet":"PJ","index":0,"n_rows":105,"n_cols":39,"rows_kept":105,"cut":false,"hidden":false,"merged":[[57,19,57,24],[46,24,46,31],[47,24,47,31],[37,24,37,31],[38,24,38,31],[39,24,39,31],[40,24,40,31],[41,24,41,31],[42,24,42,31],[43,24,43,31],[44,24,44,31],[45,24,45,31],[48,22,48,23],[27,24,27,31],[28,24,28,31],[29,24,29,31],[30,24,30,31],[31,24,31,31],[32,24,32,31],[33,24,33,31],[34,24,34,31],[35,24,35,31],[29,22,29,23],[31,22,31,23],[33,22,33,23],[36,22,36,23],[38,22,38,23],[48,32,48,33],[40,22,40,23],[42,22,42,23],[45,22,45,23],[47,22,47,23],[46,22,46,23],[46,32,46,33],[47,32,47,33],[42,32,42,33],[45,32,45,33],[48,24,48,31],[36,32,36,33],[38,32,38,33],[40,32,40,33],[33,32,33,33],[29,32,29,33],[31,32,31,33],[36,24,36,31],[22,22,22,23],[23,22,23,23],[24,22,24,23],[25,22,25,23],[26,22,26,23],[22,32,22,33],[23,32,23,33],[24,32,24,33],[25,32,25,33],[26,32,26,33],[22,24,22,31],[23,24,23,31],[24,24,24,31],[25,24,25,31],[26,24,26,31],[21,22,21,23],[15,22,15,23],[16,22,16,23],[17,22,17,23],[18,22,18,23],[19,22,19,23],[20,22,20,23],[16,32,16,33],[17,32,17,33],[15,24,15,31],[16,24,16,31],[17,24,17,31],[18,24,18,31],[19,24,19,31],[20,24,20,31],[15,32,15,33],[18,32,18,33],[19,32,19,33],[20,32,20,33],[21,32,21,33],[21,24,21,31],[77,10,77,13],[73,10,74,13],[71,14,71,16],[73,14,74,15],[75,10,76,15],[37,14,38,14],[39,14,40,14],[41,14,42,14],[43,14,45,14],[43,16,45,16],[66,16,66,17],[67,16,67,17],[58,10,58,12],[59,10,59,12],[60,10,60,12],[61,10,61,12],[62,10,62,12],[63,10,63,12],[64,10,64,12],[65,10,65,12],[66,10,66,12],[67,10,67,12],[61,16,61,17],[62,16,62,17],[26,15,27,15],[28,15,29,15],[30,15,31,15],[32,15,33,15],[34,15,36,15],[37,15,38,15],[39,15,40,15],[41,15,42,15],[43,15,45,15],[28,14,29,14],[83,18,85,18],[64,16,64,17],[65,16,65,17],[32,13,33,13],[34,12,36,12],[34,13,36,13],[37,12,38,12],[37,13,38,13],[39,12,40,12],[39,13,40,13],[41,12,42,12],[41,13,42,13],[32,17,33,17],[34,17,36,17],[37,17,38,17],[39,17,40,17],[41,17,42,17],[43,17,45,17],[32,16,33,16],[34,16,36,16],[37,16,38,16],[39,16,40,16],[41,16,42,16],[63,16,63,17],[83,23,85,23],[83,24,85,24],[83,25,85,25],[83,26,85,26],[83,27,85,27],[83,28,85,28],[81,20,81,38],[83,8,83,13],[84,8,84,13],[85,8,85,13],[83,30,85,30],[83,31,85,31],[83,32,85,32],[83,33,85,33],[83,34,85,34],[83,35,85,35],[83,37,85,37],[83,38,85,38],[83,36,84,36],[83,29,85,29],[83,19,85,19],[83,20,85,20],[83,21,85,21],[83,22,85,22],[86,8,86,13],[87,8,87,13],[88,8,88,13],[89,8,89,13],[90,8,90,13],[91,8,91,13],[92,8,92,13],[93,8,93,13],[94,8,94,13],[95,8,95,13],[96,8,96,13],[97,8,97,13],[103,8,103,13],[104,8,104,13],[100,8,100,13],[101,8,101,13],[102,8,102,13],[98,8,98,13],[99,8,99,13],[102,2,102,5],[103,2,103,5],[104,2,104,5],[97,2,97,5],[98,2,98,5],[99,2,99,5],[100,2,100,5],[101,2,101,5],[105,2,105,15],[94,2,94,5],[95,2,95,5],[96,2,96,5],[92,2,92,5],[93,2,93,5],[90,2,90,5],[91,2,91,5],[88,2,88,5],[89,2,89,5],[86,2,86,5],[87,2,87,5],[84,2,84,5],[85,2,85,5],[81,2,81,4],[83,2,83,5],[76,2,76,5],[77,2,77,5],[78,2,78,5],[71,2,71,5],[72,2,72,5],[73,2,73,5],[74,2,74,5],[75,2,75,5],[68,2,68,5],[68,10,68,12],[68,16,68,17],[69,2,69,5],[70,2,70,5],[71,10,71,13],[65,2,65,5],[66,2,66,5],[67,2,67,5],[57,2,57,5],[57,10,57,12],[58,2,58,5],[59,2,59,5],[60,2,60,5],[61,2,61,5],[62,2,62,5],[63,2,63,5],[64,2,64,5],[55,2,55,4],[21,2,26,2],[36,2,36,9],[26,3,26,5],[21,6,21,8],[22,6,22,8],[23,6,23,8],[24,6,24,8],[52,2,52,5],[47,2,47,5],[48,2,48,5],[49,2,49,5],[50,2,50,5],[51,2,51,5],[45,2,45,3],[46,7,46,9],[46,2,46,6],[12,13,12,15],[15,13,15,14],[17,13,17,14],[26,14,27,14],[57,16,57,17],[58,16,58,17],[59,16,59,17],[60,16,60,17],[55,6,55,18],[23,13,23,14],[26,13,27,13],[28,13,29,13],[30,13,31,13],[43,12,45,12],[43,13,45,13],[26,17,27,17],[28,17,29,17],[30,17,31,17],[26,16,27,16],[28,16,29,16],[30,16,31,16],[30,14,31,14],[32,14,33,14],[34,14,36,14],[26,12,27,12],[28,12,29,12],[30,12,31,12],[32,12,33,12],[12,6,12,9],[29,2,29,5],[25,6,25,8],[26,6,26,8],[15,3,15,7],[16,7,16,9],[17,2,17,3],[18,2,20,9],[21,3,21,5],[22,3,22,5],[23,3,23,5],[24,3,24,5],[25,3,25,5],[12,3,12,4]]}
[0]
[]
[null,null,null,null,null,null,null,null,null,null,null,null,null,null,null,null,null,null,null,"Fichier créé par ©Booguii 2019"]
[null,null,"A compléter avant validation",null,null,null,null,null,null,null,null,null,null,null,null,null,null,null,null,"Tous droits réservés"]
[null,null,{"$f":"IF(G30=0,1,-1)","v":-1},"Points de Caractéristiques Primaires",null,null,{"$f":"_xlfn.IFNA(IF(G82=0,1,-1),-1)","v":-1},"Ce qui est à toi est à moi",null,null,null,null,null,null,null,null,null,null,null,"Contact : bouguifou@yahoo.fr"]
[null,null,{"$f":"IF(AND(E46=0,C47>=0,H47>=0),1,-1)","v":-1},"Points de Talents",null,null,{"$f":"IF(ISBLANK(S87),-1,1)","v":-1},"Vêtements et armures"]
[null,null,{"$f":"_xlfn.IFNA(IF(G56=0,1,-1),-1)","v":-1},"Matos à Viander"]
[]
[]
[]
[]
[]
[null,null,"Nom:",null,null,"Surnom:",null,null,null,null,null,null,null,"CARACTERISTIQUES SECONDAIRES",null,null,null,null,null,null,null,null,"TALENTS SPECIAUX"]
[]
[]
[null,null,"Tribu:",null,null,null,null,null,null,null,null,null,null,"Seuil d'inconscience",null,{"$f":"G32+IF('Données (Défauts, Talents)'!A119<>0,2,0)","v":1},null,null,null,null,null,null,{"$f":"MAX(($G$32+$C$32)*5+SUMIF('Données (Carac, Sexe, Tributs)'!$A:$A,\"<>0\",'Données (Carac, Sexe, Tributs)'!AF:AF)-VLOOKUP(Y16,'Données (Défauts, Talents)'!$B$81:$BH$124,59,FALSE),5)","v":5},{"$f":"MAX(($G$34+$C$32)*5+SUMIF('Données (Carac, Sexe, Tributs)'!$A:$A,\"<>0\",'Données (Carac, Sexe, Tributs)'!AF:AF)+SUMIF('Données (Défauts, Talents)'!$A:$A,\"<>0\",'Données (Défauts, Talents)'!AU:AU)+AB25,5)","v":10},"Agriculture et élevage",null,null,null,null,null,null,null,{"$f":"MAX(($I$34+$C$32)*5+SUMIF('Données (Carac, Sexe, Tributs)'!$A:$A,\"<>0\",'Données (Carac, Sexe, Tributs)'!BC:BC)-VLOOKUP(AI16,'Données (Défauts, Talents)'!$B$81:$BH$124,59,FALSE),5)","v":5},{"$f":"MAX(($G$34+$C$32)*5+SUMIF('Données (Carac, Sexe, Tributs)'!$A:$A,\"<>0\",'Données (Carac, Sexe, Tributs)'!AN:AN)+SUMIF('Données (Défauts, Talents)'!$A:$A,\"<>0\",'Données (Défauts, Talents)'!BC:BC)+#REF!,5)","v":{"$error":"#REF!"}},"Esquive"]
[null,null,"Age: ",null,"Sexe: ",null,"But: ",null,null,null,null,null,null,"Points de vie",{"$f":"4*G32+IF('Données (Défauts, Talents)'!A119<>0,4,0)","v":4},{"$f":"4*G32+IF('Données (Défauts, Talents)'!A119<>0,4,0)+SUM(O25:O51)","v":4},null,null,null,null,null,null,{"$f":"MAX(($E$32+$C$34)*5+SUMIF('Données (Carac, Sexe, Tributs)'!$A:$A,\"<>0\",'Données (Carac, Sexe, Tributs)'!AG:AG)-VLOOKUP(Y17,'Données (Défauts, Talents)'!$B$81:$BH$124,59,FALSE),5)","v":5},{"$f":"MAX(($G$34+$C$32)*5+SUMIF('Données (Carac, Sexe, Tributs)'!$A:$A,\"<>0\",'Données (Carac, Sexe, Tributs)'!AF:AF)+SUMIF('Données (Défauts, Talents)'!$A:$A,\"<>0\",'Données (Défauts, Talents)'!AU:AU)+AB26,5)","v":10},"Amitié",null,null,null,null,null,null,null,{"$f":"MAX(($E$34+$C$34)*5+SUMIF('Données (Carac, Sexe, Tributs)'!$A:$A,\"<>0\",'Données (Carac, Sexe, Tributs)'!BD:BD)-VLOOKUP(AI17,'Données (Défauts, Talents)'!$B$81:$BH$124,59,FALSE),5)","v":5},{"$f":"MAX(($G$34+$C$32)*5+SUMIF('Données (Carac, Sexe, Tributs)'!$A:$A,\"<>0\",'Données (Carac, Sexe, Tributs)'!AN:AN)+SUMIF('Données (Défauts, Talents)'!$A:$A,\"<>0\",'Données (Défauts, Talents)'!BC:BC)+#REF!,5)","v":{"$error":"#REF!"}},"Flatterie"]
[null,null,"Description: ",null,null,null,null,null,null,null,null,null,null,"Points de Prestige",null,0,null,null,null,null,null,null,{"$f":"MAX(($E$34+$C$34)*5+SUMIF('Données (Carac, Sexe, Tributs)'!$A:$A,\"<>0\",'Données (Carac, Sexe, Tributs)'!AH:AH)-VLOOKUP(Y18,'Données (Défauts, Talents)'!$B$81:$BH$124,59,FALSE),5)","v":5},{"$f":"MAX(($G$34+$C$32)*5+SUMIF('Données (Carac, Sexe, Tributs)'!$A:$A,\"<>0\",'Données (Carac, Sexe, Tributs)'!AF:AF)+SUMIF('Données (Défauts, Talents)'!$A:$A,\"<>0\",'Données (Défauts, Talents)'!AU:AU)+AB27,5)","v":10},"Camouflage",null,null,null,null,null,null,null,{"$f":"MAX(($C$32+$I$32)*5+SUMIF('Données (Carac, Sexe, Tributs)'!$A:$A,\"<>0\",'Données (Carac, Sexe, Tributs)'!BE:BE)-VLOOKUP(AI18,'Données (Défauts, Talents)'!$B$81:$BH$124,59,FALSE),5)","v":5},{"$f":"MAX(($G$34+$C$32)*5+SUMIF('Données (Carac, Sexe, Tributs)'!$A:$A,\"<>0\",'Données (Carac, Sexe, Tributs)'!AN:AN)+SUMIF('Données (Défauts, Talents)'!$A:$A,\"<>0\",'Données (Défauts, Talents)'!BC:BC)+#REF!,5)","v":{"$error":"#REF!"}},"Forgeron"]
[null,null,null,null,null,null,null,null,null,null,null,null,null,"Charge",{"$f":"TRUNC(($I$32+$G$32)*1.5,1)+IFERROR(3*ROUNDUP(1/VLOOKUP(\"Sac à dos ($ 500)\",C85:G98,5,FALSE),0),0)","v":3},{"$f":"(SUM(AM87:AM102)+SUMIF(Z59:Z68,\"FAUX\",K59:M68)+SUMPRODUCT(G70:G79,H70:H79,I70:I79)+SUMPRODUCT(G85:G105,H85:H105,B85:B105)+SUMPRODUCT(O85:O105,P85:P105,Q85:Q105))/1000","v":0},null,null,null,null,null,null,{"$f":"MAX(($E$32+$C$34)*5+SUMIF('Données (Carac, Sexe, Tributs)'!$A:$A,\"<>0\",'Données (Carac, Sexe, Tributs)'!AI:AI)-VLOOKUP(Y19,'Données (Défauts, Talents)'!$B$81:$BH$124,59,FALSE),5)","v":5},{"$f":"MAX(($G$34+$C$32)*5+SUMIF('Données (Carac, Sexe, Tributs)'!$A:$A,\"<>0\",'Données (Carac, Sexe, Tributs)'!AF:AF)+SUMIF('Données (Défauts, Talents)'!$A:$A,\"<>0\",'Données (Défauts, Talents)'!AU:AU)+AB28,5)","v":10},"Célébrité",null,null,null,null,null,null,null,{"$f":"MAX(($E$34+$C$34)*5+SUMIF('Données (Carac, Sexe, Tributs)'!$A:$A,\"<>0\",'Données (Carac, Sexe, Tributs)'!BF:BF)-VLOOKUP(AI19,'Données (Défauts, Talents)'!$B$81:$BH$124,59,FALSE),5)","v":5},{"$f":"MAX(($G$34+$C$32)*5+SUMIF('Données (Carac, Sexe, Tributs)'!$A:$A,\"<>0\",'Données (Carac, Sexe, Tributs)'!AN:AN)+SUMIF('Données (Défauts, Talents)'!$A:$A,\"<>0\",'Données (Défauts, Talents)'!BC:BC)+#REF!,5)","v":{"$error":"#REF!"}},"Héraldique"]
[null,null,null,null,null,null,null,null,null,null,null,null,null,null,null,null,null,null,null,null,null,null,{"$f":"MAX((0+0)*5+SUMIF('Données (Carac, Sexe, Tributs)'!$A:$A,\"<>0\",'Données (Carac, Sexe, Tributs)'!AJ:AJ)-VLOOKUP(Y20,'Données (Défauts, Talents)'!$B$81:$BH$124,59,FALSE),5)","v":5},{"$f":"MAX(($G$34+$C$32)*5+SUMIF('Données (Carac, Sexe, Tributs)'!$A:$A,\"<>0\",'Données (Carac, Sexe, Tributs)'!AF:AF)+SUMIF('Données (Défauts, Talents)'!$A:$A,\"<>0\",'Données (Défauts, Talents)'!AU:AU)+AB29,5)","v":10},"Chance",null,null,null,null,null,null,null,{"$f":"MAX(($E$34+$C$34)*5+SUMIF('Données (Carac, Sexe, Tributs)'!$A:$A,\"<>0\",'Données (Carac, Sexe, Tributs)'!BG:BG)-VLOOKUP(AI20,'Données (Défauts, Talents)'!$B$81:$BH$124,59,FALSE),5)","v":5},{"$f":"MAX(($G$34+$C$32)*5+SUMIF('Données (Carac, Sexe, Tributs)'!$A:$A,\"<>0\",'Données (Carac, Sexe, Tributs)'!AN:AN)+SUMIF('Données (Défauts, Talents)'!$A:$A,\"<>0\",'Données (Défauts, Talents)'!BC:BC)+#REF!,5)","v":{"$error":"#REF!"}},"Histoire"]
[null,null,null,null,null,null,null,null,null,null,null,null,null,null,null,null,null,null,null,null,null,null,{"$f":"MAX(($I$34+$C$32)*5+SUMIF('Données (Carac, Sexe, Tributs)'!$A:$A,\"<>0\",'Données (Carac, Sexe, Tributs)'!AK:AK)-VLOOKUP(Y21,'Données (Défauts, Talents)'!$B$81:$BH$124,59,FALSE),5)","v":5},{"$f":"MAX(($G$34+$C$32)*5+SUMIF('Données (Carac, Sexe, Tributs)'!$A:$A,\"<>0\",'Données (Carac, Sexe, Tributs)'!AF:AF)+SUMIF('Données (Défauts, Talents)'!$A:$A,\"<>0\",'Données (Défauts, Talents)'!AU:AU)+AB30,5)","v":10},"Combat motorisé",null,null,null,null,null,null,null,{"$f":"MAX(($E$34+$C$34)*5+SUMIF('Données (Carac, Sexe, Tributs)'!$A:$A,\"<>0\",'Données (Carac, Sexe, Tributs)'!BH:BH)-VLOOKUP(AI21,'Données (Défauts, Talents)'!$B$81:$BH$124,59,FALSE),5)","v":5},{"$f":"MAX(($G$34+$C$32)*5+SUMIF('Données (Carac, Sexe, Tributs)'!$A:$A,\"<>0\",'Données (Carac, Sexe, Tributs)'!AN:AN)+SUMIF('Données (Défauts, Talents)'!$A:$A,\"<>0\",'Données (Défauts, Talents)'!BC:BC)+#REF!,5)","v":{"$error":"#REF!"}},"Lire et écrire"]
[null,null,"Défauts: ",null,null,null,null,null,null,null,null,null,null,null,null,null,null,null,null,null,null,null,{"$f":"MAX(($E$34+$C$32)*5+SUMIF('Données (Carac, Sexe, Tributs)'!$A:$A,\"<>0\",'Données (Carac, Sexe, Tributs)'!AL:AL)-VLOOKUP(Y22,'Données (Défauts, Talents)'!$B$81:$BH$124,59,FALSE),5)","v":5},{"$f":"MAX(($G$34+$C$32)*5+SUMIF('Données (Carac, Sexe, Tributs)'!$A:$A,\"<>0\",'Données (Carac, Sexe, Tributs)'!AF:AF)+SUMIF('Données (Défauts, Talents)'!$A:$A,\"<>0\",'Données (Défauts, Talents)'!AU:AU)+AB31,5)","v":10},"Combat nocturne",null,null,null,null,null,null,null,{"$f":"MAX(($I$32+$C$32)*5+SUMIF('Données (Carac, Sexe, Tributs)'!$A:$A,\"<>0\",'Données (Carac, Sexe, Tributs)'!BI:BI)-VLOOKUP(AI22,'Données (Défauts, Talents)'!$B$81:$BH$124,59,FALSE),5)","v":5},{"$f":"MAX(($G$34+$C$32)*5+SUMIF('Données (Carac, Sexe, Tributs)'!$A:$A,\"<>0\",'Données (Carac, Sexe, Tributs)'!AN:AN)+SUMIF('Données (Défauts, Talents)'!$A:$A,\"<>0\",'Données (Défauts, Talents)'!BC:BC)+#REF!,5)","v":{"$error":"#REF!"}},"Maître d'arme"]
[null,null,null,null,null,null,null,null,null,null,null,null,null,null,null,null,null,null,null,null,null,null,{"$f":"MAX(($G$32+$C$32)*5+SUMIF('Données (Carac, Sexe, Tributs)'!$A:$A,\"<>0\",'Données (Carac, Sexe, Tributs)'!AM:AM)-VLOOKUP(Y23,'Données (Défauts, Talents)'!$B$81:$BH$124,59,FALSE),5)","v":5},{"$f":"MAX(($G$34+$C$32)*5+SUMIF('Données (Carac, Sexe, Tributs)'!$A:$A,\"<>0\",'Données (Carac, Sexe, Tributs)'!AF:AF)+SUMIF('Données (Défauts, Talents)'!$A:$A,\"<>0\",'Données (Défauts, Talents)'!AU:AU)+AB32,5)","v":10},"Combat rural",null,null,null,null,null,null,null,{"$f":"MAX(($I$34+$G$34)*5+SUMIF('Données (Carac, Sexe, Tributs)'!$A:$A,\"<>0\",'Données (Carac, Sexe, Tributs)'!BJ:BJ)-VLOOKUP(AI23,'Données (Défauts, Talents)'!$B$81:$BH$124,59,FALSE),5)","v":5},{"$f":"MAX(($G$34+$C$32)*5+SUMIF('Données (Carac, Sexe, Tributs)'!$A:$A,\"<>0\",'Données (Carac, Sexe, Tributs)'!AN:AN)+SUMIF('Données (Défauts, Talents)'!$A:$A,\"<>0\",'Données (Défauts, Talents)'!BC:BC)+#REF!,5)","v":{"$error":"#REF!"}},"Manipulation"]
[null,null,null,null,null,null,null,null,null,null,null,null,null,"Point d'atteinte corp.",null,"Point de Protection",null,null,null,null,null,null,{"$f":"MAX(($I$32+$C$32)*5+SUMIF('Données (Carac, Sexe, Tributs)'!$A:$A,\"<>0\",'Données (Carac, Sexe, Tributs)'!AN:AN)-VLOOKUP(Y24,'Données (Défauts, Talents)'!$B$81:$BH$124,59,FALSE),5)","v":5},{"$f":"MAX(($G$34+$C$32)*5+SUMIF('Données (Carac, Sexe, Tributs)'!$A:$A,\"<>0\",'Données (Carac, Sexe, Tributs)'!AF:AF)+SUMIF('Données (Défauts, Talents)'!$A:$A,\"<>0\",'Données (Défauts, Talents)'!AU:AU)+AB33,5)","v":10},"Combat sans armes",null,null,null,null,null,null,null,{"$f":"MAX(($C$34+$C$32)*5+SUMIF('Données (Carac, Sexe, Tributs)'!$A:$A,\"<>0\",'Données (Carac, Sexe, Tributs)'!BK:BK)-VLOOKUP(AI24,'Données (Défauts, Talents)'!$B$81:$BH$124,59,FALSE),5)","v":5},{"$f":"MAX(($G$34+$C$32)*5+SUMIF('Données (Carac, Sexe, Tributs)'!$A:$A,\"<>0\",'Données (Carac, Sexe, Tributs)'!AN:AN)+SUMIF('Données (Défauts, Talents)'!$A:$A,\"<>0\",'Données (Défauts, Talents)'!BC:BC)+#REF!,5)","v":{"$error":"#REF!"}},"Manufacture d'armes"]
[null,null,null,null,null,null,null,null,null,null,null,null,3,"Pied G",null,{"$f":"SUMIF($T$87:$T$102,\"x\",$AL$87:$AL$102)","v":0},null,null,null,null,null,null,{"$f":"MAX(($C$34+$C$32)*5+SUMIF('Données (Carac, Sexe, Tributs)'!$A:$A,\"<>0\",'Données (Carac, Sexe, Tributs)'!AO:AO)-VLOOKUP(Y25,'Données (Défauts, Talents)'!$B$81:$BH$124,59,FALSE),5)","v":5},{"$f":"MAX(($G$34+$C$32)*5+SUMIF('Données (Carac, Sexe, Tributs)'!$A:$A,\"<>0\",'Données (Carac, Sexe, Tributs)'!AF:AF)+SUMIF('Données (Défauts, Talents)'!$A:$A,\"<>0\",'Données (Défauts, Talents)'!AU:AU)+AB34,5)","v":10},"Combat urbain",null,null,null,null,null,null,null,{"$f":"MAX(($G$34+$C$32)*5+SUMIF('Données (Carac, Sexe, Tributs)'!$A:$A,\"<>0\",'Données (Carac, Sexe, Tributs)'!BL:BL)-VLOOKUP(AI25,'Données (Défauts, Talents)'!$B$81:$BH$124,59,FALSE)+IFERROR(20*INDEX(B85:B105,MATCH(\"Nécessaire de couture ($ 100)\",C85:C105,0))*ROUNDUP(1/VLOOKUP(\"Nécessaire de couture ($ 100)\",C85:G105,5,FALSE),0),0),5)","v":5},{"$f":"MAX(($G$34+$C$32)*5+SUMIF('Données (Carac, Sexe, Tributs)'!$A:$A,\"<>0\",'Données (Carac, Sexe, Tributs)'!AN:AN)+SUMIF('Données (Défauts, Talents)'!$A:$A,\"<>0\",'Données (Défauts, Talents)'!BC:BC)+#REF!,5)","v":{"$error":"#REF!"}},"Manufacture de vêtements"]
[null,null,null,null,null,null,null,null,null,null,null,null,4,"Pied D",null,{"$f":"SUMIF($U$87:$U$102,\"x\",$AL$87:$AL$102)","v":0},null,null,null,null,null,null,{"$f":"MAX(($C$34+$G$34)*5+SUMIF('Données (Carac, Sexe, Tributs)'!$A:$A,\"<>0\",'Données (Carac, Sexe, Tributs)'!AP:AP),5)","v":10},{"$f":"MAX(($G$34+$C$32)*5+SUMIF('Données (Carac, Sexe, Tributs)'!$A:$A,\"<>0\",'Données (Carac, Sexe, Tributs)'!AF:AF)+SUMIF('Données (Défauts, Talents)'!$A:$A,\"<>0\",'Données (Défauts, Talents)'!AU:AU)+AB35,5)","v":10},"Comédie",null,null,null,null,null,null,null,{"$f":"MAX(($E$34+$E$32)*5+SUMIF('Données (Carac, Sexe, Tributs)'!$A:$A,\"<>0\",'Données (Carac, Sexe, Tributs)'!BM:BM)-VLOOKUP(AI26,'Données (Défauts, Talents)'!$B$81:$BH$124,59,FALSE),5)","v":5},{"$f":"MAX(($G$34+$C$32)*5+SUMIF('Données (Carac, Sexe, Tributs)'!$A:$A,\"<>0\",'Données (Carac, Sexe, Tributs)'!AN:AN)+SUMIF('Données (Défauts, Talents)'!$A:$A,\"<>0\",'Données (Défauts, Talents)'!BC:BC)+#REF!,5)","v":{"$error":"#REF!"}},"Maquillage"]
[null,null,null,null,null,null,null,null,null,null,null,null,5,"Jambe G",null,{"$f":"SUMIF($V$87:$V$102,\"x\",$AL$87:$AL$102)","v":0},null,null,null,null,null,null,{"$f":"MAX(($C$34+$G$32)*5+SUMIF('Données (Carac, Sexe, Tributs)'!$A:$A,\"<>0\",'Données (Carac, Sexe, Tributs)'!AQ:AQ)-VLOOKUP(Y27,'Données (Défauts, Talents)'!$B$81:$BH$124,59,FALSE),5)","v":5},{"$f":"MAX(($G$34+$C$32)*5+SUMIF('Données (Carac, Sexe, Tributs)'!$A:$A,\"<>0\",'Données (Carac, Sexe, Tributs)'!AF:AF)+SUMIF('Données (Défauts, Talents)'!$A:$A,\"<>0\",'Données (Défauts, Talents)'!AU:AU)+AB36,5)","v":10},"Commandement",null,null,null,null,null,null,null,{"$f":"MAX(($C$32+$E$34)*5+SUMIF('Données (Carac, Sexe, Tributs)'!$A:$A,\"<>0\",'Données (Carac, Sexe, Tributs)'!BN:BN)-VLOOKUP(AI27,'Données (Défauts, Talents)'!$B$81:$BH$124,59,FALSE),5)","v":5},{"$f":"MAX(($G$34+$C$32)*5+SUMIF('Données (Carac, Sexe, Tributs)'!$A:$A,\"<>0\",'Données (Carac, Sexe, Tributs)'!AN:AN)+SUMIF('Données (Défauts, Talents)'!$A:$A,\"<>0\",'Données (Défauts, Talents)'!BC:BC)+#REF!,5)","v":{"$error":"#REF!"}},"Musicien"]
[]
[null,null,null,null,null,null,null,null,null,null,null,null,6,"Jambe D",null,{"$f":"SUMIF($W$87:$W$102,\"x\",$AL$87:$AL$102)","v":0}]
[null,null,"CARACTERISTIQUES PRIMAIRES",null,null,null,{"$f":"40-SUM('Données (Carac, Sexe, Tributs)'!C3:J3)","v":32},"pts restants à attribuer",null,"Valider",null,null,null,null,null,{"$f":"SUMIF($W$87:$W$102,1,$AL$87:$AL$102)","v":0},null,null,null,null,null,null,{"$f":"MAX(($C$34+$I$34)*5+SUMIF('Données (Carac, Sexe, Tributs)'!$A:$A,\"<>0\",'Données (Carac, Sexe, Tributs)'!AR:AR)-VLOOKUP(Y30,'Données (Défauts, Talents)'!$B$81:$BH$124,59,FALSE),5)","v":5},{"$f":"MAX(($G$34+$C$32)*5+SUMIF('Données (Carac, Sexe, Tributs)'!$A:$A,\"<>0\",'Données (Carac, Sexe, Tributs)'!AF:AF)+SUMIF('Données (Défauts, Talents)'!$A:$A,\"<>0\",'Données (Défauts, Talents)'!AU:AU)+AB39,5)","v":10},"Conduite spécialisée",null,null,null,null,null,null,null,{"$f":"MAX(($G$32+$I$34)*5+SUMIF('Données (Carac, Sexe, Tributs)'!$A:$A,\"<>0\",'Données (Carac, Sexe, Tributs)'!BO:BO)-VLOOKUP(AI30,'Données (Défauts, Talents)'!$B$81:$BH$124,59,FALSE),5)","v":5},{"$f":"MAX(($G$34+$C$32)*5+SUMIF('Données (Carac, Sexe, Tributs)'!$A:$A,\"<>0\",'Données (Carac, Sexe, Tributs)'!AN:AN)+SUMIF('Données (Défauts, Talents)'!$A:$A,\"<>0\",'Données (Défauts, Talents)'!BC:BC)+#REF!,5)","v":{"$error":"#REF!"}},"Nage"]
[null,null,null,null,null,null,null,null,null,null,null,null,7,"Cuisse G",null,{"$f":"SUMIF($X$87:$X$102,\"x\",$AL$87:$AL$102)","v":0}]
[null,null,{"$f":"MAX(MIN(SUMIF('Données (Carac, Sexe, Tributs)'!$A:$A,\"<>0\",'Données (Carac, Sexe, Tributs)'!C:C)+SUMIF('Données (Défauts, Talents)'!$A:$A,\"<>0\",'Données (Défauts, Talents)'!$AI:$AI),10),1)","v":1},"Agilité",{"$f":"SUMIF('Données (Carac, Sexe, Tributs)'!$A:$A,\"<>0\",'Données (Carac, Sexe, Tributs)'!D:D)+SUMIF('Données (Défauts, Talents)'!$A:$A,\"<>0\",'Données (Défauts, Talents)'!AM:AM)","v":1},"Beauté",{"$f":"SUMIF('Données (Carac, Sexe, Tributs)'!$A:$A,\"<>0\",'Données (Carac, Sexe, Tributs)'!E:E)+SUMIF('Données (Défauts, Talents)'!$A:$A,\"<>0\",'Données (Défauts, Talents)'!AN:AN)","v":1},"Endurance",{"$f":"SUMIF('Données (Carac, Sexe, Tributs)'!$A:$A,\"<>0\",'Données (Carac, Sexe, Tributs)'!F:F)+SUMIF('Données (Défauts, Talents)'!$A:$A,\"<>0\",'Données (Défauts, Talents)'!AO:AO)","v":1},"Force",null,null,null,null,null,{"$f":"SUMIF($X$87:$X$102,1,$AL$87:$AL$102)","v":0},null,null,null,null,null,null,{"$f":"MAX(($I$34+$E$34)*5+SUMIF('Données (Carac, Sexe, Tributs)'!$A:$A,\"<>0\",'Données (Carac, Sexe, Tributs)'!AS:AS)-VLOOKUP(Y32,'Données (Défauts, Talents)'!$B$81:$BH$124,59,FALSE),5)","v":5},{"$f":"MAX(($G$34+$C$32)*5+SUMIF('Données (Carac, Sexe, Tributs)'!$A:$A,\"<>0\",'Données (Carac, Sexe, Tributs)'!AF:AF)+SUMIF('Données (Défauts, Talents)'!$A:$A,\"<>0\",'Données (Défauts, Talents)'!AU:AU)+AB41,5)","v":10},"Conduite sportive",null,null,null,null,null,null,null,{"$f":"MAX(($I$34+$C$32)*5+SUMIF('Données (Carac, Sexe, Tributs)'!$A:$A,\"<>0\",'Données (Carac, Sexe, Tributs)'!BP:BP)-VLOOKUP(AI32,'Données (Défauts, Talents)'!$B$81:$BH$124,59,FALSE),5)","v":5},{"$f":"MAX(($G$34+$C$32)*5+SUMIF('Données (Carac, Sexe, Tributs)'!$A:$A,\"<>0\",'Données (Carac, Sexe, Tributs)'!AN:AN)+SUMIF('Données (Défauts, Talents)'!$A:$A,\"<>0\",'Données (Défauts, Talents)'!BC:BC)+#REF!,5)","v":{"$error":"#REF!"}},"Parade"]
[null,null,null,null,null,null,null,null,null,null,null,null,8,"Cuisse D",null,{"$f":"SUMIF($Y$87:$Y$102,\"x\",$AL$87:$AL$102)","v":0}]
[null,null,{"$f":"SUMIF('Données (Carac, Sexe, Tributs)'!$A:$A,\"<>0\",'Données (Carac, Sexe, Tributs)'!G:G)+SUMIF('Données (Défauts, Talents)'!$A:$A,\"<>0\",'Données (Défauts, Talents)'!AP:AP)","v":1},"Intelligence",{"$f":"SUMIF('Données (Carac, Sexe, Tributs)'!$A:$A,\"<>0\",'Données (Carac, Sexe, Tributs)'!H:H)+SUMIF('Données (Défauts, Talents)'!$A:$A,\"<>0\",'Données (Défauts, Talents)'!AQ:AQ)","v":1},"Perception",{"$f":"SUMIF('Données (Carac, Sexe, Tributs)'!$A:$A,\"<>0\",'Données (Carac, Sexe, Tributs)'!I:I)+SUMIF('Données (Défauts, Talents)'!$A:$A,\"<>0\",'Données (Défauts, Talents)'!AR:AR)","v":1},"Precision",{"$f":"SUMIF('Données (Carac, Sexe, Tributs)'!$A:$A,\"<>0\",'Données (Carac, Sexe, Tributs)'!J:J)+SUMIF('Données (Défauts, Talents)'!$A:$A,\"<>0\",'Données (Défauts, Talents)'!AS:AS)","v":1},"Rapidité",null,null,null,null,null,{"$f":"SUMIF($Y$87:$Y$102,1,$AL$87:$AL$102)","v":0},null,null,null,null,null,null,{"$f":"MAX(($C$32+$I$32)*5+SUMIF('Données (Carac, Sexe, Tributs)'!$A:$A,\"<>0\",'Données (Carac, Sexe, Tributs)'!AT:AT)-VLOOKUP(Y34,'Données (Défauts, Talents)'!$B$81:$BH$124,59,FALSE),5)","v":5},{"$f":"MAX(($G$34+$C$32)*5+SUMIF('Données (Carac, Sexe, Tributs)'!$A:$A,\"<>0\",'Données (Carac, Sexe, Tributs)'!AF:AF)+SUMIF('Données (Défauts, Talents)'!$A:$A,\"<>0\",'Données (Défauts, Talents)'!AU:AU)+AB43,5)","v":10},"Construction",null,null,null,null,null,null,null,{"$f":"MAX(($C$32+$G$34)*5+SUMIF('Données (Carac, Sexe, Tributs)'!$A:$A,\"<>0\",'Données (Carac, Sexe, Tributs)'!BQ:BQ)-VLOOKUP(AI34,'Données (Défauts, Talents)'!$B$81:$BH$124,59,FALSE),5)","v":5},{"$f":"MAX(($G$34+$C$32)*5+SUMIF('Données (Carac, Sexe, Tributs)'!$A:$A,\"<>0\",'Données (Carac, Sexe, Tributs)'!AN:AN)+SUMIF('Données (Défauts, Talents)'!$A:$A,\"<>0\",'Données (Défauts, Talents)'!BC:BC)+#REF!,5)","v":{"$error":"#REF!"}},"Pêche"]
[null,null,null,null,null,null,null,null,null,null,null,null,9,"Bas ventre",null,{"$f":"SUMIF($Z$87:$Z$102,\"x\",$AL$87:$AL$102)","v":0}]
[]
[null,null,"TALENTS",null,null,null,null,null,null,null,null,null,null,null,null,{"$f":"SUMIF($Z$87:$Z$102,1,$AL$87:$AL$102)","v":0},null,null,null,null,null,null,{"$f":"MAX(($C$34+$E$34)*5+SUMIF('Données (Carac, Sexe, Tributs)'!$A:$A,\"<>0\",'Données (Carac, Sexe, Tributs)'!AU:AU),5)","v":10},{"$f":"MAX(($G$34+$C$32)*5+SUMIF('Données (Carac, Sexe, Tributs)'!$A:$A,\"<>0\",'Données (Carac, Sexe, Tributs)'!AF:AF)+SUMIF('Données (Défauts, Talents)'!$A:$A,\"<>0\",'Données (Défauts, Talents)'!AU:AU)+AB46,5)","v":10},"Convaincre",null,null,null,null,null,null,null,{"$f":"MAX(($C$34+$E$34)*5+SUMIF('Données (Carac, Sexe, Tributs)'!$A:$A,\"<>0\",'Données (Carac, Sexe, Tributs)'!BR:BR)-VLOOKUP(AI37,'Données (Défauts, Talents)'!$B$81:$BH$124,59,FALSE),5)","v":5},{"$f":"MAX(($G$34+$C$32)*5+SUMIF('Données (Carac, Sexe, Tributs)'!$A:$A,\"<>0\",'Données (Carac, Sexe, Tributs)'!AN:AN)+SUMIF('Données (Défauts, Talents)'!$A:$A,\"<>0\",'Données (Défauts, Talents)'!BC:BC)+#REF!,5)","v":{"$error":"#REF!"}},"Pistage"]
[null,null,null,null,null,null,null,null,null,null,null,null,10,"Abdomen",null,{"$f":"SUMIF($AA$87:$AA$102,\"x\",$AL$87:$AL$102)","v":0}]
[null,null,{"$f":"MAX(($G$34+$C$32)*5+SUMIF('Données (Carac, Sexe, Tributs)'!$A:$A,\"<>0\",'Données (Carac, Sexe, Tributs)'!K:K)+SUMIF('Données (Défauts, Talents)'!$A:$A,\"<>0\",'Données (Défauts, Talents)'!Z:Z)+G48,5)","v":10},"Acrobatie",{"$f":"MAX(($C$32+$I$32)*5+SUMIF('Données (Carac, Sexe, Tributs)'!$A:$A,\"<>0\",'Données (Carac, Sexe, Tributs)'!L:L)+SUMIF('Données (Défauts, Talents)'!$A:$A,\"<>0\",'Données (Défauts, Talents)'!AA:AA)+G49,5)","v":10},"Combat",{"$f":"MAX(($G$34+$I$34)*5+SUMIF('Données (Carac, Sexe, Tributs)'!$A:$A,\"<>0\",'Données (Carac, Sexe, Tributs)'!M:M)+SUMIF('Données (Défauts, Talents)'!$A:$A,\"<>0\",'Données (Défauts, Talents)'!AB:AB)+G50,5)","v":10},"Conduite",{"$f":"MAX(($C$32+$C$34)*5+SUMIF('Données (Carac, Sexe, Tributs)'!$A:$A,\"<>0\",'Données (Carac, Sexe, Tributs)'!N:N)+SUMIF('Données (Défauts, Talents)'!$A:$A,\"<>0\",'Données (Défauts, Talents)'!AC:AC)+G51,5)","v":10},"Discrétion",null,null,null,null,null,{"$f":"SUMIF($AA$87:$AA$102,1,$AL$87:$AL$102)","v":0},null,null,null,null,null,null,{"$f":"MAX(($I$34+$G$32)*5+SUMIF('Données (Carac, Sexe, Tributs)'!$A:$A,\"<>0\",'Données (Carac, Sexe, Tributs)'!AV:AV)-VLOOKUP(Y39,'Données (Défauts, Talents)'!$B$81:$BH$124,59,FALSE),5)","v":5},{"$f":"MAX(($G$34+$C$32)*5+SUMIF('Données (Carac, Sexe, Tributs)'!$A:$A,\"<>0\",'Données (Carac, Sexe, Tributs)'!AF:AF)+SUMIF('Données (Défauts, Talents)'!$A:$A,\"<>0\",'Données (Défauts, Talents)'!AU:AU)+AB48,5)","v":10},"Course",null,null,null,null,null,null,null,{"$f":"MAX(($C$34+$C$32)*5+SUMIF('Données (Carac, Sexe, Tributs)'!$A:$A,\"<>0\",'Données (Carac, Sexe, Tributs)'!BS:BS)-VLOOKUP(AI39,'Données (Défauts, Talents)'!$B$81:$BH$124,59,FALSE),5)","v":5},{"$f":"MAX(($G$34+$C$32)*5+SUMIF('Données (Carac, Sexe, Tributs)'!$A:$A,\"<>0\",'Données (Carac, Sexe, Tributs)'!AN:AN)+SUMIF('Données (Défauts, Talents)'!$A:$A,\"<>0\",'Données (Défauts, Talents)'!BC:BC)+#REF!,5)","v":{"$error":"#REF!"}},"Pose de pièges"]
[null,null,null,null,null,null,null,null,null,null,null,null,11,"Thorax",null,{"$f":"SUMIF($AB$87:$AB$102,\"x\",$AL$87:$AL$102)","v":0}]
[null,null,{"$f":"MAX(($I$32+$G$34)*5+SUMIF('Données (Carac, Sexe, Tributs)'!$A:$A,\"<>0\",'Données (Carac, Sexe, Tributs)'!O:O)+SUMIF('Données (Défauts, Talents)'!$A:$A,\"<>0\",'Données (Défauts, Talents)'!AD:AD)+G52,5)","v":10},"Lancer",{"$f":"MAX(($E$32+$E$34)*5+SUMIF('Données (Carac, Sexe, Tributs)'!$A:$A,\"<>0\",'Données (Carac, Sexe, Tributs)'!P:P)+SUMIF('Données (Défauts, Talents)'!$A:$A,\"<>0\",'Données (Défauts, Talents)'!AE:AE)+G53,5)","v":10},"Marchandage",{"$f":"MAX(($C$34+$I$34)*5+SUMIF('Données (Carac, Sexe, Tributs)'!$A:$A,\"<>0\",'Données (Carac, Sexe, Tributs)'!Q:Q)+SUMIF('Données (Défauts, Talents)'!$A:$A,\"<>0\",'Données (Défauts, Talents)'!AF:AF)+I48+IFERROR(20*INDEX(B85:B105,MATCH(\"Caisse à outils ($ 3 000)\",C85:C105,0))*ROUNDUP(1/VLOOKUP(\"Caisse à outils ($ 3 000)\",C85:G105,5,FALSE),0),0),5)","v":10},"Mécanique",{"$f":"MAX(($E$34+$I$34)*5+SUMIF('Données (Carac, Sexe, Tributs)'!$A:$A,\"<>0\",'Données (Carac, Sexe, Tributs)'!R:R)+SUMIF('Données (Défauts, Talents)'!$A:$A,\"<>0\",'Données (Défauts, Talents)'!AG:AG)+I49,5)","v":10},"Premiers Soins",null,null,null,null,null,{"$f":"SUMIF($AB$87:$AB$102,1,$AL$87:$AL$102)","v":0},null,null,null,null,null,null,{"$f":"MAX(($C$34+$C$32)*5+SUMIF('Données (Carac, Sexe, Tributs)'!$A:$A,\"<>0\",'Données (Carac, Sexe, Tributs)'!AW:AW),5)","v":10},{"$f":"MAX(($G$34+$C$32)*5+SUMIF('Données (Carac, Sexe, Tributs)'!$A:$A,\"<>0\",'Données (Carac, Sexe, Tributs)'!AF:AF)+SUMIF('Données (Défauts, Talents)'!$A:$A,\"<>0\",'Données (Défauts, Talents)'!AU:AU)+AB50,5)","v":10},"Cuisine",null,null,null,null,null,null,null,{"$f":"MAX(($G$32+$G$32)*5+SUMIF('Données (Carac, Sexe, Tributs)'!$A:$A,\"<>0\",'Données (Carac, Sexe, Tributs)'!BT:BT)-VLOOKUP(AI41,'Données (Défauts, Talents)'!$B$81:$BH$124,59,FALSE),5)","v":5},{"$f":"MAX(($G$34+$C$32)*5+SUMIF('Données (Carac, Sexe, Tributs)'!$A:$A,\"<>0\",'Données (Carac, Sexe, Tributs)'!AN:AN)+SUMIF('Données (Défauts, Talents)'!$A:$A,\"<>0\",'Données (Défauts, Talents)'!BC:BC)+AJ50,5)","v":10},"Résistance à l'alcool"]
[null,null,null,null,null,null,null,null,null,null,null,null,12,"Tête",null,{"$f":"SUMIF($AC$87:$AC$102,\"x\",$AL$87:$AL$102)","v":0}]
[null,null,{"$f":"MAX(($C$34+$E$34)*5+SUMIF('Données (Carac, Sexe, Tributs)'!$A:$A,\"<>0\",'Données (Carac, Sexe, Tributs)'!S:S)+SUMIF('Données (Défauts, Talents)'!$A:$A,\"<>0\",'Données (Défauts, Talents)'!AH:AH)+I50+IFERROR(20*ROUNDUP(1/VLOOKUP(\"Paire de jumelles ($ 800)\",C85:G98,5,FALSE),0),0),5)","v":10},"Repérage",{"$f":"MAX(($G$32+$I$32)*5+SUMIF('Données (Carac, Sexe, Tributs)'!$A:$A,\"<>0\",'Données (Carac, Sexe, Tributs)'!T:T)+SUMIF('Données (Défauts, Talents)'!$A:$A,\"<>0\",'Données (Défauts, Talents)'!AI:AI)+I51,5)","v":10},"Résistance",{"$f":"MAX(($E$32+IF($F$17=\"M\",$I$32,$C$32))*5+SUMIF('Données (Carac, Sexe, Tributs)'!$A:$A,\"<>0\",'Données (Carac, Sexe, Tributs)'!U:U)+SUMIF('Données (Défauts, Talents)'!$A:$A,\"<>0\",'Données (Défauts, Talents)'!AJ:AJ)+I52,5)","v":10},"Séduction",{"$f":"MAX(($E$34+$G$34)*5+SUMIF('Données (Carac, Sexe, Tributs)'!$A:$A,\"<>0\",'Données (Carac, Sexe, Tributs)'!V:V)+SUMIF('Données (Défauts, Talents)'!$A:$A,\"<>0\",'Données (Défauts, Talents)'!AK:AK)+I53+IFERROR(10*INDEX(B85:B105,MATCH(\"Viseur ($ 2 000)\",C85:C105,0))*ROUNDUP(1/VLOOKUP(\"Viseur ($ 2 000)\",C85:G105,5,FALSE),0),0)+IFERROR(10*INDEX(B85:B105,MATCH(\"Viseur infra-rouge ($ 6 000)\",C85:C105,0))*ROUNDUP(1/VLOOKUP(\"Viseur infra-rouge ($ 6 000)\",C85:G105,5,FALSE),0),0),5)","v":10},"Tir",null,null,null,null,null,{"$f":"SUMIF($AC$87:$AC$102,1,$AL$87:$AL$102)","v":0},null,null,null,null,null,null,{"$f":"MAX(($E$34+$C$32)*5+SUMIF('Données (Carac, Sexe, Tributs)'!$A:$A,\"<>0\",'Données (Carac, Sexe, Tributs)'!AX:AX)-VLOOKUP(Y43,'Données (Défauts, Talents)'!$B$81:$BH$124,59,FALSE),5)","v":5},{"$f":"MAX(($G$34+$C$32)*5+SUMIF('Données (Carac, Sexe, Tributs)'!$A:$A,\"<>0\",'Données (Carac, Sexe, Tributs)'!AF:AF)+SUMIF('Données (Défauts, Talents)'!$A:$A,\"<>0\",'Données (Défauts, Talents)'!AU:AU)+AB52,5)","v":10},"Dessin",null,null,null,null,null,null,null,{"$f":"MAX(($G$34+$C$34)*5+SUMIF('Données (Carac, Sexe, Tributs)'!$A:$A,\"<>0\",'Données (Carac, Sexe, Tributs)'!BU:BU)-VLOOKUP(AI43,'Données (Défauts, Talents)'!$B$81:$BH$124,59,FALSE),5)","v":5},{"$f":"MAX(($G$34+$C$32)*5+SUMIF('Données (Carac, Sexe, Tributs)'!$A:$A,\"<>0\",'Données (Carac, Sexe, Tributs)'!AN:AN)+SUMIF('Données (Défauts, Talents)'!$A:$A,\"<>0\",'Données (Défauts, Talents)'!BC:BC)+AJ52,5)","v":10},"Richesse"]
[null,null,null,null,null,null,null,null,null,null,null,null,13,"Bras G",null,{"$f":"SUMIF($AD$87:$AD$102,\"x\",$AL$87:$AL$102)","v":0}]
[]
[null,null,"TALENTS SPECIAUX",null,{"$f":"50+SUM(J22:J27)+SUMIF('Données (Défauts, Talents)'!A:A,\"<>0\",'Données (Défauts, Talents)'!V:V)-SUM(G48:G53,I48:I53)","v":50},"pts restants à attribuer dont ",null,null,null,null,null,null,null,null,null,{"$f":"SUMIF($AD$87:$AD$102,1,$AL$87:$AL$102)","v":0},null,null,null,null,null,null,{"$f":"MAX(($G$34+$E$34)*5+SUMIF('Données (Carac, Sexe, Tributs)'!$A:$A,\"<>0\",'Données (Carac, Sexe, Tributs)'!AY:AY)-VLOOKUP(Y46,'Données (Défauts, Talents)'!$B$81:$BH$124,59,FALSE),5)","v":5},{"$f":"MAX(($G$34+$C$32)*5+SUMIF('Données (Carac, Sexe, Tributs)'!$A:$A,\"<>0\",'Données (Carac, Sexe, Tributs)'!AF:AF)+SUMIF('Données (Défauts, Talents)'!$A:$A,\"<>0\",'Données (Défauts, Talents)'!AU:AU)+AB55,5)","v":10},"Déguisement",null,null,null,null,null,null,null,{"$f":"MAX(($I$34+$C$32)*5+SUMIF('Données (Carac, Sexe, Tributs)'!$A:$A,\"<>0\",'Données (Carac, Sexe, Tributs)'!BV:BV)-VLOOKUP(AI46,'Données (Défauts, Talents)'!$B$81:$BH$124,59,FALSE),5)","v":5},{"$f":"MAX(($G$34+$C$32)*5+SUMIF('Données (Carac, Sexe, Tributs)'!$A:$A,\"<>0\",'Données (Carac, Sexe, Tributs)'!AN:AN)+SUMIF('Données (Défauts, Talents)'!$A:$A,\"<>0\",'Données (Défauts, Talents)'!BC:BC)+AJ55,5)","v":10},"Spécialisation en arme"]
[null,null,{"$f":"30+SUMIF('Données (Défauts, Talents)'!A81:A124,\"<>0\",'Données (Défauts, Talents)'!V81:V124)","v":30},null,null,null,null,{"$f":"75-SUM(G48:G53,I48:I53)","v":75},null,null,null,null,14,"Bras D",null,{"$f":"SUMIF($AE$87:$AE$102,\"x\",$AL$87:$AL$102)","v":0},null,null,null,null,null,null,{"$f":"MAX(($C$34+$E$34)*5+SUMIF('Données (Carac, Sexe, Tributs)'!$A:$A,\"<>0\",'Données (Carac, Sexe, Tributs)'!AZ:AZ)-VLOOKUP(Y47,'Données (Défauts, Talents)'!$B$81:$BH$124,59,FALSE),5)","v":5},{"$f":"MAX(($G$34+$C$32)*5+SUMIF('Données (Carac, Sexe, Tributs)'!$A:$A,\"<>0\",'Données (Carac, Sexe, Tributs)'!AF:AF)+SUMIF('Données (Défauts, Talents)'!$A:$A,\"<>0\",'Données (Défauts, Talents)'!AU:AU)+AB56,5)","v":10},"Démolition",null,null,null,null,null,null,null,{"$f":"MAX(($C$34+$E$34)*5+SUMIF('Données (Carac, Sexe, Tributs)'!$A:$A,\"<>0\",'Données (Carac, Sexe, Tributs)'!BW:BW)-VLOOKUP(AI47,'Données (Défauts, Talents)'!$B$81:$BH$124,59,FALSE),5)","v":5},{"$f":"MAX(($G$34+$C$32)*5+SUMIF('Données (Carac, Sexe, Tributs)'!$A:$A,\"<>0\",'Données (Carac, Sexe, Tributs)'!AN:AN)+SUMIF('Données (Défauts, Talents)'!$A:$A,\"<>0\",'Données (Défauts, Talents)'!BC:BC)+AJ56,5)","v":10},"Tir indirect"]
[null,null,null,null,null,null,null,"Acrobatie",null,"Mécanique",null,null,15,"Avant-bras G",null,{"$f":"SUMIF($AF$87:$AF$102,\"x\",$AL$87:$AL$102)","v":0},null,null,null,null,null,null,{"$f":"MAX(($I$32+$C$34)*5+SUMIF('Données (Carac, Sexe, Tributs)'!$A:$A,\"<>0\",'Données (Carac, Sexe, Tributs)'!BA:BA)-VLOOKUP(Y48,'Données (Défauts, Talents)'!$B$81:$BH$124,59,FALSE),5)","v":5},{"$f":"MAX(($G$34+$C$32)*5+SUMIF('Données (Carac, Sexe, Tributs)'!$A:$A,\"<>0\",'Données (Carac, Sexe, Tributs)'!AF:AF)+SUMIF('Données (Défauts, Talents)'!$A:$A,\"<>0\",'Données (Défauts, Talents)'!AU:AU)+AB57,5)","v":10},"Dressage d'animaux",null,null,null,null,null,null,null,{"$f":"MAX(($G$34+$I$34)*5+SUMIF('Données (Carac, Sexe, Tributs)'!$A:$A,\"<>0\",'Données (Carac, Sexe, Tributs)'!BX:BX)-VLOOKUP(AI48,'Données (Défauts, Talents)'!$B$81:$BH$124,59,FALSE),5)","v":5},{"$f":"MAX(($G$34+$C$32)*5+SUMIF('Données (Carac, Sexe, Tributs)'!$A:$A,\"<>0\",'Données (Carac, Sexe, Tributs)'!AN:AN)+SUMIF('Données (Défauts, Talents)'!$A:$A,\"<>0\",'Données (Défauts, Talents)'!BC:BC)+AJ57,5)","v":10},"Tir rapide"]
[null,null,null,null,null,null,null,"Combat",null,"Premiers Soins",null,null,16,"Avant-bras D",null,{"$f":"SUMIF($AG$87:$AG$102,\"x\",$AL$87:$AL$102)","v":0},null,null,null,null,null,null,{"$f":"MAX(($I$32+$G$32)*5+SUMIF('Données (Carac, Sexe, Tributs)'!$A:$A,\"<>0\",'Données (Carac, Sexe, Tributs)'!BB:BB)-VLOOKUP(Y49,'Données (Défauts, Talents)'!$B$81:$BH$124,59,FALSE),5)","v":5},{"$f":"MAX(($G$34+$C$32)*5+SUMIF('Données (Carac, Sexe, Tributs)'!$A:$A,\"<>0\",'Données (Carac, Sexe, Tributs)'!AF:AF)+SUMIF('Données (Défauts, Talents)'!$A:$A,\"<>0\",'Données (Défauts, Talents)'!AU:AU)+AB58,5)","v":10},"Escalade",null,null,null,null,null,null,null,{"$f":"MAX(($E$34+$C$32)*5+SUMIF('Données (Carac, Sexe, Tributs)'!$A:$A,\"<>0\",'Données (Carac, Sexe, Tributs)'!BY:BY)-VLOOKUP(AI49,'Données (Défauts, Talents)'!$B$81:$BH$124,59,FALSE),5)","v":5},{"$f":"MAX(($G$34+$C$32)*5+SUMIF('Données (Carac, Sexe, Tributs)'!$A:$A,\"<>0\",'Données (Carac, Sexe, Tributs)'!AN:AN)+SUMIF('Données (Défauts, Talents)'!$A:$A,\"<>0\",'Données (Défauts, Talents)'!BC:BC)+AJ58,5)","v":10},"Tricherie"]
[null,null,null,null,null,null,null,"Conduite",null,"Repérage",null,null,17,"Main G",null,{"$f":"SUMIF($AH$87:$AH$102,\"x\",$AL$87:$AL$102)","v":0}]
[null,null,null,null,null,null,null,"Discrétion",null,"Résistance",null,null,18,"Main D",null,{"$f":"SUMIF($AI$87:$AI$102,\"x\",$AL$87:$AL$102)","v":0}]
[null,null,null,null,null,null,null,"Lancer",null,"Séduction"]
[null,null,null,null,null,null,null,"Marchandage",null,"Tir"]
[]
[]
[null,null,"MATOS A VIANDER",null,null,"Reste à choisir : ",{"$f":"IF(SUBTOTAL(3,$C$59:$F$68)=0,VLOOKUP($D$16,'Données (Carac, Sexe, Tributs)'!$B$8:$AB$24,22+SUBTOTAL(3,$C$59:$F$68),FALSE),IFERROR(VLOOKUP($D$16,'Données (Carac, Sexe, Tributs)'!$B$8:$AB$24,22+SUBTOTAL(3,$C$59:$F$68),FALSE),0))","v":{"$error":"#N/A"}}]
[]
[null,0,"Type",null,null,null,"Prec","Dommage","CDF","Portée","Poids",null,null,"Mains","Magasin max","Pose","Transport",null,"Type de munitions","Magasin en cours"]
[null,{"$f":"IF(T59<>1,B58+1,B58)","v":1},null,null,null,null,{"$f":"_xlfn.IFNA(VLOOKUP($C59,'Données (Equipements)'!$C$3:$AF$88,20,FALSE),)","v":0},{"$f":"_xlfn.IFNA(VLOOKUP($C59,'Données (Equipements)'!$C$3:$AF$88,21,FALSE),)","v":0},{"$f":"_xlfn.IFNA(VLOOKUP($C59,'Données (Equipements)'!$C$3:$AF$88,23,FALSE),)","v":0},{"$f":"_xlfn.IFNA(VLOOKUP($C59,'Données (Equipements)'!$C$3:$AF$88,22,FALSE),)","v":0},{"$f":"_xlfn.IFNA(VLOOKUP($C59,'Données (Equipements)'!$C$3:$AF$88,24,FALSE)+_xlfn.IFNA(W59*VLOOKUP(S59,$B$70:$H$79,7,FALSE),),)","v":0},null,null,{"$f":"_xlfn.IFNA(VLOOKUP($C59,'Données (Equipements)'!$C$3:$AF$88,26,FALSE),)","v":0},{"$f":"IF(ISERR(VALUE(VLOOKUP($C59,'Données (Equipements)'!$C$3:$AF$88,30,FALSE))),_xlfn.IFNA(VLOOKUP($C59,'Données (Equipements)'!$C$3:$AF$88,27,FALSE),),_xlfn.IFNA(VLOOKUP($C59,'Données (Equipements)'!$C$3:$AF$88,30,FALSE),))","v":0},{"$f":"_xlfn.IFNA(VLOOKUP($C59,'Données (Equipements)'!$C$3:$AF$88,28,FALSE),)","v":0},{"$f":"_xlfn.IFNA(VLOOKUP($C59,'Données (Equipements)'!$C$3:$AF$88,29,FALSE),)","v":0},null,{"$f":"IF(ISERR(VALUE(VLOOKUP($C59,'Données (Equipements)'!$C$3:$AF$88,30,FALSE))),_xlfn.IFNA(VLOOKUP($C59,'Données (Equipements)'!$C$3:$AF$88,30,FALSE),),IF(C59<>\"\",\"Z\"&ROW(A59)-58,0))","v":0},{"$f":"_xlfn.IFNA(VLOOKUP($C59,'Données (Equipements)'!$C$3:$AJ$88,32,FALSE),)","v":0},{"$f":"_xlfn.IFNA(VLOOKUP($C59,'Données (Equipements)'!$C$3:$AJ$88,33,FALSE),)","v":0},{"$f":"_xlfn.IFNA(VLOOKUP($C59,'Données (Equipements)'!$C$3:$AJ$88,34,FALSE),)","v":0},{"$f":"VALUE(O59)","v":0},0,1,false]
[null,{"$f":"_xlfn.IFNA(MATCH(S60,$S$59:$S59,0),IF(T60<>1,B59+1,B59))","v":1},null,null,null,null,{"$f":"_xlfn.IFNA(VLOOKUP($C60,'Données (Equipements)'!$C$3:$AF$88,20,FALSE),)","v":0},{"$f":"_xlfn.IFNA(VLOOKUP($C60,'Données (Equipements)'!$C$3:$AF$88,21,FALSE),)","v":0},{"$f":"_xlfn.IFNA(VLOOKUP($C60,'Données (Equipements)'!$C$3:$AF$88,23,FALSE),)","v":0},{"$f":"_xlfn.IFNA(VLOOKUP($C60,'Données (Equipements)'!$C$3:$AF$88,22,FALSE),)","v":0},{"$f":"_xlfn.IFNA(VLOOKUP($C60,'Données (Equipements)'!$C$3:$AF$88,24,FALSE)+_xlfn.IFNA(W60*VLOOKUP(S60,$B$70:$H$79,7,FALSE),),)","v":0},null,null,{"$f":"_xlfn.IFNA(VLOOKUP($C60,'Données (Equipements)'!$C$3:$AF$88,26,FALSE),)","v":0},{"$f":"IF(ISERR(VALUE(VLOOKUP($C60,'Données (Equipements)'!$C$3:$AF$88,30,FALSE))),_xlfn.IFNA(VLOOKUP($C60,'Données (Equipements)'!$C$3:$AF$88,27,FALSE),),_xlfn.IFNA(VLOOKUP($C60,'Données (Equipements)'!$C$3:$AF$88,30,FALSE),))","v":0},{"$f":"_xlfn.IFNA(VLOOKUP($C60,'Données (Equipements)'!$C$3:$AF$88,28,FALSE),)","v":0},{"$f":"_xlfn.IFNA(VLOOKUP($C60,'Données (Equipements)'!$C$3:$AF$88,29,FALSE),)","v":0},null,{"$f":"IF(ISERR(VALUE(VLOOKUP($C60,'Données (Equipements)'!$C$3:$AF$88,30,FALSE))),_xlfn.IFNA(VLOOKUP($C60,'Données (Equipements)'!$C$3:$AF$88,30,FALSE),),IF(C60<>\"\",\"Z\"&ROW(A60)-58,0))","v":0},{"$f":"_xlfn.IFNA(VLOOKUP($C60,'Données (Equipements)'!$C$3:$AJ$88,32,FALSE),)","v":0},{"$f":"_xlfn.IFNA(VLOOKUP($C60,'Données (Equipements)'!$C$3:$AJ$88,33,FALSE),)","v":0},{"$f":"_xlfn.IFNA(VLOOKUP($C60,'Données (Equipements)'!$C$3:$AJ$88,34,FALSE),)","v":0},0,0,{"$f":"VLOOKUP(INDEX(S59:S68,Y59),B70:G79,6,FALSE)","v":0},false]
[null,{"$f":"_xlfn.IFNA(MATCH(S61,$S$59:$S60,0),IF(T61<>1,B60+1,B60))","v":1},null,null,null,null,{"$f":"_xlfn.IFNA(VLOOKUP($C61,'Données (Equipements)'!$C$3:$AF$88,20,FALSE),)","v":0},{"$f":"_xlfn.IFNA(VLOOKUP($C61,'Données (Equipements)'!$C$3:$AF$88,21,FALSE),)","v":0},{"$f":"_xlfn.IFNA(VLOOKUP($C61,'Données (Equipements)'!$C$3:$AF$88,23,FALSE),)","v":0},{"$f":"_xlfn.IFNA(VLOOKUP($C61,'Données (Equipements)'!$C$3:$AF$88,22,FALSE),)","v":0},{"$f":"_xlfn.IFNA(VLOOKUP($C61,'Données (Equipements)'!$C$3:$AF$88,24,FALSE)+_xlfn.IFNA(W61*VLOOKUP(S61,$B$70:$H$79,7,FALSE),),)","v":0},null,null,{"$f":"_xlfn.IFNA(VLOOKUP($C61,'Données (Equipements)'!$C$3:$AF$88,26,FALSE),)","v":0},{"$f":"IF(ISERR(VALUE(VLOOKUP($C61,'Données (Equipements)'!$C$3:$AF$88,30,FALSE))),_xlfn.IFNA(VLOOKUP($C61,'Données (Equipements)'!$C$3:$AF$88,27,FALSE),),_xlfn.IFNA(VLOOKUP($C61,'Données (Equipements)'!$C$3:$AF$88,30,FALSE),))","v":0},{"$f":"_xlfn.IFNA(VLOOKUP($C61,'Données (Equipements)'!$C$3:$AF$88,28,FALSE),)","v":0},{"$f":"_xlfn.IFNA(VLOOKUP($C61,'Données (Equipements)'!$C$3:$AF$88,29,FALSE),)","v":0},null,{"$f":"IF(ISERR(VALUE(VLOOKUP($C61,'Données (Equipements)'!$C$3:$AF$88,30,FALSE))),_xlfn.IFNA(VLOOKUP($C61,'Données (Equipements)'!$C$3:$AF$88,30,FALSE),),IF(C61<>\"\",\"Z\"&ROW(A61)-58,0))","v":0},{"$f":"_xlfn.IFNA(VLOOKUP($C61,'Données (Equipements)'!$C$3:$AJ$88,32,FALSE),)","v":0},{"$f":"_xlfn.IFNA(VLOOKUP($C61,'Données (Equipements)'!$C$3:$AJ$88,33,FALSE),)","v":0},{"$f":"_xlfn.IFNA(VLOOKUP($C61,'Données (Equipements)'!$C$3:$AJ$88,34,FALSE),)","v":0},0,0,{"$f":"MATCH(INDEX(S59:S68,Y59),B70:B79,0)","v":1},false]
[null,{"$f":"_xlfn.IFNA(MATCH(S62,$S$59:$S61,0),IF(T62<>1,B61+1,B61))","v":1},null,null,null,null,{"$f":"_xlfn.IFNA(VLOOKUP($C62,'Données (Equipements)'!$C$3:$AF$88,20,FALSE),)","v":0},{"$f":"_xlfn.IFNA(VLOOKUP($C62,'Données (Equipements)'!$C$3:$AF$88,21,FALSE),)","v":0},{"$f":"_xlfn.IFNA(VLOOKUP($C62,'Données (Equipements)'!$C$3:$AF$88,23,FALSE),)","v":0},{"$f":"_xlfn.IFNA(VLOOKUP($C62,'Données (Equipements)'!$C$3:$AF$88,22,FALSE),)","v":0},{"$f":"_xlfn.IFNA(VLOOKUP($C62,'Données (Equipements)'!$C$3:$AF$88,24,FALSE)+_xlfn.IFNA(W62*VLOOKUP(S62,$B$70:$H$79,7,FALSE),),)","v":0},null,null,{"$f":"_xlfn.IFNA(VLOOKUP($C62,'Données (Equipements)'!$C$3:$AF$88,26,FALSE),)","v":0},{"$f":"IF(ISERR(VALUE(VLOOKUP($C62,'Données (Equipements)'!$C$3:$AF$88,30,FALSE))),_xlfn.IFNA(VLOOKUP($C62,'Données (Equipements)'!$C$3:$AF$88,27,FALSE),),_xlfn.IFNA(VLOOKUP($C62,'Données (Equipements)'!$C$3:$AF$88,30,FALSE),))","v":0},{"$f":"_xlfn.IFNA(VLOOKUP($C62,'Données (Equipements)'!$C$3:$AF$88,28,FALSE),)","v":0},{"$f":"_xlfn.IFNA(VLOOKUP($C62,'Données (Equipements)'!$C$3:$AF$88,29,FALSE),)","v":0},null,{"$f":"IF(ISERR(VALUE(VLOOKUP($C62,'Données (Equipements)'!$C$3:$AF$88,30,FALSE))),_xlfn.IFNA(VLOOKUP($C62,'Données (Equipements)'!$C$3:$AF$88,30,FALSE),),IF(C62<>\"\",\"Z\"&ROW(A62)-58,0))","v":0},{"$f":"_xlfn.IFNA(VLOOKUP($C62,'Données (Equipements)'!$C$3:$AJ$88,32,FALSE),)","v":0},{"$f":"_xlfn.IFNA(VLOOKUP($C62,'Données (Equipements)'!$C$3:$AJ$88,33,FALSE),)","v":0},{"$f":"_xlfn.IFNA(VLOOKUP($C62,'Données (Equipements)'!$C$3:$AJ$88,34,FALSE),)","v":0},0,0,null,false]
[null,{"$f":"_xlfn.IFNA(MATCH(S63,$S$59:$S62,0),IF(T63<>1,B62+1,B62))","v":1},null,null,null,null,{"$f":"_xlfn.IFNA(VLOOKUP($C63,'Données (Equipements)'!$C$3:$AF$88,20,FALSE),)","v":0},{"$f":"_xlfn.IFNA(VLOOKUP($C63,'Données (Equipements)'!$C$3:$AF$88,21,FALSE),)","v":0},{"$f":"_xlfn.IFNA(VLOOKUP($C63,'Données (Equipements)'!$C$3:$AF$88,23,FALSE),)","v":0},{"$f":"_xlfn.IFNA(VLOOKUP($C63,'Données (Equipements)'!$C$3:$AF$88,22,FALSE),)","v":0},{"$f":"_xlfn.IFNA(VLOOKUP($C63,'Données (Equipements)'!$C$3:$AF$88,24,FALSE)+_xlfn.IFNA(W63*VLOOKUP(S63,$B$70:$H$79,7,FALSE),),)","v":0},null,null,{"$f":"_xlfn.IFNA(VLOOKUP($C63,'Données (Equipements)'!$C$3:$AF$88,26,FALSE),)","v":0},{"$f":"IF(ISERR(VALUE(VLOOKUP($C63,'Données (Equipements)'!$C$3:$AF$88,30,FALSE))),_xlfn.IFNA(VLOOKUP($C63,'Données (Equipements)'!$C$3:$AF$88,27,FALSE),),_xlfn.IFNA(VLOOKUP($C63,'Données (Equipements)'!$C$3:$AF$88,30,FALSE),))","v":0},{"$f":"_xlfn.IFNA(VLOOKUP($C63,'Données (Equipements)'!$C$3:$AF$88,28,FALSE),)","v":0},{"$f":"_xlfn.IFNA(VLOOKUP($C63,'Données (Equipements)'!$C$3:$AF$88,29,FALSE),)","v":0},null,{"$f":"IF(ISERR(VALUE(VLOOKUP($C63,'Données (Equipements)'!$C$3:$AF$88,30,FALSE))),_xlfn.IFNA(VLOOKUP($C63,'Données (Equipements)'!$C$3:$AF$88,30,FALSE),),IF(C63<>\"\",\"Z\"&ROW(A63)-58,0))","v":0},{"$f":"_xlfn.IFNA(VLOOKUP($C63,'Données (Equipements)'!$C$3:$AJ$88,32,FALSE),)","v":0},{"$f":"_xlfn.IFNA(VLOOKUP($C63,'Données (Equipements)'!$C$3:$AJ$88,33,FALSE),)","v":0},{"$f":"_xlfn.IFNA(VLOOKUP($C63,'Données (Equipements)'!$C$3:$AJ$88,34,FALSE),)","v":0},0,null,null,false]
[null,{"$f":"_xlfn.IFNA(MATCH(S64,$S$59:$S63,0),IF(T64<>1,B63+1,B63))","v":1},null,null,null,null,{"$f":"_xlfn.IFNA(VLOOKUP($C64,'Données (Equipements)'!$C$3:$AF$88,20,FALSE),)","v":0},{"$f":"_xlfn.IFNA(VLOOKUP($C64,'Données (Equipements)'!$C$3:$AF$88,21,FALSE),)","v":0},{"$f":"_xlfn.IFNA(VLOOKUP($C64,'Données (Equipements)'!$C$3:$AF$88,23,FALSE),)","v":0},{"$f":"_xlfn.IFNA(VLOOKUP($C64,'Données (Equipements)'!$C$3:$AF$88,22,FALSE),)","v":0},{"$f":"_xlfn.IFNA(VLOOKUP($C64,'Données (Equipements)'!$C$3:$AF$88,24,FALSE)+_xlfn.IFNA(W64*VLOOKUP(S64,$B$70:$H$79,7,FALSE),),)","v":0},null,null,{"$f":"_xlfn.IFNA(VLOOKUP($C64,'Données (Equipements)'!$C$3:$AF$88,26,FALSE),)","v":0},{"$f":"IF(ISERR(VALUE(VLOOKUP($C64,'Données (Equipements)'!$C$3:$AF$88,30,FALSE))),_xlfn.IFNA(VLOOKUP($C64,'Données (Equipements)'!$C$3:$AF$88,27,FALSE),),_xlfn.IFNA(VLOOKUP($C64,'Données (Equipements)'!$C$3:$AF$88,30,FALSE),))","v":0},{"$f":"_xlfn.IFNA(VLOOKUP($C64,'Données (Equipements)'!$C$3:$AF$88,28,FALSE),)","v":0},{"$f":"_xlfn.IFNA(VLOOKUP($C64,'Données (Equipements)'!$C$3:$AF$88,29,FALSE),)","v":0},null,{"$f":"IF(ISERR(VALUE(VLOOKUP($C64,'Données (Equipements)'!$C$3:$AF$88,30,FALSE))),_xlfn.IFNA(VLOOKUP($C64,'Données (Equipements)'!$C$3:$AF$88,30,FALSE),),IF(C64<>\"\",\"Z\"&ROW(A64)-58,0))","v":0},{"$f":"_xlfn.IFNA(VLOOKUP($C64,'Données (Equipements)'!$C$3:$AJ$88,32,FALSE),)","v":0},{"$f":"_xlfn.IFNA(VLOOKUP($C64,'Données (Equipements)'!$C$3:$AJ$88,33,FALSE),)","v":0},{"$f":"_xlfn.IFNA(VLOOKUP($C64,'Données (Equipements)'!$C$3:$AJ$88,34,FALSE),)","v":0},0,null,null,false]
[null,{"$f":"_xlfn.IFNA(MATCH(S65,$S$59:$S64,0),IF(T65<>1,B64+1,B64))","v":1},null,null,null,null,{"$f":"_xlfn.IFNA(VLOOKUP($C65,'Données (Equipements)'!$C$3:$AF$88,20,FALSE),)","v":0},{"$f":"_xlfn.IFNA(VLOOKUP($C65,'Données (Equipements)'!$C$3:$AF$88,21,FALSE),)","v":0},{"$f":"_xlfn.IFNA(VLOOKUP($C65,'Données (Equipements)'!$C$3:$AF$88,23,FALSE),)","v":0},{"$f":"_xlfn.IFNA(VLOOKUP($C65,'Données (Equipements)'!$C$3:$AF$88,22,FALSE),)","v":0},{"$f":"_xlfn.IFNA(VLOOKUP($C65,'Données (Equipements)'!$C$3:$AF$88,24,FALSE)+_xlfn.IFNA(W65*VLOOKUP(S65,$B$70:$H$79,7,FALSE),),)","v":0},null,null,{"$f":"_xlfn.IFNA(VLOOKUP($C65,'Données (Equipements)'!$C$3:$AF$88,26,FALSE),)","v":0},{"$f":"IF(ISERR(VALUE(VLOOKUP($C65,'Données (Equipements)'!$C$3:$AF$88,30,FALSE))),_xlfn.IFNA(VLOOKUP($C65,'Données (Equipements)'!$C$3:$AF$88,27,FALSE),),_xlfn.IFNA(VLOOKUP($C65,'Données (Equipements)'!$C$3:$AF$88,30,FALSE),))","v":0},{"$f":"_xlfn.IFNA(VLOOKUP($C65,'Données (Equipements)'!$C$3:$AF$88,28,FALSE),)","v":0},{"$f":"_xlfn.IFNA(VLOOKUP($C65,'Données (Equipements)'!$C$3:$AF$88,29,FALSE),)","v":0},null,{"$f":"IF(ISERR(VALUE(VLOOKUP($C65,'Données (Equipements)'!$C$3:$AF$88,30,FALSE))),_xlfn.IFNA(VLOOKUP($C65,'Données (Equipements)'!$C$3:$AF$88,30,FALSE),),IF(C65<>\"\",\"Z\"&ROW(A65)-58,0))","v":0},{"$f":"_xlfn.IFNA(VLOOKUP($C65,'Données (Equipements)'!$C$3:$AJ$88,32,FALSE),)","v":0},{"$f":"_xlfn.IFNA(VLOOKUP($C65,'Données (Equipements)'!$C$3:$AJ$88,33,FALSE),)","v":0},{"$f":"_xlfn.IFNA(VLOOKUP($C65,'Données (Equipements)'!$C$3:$AJ$88,34,FALSE),)","v":0},0,null,null,false]
[null,{"$f":"_xlfn.IFNA(MATCH(S66,$S$59:$S65,0),IF(T66<>1,B65+1,B65))","v":1},null,null,null,null,{"$f":"_xlfn.IFNA(VLOOKUP($C66,'Données (Equipements)'!$C$3:$AF$88,20,FALSE),)","v":0},{"$f":"_xlfn.IFNA(VLOOKUP($C66,'Données (Equipements)'!$C$3:$AF$88,21,FALSE),)","v":0},{"$f":"_xlfn.IFNA(VLOOKUP($C66,'Données (Equipements)'!$C$3:$AF$88,23,FALSE),)","v":0},{"$f":"_xlfn.IFNA(VLOOKUP($C66,'Données (Equipements)'!$C$3:$AF$88,22,FALSE),)","v":0},{"$f":"_xlfn.IFNA(VLOOKUP($C66,'Données (Equipements)'!$C$3:$AF$88,24,FALSE)+_xlfn.IFNA(W66*VLOOKUP(S66,$B$70:$H$79,7,FALSE),),)","v":0},null,null,{"$f":"_xlfn.IFNA(VLOOKUP($C66,'Données (Equipements)'!$C$3:$AF$88,26,FALSE),)","v":0},{"$f":"IF(ISERR(VALUE(VLOOKUP($C66,'Données (Equipements)'!$C$3:$AF$88,30,FALSE))),_xlfn.IFNA(VLOOKUP($C66,'Données (Equipements)'!$C$3:$AF$88,27,FALSE),),_xlfn.IFNA(VLOOKUP($C66,'Données (Equipements)'!$C$3:$AF$88,30,FALSE),))","v":0},{"$f":"_xlfn.IFNA(VLOOKUP($C66,'Données (Equipements)'!$C$3:$AF$88,28,FALSE),)","v":0},{"$f":"_xlfn.IFNA(VLOOKUP($C66,'Données (Equipements)'!$C$3:$AF$88,29,FALSE),)","v":0},null,{"$f":"IF(ISERR(VALUE(VLOOKUP($C66,'Données (Equipements)'!$C$3:$AF$88,30,FALSE))),_xlfn.IFNA(VLOOKUP($C66,'Données (Equipements)'!$C$3:$AF$88,30,FALSE),),IF(C66<>\"\",\"Z\"&ROW(A66)-58,0))","v":0},{"$f":"_xlfn.IFNA(VLOOKUP($C66,'Données (Equipements)'!$C$3:$AJ$88,32,FALSE),)","v":0},{"$f":"_xlfn.IFNA(VLOOKUP($C66,'Données (Equipements)'!$C$3:$AJ$88,33,FALSE),)","v":0},{"$f":"_xlfn.IFNA(VLOOKUP($C66,'Données (Equipements)'!$C$3:$AJ$88,34,FALSE),)","v":0},0,null,null,false]
[null,{"$f":"_xlfn.IFNA(MATCH(S67,$S$59:$S66,0),IF(T67<>1,B66+1,B66))","v":1},null,null,null,null,{"$f":"_xlfn.IFNA(VLOOKUP($C67,'Données (Equipements)'!$C$3:$AF$88,20,FALSE),)","v":0},{"$f":"_xlfn.IFNA(VLOOKUP($C67,'Données (Equipements)'!$C$3:$AF$88,21,FALSE),)","v":0},{"$f":"_xlfn.IFNA(VLOOKUP($C67,'Données (Equipements)'!$C$3:$AF$88,23,FALSE),)","v":0},{"$f":"_xlfn.IFNA(VLOOKUP($C67,'Données (Equipements)'!$C$3:$AF$88,22,FALSE),)","v":0},{"$f":"_xlfn.IFNA(VLOOKUP($C67,'Données (Equipements)'!$C$3:$AF$88,24,FALSE)+_xlfn.IFNA(W67*VLOOKUP(S67,$B$70:$H$79,7,FALSE),),)","v":0},null,null,{"$f":"_xlfn.IFNA(VLOOKUP($C67,'Données (Equipements)'!$C$3:$AF$88,26,FALSE),)","v":0},{"$f":"IF(ISERR(VALUE(VLOOKUP($C67,'Données (Equipements)'!$C$3:$AF$88,30,FALSE))),_xlfn.IFNA(VLOOKUP($C67,'Données (Equipements)'!$C$3:$AF$88,27,FALSE),),_xlfn.IFNA(VLOOKUP($C67,'Données (Equipements)'!$C$3:$AF$88,30,FALSE),))","v":0},{"$f":"_xlfn.IFNA(VLOOKUP($C67,'Données (Equipements)'!$C$3:$AF$88,28,FALSE),)","v":0},{"$f":"_xlfn.IFNA(VLOOKUP($C67,'Données (Equipements)'!$C$3:$AF$88,29,FALSE),)","v":0},null,{"$f":"IF(ISERR(VALUE(VLOOKUP($C67,'Données (Equipements)'!$C$3:$AF$88,30,FALSE))),_xlfn.IFNA(VLOOKUP($C67,'Données (Equipements)'!$C$3:$AF$88,30,FALSE),),IF(C67<>\"\",\"Z\"&ROW(A67)-58,0))","v":0},{"$f":"_xlfn.IFNA(VLOOKUP($C67,'Données (Equipements)'!$C$3:$AJ$88,32,FALSE),)","v":0},{"$f":"_xlfn.IFNA(VLOOKUP($C67,'Données (Equipements)'!$C$3:$AJ$88,33,FALSE),)","v":0},{"$f":"_xlfn.IFNA(VLOOKUP($C67,'Données (Equipements)'!$C$3:$AJ$88,34,FALSE),)","v":0},0,null,null,false]
[null,{"$f":"_xlfn.IFNA(MATCH(S68,$S$59:$S67,0),IF(T68<>1,B67+1,B67))","v":1},null,null,null,null,{"$f":"_xlfn.IFNA(VLOOKUP($C68,'Données (Equipements)'!$C$3:$AF$88,20,FALSE),)","v":0},{"$f":"_xlfn.IFNA(VLOOKUP($C68,'Données (Equipements)'!$C$3:$AF$88,21,FALSE),)","v":0},{"$f":"_xlfn.IFNA(VLOOKUP($C68,'Données (Equipements)'!$C$3:$AF$88,23,FALSE),)","v":0},{"$f":"_xlfn.IFNA(VLOOKUP($C68,'Données (Equipements)'!$C$3:$AF$88,22,FALSE),)","v":0},{"$f":"_xlfn.IFNA(VLOOKUP($C68,'Données (Equipements)'!$C$3:$AF$88,24,FALSE)+_xlfn.IFNA(W68*VLOOKUP(S68,$B$70:$H$79,7,FALSE),),)","v":0},null,null,{"$f":"_xlfn.IFNA(VLOOKUP($C68,'Données (Equipements)'!$C$3:$AF$88,26,FALSE),)","v":0},{"$f":"IF(ISERR(VALUE(VLOOKUP($C68,'Données (Equipements)'!$C$3:$AF$88,30,FALSE))),_xlfn.IFNA(VLOOKUP($C68,'Données (Equipements)'!$C$3:$AF$88,27,FALSE),),_xlfn.IFNA(VLOOKUP($C68,'Données (Equipements)'!$C$3:$AF$88,30,FALSE),))","v":0},{"$f":"_xlfn.IFNA(VLOOKUP($C68,'Données (Equipements)'!$C$3:$AF$88,28,FALSE),)","v":0},{"$f":"_xlfn.IFNA(VLOOKUP($C68,'Données (Equipements)'!$C$3:$AF$88,29,FALSE),)","v":0},null,{"$f":"IF(ISERR(VALUE(VLOOKUP($C68,'Données (Equipements)'!$C$3:$AF$88,30,FALSE))),_xlfn.IFNA(VLOOKUP($C68,'Données (Equipements)'!$C$3:$AF$88,30,FALSE),),IF(C68<>\"\",\"Z\"&ROW(A68)-58,0))","v":0},{"$f":"_xlfn.IFNA(VLOOKUP($C68,'Données (Equipements)'!$C$3:$AJ$88,32,FALSE),)","v":0},{"$f":"_xlfn.IFNA(VLOOKUP($C68,'Données (Equipements)'!$C$3:$AJ$88,33,FALSE),)","v":0},{"$f":"_xlfn.IFNA(VLOOKUP($C68,'Données (Equipements)'!$C$3:$AJ$88,34,FALSE),)","v":0},0,null,null,false]
[null,null,"Munitions pour",null,null,null,"Qtt","Poids unitaire"]
[null,{"$f":"_xlfn.IFNA(VLOOKUP(ROW(A70)-69,$B$59:$S$68,18,FALSE),)","v":0},{"$f":"_xlfn.IFNA(VLOOKUP(B70,'Données (Equipements)'!$A$90:$AA$100,3,FALSE),IF(B70<>0,VLOOKUP(ROW(B70)-69,$B$59:$F$68,2,FALSE),\"\"))","v":""},null,null,null,{"$f":"_xlfn.IFNA(ROUNDDOWN(100/VLOOKUP(C70,'Données (Equipements)'!$C$90:$AA$103,25,FALSE),0),0)","v":0},{"$f":"_xlfn.IFNA(VLOOKUP(C70,'Données (Equipements)'!$C$3:$AA$103,24,FALSE),\"\")","v":""},{"$f":"IF(Z70,0,1)","v":1},null,null,null,null,null,null,null,null,null,null,null,null,null,null,null,null,false]
[null,{"$f":"_xlfn.IFNA(VLOOKUP(ROW(A71)-69,$B$59:$S$68,18,FALSE),)","v":0},{"$f":"_xlfn.IFNA(VLOOKUP(B71,'Données (Equipements)'!$A$90:$AA$100,3,FALSE),IF(B71<>0,VLOOKUP(ROW(B71)-69,$B$59:$F$68,2,FALSE),\"\"))","v":""},null,null,null,{"$f":"_xlfn.IFNA(ROUNDDOWN(100/VLOOKUP(C71,'Données (Equipements)'!$C$90:$AA$103,25,FALSE),0),0)","v":0},{"$f":"_xlfn.IFNA(VLOOKUP(C71,'Données (Equipements)'!$C$3:$AA$103,24,FALSE),\"\")","v":""},{"$f":"IF(Z71,0,1)","v":1},null,null,null,null,null,null,null,null,null,null,null,null,null,null,null,null,false]
[null,0,{"$f":"_xlfn.IFNA(VLOOKUP(B72,'Données (Equipements)'!$A$90:$AA$100,3,FALSE),IF(B72<>0,VLOOKUP(ROW(B72)-69,$B$59:$F$68,2,FALSE),\"\"))","v":""},null,null,null,{"$f":"_xlfn.IFNA(ROUNDDOWN(100/VLOOKUP(C72,'Données (Equipements)'!$C$90:$AA$103,25,FALSE),0),0)","v":0},{"$f":"_xlfn.IFNA(VLOOKUP(C72,'Données (Equipements)'!$C$3:$AA$103,24,FALSE),\"\")","v":""},1,{"$f":"INDEX($C$59:$X$68,$Y$59,22)","v":0},"Equipé :",null,null,null,{"$f":"LEFT(INDEX($C$59:$X$68,$Y$59,1),FIND(\"$\",INDEX($C$59:$X$68,$Y$59,1))-2)","v":{"$error":"#VALUE!"}},null,null,{"$f":"INDEX($C$59:$X$68,$Y$59,5)","v":0},null,null,null,null,null,null,null,false]
[null,0,{"$f":"_xlfn.IFNA(VLOOKUP(B73,'Données (Equipements)'!$A$90:$AA$100,3,FALSE),IF(B73<>0,VLOOKUP(ROW(B73)-69,$B$59:$F$68,2,FALSE),\"\"))","v":""},null,null,null,{"$f":"_xlfn.IFNA(ROUNDDOWN(100/VLOOKUP(C73,'Données (Equipements)'!$C$90:$AA$103,25,FALSE),0),0)","v":0},{"$f":"_xlfn.IFNA(VLOOKUP(C73,'Données (Equipements)'!$C$3:$AA$103,24,FALSE),\"\")","v":""},1,null,null,null,null,null,null,null,null,{"$f":"IFERROR(RIGHT(INDEX($C$59:$X$68,$Y$59,7),LEN(INDEX($C$59:$X$68,$Y$59,7))-FIND(\"/\",INDEX($C$59:$X$68,$Y$59,7)))/LEFT(INDEX($C$59:$X$68,$Y$59,7),FIND(\"/\",INDEX($C$59:$X$68,$Y$59,7))-1),1/VALUE(INDEX($C$59:$X$68,$Y$59,7)))","v":{"$error":"#DIV/0!"}},null,null,null,null,null,null,null,false]
[null,0,{"$f":"_xlfn.IFNA(VLOOKUP(B74,'Données (Equipements)'!$A$90:$AA$100,3,FALSE),IF(B74<>0,VLOOKUP(ROW(B74)-69,$B$59:$F$68,2,FALSE),\"\"))","v":""},null,null,null,{"$f":"_xlfn.IFNA(ROUNDDOWN(100/VLOOKUP(C74,'Données (Equipements)'!$C$90:$AA$103,25,FALSE),0),0)","v":0},{"$f":"_xlfn.IFNA(VLOOKUP(C74,'Données (Equipements)'!$C$3:$AA$103,24,FALSE),\"\")","v":""},1,0,{"$f":"IF($J$72<1,CHOOSE(INDEX($C$59:$X$68,$Y$59,18),\"Combat\",\"Lancer\",\"Tir\",\"Combat\"),IF($K$76=\"Vide\",\"Munitions\",J72&\" tour(s)\"))","v":{"$error":"#VALUE!"}},null,null,null,{"$f":"IF($J$72<1,CHOOSE(INDEX($C$59:$X$68,$Y$59,18),\"\",\"\",\"\",\"Lancer\"),IF($K$76=\"Vide\",\"nécessaires\",\"avant action\"))","v":{"$error":"#VALUE!"}},null,null,{"$f":"IF(VALUE(INDEX($C$59:$X$68,$Y$59,13))<>0,VALUE(INDEX($C$59:$X$68,$Y$59,13)),INDEX($C$59:$X$68,$Y$59,21))","v":0},null,null,null,null,null,null,null,false]
[null,0,{"$f":"_xlfn.IFNA(VLOOKUP(B75,'Données (Equipements)'!$A$90:$AA$100,3,FALSE),IF(B75<>0,VLOOKUP(ROW(B75)-69,$B$59:$F$68,2,FALSE),\"\"))","v":""},null,null,null,{"$f":"_xlfn.IFNA(ROUNDDOWN(100/VLOOKUP(C75,'Données (Equipements)'!$C$90:$AA$103,25,FALSE),0),0)","v":0},{"$f":"_xlfn.IFNA(VLOOKUP(C75,'Données (Equipements)'!$C$3:$AA$103,24,FALSE),\"\")","v":""},1,null,null,null,null,null,null,null,null,{"$f":"INDEX($C$59:$X$68,$Y$59,19)","v":0},null,null,null,null,null,null,null,false]
[null,0,{"$f":"_xlfn.IFNA(VLOOKUP(B76,'Données (Equipements)'!$A$90:$AA$100,3,FALSE),IF(B76<>0,VLOOKUP(ROW(B76)-69,$B$59:$F$68,2,FALSE),\"\"))","v":""},null,null,null,{"$f":"_xlfn.IFNA(ROUNDDOWN(100/VLOOKUP(C76,'Données (Equipements)'!$C$90:$AA$103,25,FALSE),0),0)","v":0},{"$f":"_xlfn.IFNA(VLOOKUP(C76,'Données (Equipements)'!$C$3:$AA$103,24,FALSE),\"\")","v":""},1,null,{"$f":"IF(VALUE(INDEX($C$59:$X$68,$Y$59,21))<>0,VALUE(INDEX($C$59:$X$68,$Y$59,21)),IF(Y60<>0,\"Rechargement ...\",\"Vide\"))","v":"Vide"},null,null,null,null,null,null,{"$f":"INDEX($C$59:$X$68,$Y$59,20)","v":0},null,null,null,null,null,null,null,false]
[null,0,{"$f":"_xlfn.IFNA(VLOOKUP(B77,'Données (Equipements)'!$A$90:$AA$100,3,FALSE),IF(B77<>0,VLOOKUP(ROW(B77)-69,$B$59:$F$68,2,FALSE),\"\"))","v":""},null,null,null,{"$f":"_xlfn.IFNA(ROUNDDOWN(100/VLOOKUP(C77,'Données (Equipements)'!$C$90:$AA$103,25,FALSE),0),0)","v":0},{"$f":"_xlfn.IFNA(VLOOKUP(C77,'Données (Equipements)'!$C$3:$AA$103,24,FALSE),\"\")","v":""},1,null,null,null,null,null,null,null,null,null,null,null,null,null,null,null,null,false]
[null,0,{"$f":"_xlfn.IFNA(VLOOKUP(B78,'Données (Equipements)'!$A$90:$AA$100,3,FALSE),IF(B78<>0,VLOOKUP(ROW(B78)-69,$B$59:$F$68,2,FALSE),\"\"))","v":""},null,null,null,{"$f":"_xlfn.IFNA(ROUNDDOWN(100/VLOOKUP(C78,'Données (Equipements)'!$C$90:$AA$103,25,FALSE),0),0)","v":0},{"$f":"_xlfn.IFNA(VLOOKUP(C78,'Données (Equipements)'!$C$3:$AA$103,24,FALSE),\"\")","v":""},1,null,null,null,null,null,null,null,null,null,null,null,null,null,null,null,null,false]
[null,0,{"$f":"_xlfn.IFNA(VLOOKUP(B79,'Données (Equipements)'!$A$90:$AA$100,3,FALSE),IF(B79<>0,VLOOKUP(ROW(B79)-69,$B$59:$F$68,2,FALSE),\"\"))","v":""},null,null,null,{"$f":"_xlfn.IFNA(ROUNDDOWN(100/VLOOKUP(C79,'Données (Equipements)'!$C$90:$AA$103,25,FALSE),0),0)","v":0},{"$f":"_xlfn.IFNA(VLOOKUP(C79,'Données (Equipements)'!$C$3:$AA$103,24,FALSE),\"\")","v":""},1,null,null,null,null,null,null,null,null,null,null,null,null,null,null,null,null,false]
[]
[]
[null,null,"CE QUI EST A MOI EST A MOI",null,null,"Reste à choisir : ",{"$f":"VLOOKUP($D$16,'Données (Carac, Sexe, Tributs)'!$B$8:$AD$24,28,FALSE)-SUM($G$85:$G$105,$O$85:$O$105)","v":{"$error":"#N/A"}},"objet(s) de moins de",{"$f":"VLOOKUP($D$16,'Données (Carac, Sexe, Tributs)'!$B$8:$AD$24,29,FALSE)","v":{"$error":"#N/A"}},null,null,null,null,null,null,null,null,null,"VÊTEMENTS ET ARMURES",null,{"$f":"VLOOKUP($D$16,'Données (Carac, Sexe, Tributs)'!$B$8:$AE$24,30,FALSE)","v":{"$error":"#N/A"}}]
[null,null,null,null,null,null,null,null,null,null,null,null,null,null,null,null,null,null,null,1,1,2,2,2,2,3,4,5,3,2,2,2,2,1,1]
[null,0,"Type",null,null,null,"Qtt","Poids unitaire","Type",null,null,null,null,null,"Qtt","Poids unitaire",null,0,"Type","Pied G","Pied D","JambeG","Jambe D","Cuisse G","Cuisse D","Bas ventre","Abdomen","Thorax","Tête","Bras G","Bras D","Avant-bras G","Avant-bras D","Main G","Main D","Taille","Matière","Protection","Poids"]
[false,{"$f":"IF(A85,0,1)","v":1},null,null,null,null,null,{"$f":"_xlfn.IFNA(VLOOKUP($C85,'Données (Equipements)'!$C$3:$AF$146,24,FALSE),)","v":0},null,null,null,null,null,null,null,null,{"$f":"IF(R85,0,1)","v":1},false]
[false,{"$f":"IF(A86,0,1)","v":1},null,null,null,null,null,{"$f":"_xlfn.IFNA(VLOOKUP($C86,'Données (Equipements)'!$C$3:$AF$146,24,FALSE),)","v":0},null,null,null,null,null,null,null,null,{"$f":"IF(R86,0,1)","v":1},false,null,null,null,null,null,null,null,null,null,null,null,null,null,null,null,null,null,null,"Matière"]
[false,1,null,null,null,null,null,{"$f":"_xlfn.IFNA(VLOOKUP($C87,'Données (Equipements)'!$C$3:$AF$146,24,FALSE),)","v":0},null,null,null,null,null,null,null,null,1,false,null,null,null,null,null,null,null,null,null,null,null,null,null,null,null,null,null,{"$f":"SUMIF(T87:AI87,\"x\",$T$83:$AI$83)","v":0},null,{"$f":"_xlfn.IFNA(VLOOKUP($AK87,'Données (Equipements)'!$C$3:$AF$153,20,FALSE),)","v":0},{"$f":"_xlfn.IFNA(VLOOKUP($AK87,'Données (Equipements)'!$C$3:$AF$153,24,FALSE),)*AJ87","v":0}]
[false,1,null,null,null,null,null,{"$f":"_xlfn.IFNA(VLOOKUP($C88,'Données (Equipements)'!$C$3:$AF$146,24,FALSE),)","v":0},null,null,null,null,null,null,null,null,1,false,null,null,null,null,null,null,null,null,null,null,null,null,null,null,null,null,null,{"$f":"SUMIF(T88:AI88,\"x\",$T$83:$AI$83)","v":0},null,{"$f":"_xlfn.IFNA(VLOOKUP($AK88,'Données (Equipements)'!$C$3:$AF$153,20,FALSE),)","v":0},{"$f":"_xlfn.IFNA(VLOOKUP($AK88,'Données (Equipements)'!$C$3:$AF$153,24,FALSE),)*AJ88","v":0}]
[false,1,null,null,null,null,null,{"$f":"_xlfn.IFNA(VLOOKUP($C89,'Données (Equipements)'!$C$3:$AF$146,24,FALSE),)","v":0},null,null,null,null,null,null,null,null,1,false,null,null,null,null,null,null,null,null,null,null,null,null,null,null,null,null,null,0,null,{"$f":"_xlfn.IFNA(VLOOKUP($AK89,'Données (Equipements)'!$C$3:$AF$153,20,FALSE),)","v":0},{"$f":"_xlfn.IFNA(VLOOKUP($AK89,'Données (Equipements)'!$C$3:$AF$153,24,FALSE),)*AJ89","v":0}]
[false,1,null,null,null,null,null,{"$f":"_xlfn.IFNA(VLOOKUP($C90,'Données (Equipements)'!$C$3:$AF$146,24,FALSE),)","v":0},null,null,null,null,null,null,null,null,1,false,null,null,null,null,null,null,null,null,null,null,null,null,null,null,null,null,null,0,null,{"$f":"_xlfn.IFNA(VLOOKUP($AK90,'Données (Equipements)'!$C$3:$AF$153,20,FALSE),)","v":0},{"$f":"_xlfn.IFNA(VLOOKUP($AK90,'Données (Equipements)'!$C$3:$AF$153,24,FALSE),)*AJ90","v":0}]
[false,1,null,null,null,null,null,{"$f":"_xlfn.IFNA(VLOOKUP($C91,'Données (Equipements)'!$C$3:$AF$146,24,FALSE),)","v":0},null,null,null,null,null,null,null,null,1,false,null,null,null,null,null,null,null,null,null,null,null,null,null,null,null,null,null,0,null,{"$f":"_xlfn.IFNA(VLOOKUP($AK91,'Données (Equipements)'!$C$3:$AF$153,20,FALSE),)","v":0},{"$f":"_xlfn.IFNA(VLOOKUP($AK91,'Données (Equipements)'!$C$3:$AF$153,24,FALSE),)*AJ91","v":0}]
[false,1,null,null,null,null,null,{"$f":"_xlfn.IFNA(VLOOKUP($C92,'Données (Equipements)'!$C$3:$AF$146,24,FALSE),)","v":0},null,null,null,null,null,null,null,null,1,false,null,null,null,null,null,null,null,null,null,null,null,null,null,null,null,null,null,0,null,{"$f":"_xlfn.IFNA(VLOOKUP($AK92,'Données (Equipements)'!$C$3:$AF$153,20,FALSE),)","v":0},{"$f":"_xlfn.IFNA(VLOOKUP($AK92,'Données (Equipements)'!$C$3:$AF$153,24,FALSE),)*AJ92","v":0}]
[false,1,null,null,null,null,null,{"$f":"_xlfn.IFNA(VLOOKUP($C93,'Données (Equipements)'!$C$3:$AF$146,24,FALSE),)","v":0},null,null,null,null,null,null,null,null,1,false,null,null,null,null,null,null,null,null,null,null,null,null,null,null,null,null,null,0,null,{"$f":"_xlfn.IFNA(VLOOKUP($AK93,'Données (Equipements)'!$C$3:$AF$153,20,FALSE),)","v":0},{"$f":"_xlfn.IFNA(VLOOKUP($AK93,'Données (Equipements)'!$C$3:$AF$153,24,FALSE),)*AJ93","v":0}]
[false,1,null,null,null,null,null,{"$f":"_xlfn.IFNA(VLOOKUP($C94,'Données (Equipements)'!$C$3:$AF$146,24,FALSE),)","v":0},null,null,null,null,null,null,null,null,1,false,null,null,null,null,null,null,null,null,null,null,null,null,null,null,null,null,null,0,null,{"$f":"_xlfn.IFNA(VLOOKUP($AK94,'Données (Equipements)'!$C$3:$AF$153,20,FALSE),)","v":0},{"$f":"_xlfn.IFNA(VLOOKUP($AK94,'Données (Equipements)'!$C$3:$AF$153,24,FALSE),)*AJ94","v":0}]
[false,1,null,null,null,null,null,{"$f":"_xlfn.IFNA(VLOOKUP($C95,'Données (Equipements)'!$C$3:$AF$146,24,FALSE),)","v":0},null,null,null,null,null,null,null,null,1,false,null,null,null,null,null,null,null,null,null,null,null,null,null,null,null,null,null,0,null,{"$f":"_xlfn.IFNA(VLOOKUP($AK95,'Données (Equipements)'!$C$3:$AF$153,20,FALSE),)","v":0},{"$f":"_xlfn.IFNA(VLOOKUP($AK95,'Données (Equipements)'!$C$3:$AF$153,24,FALSE),)*AJ95","v":0}]
[false,1,null,null,null,null,null,{"$f":"_xlfn.IFNA(VLOOKUP($C96,'Données (Equipements)'!$C$3:$AF$146,24,FALSE),)","v":0},null,null,null,null,null,null,null,null,1,false,null,null,null,null,null,null,null,null,null,null,null,null,null,null,null,null,null,0,null,{"$f":"_xlfn.IFNA(VLOOKUP($AK96,'Données (Equipements)'!$C$3:$AF$153,20,FALSE),)","v":0},{"$f":"_xlfn.IFNA(VLOOKUP($AK96,'Données (Equipements)'!$C$3:$AF$153,24,FALSE),)*AJ96","v":0}]
[false,1,null,null,null,null,null,{"$f":"_xlfn.IFNA(VLOOKUP($C97,'Données (Equipements)'!$C$3:$AF$146,24,FALSE),)","v":0},null,null,null,null,null,null,null,null,1,false,null,null,null,null,null,null,null,null,null,null,null,null,null,null,null,null,null,0,null,{"$f":"_xlfn.IFNA(VLOOKUP($AK97,'Données (Equipements)'!$C$3:$AF$153,20,FALSE),)","v":0},{"$f":"_xlfn.IFNA(VLOOKUP($AK97,'Données (Equipements)'!$C$3:$AF$153,24,FALSE),)*AJ97","v":0}]
[false,1,null,null,null,null,null,{"$f":"_xlfn.IFNA(VLOOKUP($C98,'Données (Equipements)'!$C$3:$AF$146,24,FALSE),)","v":0},null,null,null,null,null,null,null,null,1,false,null,null,null,null,null,null,null,null,null,null,null,null,null,null,null,null,null,0,null,{"$f":"_xlfn.IFNA(VLOOKUP($AK98,'Données (Equipements)'!$C$3:$AF$153,20,FALSE),)","v":0},{"$f":"_xlfn.IFNA(VLOOKUP($AK98,'Données (Equipements)'!$C$3:$AF$153,24,FALSE),)*AJ98","v":0}]
[false,1,null,null,null,null,null,{"$f":"_xlfn.IFNA(VLOOKUP($C99,'Données (Equipements)'!$C$3:$AF$146,24,FALSE),)","v":0},null,null,null,null,null,null,null,null,1,false,null,null,null,null,null,null,null,null,null,null,null,null,null,null,null,null,null,0,null,{"$f":"_xlfn.IFNA(VLOOKUP($AK99,'Données (Equipements)'!$C$3:$AF$153,20,FALSE),)","v":0},{"$f":"_xlfn.IFNA(VLOOKUP($AK99,'Données (Equipements)'!$C$3:$AF$153,24,FALSE),)*AJ99","v":0}]
[false,1,null,null,null,null,null,{"$f":"_xlfn.IFNA(VLOOKUP($C100,'Données (Equipements)'!$C$3:$AF$146,24,FALSE),)","v":0},null,null,null,null,null,null,null,null,1,false,null,null,null,null,null,null,null,null,null,null,null,null,null,null,null,null,null,0,null,{"$f":"_xlfn.IFNA(VLOOKUP($AK100,'Données (Equipements)'!$C$3:$AF$153,20,FALSE),)","v":0},{"$f":"_xlfn.IFNA(VLOOKUP($AK100,'Données (Equipements)'!$C$3:$AF$153,24,FALSE),)*AJ100","v":0}]
[false,1,null,null,null,null,null,{"$f":"_xlfn.IFNA(VLOOKUP($C101,'Données (Equipements)'!$C$3:$AF$146,24,FALSE),)","v":0},null,null,null,null,null,null,null,null,1,false,null,null,null,null,null,null,null,null,null,null,null,null,null,null,null,null,null,0,null,{"$f":"_xlfn.IFNA(VLOOKUP($AK101,'Données (Equipements)'!$C$3:$AF$153,20,FALSE),)","v":0},{"$f":"_xlfn.IFNA(VLOOKUP($AK101,'Données (Equipements)'!$C$3:$AF$153,24,FALSE),)*AJ101","v":0}]
[false,1,null,null,null,null,null,{"$f":"_xlfn.IFNA(VLOOKUP($C102,'Données (Equipements)'!$C$3:$AF$146,24,FALSE),)","v":0},null,null,null,null,null,null,null,null,1,false,null,null,null,null,null,null,null,null,null,null,null,null,null,null,null,null,null,0,null,{"$f":"_xlfn.IFNA(VLOOKUP($AK102,'Données (Equipements)'!$C$3:$AF$153,20,FALSE),)","v":0},{"$f":"_xlfn.IFNA(VLOOKUP($AK102,'Données (Equipements)'!$C$3:$AF$153,24,FALSE),)*AJ102","v":0}]
[false,1,null,null,null,null,null,{"$f":"_xlfn.IFNA(VLOOKUP($C103,'Données (Equipements)'!$C$3:$AF$146,24,FALSE),)","v":0},null,null,null,null,null,null,null,null,1,false]
[false,1,null,null,null,null,null,{"$f":"_xlfn.IFNA(VLOOKUP($C104,'Données (Equipements)'!$C$3:$AF$146,24,FALSE),)","v":0},null,null,null,null,null,null,null,null,1,false]
[false,1,null,null,null,null,null,{"$f":"_xlfn.IFNA(VLOOKUP($C105,'Données (Equipements)'!$C$3:$AF$146,24,FALSE),)","v":0},null,null,null,null,null,null,null,null,1,false]

{"sheet":"Données (Carac, Sexe, Tributs)","index":1,"n_rows":39,"n_cols":77,"rows_kept":39,"cut":false,"hidden":true,"merged":[[1,22,1,27],[1,28,1,29]]}
[]
[null,null,"Agilité","Beauté","Endurance","Force","Intelligence","Perception","Precision","Rapidité","Acrobatie","Combat","Conduite","Discrétion","Lancer","Marchandage","Mécanique","Premiers Soins","Repérage","Résistance","Séduction","Tir","Matériel (Matos à viander)",null,null,null,null,null,"Matériel (Ce qui est à moi est à moi)",null,"Vêtements","Agriculture et élevage","Amitié","Camouflage","Célébrité","Chance","Combat motorisé","Combat nocturne","Combat rural","Combat sans armes","Combat urbain","Comédie","Commandement","Conduite spécialisée","Conduite sportive","Construction","Convaincre","Course","Cuisine","Dessin","Déguisement","Démolition","Dressage d'animaux","Escalade","Esquive","Flatterie","Forgeron","Héraldique","Histoire","Lire et écrire","Maître d'arme","Manipulation","Manufacture d'armes","Manufacture de vêtements","Maquillage","Musicien","Nage","Parade","Pêche","Pistage","Pose de pièges","Résistance à l'alcool","Richesse","Spécialisation en arme","Tir indirect","Tir rapide","Tricherie"]
[1,"CaracPrim",1,1,1,1,1,1,1,1]
[null,"Sexe"]
[{"$f":"_xlfn.IFNA(MATCH(B5,PJ!$F$17,0),0)","v":0},"M",-1,null,null,1]
[{"$f":"_xlfn.IFNA(MATCH(B6,PJ!$F$17,0),0)","v":0},"F",1,null,null,-1]
[null,"Tributs"]
[{"$f":"_xlfn.IFNA(MATCH(B8,PJ!$D$16,0),0)","v":0},"Amazones",null,1,null,null,null,null,null,1,null,null,null,10,null,-20,null,null,null,null,null,20,"1 arme à distance de moins de $ 10 000 et 2 armes de moins de $ 1 000 chacune","2 armes de moins de $ 1 000 chacune","1 armes de moin de $ 1 000",null,null,null,5,500,"Maximum 15 espaces au total, toutes les matières"]
[{"$f":"_xlfn.IFNA(MATCH(B9,PJ!$D$16,0),0)","v":0},"Conf. Serpent",null,null,null,null,null,1,1,null,null,null,-50,20,null,null,null,null,null,null,null,10,"2 armes de moins de $ 10 000 chacune et 2 armes de moins de $ 1 000 chacune","1 arme de moins de $ 10 000 et 2 armes de moins de $ 1 000 chacune","2 armes de moins de $ 1 000 chacune","1 arme de moins de $ 1 000",null,null,4,1000,"Pas de cuir, pas d'acier, maximum 3 espaces de cuir clouté, autres matières sans restriction"]
[{"$f":"_xlfn.IFNA(MATCH(B10,PJ!$D$16,0),0)","v":0},"Enfants",1,null,null,null,null,null,null,1,20,null,null,20,null,-20,null,null,10,null,null,null,"1 arme de tir de moins de $ 10 000 et 3 armes de moins de $ 400 chacune","3 armes de moins de $ 400 chacune","2 armes de moins de $ 400 chacune","1 arme de moins de $ 400",null,null,5,200,"Toutes les matières sans restrition"]
[{"$f":"_xlfn.IFNA(MATCH(B11,PJ!$D$16,0),0)","v":0},"Conservateurs",null,null,-1,-1,1,null,null,null,null,-30,-10,null,null,null,null,null,null,-40,null,-20,null,null,null,null,null,null,10,1500,"Pas d'acier, pas de cuir clouté, pas de fibre de verre, maximum 3 espaces de cuir, autres matières sans restriction"]
[{"$f":"_xlfn.IFNA(MATCH(B12,PJ!$D$16,0),0)","v":0},"Fils du métal",null,null,null,null,-2,null,null,1,null,null,20,null,null,-20,null,-30,null,null,null,20,"1 arme de corps à corps, 1 arme de jet, 1 arme à distance et 2 armes de moins de $ 1 000 chacune","1 arme de jet, 1 arme à distance et 2 armes de moins de $ 1 000 chacune","1 arme à distance et 2 armes de moins de $ 1 000 chacune","2 armes de moins de $ 1 000 chacune","1 arme de moins de $ 1 000",null,3,800,"Pas de tissus, autres matières sans restriction"]
[{"$f":"_xlfn.IFNA(MATCH(B13,PJ!$D$16,0),0)","v":0},"Fermiers",null,-1,1,null,null,null,null,null,null,null,-20,null,null,10,null,null,null,null,null,null,"1 arme de corps à corps de moins de $ 1 000, 1 fourche ou 1 hache et 1 arme de moins de $ 500","1 fourche ou 1 hache et 1 arme de moins de $ 500","1 arme de moins de $ 500",null,null,null,5,300,"Tissus ou cuir sans restriction"]
[{"$f":"_xlfn.IFNA(MATCH(B14,PJ!$D$16,0),0)","v":0},"Guerisseurs",null,null,null,null,2,1,1,null,null,null,null,10,null,null,null,30,null,null,null,null,"1 arme de moins de $ 200",null,null,null,null,null,7,1000,"Tissus sans restriction"]
[{"$f":"_xlfn.IFNA(MATCH(B15,PJ!$D$16,0),0)","v":0},"Garagistes",null,null,null,null,1,null,1,null,null,null,10,null,null,null,30,null,null,null,null,null,"2 armes de moins de $ 1 000 chacune","1 arme de moins de $ 1 000",null,null,null,null,6,500,"Maximum 6 espaces de cuir, tissu sans restriction"]
[{"$f":"_xlfn.IFNA(MATCH(B16,PJ!$D$16,0),0)","v":0},"Skinheads",null,null,null,1,null,-1,null,null,null,10,null,-10,null,-10,null,null,null,null,null,10,"4 armes de moins de $ 10 000 chacune","3 armes de moins de $ 10 000 chacune","2 armes de moins de $ 10 000 chacune","1 arme de moins de $ 10 000",null,null,3,200,"Pas de restriction (bombers noir et docs 18 trous conseillés)"]
[{"$f":"_xlfn.IFNA(MATCH(B17,PJ!$D$16,0),0)","v":0},"Punks",1,null,null,-1,null,null,null,1,10,10,null,20,null,-20,null,null,null,null,null,10,"1 arme de moins de $ 1 000 et 5 armes de moins de $ 300 chacune","5 armes de moins de $ 300 chacune","4 armes de moins de $ 300 chacune","3 armes de moins de $ 300 chacune","2 armes de moins de $ 300 chacune","1 arme de moins de $ 300",3,300,"Maximum 6 espaces d'acier ou fibre de verres, autres matières sans restriction"]
[{"$f":"_xlfn.IFNA(MATCH(B18,PJ!$D$16,0),0)","v":0},"Yankees",null,null,null,null,null,1,1,null,10,null,null,10,null,-20,null,null,null,-10,null,10,"2 armes de moins de $ 1 000 chacune","1 arme de moins de $ 1 000",null,null,null,null,3,500,"Maximum 8 espaces de tissu, 3 de cuir ou cuir clouté, 3 de fourrures, 2 d'acier ou fibre de verre"]
[{"$f":"_xlfn.IFNA(MATCH(B19,PJ!$D$16,0),0)","v":0},"Vikings",null,null,1,1,null,null,null,-1,null,20,null,null,null,null,null,null,null,null,null,null,"1 hache, 1 bouclier et 1 arme de corps à corps de moins de $ 1 000","1 bouclier et 1 arme de corps à corps de moins de $ 1 000","1 arme de corps à corps de moins de $ 1 000",null,null,null,3,1000,"Maximum 6 espaces d'acier, cuir-cuir clouté-fourrure sans restriction"]
[{"$f":"_xlfn.IFNA(MATCH(B20,PJ!$D$16,0),0)","v":0},"Indiens",1,null,null,null,null,1,null,1,null,null,5,10,null,-10,null,null,20,null,null,10,"1 arme de tir de moins de $ 10 000 et 2 armes de moins de $ 1 000 chacune","2 armes de moins de $ 1 000 chacune","1 arme de moins de $ 1 000",null,null,null,3,400,"Maximum 15 espaces de cuir ou tissus"]
[{"$f":"_xlfn.IFNA(MATCH(B21,PJ!$D$16,0),0)","v":0},"Hell's Angels",null,null,1,1,null,null,null,null,null,10,20,null,null,null,null,null,null,null,null,null,"1 arme de corps à corps et 2 armes de moins de $ 1 000 chacune","2 armes de moins de $ 1 000 chacune","1 arme de moins de $ 1 000",null,null,null,3,600,"Maximum 6 espaces de cuir, tissu sans restriction"]
[{"$f":"_xlfn.IFNA(MATCH(B22,PJ!$D$16,0),0)","v":0},"Mercenaires",null,null,null,null,null,1,1,1,null,10,10,null,5,null,null,null,null,null,null,10,"1 arme de moins de $ 10 000 et 5 armes de moins de $ 1 000 chacune","5 armes de moins de $ 1 000 chacune","4 armes de moins de $ 1 000 chacune","3 armes de moins de $ 1 000 chacune","2 armes de moins de $ 1 000 chacune","1 arme de moins de $ 1 000",2,300,"Maximum 4 espaces de tissus, autre matière sans restriction"]
[{"$f":"_xlfn.IFNA(MATCH(B23,PJ!$D$16,0),0)","v":0},"Marchands",null,null,-1,null,2,1,null,null,null,null,null,null,null,30,null,null,10,null,null,null,"1 arme de tir de moins de $ 5 000 et 1 arme de corps à corps de moins de $ 1 000","1 arme de corps à corps de moins de $ 1 000",null,null,null,null,40,500,"Pas de cuir clouté, fibre de verre ou acier"]
[{"$f":"_xlfn.IFNA(MATCH(B24,PJ!$D$16,0),0)","v":0},"Justiciers",null,null,null,null,null,null,null,null,null,10,10,null,null,null,null,null,null,null,null,10,"1 arme de corps à corps, 1 arme de tir de moins de $ 10 000 et 1 arme de moins de $ 1 000","1 arme de tir de moins de $ 10 000 et 1 arme de moins de $ 1 000","1 arme de moins de $ 1 000",null,null,null,3,1000,"Maximum 5 espaces de cuir clouté, acier ou fibre de verre"]
[]
[1,"Bonus de critique"]
[null,"Buts secondaires"]
[null,"Altruiste"]
[null,"Bon vivant"]
[null,"Collectionneur"]
[null,"Courageux"]
[null,"Fou de vitesse"]
[null,"Guerrier"]
[null,"Inventeur"]
[null,"Musicien"]
[null,"Pacifiste"]
[null,"Vengeur"]
[null,"Violent"]
[null,"Voyageur"]

{"sheet":"Données (Défauts, Talents)","index":2,"n_rows":139,"n_cols":61,"rows_kept":139,"cut":false,"hidden":true,"merged":[]}
[null,null,null,null,null,null,null,null,null,null,null,null,null,null,null,null,null,null,null,null,null,null,null,{"$f":"SUMIF(A3:A150,\"<>0\",X3:X150)","v":0}]
[null,"Défauts","PPe ","Amazones","Conf. Serpent","Enfants","Conservateurs","Fils du métal","Fermiers","Guerisseurs","Garagistes","Skinheads","Punks","Yankees","Vikings","Indiens","Hell's Angels","Mercenaires","Marchands","Justiciers","Affichage","PPe ajustés","PP","PP ajustés","Explication","Acrobatie","Combat","Conduite","Discrétion","Lancer","Marchandage","Mécanique","Premiers Soins","Repérage","Résistance","Séduction","Tir","Agilité","Beauté","Endurance","Force","Intelligence","Perception","Precision","Rapidité","Acrobatie","Combat","Conduite","Discrétion","Lancer","Marchandage","Mécanique","Premiers Soins","Repérage","Résistance","Séduction","Tir","Talents spéciaux"]
[{"$f":"_xlfn.IFNA(MATCH(U3,PJ!$D$22:$D$27,0),0)","v":0},"Alcoolique",20,null,null,null,"/2",null,"+5",null,"/2",null,"+5","+5",null,null,"+5","/2","+5",null,{"$f":"B3&\" (\"&C3&HLOOKUP(PJ!$D$16,'Données (Défauts, Talents)'!$D$2:$T$79,ROW(B3)-1,FALSE)&\")\"&IF(X3<>0,\" PP\" &X3,\"\")","v":{"$error":"#N/A"}},{"$f":"IF(HLOOKUP(PJ!$D$16,'Données (Défauts, Talents)'!$D$2:$T$79,ROW($B3)-1,FALSE)=\"/2\",ROUNDUP($C3/2,0),$C3+HLOOKUP(PJ!$D$16,'Données (Défauts, Talents)'!$D$2:$T$79,ROW($B3)-1,FALSE))","v":{"$error":"#N/A"}},-5,{"$f":"IF(HLOOKUP(PJ!$D$16,'Données (Défauts, Talents)'!$D$2:$T$79,ROW($B3)-1,FALSE)=\"/2\",$W3*2,IF(HLOOKUP(PJ!$D$16,'Données (Défauts, Talents)'!$D$2:$T$79,ROW($B3)-1,FALSE)=\"+5\",0,$W3))","v":{"$error":"#N/A"}},"Le personnage ne peut résister à la vue de l'alcool et doit en absorber le plus  possible. Les effets sont laissés à la discretion du maitre de jeu."]
[{"$f":"_xlfn.IFNA(MATCH(U4,PJ!$D$22:$D$27,0),0)","v":0},"Avare",15,null,null,null,"+5",null,null,"/2","+5",null,null,"+5",null,null,null,"+5","+5",null,{"$f":"B4&\" (\"&C4&HLOOKUP(PJ!$D$16,'Données (Défauts, Talents)'!$D$2:$T$79,ROW(B4)-1,FALSE)&\")\"&IF(X4<>0,\" PP\" &X4,\"\")","v":{"$error":"#N/A"}},{"$f":"IF(HLOOKUP(PJ!$D$16,'Données (Défauts, Talents)'!$D$2:$T$79,ROW($B4)-1,FALSE)=\"/2\",ROUNDUP($C4/2,0),$C4+HLOOKUP(PJ!$D$16,'Données (Défauts, Talents)'!$D$2:$T$79,ROW($B4)-1,FALSE))","v":{"$error":"#N/A"}},-15,{"$f":"IF(HLOOKUP(PJ!$D$16,'Données (Défauts, Talents)'!$D$2:$T$79,ROW($B4)-1,FALSE)=\"/2\",$W4*2,IF(HLOOKUP(PJ!$D$16,'Données (Défauts, Talents)'!$D$2:$T$79,ROW($B4)-1,FALSE)=\"+5\",0,$W4))","v":{"$error":"#N/A"}},"Le personnage refuse absolument de donner ou de prêter ce qui lui appartient,  même a un autre membre de sa tribu. ll subit un malus de 20% au  marchandage. ll refusera le plus possible de prêter son équipement.",null,null,null,null,null,-20]
[{"$f":"_xlfn.IFNA(MATCH(U5,PJ!$D$22:$D$27,0),0)","v":0},"Aversion envers les animaux",15,null,null,null,null,null,"/2",null,null,null,null,"+5",null,null,null,null,null,null,{"$f":"B5&\" (\"&C5&HLOOKUP(PJ!$D$16,'Données (Défauts, Talents)'!$D$2:$T$79,ROW(B5)-1,FALSE)&\")\"&IF(X5<>0,\" PP\" &X5,\"\")","v":{"$error":"#N/A"}},{"$f":"IF(HLOOKUP(PJ!$D$16,'Données (Défauts, Talents)'!$D$2:$T$79,ROW($B5)-1,FALSE)=\"/2\",ROUNDUP($C5/2,0),$C5+HLOOKUP(PJ!$D$16,'Données (Défauts, Talents)'!$D$2:$T$79,ROW($B5)-1,FALSE))","v":{"$error":"#N/A"}},null,{"$f":"IF(HLOOKUP(PJ!$D$16,'Données (Défauts, Talents)'!$D$2:$T$79,ROW($B5)-1,FALSE)=\"/2\",$W5*2,IF(HLOOKUP(PJ!$D$16,'Données (Défauts, Talents)'!$D$2:$T$79,ROW($B5)-1,FALSE)=\"+5\",0,$W5))","v":{"$error":"#N/A"}},"Le personnage a horreur des animaux et ceux-ci le lui rendent bien... ll ne peut  posseder le talent “dressage d'animaux\", subit un malus de 50% à leur reaction  et ceux-ci reçoivent un bonus de 10% pour le toucher."]
[{"$f":"_xlfn.IFNA(MATCH(U6,PJ!$D$22:$D$27,0),0)","v":0},"Borgne",10,null,null,null,null,null,null,null,null,null,null,"+5",null,null,null,null,null,null,{"$f":"B6&\" (\"&C6&HLOOKUP(PJ!$D$16,'Données (Défauts, Talents)'!$D$2:$T$79,ROW(B6)-1,FALSE)&\")\"&IF(X6<>0,\" PP\" &X6,\"\")","v":{"$error":"#N/A"}},{"$f":"IF(HLOOKUP(PJ!$D$16,'Données (Défauts, Talents)'!$D$2:$T$79,ROW($B6)-1,FALSE)=\"/2\",ROUNDUP($C6/2,0),$C6+HLOOKUP(PJ!$D$16,'Données (Défauts, Talents)'!$D$2:$T$79,ROW($B6)-1,FALSE))","v":{"$error":"#N/A"}},null,{"$f":"IF(HLOOKUP(PJ!$D$16,'Données (Défauts, Talents)'!$D$2:$T$79,ROW($B6)-1,FALSE)=\"/2\",$W6*2,IF(HLOOKUP(PJ!$D$16,'Données (Défauts, Talents)'!$D$2:$T$79,ROW($B6)-1,FALSE)=\"+5\",0,$W6))","v":{"$error":"#N/A"}},"Le personnage a eu un oeil crevé dans un combat ou un accident. Les effets d'un tel handicap sont les suivants : Séduction -30% et Repérage -20%",null,null,null,null,null,null,null,null,-20,null,-30]
[{"$f":"_xlfn.IFNA(MATCH(U7,PJ!$D$22:$D$27,0),0)","v":0},"Boulimique",10,null,null,null,null,null,null,null,null,null,null,"+5",null,"/2",null,"/2",null,null,{"$f":"B7&\" (\"&C7&HLOOKUP(PJ!$D$16,'Données (Défauts, Talents)'!$D$2:$T$79,ROW(B7)-1,FALSE)&\")\"&IF(X7<>0,\" PP\" &X7,\"\")","v":{"$error":"#N/A"}},{"$f":"IF(HLOOKUP(PJ!$D$16,'Données (Défauts, Talents)'!$D$2:$T$79,ROW($B7)-1,FALSE)=\"/2\",ROUNDUP($C7/2,0),$C7+HLOOKUP(PJ!$D$16,'Données (Défauts, Talents)'!$D$2:$T$79,ROW($B7)-1,FALSE))","v":{"$error":"#N/A"}},null,{"$f":"IF(HLOOKUP(PJ!$D$16,'Données (Défauts, Talents)'!$D$2:$T$79,ROW($B7)-1,FALSE)=\"/2\",$W7*2,IF(HLOOKUP(PJ!$D$16,'Données (Défauts, Talents)'!$D$2:$T$79,ROW($B7)-1,FALSE)=\"+5\",0,$W7))","v":{"$error":"#N/A"}},"Le personnage doit manger sa ration de nourriture toutes les 3 heures (au lieu  de toutes les 24 heures). Les effets sont laissés à la discrétion du maitre de jeu."]
[{"$f":"_xlfn.IFNA(MATCH(U8,PJ!$D$22:$D$27,0),0)","v":0},"Bras en moins",40,null,null,null,null,null,null,null,"/2",null,null,"+5",null,null,null,null,null,null,{"$f":"B8&\" (\"&C8&HLOOKUP(PJ!$D$16,'Données (Défauts, Talents)'!$D$2:$T$79,ROW(B8)-1,FALSE)&\")\"&IF(X8<>0,\" PP\" &X8,\"\")","v":{"$error":"#N/A"}},{"$f":"IF(HLOOKUP(PJ!$D$16,'Données (Défauts, Talents)'!$D$2:$T$79,ROW($B8)-1,FALSE)=\"/2\",ROUNDUP($C8/2,0),$C8+HLOOKUP(PJ!$D$16,'Données (Défauts, Talents)'!$D$2:$T$79,ROW($B8)-1,FALSE))","v":{"$error":"#N/A"}},null,{"$f":"IF(HLOOKUP(PJ!$D$16,'Données (Défauts, Talents)'!$D$2:$T$79,ROW($B8)-1,FALSE)=\"/2\",$W8*2,IF(HLOOKUP(PJ!$D$16,'Données (Défauts, Talents)'!$D$2:$T$79,ROW($B8)-1,FALSE)=\"+5\",0,$W8))","v":{"$error":"#N/A"}},"Le personnage a le bras coupé au niveau du coude. Les effets d'un tel handicap sont les suivants : Conduite -40%, Séduction -30%, Mécanique -50% et Premiers soins -30%",null,null,-40,null,null,null,-50,-30,null,null,-30]
[{"$f":"_xlfn.IFNA(MATCH(U9,PJ!$D$22:$D$27,0),0)","v":0},"Cicatrice",5,"/2","/2",null,null,"+5",null,null,null,null,"+5","+5","+5","+5",null,"+5",null,null,{"$f":"B9&\" (\"&C9&HLOOKUP(PJ!$D$16,'Données (Défauts, Talents)'!$D$2:$T$79,ROW(B9)-1,FALSE)&\")\"&IF(X9<>0,\" PP\" &X9,\"\")","v":{"$error":"#N/A"}},{"$f":"IF(HLOOKUP(PJ!$D$16,'Données (Défauts, Talents)'!$D$2:$T$79,ROW($B9)-1,FALSE)=\"/2\",ROUNDUP($C9/2,0),$C9+HLOOKUP(PJ!$D$16,'Données (Défauts, Talents)'!$D$2:$T$79,ROW($B9)-1,FALSE))","v":{"$error":"#N/A"}},null,{"$f":"IF(HLOOKUP(PJ!$D$16,'Données (Défauts, Talents)'!$D$2:$T$79,ROW($B9)-1,FALSE)=\"/2\",$W9*2,IF(HLOOKUP(PJ!$D$16,'Données (Défauts, Talents)'!$D$2:$T$79,ROW($B9)-1,FALSE)=\"+5\",0,$W9))","v":{"$error":"#N/A"}},"Le personnage a la figure largement barrée par une cicatrice. Les effets d'un tel handicap sont les suivants : Séduction -20%",null,null,null,null,null,null,null,null,null,null,-20]
[{"$f":"_xlfn.IFNA(MATCH(U10,PJ!$D$22:$D$27,0),0)","v":0},"Code d'honneur",null,null,null,null,"+5","/2",null,"+5",null,null,null,"+5","+5","+5","+5","+5",null,"+5",{"$f":"B10&\" (\"&C10&HLOOKUP(PJ!$D$16,'Données (Défauts, Talents)'!$D$2:$T$79,ROW(B10)-1,FALSE)&\")\"&IF(X10<>0,\" PP\" &X10,\"\")","v":{"$error":"#N/A"}},{"$f":"IF(HLOOKUP(PJ!$D$16,'Données (Défauts, Talents)'!$D$2:$T$79,ROW($B10)-1,FALSE)=\"/2\",ROUNDUP($C10/2,0),$C10+HLOOKUP(PJ!$D$16,'Données (Défauts, Talents)'!$D$2:$T$79,ROW($B10)-1,FALSE))","v":{"$error":"#N/A"}},null,{"$f":"IF(HLOOKUP(PJ!$D$16,'Données (Défauts, Talents)'!$D$2:$T$79,ROW($B10)-1,FALSE)=\"/2\",$W10*2,IF(HLOOKUP(PJ!$D$16,'Données (Défauts, Talents)'!$D$2:$T$79,ROW($B10)-1,FALSE)=\"+5\",0,$W10))","v":{"$error":"#N/A"}},"Le personnage suit une ligne de conduite qui lui est propre (exemple : ne jamais combattre (40), ne jamais frapper un adversaire à terre (15)). Il revient au  joueur d`inventer alors un code d`honneur pour son personnage et au MJ d'évaluer le nombre de points que cela lui rapporte."]
[{"$f":"_xlfn.IFNA(MATCH(U11,PJ!$D$22:$D$27,0),0)","v":0},"Dandy",10,"+5","+5",null,"/2","/2","/2",null,null,"/2","/2","+5","/2","+5",null,null,"+5",null,{"$f":"B11&\" (\"&C11&HLOOKUP(PJ!$D$16,'Données (Défauts, Talents)'!$D$2:$T$79,ROW(B11)-1,FALSE)&\")\"&IF(X11<>0,\" PP\" &X11,\"\")","v":{"$error":"#N/A"}},{"$f":"IF(HLOOKUP(PJ!$D$16,'Données (Défauts, Talents)'!$D$2:$T$79,ROW($B11)-1,FALSE)=\"/2\",ROUNDUP($C11/2,0),$C11+HLOOKUP(PJ!$D$16,'Données (Défauts, Talents)'!$D$2:$T$79,ROW($B11)-1,FALSE))","v":{"$error":"#N/A"}},null,{"$f":"IF(HLOOKUP(PJ!$D$16,'Données (Défauts, Talents)'!$D$2:$T$79,ROW($B11)-1,FALSE)=\"/2\",$W11*2,IF(HLOOKUP(PJ!$D$16,'Données (Défauts, Talents)'!$D$2:$T$79,ROW($B11)-1,FALSE)=\"+5\",0,$W11))","v":{"$error":"#N/A"}},"Le personnage ne supporte pas de se salir et n'agira jamais dans ce sens. ll  s'habillera toujours de façon excentrique. Il subit un malus de 20% à son talent de discrétion.",null,null,null,-20]
[{"$f":"_xlfn.IFNA(MATCH(U12,PJ!$D$22:$D$27,0),0)","v":0},"Désagréable",10,null,null,null,"/2","+5",null,null,null,"+5","+5","+5",null,null,null,null,"/2",null,{"$f":"B12&\" (\"&C12&HLOOKUP(PJ!$D$16,'Données (Défauts, Talents)'!$D$2:$T$79,ROW(B12)-1,FALSE)&\")\"&IF(X12<>0,\" PP\" &X12,\"\")","v":{"$error":"#N/A"}},{"$f":"IF(HLOOKUP(PJ!$D$16,'Données (Défauts, Talents)'!$D$2:$T$79,ROW($B12)-1,FALSE)=\"/2\",ROUNDUP($C12/2,0),$C12+HLOOKUP(PJ!$D$16,'Données (Défauts, Talents)'!$D$2:$T$79,ROW($B12)-1,FALSE))","v":{"$error":"#N/A"}},-10,{"$f":"IF(HLOOKUP(PJ!$D$16,'Données (Défauts, Talents)'!$D$2:$T$79,ROW($B12)-1,FALSE)=\"/2\",$W12*2,IF(HLOOKUP(PJ!$D$16,'Données (Défauts, Talents)'!$D$2:$T$79,ROW($B12)-1,FALSE)=\"+5\",0,$W12))","v":{"$error":"#N/A"}},"Le personnage ne ménagera jamais son langage et ne manquera jamais une occasion d'insulter quelqu'un. ll subit un malus de 90% au marchandage et de 50% à la séduction.",null,null,null,null,null,-90,null,null,null,null,-50]
[{"$f":"_xlfn.IFNA(MATCH(U13,PJ!$D$22:$D$27,0),0)","v":0},"Catatonie",40,null,null,null,null,null,null,"/2",null,null,"+5","+5",null,null,null,null,null,null,{"$f":"B13&\" (\"&C13&HLOOKUP(PJ!$D$16,'Données (Défauts, Talents)'!$D$2:$T$79,ROW(B13)-1,FALSE)&\")\"&IF(X13<>0,\" PP\" &X13,\"\")","v":{"$error":"#N/A"}},{"$f":"IF(HLOOKUP(PJ!$D$16,'Données (Défauts, Talents)'!$D$2:$T$79,ROW($B13)-1,FALSE)=\"/2\",ROUNDUP($C13/2,0),$C13+HLOOKUP(PJ!$D$16,'Données (Défauts, Talents)'!$D$2:$T$79,ROW($B13)-1,FALSE))","v":{"$error":"#N/A"}},-20,{"$f":"IF(HLOOKUP(PJ!$D$16,'Données (Défauts, Talents)'!$D$2:$T$79,ROW($B13)-1,FALSE)=\"/2\",$W13*2,IF(HLOOKUP(PJ!$D$16,'Données (Défauts, Talents)'!$D$2:$T$79,ROW($B13)-1,FALSE)=\"+5\",0,$W13))","v":{"$error":"#N/A"}},"Un personnage catatonique est coupé du réel. Cette démence se caractérise par l'inertie totale du malade. Il se tient assis, le regard dans le vide et peut mourir de soif si on le laisse seul. Il peut être alimenté ou déplacé, mais s'il est continuellement dérangé par quelqu'un qui essaie de lui faire reprendre ses sens, il y a 5% de chance par heure qu'il devienne subitement tueur psychopathe. Tous les talents sont à moins 100% quand il est prostré.",null,null,null,null,null,null,null,null,null,null,null,null,null,null,null,null,null,null,null,null,-100,-100,-100,-100,-100,-100,-100,-100,-100,-100,-100,-100,-100]
[{"$f":"_xlfn.IFNA(MATCH(U14,PJ!$D$22:$D$27,0),0)","v":0},"Démence précoce",35,null,null,null,null,null,null,"/2",null,null,"+5","+5",null,null,null,null,null,null,{"$f":"B14&\" (\"&C14&HLOOKUP(PJ!$D$16,'Données (Défauts, Talents)'!$D$2:$T$79,ROW(B14)-1,FALSE)&\")\"&IF(X14<>0,\" PP\" &X14,\"\")","v":{"$error":"#N/A"}},{"$f":"IF(HLOOKUP(PJ!$D$16,'Données (Défauts, Talents)'!$D$2:$T$79,ROW($B14)-1,FALSE)=\"/2\",ROUNDUP($C14/2,0),$C14+HLOOKUP(PJ!$D$16,'Données (Défauts, Talents)'!$D$2:$T$79,ROW($B14)-1,FALSE))","v":{"$error":"#N/A"}},-20,{"$f":"IF(HLOOKUP(PJ!$D$16,'Données (Défauts, Talents)'!$D$2:$T$79,ROW($B14)-1,FALSE)=\"/2\",$W14*2,IF(HLOOKUP(PJ!$D$16,'Données (Défauts, Talents)'!$D$2:$T$79,ROW($B14)-1,FALSE)=\"+5\",0,$W14))","v":{"$error":"#N/A"}},"Le personnage affecté par cette démence se désintéresse de tout. Quel que soit la situation, il y a 30% de chance qu'elle lui semble sans intérêt. Il se sent très las et a le sentiment de beaucoup s'ennuyer."]
[{"$f":"_xlfn.IFNA(MATCH(U15,PJ!$D$22:$D$27,0),0)","v":0},"Dipsomanie",20,null,null,null,null,null,null,"/2",null,null,"+5","+5",null,null,null,null,null,null,{"$f":"B15&\" (\"&C15&HLOOKUP(PJ!$D$16,'Données (Défauts, Talents)'!$D$2:$T$79,ROW(B15)-1,FALSE)&\")\"&IF(X15<>0,\" PP\" &X15,\"\")","v":{"$error":"#N/A"}},{"$f":"IF(HLOOKUP(PJ!$D$16,'Données (Défauts, Talents)'!$D$2:$T$79,ROW($B15)-1,FALSE)=\"/2\",ROUNDUP($C15/2,0),$C15+HLOOKUP(PJ!$D$16,'Données (Défauts, Talents)'!$D$2:$T$79,ROW($B15)-1,FALSE))","v":{"$error":"#N/A"}},-20,{"$f":"IF(HLOOKUP(PJ!$D$16,'Données (Défauts, Talents)'!$D$2:$T$79,ROW($B15)-1,FALSE)=\"/2\",$W15*2,IF(HLOOKUP(PJ!$D$16,'Données (Défauts, Talents)'!$D$2:$T$79,ROW($B15)-1,FALSE)=\"+5\",0,$W15))","v":{"$error":"#N/A"}},"Cette folie frappe périodiquement (20% de chance par jour). Le personnage se met alors à absorber une grande quantité de boissons alcoolisées jusqu'à ce qu'il s'écroule. Quand le personnage revient à lui, la crise est terminée. Le personnage peut devenir violent si on l'empèche d'absorber sa dose d'alcool. Ce défaut ne rapporte que 10 points si le personnage est déjà alcoolique."]
[{"$f":"_xlfn.IFNA(MATCH(U16,PJ!$D$22:$D$27,0),0)","v":0},"Hébéphrénie",40,null,null,null,null,null,null,"/2",null,null,"+5","+5",null,null,null,null,null,null,{"$f":"B16&\" (\"&C16&HLOOKUP(PJ!$D$16,'Données (Défauts, Talents)'!$D$2:$T$79,ROW(B16)-1,FALSE)&\")\"&IF(X16<>0,\" PP\" &X16,\"\")","v":{"$error":"#N/A"}},{"$f":"IF(HLOOKUP(PJ!$D$16,'Données (Défauts, Talents)'!$D$2:$T$79,ROW($B16)-1,FALSE)=\"/2\",ROUNDUP($C16/2,0),$C16+HLOOKUP(PJ!$D$16,'Données (Défauts, Talents)'!$D$2:$T$79,ROW($B16)-1,FALSE))","v":{"$error":"#N/A"}},-20,{"$f":"IF(HLOOKUP(PJ!$D$16,'Données (Défauts, Talents)'!$D$2:$T$79,ROW($B16)-1,FALSE)=\"/2\",$W16*2,IF(HLOOKUP(PJ!$D$16,'Données (Défauts, Talents)'!$D$2:$T$79,ROW($B16)-1,FALSE)=\"+5\",0,$W16))","v":{"$error":"#N/A"}},"Un personnage atteint de cette forme de schizophrénie est complètement coupé du réel, il se parle à lui-même, marmonne et se conduit comme un enfant (IN-4, Marchandage -30%). Mais ilpeut devenir enragé (25% de chance) si quelqu'un l'irrite. Après quoi il retourne à un stade catatonique, ou hébéphrénique (50% de chance pour chaque)",null,null,null,null,null,-30,null,null,null,null,null,null,null,null,null,null,-4]
[{"$f":"_xlfn.IFNA(MATCH(U17,PJ!$D$22:$D$27,0),0)","v":0},"Kleptomanie",15,null,null,null,null,null,null,"/2",null,null,"+5","+5",null,null,null,null,null,null,{"$f":"B17&\" (\"&C17&HLOOKUP(PJ!$D$16,'Données (Défauts, Talents)'!$D$2:$T$79,ROW(B17)-1,FALSE)&\")\"&IF(X17<>0,\" PP\" &X17,\"\")","v":{"$error":"#N/A"}},{"$f":"IF(HLOOKUP(PJ!$D$16,'Données (Défauts, Talents)'!$D$2:$T$79,ROW($B17)-1,FALSE)=\"/2\",ROUNDUP($C17/2,0),$C17+HLOOKUP(PJ!$D$16,'Données (Défauts, Talents)'!$D$2:$T$79,ROW($B17)-1,FALSE))","v":{"$error":"#N/A"}},-20,{"$f":"IF(HLOOKUP(PJ!$D$16,'Données (Défauts, Talents)'!$D$2:$T$79,ROW($B17)-1,FALSE)=\"/2\",$W17*2,IF(HLOOKUP(PJ!$D$16,'Données (Défauts, Talents)'!$D$2:$T$79,ROW($B17)-1,FALSE)=\"+5\",0,$W17))","v":{"$error":"#N/A"}},"Le personnage atteint de ce mal ressent un besoin obsédant et incontrôlable de commettre des vols."]
[{"$f":"_xlfn.IFNA(MATCH(U18,PJ!$D$22:$D$27,0),0)","v":0},"Maniaque",30,null,null,null,null,null,null,"/2",null,null,"+5","+5",null,null,null,null,null,null,{"$f":"B18&\" (\"&C18&HLOOKUP(PJ!$D$16,'Données (Défauts, Talents)'!$D$2:$T$79,ROW(B18)-1,FALSE)&\")\"&IF(X18<>0,\" PP\" &X18,\"\")","v":{"$error":"#N/A"}},{"$f":"IF(HLOOKUP(PJ!$D$16,'Données (Défauts, Talents)'!$D$2:$T$79,ROW($B18)-1,FALSE)=\"/2\",ROUNDUP($C18/2,0),$C18+HLOOKUP(PJ!$D$16,'Données (Défauts, Talents)'!$D$2:$T$79,ROW($B18)-1,FALSE))","v":{"$error":"#N/A"}},-20,{"$f":"IF(HLOOKUP(PJ!$D$16,'Données (Défauts, Talents)'!$D$2:$T$79,ROW($B18)-1,FALSE)=\"/2\",$W18*2,IF(HLOOKUP(PJ!$D$16,'Données (Défauts, Talents)'!$D$2:$T$79,ROW($B18)-1,FALSE)=\"+5\",0,$W18))","v":{"$error":"#N/A"}},"Cette folie frappe soudainement (10% de chance par jour) et violemment. Le personnage devient enragé, hystérique; il crie et frappe en tous sens et sa force augmente à raison d'un point par tour jusqu'à 10 (même pour une femme). Le personnage ne se souvient de rien après sa crise et ne veut pas croire qu'il est fou."]
[{"$f":"_xlfn.IFNA(MATCH(U19,PJ!$D$22:$D$27,0),0)","v":0},"Maniaque Dépressif",35,null,null,null,null,null,null,"/2",null,null,"+5","+5",null,null,null,null,null,null,{"$f":"B19&\" (\"&C19&HLOOKUP(PJ!$D$16,'Données (Défauts, Talents)'!$D$2:$T$79,ROW(B19)-1,FALSE)&\")\"&IF(X19<>0,\" PP\" &X19,\"\")","v":{"$error":"#N/A"}},{"$f":"IF(HLOOKUP(PJ!$D$16,'Données (Défauts, Talents)'!$D$2:$T$79,ROW($B19)-1,FALSE)=\"/2\",ROUNDUP($C19/2,0),$C19+HLOOKUP(PJ!$D$16,'Données (Défauts, Talents)'!$D$2:$T$79,ROW($B19)-1,FALSE))","v":{"$error":"#N/A"}},-20,{"$f":"IF(HLOOKUP(PJ!$D$16,'Données (Défauts, Talents)'!$D$2:$T$79,ROW($B19)-1,FALSE)=\"/2\",$W19*2,IF(HLOOKUP(PJ!$D$16,'Données (Défauts, Talents)'!$D$2:$T$79,ROW($B19)-1,FALSE)=\"+5\",0,$W19))","v":{"$error":"#N/A"}},"Cette psychose se manifeste par des accès de surexcitation (voir Maniaque), suivis de périodes de profonde mélancolie. Il y a beaucoup de chance (70%) que le personnage devienne maniaque s'il est provoqué et qu'il devienne mélancolique s'il est déçu ou frusté."]
[{"$f":"_xlfn.IFNA(MATCH(U20,PJ!$D$22:$D$27,0),0)","v":0},"Menteur Pathologique",20,null,null,null,null,null,null,"/2",null,null,"+5","+5",null,null,null,null,null,null,{"$f":"B20&\" (\"&C20&HLOOKUP(PJ!$D$16,'Données (Défauts, Talents)'!$D$2:$T$79,ROW(B20)-1,FALSE)&\")\"&IF(X20<>0,\" PP\" &X20,\"\")","v":{"$error":"#N/A"}},{"$f":"IF(HLOOKUP(PJ!$D$16,'Données (Défauts, Talents)'!$D$2:$T$79,ROW($B20)-1,FALSE)=\"/2\",ROUNDUP($C20/2,0),$C20+HLOOKUP(PJ!$D$16,'Données (Défauts, Talents)'!$D$2:$T$79,ROW($B20)-1,FALSE))","v":{"$error":"#N/A"}},-20,{"$f":"IF(HLOOKUP(PJ!$D$16,'Données (Défauts, Talents)'!$D$2:$T$79,ROW($B20)-1,FALSE)=\"/2\",$W20*2,IF(HLOOKUP(PJ!$D$16,'Données (Défauts, Talents)'!$D$2:$T$79,ROW($B20)-1,FALSE)=\"+5\",0,$W20))","v":{"$error":"#N/A"}},"Cette démence est évidente dès que l'on parle avec la personne atteinte, celle-ci ne peut s'empêcher de mentir. Lors d'une discussion importante, le malade ne s'empêchera pas de dire toutes sortes de mensonges énormes, tout en étant persuadé que ce qu'il dit est vrai. Marchandage -100% et Séduction -60%.",null,null,null,null,null,-100,null,null,null,null,-60]
[{"$f":"_xlfn.IFNA(MATCH(U21,PJ!$D$22:$D$27,0),0)","v":0},"Mégalomanie",15,null,null,null,null,null,null,"/2",null,null,"+5","+5",null,null,null,null,null,null,{"$f":"B21&\" (\"&C21&HLOOKUP(PJ!$D$16,'Données (Défauts, Talents)'!$D$2:$T$79,ROW(B21)-1,FALSE)&\")\"&IF(X21<>0,\" PP\" &X21,\"\")","v":{"$error":"#N/A"}},{"$f":"IF(HLOOKUP(PJ!$D$16,'Données (Défauts, Talents)'!$D$2:$T$79,ROW($B21)-1,FALSE)=\"/2\",ROUNDUP($C21/2,0),$C21+HLOOKUP(PJ!$D$16,'Données (Défauts, Talents)'!$D$2:$T$79,ROW($B21)-1,FALSE))","v":{"$error":"#N/A"}},-20,{"$f":"IF(HLOOKUP(PJ!$D$16,'Données (Défauts, Talents)'!$D$2:$T$79,ROW($B21)-1,FALSE)=\"/2\",$W21*2,IF(HLOOKUP(PJ!$D$16,'Données (Défauts, Talents)'!$D$2:$T$79,ROW($B21)-1,FALSE)=\"+5\",0,$W21))","v":{"$error":"#N/A"}},"Un personnage mégalomane est persuadé qu'il est le meilleur à tous les points de vue, il prendra très mal qu'on contredise ou discute ses idées. Il cherchera toujours à prendre lui-même les décisions pour tout le groupe. Marchandage -20%.",null,null,null,null,null,-20]
[{"$f":"_xlfn.IFNA(MATCH(U22,PJ!$D$22:$D$27,0),0)","v":0},"Mélancolie",20,null,null,null,null,null,null,"/2",null,null,"+5","+5",null,null,null,null,null,null,{"$f":"B22&\" (\"&C22&HLOOKUP(PJ!$D$16,'Données (Défauts, Talents)'!$D$2:$T$79,ROW(B22)-1,FALSE)&\")\"&IF(X22<>0,\" PP\" &X22,\"\")","v":{"$error":"#N/A"}},{"$f":"IF(HLOOKUP(PJ!$D$16,'Données (Défauts, Talents)'!$D$2:$T$79,ROW($B22)-1,FALSE)=\"/2\",ROUNDUP($C22/2,0),$C22+HLOOKUP(PJ!$D$16,'Données (Défauts, Talents)'!$D$2:$T$79,ROW($B22)-1,FALSE))","v":{"$error":"#N/A"}},-20,{"$f":"IF(HLOOKUP(PJ!$D$16,'Données (Défauts, Talents)'!$D$2:$T$79,ROW($B22)-1,FALSE)=\"/2\",$W22*2,IF(HLOOKUP(PJ!$D$16,'Données (Défauts, Talents)'!$D$2:$T$79,ROW($B22)-1,FALSE)=\"+5\",0,$W22))","v":{"$error":"#N/A"}},"Les personnages mélancoliques ressentent une profonde lassitude et n'ont plus d'espoirs. Il y a environ 50% de chance qu'ils ignorent une situation donnée à cause de ce défaut. Marchandage -20%.",null,null,null,null,null,-20]
[{"$f":"_xlfn.IFNA(MATCH(U23,PJ!$D$22:$D$27,0),0)","v":0},"Monomanie",35,null,null,null,null,null,null,"/2",null,null,"+5","+5",null,null,null,null,null,null,{"$f":"B23&\" (\"&C23&HLOOKUP(PJ!$D$16,'Données (Défauts, Talents)'!$D$2:$T$79,ROW(B23)-1,FALSE)&\")\"&IF(X23<>0,\" PP\" &X23,\"\")","v":{"$error":"#N/A"}},{"$f":"IF(HLOOKUP(PJ!$D$16,'Données (Défauts, Talents)'!$D$2:$T$79,ROW($B23)-1,FALSE)=\"/2\",ROUNDUP($C23/2,0),$C23+HLOOKUP(PJ!$D$16,'Données (Défauts, Talents)'!$D$2:$T$79,ROW($B23)-1,FALSE))","v":{"$error":"#N/A"}},-20,{"$f":"IF(HLOOKUP(PJ!$D$16,'Données (Défauts, Talents)'!$D$2:$T$79,ROW($B23)-1,FALSE)=\"/2\",$W23*2,IF(HLOOKUP(PJ!$D$16,'Données (Défauts, Talents)'!$D$2:$T$79,ROW($B23)-1,FALSE)=\"+5\",0,$W23))","v":{"$error":"#N/A"}},"Cette folie se manifeste par une fixation sur un but, une cause ou un idéal qui semble profitable au personnage. Il ne pense qu'à cela, ne parle que de cela jusqu'à que ce projet s'accomplisse. Il cherchera à entrainer ses amis avec lui, et un refus de leur part pourra déclencher de violentes réactions (5% de chance). Une fois de le but atteint, le personnage sera frappé de démence précoce jusqu'à ce qu'un nouveau projet germe dans son esprit. Marchandage -20%.",null,null,null,null,null,-20]
[{"$f":"_xlfn.IFNA(MATCH(U24,PJ!$D$22:$D$27,0),0)","v":0},"Paranïoa",20,null,null,null,null,null,null,"/2",null,null,"+5","+5",null,null,null,null,null,null,{"$f":"B24&\" (\"&C24&HLOOKUP(PJ!$D$16,'Données (Défauts, Talents)'!$D$2:$T$79,ROW(B24)-1,FALSE)&\")\"&IF(X24<>0,\" PP\" &X24,\"\")","v":{"$error":"#N/A"}},{"$f":"IF(HLOOKUP(PJ!$D$16,'Données (Défauts, Talents)'!$D$2:$T$79,ROW($B24)-1,FALSE)=\"/2\",ROUNDUP($C24/2,0),$C24+HLOOKUP(PJ!$D$16,'Données (Défauts, Talents)'!$D$2:$T$79,ROW($B24)-1,FALSE))","v":{"$error":"#N/A"}},-20,{"$f":"IF(HLOOKUP(PJ!$D$16,'Données (Défauts, Talents)'!$D$2:$T$79,ROW($B24)-1,FALSE)=\"/2\",$W24*2,IF(HLOOKUP(PJ!$D$16,'Données (Défauts, Talents)'!$D$2:$T$79,ROW($B24)-1,FALSE)=\"+5\",0,$W24))","v":{"$error":"#N/A"}},"Un personnage atteint de paranoÏa est persuadé \"qu'on\" en veut à sa vie, et ira très loin pour se défendre contre les \"complots\". Cette folie conduit presque toujours (90% de chance) à un comportement très violent. En conséquence, le personnage subit : Marchandage -90%.",null,null,null,null,null,-90]
[{"$f":"_xlfn.IFNA(MATCH(U25,PJ!$D$22:$D$27,0),0)","v":0},"Schizophrénie",40,null,null,null,null,null,null,"/2",null,null,"+5","+5",null,null,null,null,null,null,{"$f":"B25&\" (\"&C25&HLOOKUP(PJ!$D$16,'Données (Défauts, Talents)'!$D$2:$T$79,ROW(B25)-1,FALSE)&\")\"&IF(X25<>0,\" PP\" &X25,\"\")","v":{"$error":"#N/A"}},{"$f":"IF(HLOOKUP(PJ!$D$16,'Données (Défauts, Talents)'!$D$2:$T$79,ROW($B25)-1,FALSE)=\"/2\",ROUNDUP($C25/2,0),$C25+HLOOKUP(PJ!$D$16,'Données (Défauts, Talents)'!$D$2:$T$79,ROW($B25)-1,FALSE))","v":{"$error":"#N/A"}},-20,{"$f":"IF(HLOOKUP(PJ!$D$16,'Données (Défauts, Talents)'!$D$2:$T$79,ROW($B25)-1,FALSE)=\"/2\",$W25*2,IF(HLOOKUP(PJ!$D$16,'Données (Défauts, Talents)'!$D$2:$T$79,ROW($B25)-1,FALSE)=\"+5\",0,$W25))","v":{"$error":"#N/A"}},"Le personnage atteint d'une telle psychose aura des sentiment étranges, une façon de penser et une conduite paradoxale. Il est replié sur lui-même, complètement coupé du réel (-90% à tous les talents). Cette forme de démence peut frapper n'importe quand (30% de chance par jour) et pour une durée très variable (25% de chance que la crise s'arrête, jet à faire tous les deux jours).",null,null,null,null,null,null,null,null,null,null,null,null,null,null,null,null,null,null,null,null,-90,-90,-90,-90,-90,-90,-90,-90,-90,-90,-90,-90,-90]
[{"$f":"_xlfn.IFNA(MATCH(U26,PJ!$D$22:$D$27,0),0)","v":0},"Schizothymie",25,null,null,null,null,null,null,"/2",null,null,"+5","+5",null,null,null,null,null,null,{"$f":"B26&\" (\"&C26&HLOOKUP(PJ!$D$16,'Données (Défauts, Talents)'!$D$2:$T$79,ROW(B26)-1,FALSE)&\")\"&IF(X26<>0,\" PP\" &X26,\"\")","v":{"$error":"#N/A"}},{"$f":"IF(HLOOKUP(PJ!$D$16,'Données (Défauts, Talents)'!$D$2:$T$79,ROW($B26)-1,FALSE)=\"/2\",ROUNDUP($C26/2,0),$C26+HLOOKUP(PJ!$D$16,'Données (Défauts, Talents)'!$D$2:$T$79,ROW($B26)-1,FALSE))","v":{"$error":"#N/A"}},-20,{"$f":"IF(HLOOKUP(PJ!$D$16,'Données (Défauts, Talents)'!$D$2:$T$79,ROW($B26)-1,FALSE)=\"/2\",$W26*2,IF(HLOOKUP(PJ!$D$16,'Données (Défauts, Talents)'!$D$2:$T$79,ROW($B26)-1,FALSE)=\"+5\",0,$W26))","v":{"$error":"#N/A"}},"La schizothymie ou schizoïdie est une affectation qui prédispose à la shcizophrénie (5% de chance par semaine pour que le personnage devienne schizophrène)."]
[{"$f":"_xlfn.IFNA(MATCH(U27,PJ!$D$22:$D$27,0),0)","v":0},"Suicidaire",40,null,null,null,null,null,null,"/2",null,null,"+5","+5",null,null,null,null,null,null,{"$f":"B27&\" (\"&C27&HLOOKUP(PJ!$D$16,'Données (Défauts, Talents)'!$D$2:$T$79,ROW(B27)-1,FALSE)&\")\"&IF(X27<>0,\" PP\" &X27,\"\")","v":{"$error":"#N/A"}},{"$f":"IF(HLOOKUP(PJ!$D$16,'Données (Défauts, Talents)'!$D$2:$T$79,ROW($B27)-1,FALSE)=\"/2\",ROUNDUP($C27/2,0),$C27+HLOOKUP(PJ!$D$16,'Données (Défauts, Talents)'!$D$2:$T$79,ROW($B27)-1,FALSE))","v":{"$error":"#N/A"}},-20,{"$f":"IF(HLOOKUP(PJ!$D$16,'Données (Défauts, Talents)'!$D$2:$T$79,ROW($B27)-1,FALSE)=\"/2\",$W27*2,IF(HLOOKUP(PJ!$D$16,'Données (Défauts, Talents)'!$D$2:$T$79,ROW($B27)-1,FALSE)=\"+5\",0,$W27))","v":{"$error":"#N/A"}},"Un personnage suicidaire ressent le besoin de se tuer. Il tente de se suicider dès qu'il est confronté à une situation dangereuse. Après une tentative ratée, il devient mélancolique. Si on l'empêche de se tuer il devient maniaque, puis mélancolique."]
[{"$f":"_xlfn.IFNA(MATCH(U28,PJ!$D$22:$D$27,0),0)","v":0},"Tueur Psychopathe",25,null,null,null,null,"+5",null,"/2",null,null,"+5","+5",null,null,null,null,null,null,{"$f":"B28&\" (\"&C28&HLOOKUP(PJ!$D$16,'Données (Défauts, Talents)'!$D$2:$T$79,ROW(B28)-1,FALSE)&\")\"&IF(X28<>0,\" PP\" &X28,\"\")","v":{"$error":"#N/A"}},{"$f":"IF(HLOOKUP(PJ!$D$16,'Données (Défauts, Talents)'!$D$2:$T$79,ROW($B28)-1,FALSE)=\"/2\",ROUNDUP($C28/2,0),$C28+HLOOKUP(PJ!$D$16,'Données (Défauts, Talents)'!$D$2:$T$79,ROW($B28)-1,FALSE))","v":{"$error":"#N/A"}},-20,{"$f":"IF(HLOOKUP(PJ!$D$16,'Données (Défauts, Talents)'!$D$2:$T$79,ROW($B28)-1,FALSE)=\"/2\",$W28*2,IF(HLOOKUP(PJ!$D$16,'Données (Défauts, Talents)'!$D$2:$T$79,ROW($B28)-1,FALSE)=\"+5\",0,$W28))","v":{"$error":"#N/A"}},"Un tel personnage ressent périodiquement (au moins une fois tous les deux jours) le besoin de tuer êtres humains. En général, il n'attaque pas les membres de sa tribu, ou ses amis, mais si l'un d'entre eux l'énerve, il peut avoir (20% de chance) un accès de folie et chercher à le tuer."]
[{"$f":"_xlfn.IFNA(MATCH(U29,PJ!$D$22:$D$27,0),0)","v":0},"Fugitif",30,null,null,null,null,null,null,null,null,null,null,"+5",null,null,null,null,null,null,{"$f":"B29&\" (\"&C29&HLOOKUP(PJ!$D$16,'Données (Défauts, Talents)'!$D$2:$T$79,ROW(B29)-1,FALSE)&\")\"&IF(X29<>0,\" PP\" &X29,\"\")","v":{"$error":"#N/A"}},{"$f":"IF(HLOOKUP(PJ!$D$16,'Données (Défauts, Talents)'!$D$2:$T$79,ROW($B29)-1,FALSE)=\"/2\",ROUNDUP($C29/2,0),$C29+HLOOKUP(PJ!$D$16,'Données (Défauts, Talents)'!$D$2:$T$79,ROW($B29)-1,FALSE))","v":{"$error":"#N/A"}},null,{"$f":"IF(HLOOKUP(PJ!$D$16,'Données (Défauts, Talents)'!$D$2:$T$79,ROW($B29)-1,FALSE)=\"/2\",$W29*2,IF(HLOOKUP(PJ!$D$16,'Données (Défauts, Talents)'!$D$2:$T$79,ROW($B29)-1,FALSE)=\"+5\",0,$W29))","v":{"$error":"#N/A"}},"Le personnage est pourchassé par un groupe de PNJ. Le maitre de jeu devra les faire intervenir pour rendre la vie dure au personnage poursuivi sans toutefois en abuser (environ 30% de chance par scénario)."]
[{"$f":"_xlfn.IFNA(MATCH(U30,PJ!$D$22:$D$27,0),0)","v":0},"Galant",15,null,"+5",null,"/2","/2","/2",null,null,"/2","/2","+5",null,"/2","/2",null,null,null,{"$f":"B30&\" (\"&C30&HLOOKUP(PJ!$D$16,'Données (Défauts, Talents)'!$D$2:$T$79,ROW(B30)-1,FALSE)&\")\"&IF(X30<>0,\" PP\" &X30,\"\")","v":{"$error":"#N/A"}},{"$f":"IF(HLOOKUP(PJ!$D$16,'Données (Défauts, Talents)'!$D$2:$T$79,ROW($B30)-1,FALSE)=\"/2\",ROUNDUP($C30/2,0),$C30+HLOOKUP(PJ!$D$16,'Données (Défauts, Talents)'!$D$2:$T$79,ROW($B30)-1,FALSE))","v":{"$error":"#N/A"}},null,{"$f":"IF(HLOOKUP(PJ!$D$16,'Données (Défauts, Talents)'!$D$2:$T$79,ROW($B30)-1,FALSE)=\"/2\",$W30*2,IF(HLOOKUP(PJ!$D$16,'Données (Défauts, Talents)'!$D$2:$T$79,ROW($B30)-1,FALSE)=\"+5\",0,$W30))","v":{"$error":"#N/A"}},"Le personnage sera particulièrement attentionné envers les membres du sexe opposé, de plus il devra reussir un jet de INx10% pour pouvoir frapper une tel personne et seulement s'il est personnellement menacé.",null,null,null,null,null,null,null,null,null,null,null,null,null,null,null,null,null,null,null,null,null,{"$f":"INT((PJ!C34*10/100-1)*PJ!E39)","v":-9}]
[{"$f":"_xlfn.IFNA(MATCH(U31,PJ!$D$22:$D$27,0),0)","v":0},"Impuissant",15,null,null,null,null,null,null,null,null,null,null,"+5",null,null,"/2",null,null,null,{"$f":"B31&\" (\"&C31&HLOOKUP(PJ!$D$16,'Données (Défauts, Talents)'!$D$2:$T$79,ROW(B31)-1,FALSE)&\")\"&IF(X31<>0,\" PP\" &X31,\"\")","v":{"$error":"#N/A"}},{"$f":"IF(HLOOKUP(PJ!$D$16,'Données (Défauts, Talents)'!$D$2:$T$79,ROW($B31)-1,FALSE)=\"/2\",ROUNDUP($C31/2,0),$C31+HLOOKUP(PJ!$D$16,'Données (Défauts, Talents)'!$D$2:$T$79,ROW($B31)-1,FALSE))","v":{"$error":"#N/A"}},-15,{"$f":"IF(HLOOKUP(PJ!$D$16,'Données (Défauts, Talents)'!$D$2:$T$79,ROW($B31)-1,FALSE)=\"/2\",$W31*2,IF(HLOOKUP(PJ!$D$16,'Données (Défauts, Talents)'!$D$2:$T$79,ROW($B31)-1,FALSE)=\"+5\",0,$W31))","v":{"$error":"#N/A"}},"Le talent de séduction du personnage est réduit de 90% si la personne à séduire connait le défaut.",null,null,null,null,null,null,null,null,null,null,null,null,null,null,null,null,null,null,null,null,null,null,null,null,null,null,null,null,null,null,-90]
[{"$f":"_xlfn.IFNA(MATCH(U32,PJ!$D$22:$D$27,0),0)","v":0},"Impulsif",20,null,"+5","+5","/2","+5",null,"/2",null,null,"+5","+5","+5","+5","+5","/2",null,"/2",{"$f":"B32&\" (\"&C32&HLOOKUP(PJ!$D$16,'Données (Défauts, Talents)'!$D$2:$T$79,ROW(B32)-1,FALSE)&\")\"&IF(X32<>0,\" PP\" &X32,\"\")","v":{"$error":"#N/A"}},{"$f":"IF(HLOOKUP(PJ!$D$16,'Données (Défauts, Talents)'!$D$2:$T$79,ROW($B32)-1,FALSE)=\"/2\",ROUNDUP($C32/2,0),$C32+HLOOKUP(PJ!$D$16,'Données (Défauts, Talents)'!$D$2:$T$79,ROW($B32)-1,FALSE))","v":{"$error":"#N/A"}},-5,{"$f":"IF(HLOOKUP(PJ!$D$16,'Données (Défauts, Talents)'!$D$2:$T$79,ROW($B32)-1,FALSE)=\"/2\",$W32*2,IF(HLOOKUP(PJ!$D$16,'Données (Défauts, Talents)'!$D$2:$T$79,ROW($B32)-1,FALSE)=\"+5\",0,$W32))","v":{"$error":"#N/A"}},"Le personnage ne réfléchit jamais avant d'agir et n'hésite pas à combattre meme si la victoire semble improbable. ll subit un malus de 30% au marchandage et de 15% à la séduction",null,null,null,null,null,-30,null,null,null,null,-15]
[{"$f":"_xlfn.IFNA(MATCH(U33,PJ!$D$22:$D$27,0),0)","v":0},"Jambe en moins",40,null,"/2",null,null,null,null,null,null,null,null,"+5",null,null,null,null,null,null,{"$f":"B33&\" (\"&C33&HLOOKUP(PJ!$D$16,'Données (Défauts, Talents)'!$D$2:$T$79,ROW(B33)-1,FALSE)&\")\"&IF(X33<>0,\" PP\" &X33,\"\")","v":{"$error":"#N/A"}},{"$f":"IF(HLOOKUP(PJ!$D$16,'Données (Défauts, Talents)'!$D$2:$T$79,ROW($B33)-1,FALSE)=\"/2\",ROUNDUP($C33/2,0),$C33+HLOOKUP(PJ!$D$16,'Données (Défauts, Talents)'!$D$2:$T$79,ROW($B33)-1,FALSE))","v":{"$error":"#N/A"}},null,{"$f":"IF(HLOOKUP(PJ!$D$16,'Données (Défauts, Talents)'!$D$2:$T$79,ROW($B33)-1,FALSE)=\"/2\",$W33*2,IF(HLOOKUP(PJ!$D$16,'Données (Défauts, Talents)'!$D$2:$T$79,ROW($B33)-1,FALSE)=\"+5\",0,$W33))","v":{"$error":"#N/A"}},"Le personnage a la jambe coupée au niveau du genou. Il ne peut pas posséder le talent spécial de Course. Les effets d'un tel handicap sont les suivants : Conduite -40%, Séduction -30%, Combat -50%, Discrétion -20% et Acrobatie -50%.",-50,-50,-40,-20,null,null,null,null,null,null,-30]
[{"$f":"_xlfn.IFNA(MATCH(U34,PJ!$D$22:$D$27,0),0)","v":0},"Jeune",10,null,null,"+5",null,null,null,"/2",null,null,null,"+5",null,null,"/2",null,"/2","/2",{"$f":"B34&\" (\"&C34&HLOOKUP(PJ!$D$16,'Données (Défauts, Talents)'!$D$2:$T$79,ROW(B34)-1,FALSE)&\")\"&IF(X34<>0,\" PP\" &X34,\"\")","v":{"$error":"#N/A"}},{"$f":"IF(HLOOKUP(PJ!$D$16,'Données (Défauts, Talents)'!$D$2:$T$79,ROW($B34)-1,FALSE)=\"/2\",ROUNDUP($C34/2,0),$C34+HLOOKUP(PJ!$D$16,'Données (Défauts, Talents)'!$D$2:$T$79,ROW($B34)-1,FALSE))","v":{"$error":"#N/A"}},null,{"$f":"IF(HLOOKUP(PJ!$D$16,'Données (Défauts, Talents)'!$D$2:$T$79,ROW($B34)-1,FALSE)=\"/2\",$W34*2,IF(HLOOKUP(PJ!$D$16,'Données (Défauts, Talents)'!$D$2:$T$79,ROW($B34)-1,FALSE)=\"+5\",0,$W34))","v":{"$error":"#N/A"}},"Le personnage débute le jeu a un age compris entre 9 et 13 ans. ll subit une réduction de 2 points en force et de 1 point en endurance avec toutes les modifications que cela implique. Il ne peut pas posséder le défaut vieux.",null,null,null,null,null,null,null,null,null,null,null,null,null,null,-1,-2]
[{"$f":"_xlfn.IFNA(MATCH(U35,PJ!$D$22:$D$27,0),0)","v":0},"Loyal",15,null,null,"/2","+5","/2",null,"+5",null,null,"/2","+5","+5",null,null,null,"/2","+5",{"$f":"B35&\" (\"&C35&HLOOKUP(PJ!$D$16,'Données (Défauts, Talents)'!$D$2:$T$79,ROW(B35)-1,FALSE)&\")\"&IF(X35<>0,\" PP\" &X35,\"\")","v":{"$error":"#N/A"}},{"$f":"IF(HLOOKUP(PJ!$D$16,'Données (Défauts, Talents)'!$D$2:$T$79,ROW($B35)-1,FALSE)=\"/2\",ROUNDUP($C35/2,0),$C35+HLOOKUP(PJ!$D$16,'Données (Défauts, Talents)'!$D$2:$T$79,ROW($B35)-1,FALSE))","v":{"$error":"#N/A"}},null,{"$f":"IF(HLOOKUP(PJ!$D$16,'Données (Défauts, Talents)'!$D$2:$T$79,ROW($B35)-1,FALSE)=\"/2\",$W35*2,IF(HLOOKUP(PJ!$D$16,'Données (Défauts, Talents)'!$D$2:$T$79,ROW($B35)-1,FALSE)=\"+5\",0,$W35))","v":{"$error":"#N/A"}},"Le personnage ne peut agir traitreusement et doit toujours indiquer ses intentions aux autres membres du groupe."]
[{"$f":"_xlfn.IFNA(MATCH(U36,PJ!$D$22:$D$27,0),0)","v":0},"Malchanceux",30,null,null,null,null,null,null,null,null,null,null,"+5",null,null,null,null,null,null,{"$f":"B36&\" (\"&C36&HLOOKUP(PJ!$D$16,'Données (Défauts, Talents)'!$D$2:$T$79,ROW(B36)-1,FALSE)&\")\"&IF(X36<>0,\" PP\" &X36,\"\")","v":{"$error":"#N/A"}},{"$f":"IF(HLOOKUP(PJ!$D$16,'Données (Défauts, Talents)'!$D$2:$T$79,ROW($B36)-1,FALSE)=\"/2\",ROUNDUP($C36/2,0),$C36+HLOOKUP(PJ!$D$16,'Données (Défauts, Talents)'!$D$2:$T$79,ROW($B36)-1,FALSE))","v":{"$error":"#N/A"}},null,{"$f":"IF(HLOOKUP(PJ!$D$16,'Données (Défauts, Talents)'!$D$2:$T$79,ROW($B36)-1,FALSE)=\"/2\",$W36*2,IF(HLOOKUP(PJ!$D$16,'Données (Défauts, Talents)'!$D$2:$T$79,ROW($B36)-1,FALSE)=\"+5\",0,$W36))","v":{"$error":"#N/A"}},"Chaque fois que le personnage rate un jet de pourcentage important et que le résultat des unités est égal à 0, le personnage est particulierement malchanceux et le maitre de jeu décide d'un resultat déplaisant voire même dangereux. "]
[{"$f":"_xlfn.IFNA(MATCH(U37,PJ!$D$22:$D$27,0),0)","v":0},"Misogyne ou Misandre",10,"+5",null,null,null,null,null,null,null,"+5",null,"+5",null,null,"+5",null,null,null,{"$f":"B37&\" (\"&C37&HLOOKUP(PJ!$D$16,'Données (Défauts, Talents)'!$D$2:$T$79,ROW(B37)-1,FALSE)&\")\"&IF(X37<>0,\" PP\" &X37,\"\")","v":{"$error":"#N/A"}},{"$f":"IF(HLOOKUP(PJ!$D$16,'Données (Défauts, Talents)'!$D$2:$T$79,ROW($B37)-1,FALSE)=\"/2\",ROUNDUP($C37/2,0),$C37+HLOOKUP(PJ!$D$16,'Données (Défauts, Talents)'!$D$2:$T$79,ROW($B37)-1,FALSE))","v":{"$error":"#N/A"}},null,{"$f":"IF(HLOOKUP(PJ!$D$16,'Données (Défauts, Talents)'!$D$2:$T$79,ROW($B37)-1,FALSE)=\"/2\",$W37*2,IF(HLOOKUP(PJ!$D$16,'Données (Défauts, Talents)'!$D$2:$T$79,ROW($B37)-1,FALSE)=\"+5\",0,$W37))","v":{"$error":"#N/A"}},"Le personnage estime que les individus du sexe opposé lui sont inférieurs. ll  subit un malus de 50% a la séduction et de 30% au marchandage avec une telle personne",null,null,null,null,null,null,null,null,null,null,null,null,null,null,null,null,null,null,null,null,null,null,null,null,null,-30,null,null,null,null,-50]
[{"$f":"_xlfn.IFNA(MATCH(U38,PJ!$D$22:$D$27,0),0)","v":0},"Muet",25,null,null,null,null,null,null,null,null,null,null,"+5",null,null,null,null,"/2",null,{"$f":"B38&\" (\"&C38&HLOOKUP(PJ!$D$16,'Données (Défauts, Talents)'!$D$2:$T$79,ROW(B38)-1,FALSE)&\")\"&IF(X38<>0,\" PP\" &X38,\"\")","v":{"$error":"#N/A"}},{"$f":"IF(HLOOKUP(PJ!$D$16,'Données (Défauts, Talents)'!$D$2:$T$79,ROW($B38)-1,FALSE)=\"/2\",ROUNDUP($C38/2,0),$C38+HLOOKUP(PJ!$D$16,'Données (Défauts, Talents)'!$D$2:$T$79,ROW($B38)-1,FALSE))","v":{"$error":"#N/A"}},null,{"$f":"IF(HLOOKUP(PJ!$D$16,'Données (Défauts, Talents)'!$D$2:$T$79,ROW($B38)-1,FALSE)=\"/2\",$W38*2,IF(HLOOKUP(PJ!$D$16,'Données (Défauts, Talents)'!$D$2:$T$79,ROW($B38)-1,FALSE)=\"+5\",0,$W38))","v":{"$error":"#N/A"}},"Le joueur ne peut pas discuter avec les autres joueurs. Le personnage subit un  malus de 10% a la séduction et de 40% au marchandage",null,null,null,null,null,-40,null,null,null,null,-10]
[{"$f":"_xlfn.IFNA(MATCH(U39,PJ!$D$22:$D$27,0),0)","v":0},"Naïf",25,"/2",null,"+5",null,null,"+5",null,null,null,null,"+5",null,null,"/2","/2","/2",null,{"$f":"B39&\" (\"&C39&HLOOKUP(PJ!$D$16,'Données (Défauts, Talents)'!$D$2:$T$79,ROW(B39)-1,FALSE)&\")\"&IF(X39<>0,\" PP\" &X39,\"\")","v":{"$error":"#N/A"}},{"$f":"IF(HLOOKUP(PJ!$D$16,'Données (Défauts, Talents)'!$D$2:$T$79,ROW($B39)-1,FALSE)=\"/2\",ROUNDUP($C39/2,0),$C39+HLOOKUP(PJ!$D$16,'Données (Défauts, Talents)'!$D$2:$T$79,ROW($B39)-1,FALSE))","v":{"$error":"#N/A"}},null,{"$f":"IF(HLOOKUP(PJ!$D$16,'Données (Défauts, Talents)'!$D$2:$T$79,ROW($B39)-1,FALSE)=\"/2\",$W39*2,IF(HLOOKUP(PJ!$D$16,'Données (Défauts, Talents)'!$D$2:$T$79,ROW($B39)-1,FALSE)=\"+5\",0,$W39))","v":{"$error":"#N/A"}},"Le personnage croit tout ce qu'on lui dit. Si l'affirmation est vraiment trop absurde, il a droit à un jet d'intelligence multiplié par 10 pour tenter de réaliser qu'on est en train de lui mentir."]
[{"$f":"_xlfn.IFNA(MATCH(U40,PJ!$D$22:$D$27,0),0)","v":0},"Obsédé Sexuel",25,"/2",null,"/2",null,null,null,null,null,null,null,"+5",null,null,"+5",null,null,null,{"$f":"B40&\" (\"&C40&HLOOKUP(PJ!$D$16,'Données (Défauts, Talents)'!$D$2:$T$79,ROW(B40)-1,FALSE)&\")\"&IF(X40<>0,\" PP\" &X40,\"\")","v":{"$error":"#N/A"}},{"$f":"IF(HLOOKUP(PJ!$D$16,'Données (Défauts, Talents)'!$D$2:$T$79,ROW($B40)-1,FALSE)=\"/2\",ROUNDUP($C40/2,0),$C40+HLOOKUP(PJ!$D$16,'Données (Défauts, Talents)'!$D$2:$T$79,ROW($B40)-1,FALSE))","v":{"$error":"#N/A"}},null,{"$f":"IF(HLOOKUP(PJ!$D$16,'Données (Défauts, Talents)'!$D$2:$T$79,ROW($B40)-1,FALSE)=\"/2\",$W40*2,IF(HLOOKUP(PJ!$D$16,'Données (Défauts, Talents)'!$D$2:$T$79,ROW($B40)-1,FALSE)=\"+5\",0,$W40))","v":{"$error":"#N/A"}},"Le personnage tentera d'abuser de tous les individus du sexe opposé à moins qu'il ne réussisse un jet INx10% auquel cas il peut se contrôler. Dans tous les cas, il ne manquera pas de faire des remarques désobligeantes. Il subit un malus de 80% à la séduction et de 50% au marchandage avec une personne du sexe opposé.",null,null,null,null,null,null,null,null,null,null,null,null,null,null,null,null,null,null,null,null,null,null,null,null,null,-50,null,null,null,null,-80]
[{"$f":"_xlfn.IFNA(MATCH(U41,PJ!$D$22:$D$27,0),0)","v":0},"Pensif",10,null,null,null,"+5","/2",null,"+5","+5",null,null,"+5",null,null,null,"/2",null,null,{"$f":"B41&\" (\"&C41&HLOOKUP(PJ!$D$16,'Données (Défauts, Talents)'!$D$2:$T$79,ROW(B41)-1,FALSE)&\")\"&IF(X41<>0,\" PP\" &X41,\"\")","v":{"$error":"#N/A"}},{"$f":"IF(HLOOKUP(PJ!$D$16,'Données (Défauts, Talents)'!$D$2:$T$79,ROW($B41)-1,FALSE)=\"/2\",ROUNDUP($C41/2,0),$C41+HLOOKUP(PJ!$D$16,'Données (Défauts, Talents)'!$D$2:$T$79,ROW($B41)-1,FALSE))","v":{"$error":"#N/A"}},null,{"$f":"IF(HLOOKUP(PJ!$D$16,'Données (Défauts, Talents)'!$D$2:$T$79,ROW($B41)-1,FALSE)=\"/2\",$W41*2,IF(HLOOKUP(PJ!$D$16,'Données (Défauts, Talents)'!$D$2:$T$79,ROW($B41)-1,FALSE)=\"+5\",0,$W41))","v":{"$error":"#N/A"}},"Le personnage est toujours dans la lune. En cas de surprise, sa rapidité sera divisé par deux et tous ses talents réduits de 20% pour le premier tour.",null,null,null,null,null,null,null,null,null,null,null,null,null,null,null,null,null,null,null,null,-20,-20,-20,-20,-20,-20,-20,-20,-20,-20,-20,-20,-20]
[{"$f":"_xlfn.IFNA(MATCH(U42,PJ!$D$22:$D$27,0),0)","v":0},"Arachnophobie",5,null,null,null,null,null,null,null,null,null,null,"+5",null,null,null,null,null,null,{"$f":"B42&\" (\"&C42&HLOOKUP(PJ!$D$16,'Données (Défauts, Talents)'!$D$2:$T$79,ROW(B42)-1,FALSE)&\")\"&IF(X42<>0,\" PP\" &X42,\"\")","v":{"$error":"#N/A"}},{"$f":"IF(HLOOKUP(PJ!$D$16,'Données (Défauts, Talents)'!$D$2:$T$79,ROW($B42)-1,FALSE)=\"/2\",ROUNDUP($C42/2,0),$C42+HLOOKUP(PJ!$D$16,'Données (Défauts, Talents)'!$D$2:$T$79,ROW($B42)-1,FALSE))","v":{"$error":"#N/A"}},-5,{"$f":"IF(HLOOKUP(PJ!$D$16,'Données (Défauts, Talents)'!$D$2:$T$79,ROW($B42)-1,FALSE)=\"/2\",$W42*2,IF(HLOOKUP(PJ!$D$16,'Données (Défauts, Talents)'!$D$2:$T$79,ROW($B42)-1,FALSE)=\"+5\",0,$W42))","v":{"$error":"#N/A"}},"Le personnage est sujet à une peur panique des araignées. Si le personnage est en contact avec ce qui lui fait peur, il doit réussir un jet de INx5% pour ne pas s'enfuir immédiatement."]
[{"$f":"_xlfn.IFNA(MATCH(U43,PJ!$D$22:$D$27,0),0)","v":0},"Acrophobie",10,null,null,null,null,null,null,null,null,null,null,"+5",null,null,null,null,null,null,{"$f":"B43&\" (\"&C43&HLOOKUP(PJ!$D$16,'Données (Défauts, Talents)'!$D$2:$T$79,ROW(B43)-1,FALSE)&\")\"&IF(X43<>0,\" PP\" &X43,\"\")","v":{"$error":"#N/A"}},{"$f":"IF(HLOOKUP(PJ!$D$16,'Données (Défauts, Talents)'!$D$2:$T$79,ROW($B43)-1,FALSE)=\"/2\",ROUNDUP($C43/2,0),$C43+HLOOKUP(PJ!$D$16,'Données (Défauts, Talents)'!$D$2:$T$79,ROW($B43)-1,FALSE))","v":{"$error":"#N/A"}},-5,{"$f":"IF(HLOOKUP(PJ!$D$16,'Données (Défauts, Talents)'!$D$2:$T$79,ROW($B43)-1,FALSE)=\"/2\",$W43*2,IF(HLOOKUP(PJ!$D$16,'Données (Défauts, Talents)'!$D$2:$T$79,ROW($B43)-1,FALSE)=\"+5\",0,$W43))","v":{"$error":"#N/A"}},"Le personnage est sujet à une peur panique des hauteurs. Un tel personnage ne peut posséder le talent Escalade. Si le personnage est en contact avec ce qui lui fait peur, il doit réussir un jet de INx5% pour ne pas s'enfuir immédiatement."]
[{"$f":"_xlfn.IFNA(MATCH(U44,PJ!$D$22:$D$27,0),0)","v":0},"Agoraphobie",25,null,null,null,null,null,null,null,null,null,null,"+5",null,null,null,null,null,null,{"$f":"B44&\" (\"&C44&HLOOKUP(PJ!$D$16,'Données (Défauts, Talents)'!$D$2:$T$79,ROW(B44)-1,FALSE)&\")\"&IF(X44<>0,\" PP\" &X44,\"\")","v":{"$error":"#N/A"}},{"$f":"IF(HLOOKUP(PJ!$D$16,'Données (Défauts, Talents)'!$D$2:$T$79,ROW($B44)-1,FALSE)=\"/2\",ROUNDUP($C44/2,0),$C44+HLOOKUP(PJ!$D$16,'Données (Défauts, Talents)'!$D$2:$T$79,ROW($B44)-1,FALSE))","v":{"$error":"#N/A"}},-5,{"$f":"IF(HLOOKUP(PJ!$D$16,'Données (Défauts, Talents)'!$D$2:$T$79,ROW($B44)-1,FALSE)=\"/2\",$W44*2,IF(HLOOKUP(PJ!$D$16,'Données (Défauts, Talents)'!$D$2:$T$79,ROW($B44)-1,FALSE)=\"+5\",0,$W44))","v":{"$error":"#N/A"}},"Le personnage est sujet à une peur panique des grands espaces. Si le personnage est en contact avec ce qui lui fait peur, il doit réussir un jet de INx5% pour ne pas s'enfuir immédiatement."]
[{"$f":"_xlfn.IFNA(MATCH(U45,PJ!$D$22:$D$27,0),0)","v":0},"Ailurophobie",5,null,null,null,null,null,null,null,null,null,null,"+5",null,null,null,null,null,null,{"$f":"B45&\" (\"&C45&HLOOKUP(PJ!$D$16,'Données (Défauts, Talents)'!$D$2:$T$79,ROW(B45)-1,FALSE)&\")\"&IF(X45<>0,\" PP\" &X45,\"\")","v":{"$error":"#N/A"}},{"$f":"IF(HLOOKUP(PJ!$D$16,'Données (Défauts, Talents)'!$D$2:$T$79,ROW($B45)-1,FALSE)=\"/2\",ROUNDUP($C45/2,0),$C45+HLOOKUP(PJ!$D$16,'Données (Défauts, Talents)'!$D$2:$T$79,ROW($B45)-1,FALSE))","v":{"$error":"#N/A"}},-5,{"$f":"IF(HLOOKUP(PJ!$D$16,'Données (Défauts, Talents)'!$D$2:$T$79,ROW($B45)-1,FALSE)=\"/2\",$W45*2,IF(HLOOKUP(PJ!$D$16,'Données (Défauts, Talents)'!$D$2:$T$79,ROW($B45)-1,FALSE)=\"+5\",0,$W45))","v":{"$error":"#N/A"}},"Le personnage est sujet à une peur panique des chats. Si le personnage est en contact avec ce qui lui fait peur, il doit réussir un jet de INx5% pour ne pas s'enfuir immédiatement."]
[{"$f":"_xlfn.IFNA(MATCH(U46,PJ!$D$22:$D$27,0),0)","v":0},"Algophobie",30,null,null,null,null,null,null,null,null,null,null,"+5",null,null,null,null,null,null,{"$f":"B46&\" (\"&C46&HLOOKUP(PJ!$D$16,'Données (Défauts, Talents)'!$D$2:$T$79,ROW(B46)-1,FALSE)&\")\"&IF(X46<>0,\" PP\" &X46,\"\")","v":{"$error":"#N/A"}},{"$f":"IF(HLOOKUP(PJ!$D$16,'Données (Défauts, Talents)'!$D$2:$T$79,ROW($B46)-1,FALSE)=\"/2\",ROUNDUP($C46/2,0),$C46+HLOOKUP(PJ!$D$16,'Données (Défauts, Talents)'!$D$2:$T$79,ROW($B46)-1,FALSE))","v":{"$error":"#N/A"}},-5,{"$f":"IF(HLOOKUP(PJ!$D$16,'Données (Défauts, Talents)'!$D$2:$T$79,ROW($B46)-1,FALSE)=\"/2\",$W46*2,IF(HLOOKUP(PJ!$D$16,'Données (Défauts, Talents)'!$D$2:$T$79,ROW($B46)-1,FALSE)=\"+5\",0,$W46))","v":{"$error":"#N/A"}},"Le personnage est sujet à une peur panique de la douleur. Si le personnage est en contact avec ce qui lui fait peur, il doit réussir un jet de INx5% pour ne pas s'enfuir immédiatement."]
[{"$f":"_xlfn.IFNA(MATCH(U47,PJ!$D$22:$D$27,0),0)","v":0},"Androphobie",20,null,null,null,null,null,null,null,null,null,null,"+5",null,null,null,null,null,null,{"$f":"B47&\" (\"&C47&HLOOKUP(PJ!$D$16,'Données (Défauts, Talents)'!$D$2:$T$79,ROW(B47)-1,FALSE)&\")\"&IF(X47<>0,\" PP\" &X47,\"\")","v":{"$error":"#N/A"}},{"$f":"IF(HLOOKUP(PJ!$D$16,'Données (Défauts, Talents)'!$D$2:$T$79,ROW($B47)-1,FALSE)=\"/2\",ROUNDUP($C47/2,0),$C47+HLOOKUP(PJ!$D$16,'Données (Défauts, Talents)'!$D$2:$T$79,ROW($B47)-1,FALSE))","v":{"$error":"#N/A"}},-5,{"$f":"IF(HLOOKUP(PJ!$D$16,'Données (Défauts, Talents)'!$D$2:$T$79,ROW($B47)-1,FALSE)=\"/2\",$W47*2,IF(HLOOKUP(PJ!$D$16,'Données (Défauts, Talents)'!$D$2:$T$79,ROW($B47)-1,FALSE)=\"+5\",0,$W47))","v":{"$error":"#N/A"}},"Le personnage est sujet à une peur panique des hommes. Si le personnage est en contact avec ce qui lui fait peur, il doit réussir un jet de INx5% pour ne pas s'enfuir immédiatement."]
[{"$f":"_xlfn.IFNA(MATCH(U48,PJ!$D$22:$D$27,0),0)","v":0},"Astrophobie",10,null,null,null,null,null,null,null,null,null,null,"+5",null,null,null,null,null,null,{"$f":"B48&\" (\"&C48&HLOOKUP(PJ!$D$16,'Données (Défauts, Talents)'!$D$2:$T$79,ROW(B48)-1,FALSE)&\")\"&IF(X48<>0,\" PP\" &X48,\"\")","v":{"$error":"#N/A"}},{"$f":"IF(HLOOKUP(PJ!$D$16,'Données (Défauts, Talents)'!$D$2:$T$79,ROW($B48)-1,FALSE)=\"/2\",ROUNDUP($C48/2,0),$C48+HLOOKUP(PJ!$D$16,'Données (Défauts, Talents)'!$D$2:$T$79,ROW($B48)-1,FALSE))","v":{"$error":"#N/A"}},-5,{"$f":"IF(HLOOKUP(PJ!$D$16,'Données (Défauts, Talents)'!$D$2:$T$79,ROW($B48)-1,FALSE)=\"/2\",$W48*2,IF(HLOOKUP(PJ!$D$16,'Données (Défauts, Talents)'!$D$2:$T$79,ROW($B48)-1,FALSE)=\"+5\",0,$W48))","v":{"$error":"#N/A"}},"Le personnage est sujet à une peur panique des éclairs et des aurores boréales. Si le personnage est en contact avec ce qui lui fait peur, il doit réussir un jet de INx5% pour ne pas s'enfuir immédiatement."]
[{"$f":"_xlfn.IFNA(MATCH(U49,PJ!$D$22:$D$27,0),0)","v":0},"Autophobie",10,null,null,null,null,null,null,null,null,null,null,"+5",null,null,null,null,null,null,{"$f":"B49&\" (\"&C49&HLOOKUP(PJ!$D$16,'Données (Défauts, Talents)'!$D$2:$T$79,ROW(B49)-1,FALSE)&\")\"&IF(X49<>0,\" PP\" &X49,\"\")","v":{"$error":"#N/A"}},{"$f":"IF(HLOOKUP(PJ!$D$16,'Données (Défauts, Talents)'!$D$2:$T$79,ROW($B49)-1,FALSE)=\"/2\",ROUNDUP($C49/2,0),$C49+HLOOKUP(PJ!$D$16,'Données (Défauts, Talents)'!$D$2:$T$79,ROW($B49)-1,FALSE))","v":{"$error":"#N/A"}},-5,{"$f":"IF(HLOOKUP(PJ!$D$16,'Données (Défauts, Talents)'!$D$2:$T$79,ROW($B49)-1,FALSE)=\"/2\",$W49*2,IF(HLOOKUP(PJ!$D$16,'Données (Défauts, Talents)'!$D$2:$T$79,ROW($B49)-1,FALSE)=\"+5\",0,$W49))","v":{"$error":"#N/A"}},"Le personnage est sujet à une peur panique de la solitude. Si le personnage est en contact avec ce qui lui fait peur, il doit réussir un jet de INx5% pour ne pas s'enfuir immédiatement."]
[{"$f":"_xlfn.IFNA(MATCH(U50,PJ!$D$22:$D$27,0),0)","v":0},"Bangophobie",30,null,null,null,null,null,null,null,null,null,null,"+5",null,null,null,null,null,null,{"$f":"B50&\" (\"&C50&HLOOKUP(PJ!$D$16,'Données (Défauts, Talents)'!$D$2:$T$79,ROW(B50)-1,FALSE)&\")\"&IF(X50<>0,\" PP\" &X50,\"\")","v":{"$error":"#N/A"}},{"$f":"IF(HLOOKUP(PJ!$D$16,'Données (Défauts, Talents)'!$D$2:$T$79,ROW($B50)-1,FALSE)=\"/2\",ROUNDUP($C50/2,0),$C50+HLOOKUP(PJ!$D$16,'Données (Défauts, Talents)'!$D$2:$T$79,ROW($B50)-1,FALSE))","v":{"$error":"#N/A"}},-5,{"$f":"IF(HLOOKUP(PJ!$D$16,'Données (Défauts, Talents)'!$D$2:$T$79,ROW($B50)-1,FALSE)=\"/2\",$W50*2,IF(HLOOKUP(PJ!$D$16,'Données (Défauts, Talents)'!$D$2:$T$79,ROW($B50)-1,FALSE)=\"+5\",0,$W50))","v":{"$error":"#N/A"}},"Le personnage est sujet à une peur panique des armes à feu, et des détonations. Si le personnage est en contact avec ce qui lui fait peur, il doit réussir un jet de INx5% pour ne pas s'enfuir immédiatement."]
[{"$f":"_xlfn.IFNA(MATCH(U51,PJ!$D$22:$D$27,0),0)","v":0},"Bathophobie",10,null,null,null,null,null,null,null,null,null,null,"+5",null,null,null,null,null,null,{"$f":"B51&\" (\"&C51&HLOOKUP(PJ!$D$16,'Données (Défauts, Talents)'!$D$2:$T$79,ROW(B51)-1,FALSE)&\")\"&IF(X51<>0,\" PP\" &X51,\"\")","v":{"$error":"#N/A"}},{"$f":"IF(HLOOKUP(PJ!$D$16,'Données (Défauts, Talents)'!$D$2:$T$79,ROW($B51)-1,FALSE)=\"/2\",ROUNDUP($C51/2,0),$C51+HLOOKUP(PJ!$D$16,'Données (Défauts, Talents)'!$D$2:$T$79,ROW($B51)-1,FALSE))","v":{"$error":"#N/A"}},-5,{"$f":"IF(HLOOKUP(PJ!$D$16,'Données (Défauts, Talents)'!$D$2:$T$79,ROW($B51)-1,FALSE)=\"/2\",$W51*2,IF(HLOOKUP(PJ!$D$16,'Données (Défauts, Talents)'!$D$2:$T$79,ROW($B51)-1,FALSE)=\"+5\",0,$W51))","v":{"$error":"#N/A"}},"Le personnage est sujet à une peur panique des gouffres, grottes et autres cavernes souterraines. Si le personnage est en contact avec ce qui lui fait peur, il doit réussir un jet de INx5% pour ne pas s'enfuir immédiatement."]
[{"$f":"_xlfn.IFNA(MATCH(U52,PJ!$D$22:$D$27,0),0)","v":0},"Claustrophobie",15,null,null,null,null,null,null,null,null,null,null,"+5",null,null,null,null,null,null,{"$f":"B52&\" (\"&C52&HLOOKUP(PJ!$D$16,'Données (Défauts, Talents)'!$D$2:$T$79,ROW(B52)-1,FALSE)&\")\"&IF(X52<>0,\" PP\" &X52,\"\")","v":{"$error":"#N/A"}},{"$f":"IF(HLOOKUP(PJ!$D$16,'Données (Défauts, Talents)'!$D$2:$T$79,ROW($B52)-1,FALSE)=\"/2\",ROUNDUP($C52/2,0),$C52+HLOOKUP(PJ!$D$16,'Données (Défauts, Talents)'!$D$2:$T$79,ROW($B52)-1,FALSE))","v":{"$error":"#N/A"}},-5,{"$f":"IF(HLOOKUP(PJ!$D$16,'Données (Défauts, Talents)'!$D$2:$T$79,ROW($B52)-1,FALSE)=\"/2\",$W52*2,IF(HLOOKUP(PJ!$D$16,'Données (Défauts, Talents)'!$D$2:$T$79,ROW($B52)-1,FALSE)=\"+5\",0,$W52))","v":{"$error":"#N/A"}},"Le personnage est sujet à une peur panique des endroits fermés. Un tel personnage ne peut choisir le talent spécial \"Combat urbain\". Si le personnage est en contact avec ce qui lui fait peur, il doit réussir un jet de INx5% pour ne pas s'enfuir immédiatement."]
[{"$f":"_xlfn.IFNA(MATCH(U53,PJ!$D$22:$D$27,0),0)","v":0},"Cynophobie",15,null,null,null,null,null,null,null,null,null,null,"+5",null,null,null,null,null,null,{"$f":"B53&\" (\"&C53&HLOOKUP(PJ!$D$16,'Données (Défauts, Talents)'!$D$2:$T$79,ROW(B53)-1,FALSE)&\")\"&IF(X53<>0,\" PP\" &X53,\"\")","v":{"$error":"#N/A"}},{"$f":"IF(HLOOKUP(PJ!$D$16,'Données (Défauts, Talents)'!$D$2:$T$79,ROW($B53)-1,FALSE)=\"/2\",ROUNDUP($C53/2,0),$C53+HLOOKUP(PJ!$D$16,'Données (Défauts, Talents)'!$D$2:$T$79,ROW($B53)-1,FALSE))","v":{"$error":"#N/A"}},-5,{"$f":"IF(HLOOKUP(PJ!$D$16,'Données (Défauts, Talents)'!$D$2:$T$79,ROW($B53)-1,FALSE)=\"/2\",$W53*2,IF(HLOOKUP(PJ!$D$16,'Données (Défauts, Talents)'!$D$2:$T$79,ROW($B53)-1,FALSE)=\"+5\",0,$W53))","v":{"$error":"#N/A"}},"Le personnage est sujet à une peur panique des chiens et par extension de tous les canins (loups, coyotes, chacals…) Si le personnage est en contact avec ce qui lui fait peur, il doit réussir un jet de INx5% pour ne pas s'enfuir immédiatement."]
[{"$f":"_xlfn.IFNA(MATCH(U54,PJ!$D$22:$D$27,0),0)","v":0},"Démophobie",10,null,null,null,null,null,null,null,null,null,null,"+5",null,null,null,null,null,null,{"$f":"B54&\" (\"&C54&HLOOKUP(PJ!$D$16,'Données (Défauts, Talents)'!$D$2:$T$79,ROW(B54)-1,FALSE)&\")\"&IF(X54<>0,\" PP\" &X54,\"\")","v":{"$error":"#N/A"}},{"$f":"IF(HLOOKUP(PJ!$D$16,'Données (Défauts, Talents)'!$D$2:$T$79,ROW($B54)-1,FALSE)=\"/2\",ROUNDUP($C54/2,0),$C54+HLOOKUP(PJ!$D$16,'Données (Défauts, Talents)'!$D$2:$T$79,ROW($B54)-1,FALSE))","v":{"$error":"#N/A"}},-5,{"$f":"IF(HLOOKUP(PJ!$D$16,'Données (Défauts, Talents)'!$D$2:$T$79,ROW($B54)-1,FALSE)=\"/2\",$W54*2,IF(HLOOKUP(PJ!$D$16,'Données (Défauts, Talents)'!$D$2:$T$79,ROW($B54)-1,FALSE)=\"+5\",0,$W54))","v":{"$error":"#N/A"}},"Le personnage est sujet à une peur panique de la foule. Dans Bitume, on considère que plus de 50 personnes constituent une foule. Si le personnage est en contact avec ce qui lui fait peur, il doit réussir un jet de INx5% pour ne pas s'enfuir immédiatement."]
[{"$f":"_xlfn.IFNA(MATCH(U55,PJ!$D$22:$D$27,0),0)","v":0},"Dromophobie",10,null,null,null,null,null,null,null,null,null,null,"+5",null,null,null,null,null,null,{"$f":"B55&\" (\"&C55&HLOOKUP(PJ!$D$16,'Données (Défauts, Talents)'!$D$2:$T$79,ROW(B55)-1,FALSE)&\")\"&IF(X55<>0,\" PP\" &X55,\"\")","v":{"$error":"#N/A"}},{"$f":"IF(HLOOKUP(PJ!$D$16,'Données (Défauts, Talents)'!$D$2:$T$79,ROW($B55)-1,FALSE)=\"/2\",ROUNDUP($C55/2,0),$C55+HLOOKUP(PJ!$D$16,'Données (Défauts, Talents)'!$D$2:$T$79,ROW($B55)-1,FALSE))","v":{"$error":"#N/A"}},-5,{"$f":"IF(HLOOKUP(PJ!$D$16,'Données (Défauts, Talents)'!$D$2:$T$79,ROW($B55)-1,FALSE)=\"/2\",$W55*2,IF(HLOOKUP(PJ!$D$16,'Données (Défauts, Talents)'!$D$2:$T$79,ROW($B55)-1,FALSE)=\"+5\",0,$W55))","v":{"$error":"#N/A"}},"Le personnage est sujet à une peur panique de traverser une rue Si le personnage est en contact avec ce qui lui fait peur, il doit réussir un jet de INx5% pour ne pas s'enfuir immédiatement."]
[{"$f":"_xlfn.IFNA(MATCH(U56,PJ!$D$22:$D$27,0),0)","v":0},"Florophobie",20,null,null,null,null,null,null,null,null,null,null,"+5",null,null,null,null,null,null,{"$f":"B56&\" (\"&C56&HLOOKUP(PJ!$D$16,'Données (Défauts, Talents)'!$D$2:$T$79,ROW(B56)-1,FALSE)&\")\"&IF(X56<>0,\" PP\" &X56,\"\")","v":{"$error":"#N/A"}},{"$f":"IF(HLOOKUP(PJ!$D$16,'Données (Défauts, Talents)'!$D$2:$T$79,ROW($B56)-1,FALSE)=\"/2\",ROUNDUP($C56/2,0),$C56+HLOOKUP(PJ!$D$16,'Données (Défauts, Talents)'!$D$2:$T$79,ROW($B56)-1,FALSE))","v":{"$error":"#N/A"}},-5,{"$f":"IF(HLOOKUP(PJ!$D$16,'Données (Défauts, Talents)'!$D$2:$T$79,ROW($B56)-1,FALSE)=\"/2\",$W56*2,IF(HLOOKUP(PJ!$D$16,'Données (Défauts, Talents)'!$D$2:$T$79,ROW($B56)-1,FALSE)=\"+5\",0,$W56))","v":{"$error":"#N/A"}},"Le personnage est sujet à une peur panique des plantes. Un tel personnage ne peut choisir le talent spécial \"Combat rural\" Si le personnage est en contact avec ce qui lui fait peur, il doit réussir un jet de INx5% pour ne pas s'enfuir immédiatement."]
[{"$f":"_xlfn.IFNA(MATCH(U57,PJ!$D$22:$D$27,0),0)","v":0},"Génophobie",10,null,null,null,null,null,null,null,null,null,null,"+5",null,null,null,null,null,null,{"$f":"B57&\" (\"&C57&HLOOKUP(PJ!$D$16,'Données (Défauts, Talents)'!$D$2:$T$79,ROW(B57)-1,FALSE)&\")\"&IF(X57<>0,\" PP\" &X57,\"\")","v":{"$error":"#N/A"}},{"$f":"IF(HLOOKUP(PJ!$D$16,'Données (Défauts, Talents)'!$D$2:$T$79,ROW($B57)-1,FALSE)=\"/2\",ROUNDUP($C57/2,0),$C57+HLOOKUP(PJ!$D$16,'Données (Défauts, Talents)'!$D$2:$T$79,ROW($B57)-1,FALSE))","v":{"$error":"#N/A"}},-5,{"$f":"IF(HLOOKUP(PJ!$D$16,'Données (Défauts, Talents)'!$D$2:$T$79,ROW($B57)-1,FALSE)=\"/2\",$W57*2,IF(HLOOKUP(PJ!$D$16,'Données (Défauts, Talents)'!$D$2:$T$79,ROW($B57)-1,FALSE)=\"+5\",0,$W57))","v":{"$error":"#N/A"}},"Le personnage est sujet à une peur panique du sexe et par extension des relations sexuelles. Si le personnage est en contact avec ce qui lui fait peur, il doit réussir un jet de INx5% pour ne pas s'enfuir immédiatement."]
[{"$f":"_xlfn.IFNA(MATCH(U58,PJ!$D$22:$D$27,0),0)","v":0},"Gynophobie",20,null,null,null,null,null,null,null,null,null,null,"+5",null,null,null,null,null,null,{"$f":"B58&\" (\"&C58&HLOOKUP(PJ!$D$16,'Données (Défauts, Talents)'!$D$2:$T$79,ROW(B58)-1,FALSE)&\")\"&IF(X58<>0,\" PP\" &X58,\"\")","v":{"$error":"#N/A"}},{"$f":"IF(HLOOKUP(PJ!$D$16,'Données (Défauts, Talents)'!$D$2:$T$79,ROW($B58)-1,FALSE)=\"/2\",ROUNDUP($C58/2,0),$C58+HLOOKUP(PJ!$D$16,'Données (Défauts, Talents)'!$D$2:$T$79,ROW($B58)-1,FALSE))","v":{"$error":"#N/A"}},-5,{"$f":"IF(HLOOKUP(PJ!$D$16,'Données (Défauts, Talents)'!$D$2:$T$79,ROW($B58)-1,FALSE)=\"/2\",$W58*2,IF(HLOOKUP(PJ!$D$16,'Données (Défauts, Talents)'!$D$2:$T$79,ROW($B58)-1,FALSE)=\"+5\",0,$W58))","v":{"$error":"#N/A"}},"Le personnage est sujet à une peur panique des femmes. Si le personnage est en contact avec ce qui lui fait peur, il doit réussir un jet de INx5% pour ne pas s'enfuir immédiatement."]
[{"$f":"_xlfn.IFNA(MATCH(U59,PJ!$D$22:$D$27,0),0)","v":0},"Heptéphobie",20,null,null,null,null,null,null,null,null,null,null,"+5",null,null,null,null,null,null,{"$f":"B59&\" (\"&C59&HLOOKUP(PJ!$D$16,'Données (Défauts, Talents)'!$D$2:$T$79,ROW(B59)-1,FALSE)&\")\"&IF(X59<>0,\" PP\" &X59,\"\")","v":{"$error":"#N/A"}},{"$f":"IF(HLOOKUP(PJ!$D$16,'Données (Défauts, Talents)'!$D$2:$T$79,ROW($B59)-1,FALSE)=\"/2\",ROUNDUP($C59/2,0),$C59+HLOOKUP(PJ!$D$16,'Données (Défauts, Talents)'!$D$2:$T$79,ROW($B59)-1,FALSE))","v":{"$error":"#N/A"}},-5,{"$f":"IF(HLOOKUP(PJ!$D$16,'Données (Défauts, Talents)'!$D$2:$T$79,ROW($B59)-1,FALSE)=\"/2\",$W59*2,IF(HLOOKUP(PJ!$D$16,'Données (Défauts, Talents)'!$D$2:$T$79,ROW($B59)-1,FALSE)=\"+5\",0,$W59))","v":{"$error":"#N/A"}},"Le personnage est sujet à une peur panique d'être touché par un autre être vivant. Si le personnage est en contact avec ce qui lui fait peur, il doit réussir un jet de INx5% pour ne pas s'enfuir immédiatement."]
[{"$f":"_xlfn.IFNA(MATCH(U60,PJ!$D$22:$D$27,0),0)","v":0},"Héliophobie",30,null,null,null,null,null,null,null,null,null,null,"+5",null,null,null,null,null,null,{"$f":"B60&\" (\"&C60&HLOOKUP(PJ!$D$16,'Données (Défauts, Talents)'!$D$2:$T$79,ROW(B60)-1,FALSE)&\")\"&IF(X60<>0,\" PP\" &X60,\"\")","v":{"$error":"#N/A"}},{"$f":"IF(HLOOKUP(PJ!$D$16,'Données (Défauts, Talents)'!$D$2:$T$79,ROW($B60)-1,FALSE)=\"/2\",ROUNDUP($C60/2,0),$C60+HLOOKUP(PJ!$D$16,'Données (Défauts, Talents)'!$D$2:$T$79,ROW($B60)-1,FALSE))","v":{"$error":"#N/A"}},-5,{"$f":"IF(HLOOKUP(PJ!$D$16,'Données (Défauts, Talents)'!$D$2:$T$79,ROW($B60)-1,FALSE)=\"/2\",$W60*2,IF(HLOOKUP(PJ!$D$16,'Données (Défauts, Talents)'!$D$2:$T$79,ROW($B60)-1,FALSE)=\"+5\",0,$W60))","v":{"$error":"#N/A"}},"Le personnage est sujet à une peur panique du soleil. Si le personnage est en contact avec ce qui lui fait peur, il doit réussir un jet de INx5% pour ne pas s'enfuir immédiatement."]
[{"$f":"_xlfn.IFNA(MATCH(U61,PJ!$D$22:$D$27,0),0)","v":0},"Hémophobie",40,null,null,null,null,null,null,null,null,null,null,"+5",null,null,null,null,null,null,{"$f":"B61&\" (\"&C61&HLOOKUP(PJ!$D$16,'Données (Défauts, Talents)'!$D$2:$T$79,ROW(B61)-1,FALSE)&\")\"&IF(X61<>0,\" PP\" &X61,\"\")","v":{"$error":"#N/A"}},{"$f":"IF(HLOOKUP(PJ!$D$16,'Données (Défauts, Talents)'!$D$2:$T$79,ROW($B61)-1,FALSE)=\"/2\",ROUNDUP($C61/2,0),$C61+HLOOKUP(PJ!$D$16,'Données (Défauts, Talents)'!$D$2:$T$79,ROW($B61)-1,FALSE))","v":{"$error":"#N/A"}},-5,{"$f":"IF(HLOOKUP(PJ!$D$16,'Données (Défauts, Talents)'!$D$2:$T$79,ROW($B61)-1,FALSE)=\"/2\",$W61*2,IF(HLOOKUP(PJ!$D$16,'Données (Défauts, Talents)'!$D$2:$T$79,ROW($B61)-1,FALSE)=\"+5\",0,$W61))","v":{"$error":"#N/A"}},"Le personnage est sujet à une peur panique du sang. Si le personnage est en contact avec ce qui lui fait peur, il doit réussir un jet de INx5% pour ne pas s'enfuir immédiatement."]
[{"$f":"_xlfn.IFNA(MATCH(U62,PJ!$D$22:$D$27,0),0)","v":0},"Hydrophobie",20,null,null,null,null,null,null,null,null,null,null,"+5",null,null,null,null,null,null,{"$f":"B62&\" (\"&C62&HLOOKUP(PJ!$D$16,'Données (Défauts, Talents)'!$D$2:$T$79,ROW(B62)-1,FALSE)&\")\"&IF(X62<>0,\" PP\" &X62,\"\")","v":{"$error":"#N/A"}},{"$f":"IF(HLOOKUP(PJ!$D$16,'Données (Défauts, Talents)'!$D$2:$T$79,ROW($B62)-1,FALSE)=\"/2\",ROUNDUP($C62/2,0),$C62+HLOOKUP(PJ!$D$16,'Données (Défauts, Talents)'!$D$2:$T$79,ROW($B62)-1,FALSE))","v":{"$error":"#N/A"}},-5,{"$f":"IF(HLOOKUP(PJ!$D$16,'Données (Défauts, Talents)'!$D$2:$T$79,ROW($B62)-1,FALSE)=\"/2\",$W62*2,IF(HLOOKUP(PJ!$D$16,'Données (Défauts, Talents)'!$D$2:$T$79,ROW($B62)-1,FALSE)=\"+5\",0,$W62))","v":{"$error":"#N/A"}},"Le personnage est sujet à une peur panique de l'eau. Un tel personnage ne peut choisir les talents spéciaux \"Nage\" et \"Pêche\". Si le personnage est en contact avec ce qui lui fait peur, il doit réussir un jet de INx5% pour ne pas s'enfuir immédiatement."]
[{"$f":"_xlfn.IFNA(MATCH(U63,PJ!$D$22:$D$27,0),0)","v":0},"Hypnophobie",25,null,null,null,null,null,null,null,null,null,null,"+5",null,null,null,null,null,null,{"$f":"B63&\" (\"&C63&HLOOKUP(PJ!$D$16,'Données (Défauts, Talents)'!$D$2:$T$79,ROW(B63)-1,FALSE)&\")\"&IF(X63<>0,\" PP\" &X63,\"\")","v":{"$error":"#N/A"}},{"$f":"IF(HLOOKUP(PJ!$D$16,'Données (Défauts, Talents)'!$D$2:$T$79,ROW($B63)-1,FALSE)=\"/2\",ROUNDUP($C63/2,0),$C63+HLOOKUP(PJ!$D$16,'Données (Défauts, Talents)'!$D$2:$T$79,ROW($B63)-1,FALSE))","v":{"$error":"#N/A"}},-5,{"$f":"IF(HLOOKUP(PJ!$D$16,'Données (Défauts, Talents)'!$D$2:$T$79,ROW($B63)-1,FALSE)=\"/2\",$W63*2,IF(HLOOKUP(PJ!$D$16,'Données (Défauts, Talents)'!$D$2:$T$79,ROW($B63)-1,FALSE)=\"+5\",0,$W63))","v":{"$error":"#N/A"}},"Le personnage est sujet à une peur panique de dormir et de rêver. Un tel personnage ne peut récupérer des points de vie qu'à raison de 1 par semaine de repos. Si le personnage est en contact avec ce qui lui fait peur, il doit réussir un jet de INx5% pour ne pas s'enfuir immédiatement."]
[{"$f":"_xlfn.IFNA(MATCH(U64,PJ!$D$22:$D$27,0),0)","v":0},"Kronophobie",15,null,null,null,null,null,null,null,null,null,null,"+5",null,null,null,null,null,null,{"$f":"B64&\" (\"&C64&HLOOKUP(PJ!$D$16,'Données (Défauts, Talents)'!$D$2:$T$79,ROW(B64)-1,FALSE)&\")\"&IF(X64<>0,\" PP\" &X64,\"\")","v":{"$error":"#N/A"}},{"$f":"IF(HLOOKUP(PJ!$D$16,'Données (Défauts, Talents)'!$D$2:$T$79,ROW($B64)-1,FALSE)=\"/2\",ROUNDUP($C64/2,0),$C64+HLOOKUP(PJ!$D$16,'Données (Défauts, Talents)'!$D$2:$T$79,ROW($B64)-1,FALSE))","v":{"$error":"#N/A"}},-5,{"$f":"IF(HLOOKUP(PJ!$D$16,'Données (Défauts, Talents)'!$D$2:$T$79,ROW($B64)-1,FALSE)=\"/2\",$W64*2,IF(HLOOKUP(PJ!$D$16,'Données (Défauts, Talents)'!$D$2:$T$79,ROW($B64)-1,FALSE)=\"+5\",0,$W64))","v":{"$error":"#N/A"}},"Le personnage est sujet à une peur panique de vieillir. Si le personnage est en contact avec ce qui lui fait peur, il doit réussir un jet de INx5% pour ne pas s'enfuir immédiatement."]
[{"$f":"_xlfn.IFNA(MATCH(U65,PJ!$D$22:$D$27,0),0)","v":0},"Musophobie",5,null,null,null,null,null,null,null,null,null,null,"+5",null,null,null,null,null,null,{"$f":"B65&\" (\"&C65&HLOOKUP(PJ!$D$16,'Données (Défauts, Talents)'!$D$2:$T$79,ROW(B65)-1,FALSE)&\")\"&IF(X65<>0,\" PP\" &X65,\"\")","v":{"$error":"#N/A"}},{"$f":"IF(HLOOKUP(PJ!$D$16,'Données (Défauts, Talents)'!$D$2:$T$79,ROW($B65)-1,FALSE)=\"/2\",ROUNDUP($C65/2,0),$C65+HLOOKUP(PJ!$D$16,'Données (Défauts, Talents)'!$D$2:$T$79,ROW($B65)-1,FALSE))","v":{"$error":"#N/A"}},-5,{"$f":"IF(HLOOKUP(PJ!$D$16,'Données (Défauts, Talents)'!$D$2:$T$79,ROW($B65)-1,FALSE)=\"/2\",$W65*2,IF(HLOOKUP(PJ!$D$16,'Données (Défauts, Talents)'!$D$2:$T$79,ROW($B65)-1,FALSE)=\"+5\",0,$W65))","v":{"$error":"#N/A"}},"Le personnage est sujet à une peur panique des souris. Si le personnage est en contact avec ce qui lui fait peur, il doit réussir un jet de INx5% pour ne pas s'enfuir immédiatement."]
[{"$f":"_xlfn.IFNA(MATCH(U66,PJ!$D$22:$D$27,0),0)","v":0},"Mysophobie",20,null,null,null,null,null,null,null,null,null,null,"+5",null,null,null,null,null,null,{"$f":"B66&\" (\"&C66&HLOOKUP(PJ!$D$16,'Données (Défauts, Talents)'!$D$2:$T$79,ROW(B66)-1,FALSE)&\")\"&IF(X66<>0,\" PP\" &X66,\"\")","v":{"$error":"#N/A"}},{"$f":"IF(HLOOKUP(PJ!$D$16,'Données (Défauts, Talents)'!$D$2:$T$79,ROW($B66)-1,FALSE)=\"/2\",ROUNDUP($C66/2,0),$C66+HLOOKUP(PJ!$D$16,'Données (Défauts, Talents)'!$D$2:$T$79,ROW($B66)-1,FALSE))","v":{"$error":"#N/A"}},-5,{"$f":"IF(HLOOKUP(PJ!$D$16,'Données (Défauts, Talents)'!$D$2:$T$79,ROW($B66)-1,FALSE)=\"/2\",$W66*2,IF(HLOOKUP(PJ!$D$16,'Données (Défauts, Talents)'!$D$2:$T$79,ROW($B66)-1,FALSE)=\"+5\",0,$W66))","v":{"$error":"#N/A"}},"Le personnage est sujet à une peur panique de la contamination. Si le personnage est en contact avec ce qui lui fait peur, il doit réussir un jet de INx5% pour ne pas s'enfuir immédiatement."]
[{"$f":"_xlfn.IFNA(MATCH(U67,PJ!$D$22:$D$27,0),0)","v":0},"Néophobie",10,null,null,null,null,null,null,null,null,null,null,"+5",null,null,null,null,null,null,{"$f":"B67&\" (\"&C67&HLOOKUP(PJ!$D$16,'Données (Défauts, Talents)'!$D$2:$T$79,ROW(B67)-1,FALSE)&\")\"&IF(X67<>0,\" PP\" &X67,\"\")","v":{"$error":"#N/A"}},{"$f":"IF(HLOOKUP(PJ!$D$16,'Données (Défauts, Talents)'!$D$2:$T$79,ROW($B67)-1,FALSE)=\"/2\",ROUNDUP($C67/2,0),$C67+HLOOKUP(PJ!$D$16,'Données (Défauts, Talents)'!$D$2:$T$79,ROW($B67)-1,FALSE))","v":{"$error":"#N/A"}},-5,{"$f":"IF(HLOOKUP(PJ!$D$16,'Données (Défauts, Talents)'!$D$2:$T$79,ROW($B67)-1,FALSE)=\"/2\",$W67*2,IF(HLOOKUP(PJ!$D$16,'Données (Défauts, Talents)'!$D$2:$T$79,ROW($B67)-1,FALSE)=\"+5\",0,$W67))","v":{"$error":"#N/A"}},"Le personnage est sujet à une peur panique des choses nouvelles. Si le personnage est en contact avec ce qui lui fait peur, il doit réussir un jet de INx5% pour ne pas s'enfuir immédiatement."]
[{"$f":"_xlfn.IFNA(MATCH(U68,PJ!$D$22:$D$27,0),0)","v":0},"Nyctophobie",20,null,null,null,null,null,null,null,null,null,null,"+5",null,null,null,null,null,null,{"$f":"B68&\" (\"&C68&HLOOKUP(PJ!$D$16,'Données (Défauts, Talents)'!$D$2:$T$79,ROW(B68)-1,FALSE)&\")\"&IF(X68<>0,\" PP\" &X68,\"\")","v":{"$error":"#N/A"}},{"$f":"IF(HLOOKUP(PJ!$D$16,'Données (Défauts, Talents)'!$D$2:$T$79,ROW($B68)-1,FALSE)=\"/2\",ROUNDUP($C68/2,0),$C68+HLOOKUP(PJ!$D$16,'Données (Défauts, Talents)'!$D$2:$T$79,ROW($B68)-1,FALSE))","v":{"$error":"#N/A"}},-5,{"$f":"IF(HLOOKUP(PJ!$D$16,'Données (Défauts, Talents)'!$D$2:$T$79,ROW($B68)-1,FALSE)=\"/2\",$W68*2,IF(HLOOKUP(PJ!$D$16,'Données (Défauts, Talents)'!$D$2:$T$79,ROW($B68)-1,FALSE)=\"+5\",0,$W68))","v":{"$error":"#N/A"}},"Le personnage est sujet à une peur panique de la nuit. Un tel personnage en peut choisir le talent spécial \"Combat nocturne\". Si le personnage est en contact avec ce qui lui fait peur, il doit réussir un jet de INx5% pour ne pas s'enfuir immédiatement."]
[{"$f":"_xlfn.IFNA(MATCH(U69,PJ!$D$22:$D$27,0),0)","v":0},"Ophidiophobie",5,null,null,null,null,null,null,null,null,null,null,"+5",null,null,null,null,null,null,{"$f":"B69&\" (\"&C69&HLOOKUP(PJ!$D$16,'Données (Défauts, Talents)'!$D$2:$T$79,ROW(B69)-1,FALSE)&\")\"&IF(X69<>0,\" PP\" &X69,\"\")","v":{"$error":"#N/A"}},{"$f":"IF(HLOOKUP(PJ!$D$16,'Données (Défauts, Talents)'!$D$2:$T$79,ROW($B69)-1,FALSE)=\"/2\",ROUNDUP($C69/2,0),$C69+HLOOKUP(PJ!$D$16,'Données (Défauts, Talents)'!$D$2:$T$79,ROW($B69)-1,FALSE))","v":{"$error":"#N/A"}},-5,{"$f":"IF(HLOOKUP(PJ!$D$16,'Données (Défauts, Talents)'!$D$2:$T$79,ROW($B69)-1,FALSE)=\"/2\",$W69*2,IF(HLOOKUP(PJ!$D$16,'Données (Défauts, Talents)'!$D$2:$T$79,ROW($B69)-1,FALSE)=\"+5\",0,$W69))","v":{"$error":"#N/A"}},"Le personnage est sujet à une peur panique des serpents. Si le personnage est en contact avec ce qui lui fait peur, il doit réussir un jet de INx5% pour ne pas s'enfuir immédiatement."]
[{"$f":"_xlfn.IFNA(MATCH(U70,PJ!$D$22:$D$27,0),0)","v":0},"Photophobie",35,null,null,null,null,null,null,null,null,null,null,"+5",null,null,null,null,null,null,{"$f":"B70&\" (\"&C70&HLOOKUP(PJ!$D$16,'Données (Défauts, Talents)'!$D$2:$T$79,ROW(B70)-1,FALSE)&\")\"&IF(X70<>0,\" PP\" &X70,\"\")","v":{"$error":"#N/A"}},{"$f":"IF(HLOOKUP(PJ!$D$16,'Données (Défauts, Talents)'!$D$2:$T$79,ROW($B70)-1,FALSE)=\"/2\",ROUNDUP($C70/2,0),$C70+HLOOKUP(PJ!$D$16,'Données (Défauts, Talents)'!$D$2:$T$79,ROW($B70)-1,FALSE))","v":{"$error":"#N/A"}},-5,{"$f":"IF(HLOOKUP(PJ!$D$16,'Données (Défauts, Talents)'!$D$2:$T$79,ROW($B70)-1,FALSE)=\"/2\",$W70*2,IF(HLOOKUP(PJ!$D$16,'Données (Défauts, Talents)'!$D$2:$T$79,ROW($B70)-1,FALSE)=\"+5\",0,$W70))","v":{"$error":"#N/A"}},"Le personnage est sujet à une peur panique de la lumière. Si le personnage est en contact avec ce qui lui fait peur, il doit réussir un jet de INx5% pour ne pas s'enfuir immédiatement."]
[{"$f":"_xlfn.IFNA(MATCH(U71,PJ!$D$22:$D$27,0),0)","v":0},"Sitophobie",25,null,null,null,null,null,null,null,null,null,null,"+5",null,null,null,null,null,null,{"$f":"IF(A7<>0,\"\",B71&\" (\"&C71&HLOOKUP(PJ!$D$16,'Données (Défauts, Talents)'!$D$2:$T$79,ROW(B71)-1,FALSE)&\")\"&IF(X71<>0,\" PP\" &X71,\"\"))","v":{"$error":"#N/A"}},{"$f":"IF(HLOOKUP(PJ!$D$16,'Données (Défauts, Talents)'!$D$2:$T$79,ROW($B71)-1,FALSE)=\"/2\",ROUNDUP($C71/2,0),$C71+HLOOKUP(PJ!$D$16,'Données (Défauts, Talents)'!$D$2:$T$79,ROW($B71)-1,FALSE))","v":{"$error":"#N/A"}},-5,{"$f":"IF(HLOOKUP(PJ!$D$16,'Données (Défauts, Talents)'!$D$2:$T$79,ROW($B71)-1,FALSE)=\"/2\",$W71*2,IF(HLOOKUP(PJ!$D$16,'Données (Défauts, Talents)'!$D$2:$T$79,ROW($B71)-1,FALSE)=\"+5\",0,$W71))","v":{"$error":"#N/A"}},"Le personnage est sujet à une peur panique de manger. Le personnage ne peut être boulimique. Si le personnage est en contact avec ce qui lui fait peur, il doit réussir un jet de INx5% pour ne pas s'enfuir immédiatement."]
[{"$f":"_xlfn.IFNA(MATCH(U72,PJ!$D$22:$D$27,0),0)","v":0},"Thanophobie",20,null,null,null,null,null,null,null,null,null,null,"+5",null,null,null,null,null,null,{"$f":"B72&\" (\"&C72&HLOOKUP(PJ!$D$16,'Données (Défauts, Talents)'!$D$2:$T$79,ROW(B72)-1,FALSE)&\")\"&IF(X72<>0,\" PP\" &X72,\"\")","v":{"$error":"#N/A"}},{"$f":"IF(HLOOKUP(PJ!$D$16,'Données (Défauts, Talents)'!$D$2:$T$79,ROW($B72)-1,FALSE)=\"/2\",ROUNDUP($C72/2,0),$C72+HLOOKUP(PJ!$D$16,'Données (Défauts, Talents)'!$D$2:$T$79,ROW($B72)-1,FALSE))","v":{"$error":"#N/A"}},-5,{"$f":"IF(HLOOKUP(PJ!$D$16,'Données (Défauts, Talents)'!$D$2:$T$79,ROW($B72)-1,FALSE)=\"/2\",$W72*2,IF(HLOOKUP(PJ!$D$16,'Données (Défauts, Talents)'!$D$2:$T$79,ROW($B72)-1,FALSE)=\"+5\",0,$W72))","v":{"$error":"#N/A"}},"Le personnage est sujet à une peur panique de mourir. Si le personnage est en contact avec ce qui lui fait peur, il doit réussir un jet de INx5% pour ne pas s'enfuir immédiatement."]
[{"$f":"_xlfn.IFNA(MATCH(U73,PJ!$D$22:$D$27,0),0)","v":0},"Toxicophobie",20,null,null,null,null,null,null,null,null,null,null,"+5",null,null,null,null,null,null,{"$f":"B73&\" (\"&C73&HLOOKUP(PJ!$D$16,'Données (Défauts, Talents)'!$D$2:$T$79,ROW(B73)-1,FALSE)&\")\"&IF(X73<>0,\" PP\" &X73,\"\")","v":{"$error":"#N/A"}},{"$f":"IF(HLOOKUP(PJ!$D$16,'Données (Défauts, Talents)'!$D$2:$T$79,ROW($B73)-1,FALSE)=\"/2\",ROUNDUP($C73/2,0),$C73+HLOOKUP(PJ!$D$16,'Données (Défauts, Talents)'!$D$2:$T$79,ROW($B73)-1,FALSE))","v":{"$error":"#N/A"}},-5,{"$f":"IF(HLOOKUP(PJ!$D$16,'Données (Défauts, Talents)'!$D$2:$T$79,ROW($B73)-1,FALSE)=\"/2\",$W73*2,IF(HLOOKUP(PJ!$D$16,'Données (Défauts, Talents)'!$D$2:$T$79,ROW($B73)-1,FALSE)=\"+5\",0,$W73))","v":{"$error":"#N/A"}},"Le personnage est sujet à une peur panique d'être empoisonné. Si le personnage est en contact avec ce qui lui fait peur, il doit réussir un jet de INx5% pour ne pas s'enfuir immédiatement."]
[{"$f":"_xlfn.IFNA(MATCH(U74,PJ!$D$22:$D$27,0),0)","v":0},"Vroumophobie",40,null,"+5",null,null,null,null,null,null,null,null,"+5",null,null,null,null,null,null,{"$f":"B74&\" (\"&C74&HLOOKUP(PJ!$D$16,'Données (Défauts, Talents)'!$D$2:$T$79,ROW(B74)-1,FALSE)&\")\"&IF(X74<>0,\" PP\" &X74,\"\")","v":{"$error":"#N/A"}},{"$f":"IF(HLOOKUP(PJ!$D$16,'Données (Défauts, Talents)'!$D$2:$T$79,ROW($B74)-1,FALSE)=\"/2\",ROUNDUP($C74/2,0),$C74+HLOOKUP(PJ!$D$16,'Données (Défauts, Talents)'!$D$2:$T$79,ROW($B74)-1,FALSE))","v":{"$error":"#N/A"}},-5,{"$f":"IF(HLOOKUP(PJ!$D$16,'Données (Défauts, Talents)'!$D$2:$T$79,ROW($B74)-1,FALSE)=\"/2\",$W74*2,IF(HLOOKUP(PJ!$D$16,'Données (Défauts, Talents)'!$D$2:$T$79,ROW($B74)-1,FALSE)=\"+5\",0,$W74))","v":{"$error":"#N/A"}},"Le personnage est sujet à une peur panique des véhicules à moteur. Si le personnage est en contact avec ce qui lui fait peur, il doit réussir un jet de INx5% pour ne pas s'enfuir immédiatement."]
[{"$f":"_xlfn.IFNA(MATCH(U75,PJ!$D$22:$D$27,0),0)","v":0},"Xénophobie",5,null,null,null,null,null,null,null,null,null,null,"+5",null,null,null,null,null,null,{"$f":"B75&\" (\"&C75&HLOOKUP(PJ!$D$16,'Données (Défauts, Talents)'!$D$2:$T$79,ROW(B75)-1,FALSE)&\")\"&IF(X75<>0,\" PP\" &X75,\"\")","v":{"$error":"#N/A"}},{"$f":"IF(HLOOKUP(PJ!$D$16,'Données (Défauts, Talents)'!$D$2:$T$79,ROW($B75)-1,FALSE)=\"/2\",ROUNDUP($C75/2,0),$C75+HLOOKUP(PJ!$D$16,'Données (Défauts, Talents)'!$D$2:$T$79,ROW($B75)-1,FALSE))","v":{"$error":"#N/A"}},-5,{"$f":"IF(HLOOKUP(PJ!$D$16,'Données (Défauts, Talents)'!$D$2:$T$79,ROW($B75)-1,FALSE)=\"/2\",$W75*2,IF(HLOOKUP(PJ!$D$16,'Données (Défauts, Talents)'!$D$2:$T$79,ROW($B75)-1,FALSE)=\"+5\",0,$W75))","v":{"$error":"#N/A"}},"Le personnage est sujet à une peur panique des étrangers. Si le personnage est en contact avec ce qui lui fait peur, il doit réussir un jet de INx5% pour ne pas s'enfuir immédiatement."]
[{"$f":"_xlfn.IFNA(MATCH(U76,PJ!$D$22:$D$27,0),0)","v":0},"Zoophobie",20,null,null,null,null,null,null,null,null,null,null,"+5",null,null,null,null,null,null,{"$f":"B76&\" (\"&IF(A5<>0,C76-10,C76)&HLOOKUP(PJ!$D$16,'Données (Défauts, Talents)'!$D$2:$T$79,ROW(B76)-1,FALSE)&\")\"&IF(X76<>0,\" PP\" &X76,\"\")","v":{"$error":"#N/A"}},{"$f":"IF(HLOOKUP(PJ!$D$16,'Données (Défauts, Talents)'!$D$2:$T$79,ROW($B76)-1,FALSE)=\"/2\",ROUNDUP($C76/2,0),$C76+HLOOKUP(PJ!$D$16,'Données (Défauts, Talents)'!$D$2:$T$79,ROW($B76)-1,FALSE))","v":{"$error":"#N/A"}},-5,{"$f":"IF(HLOOKUP(PJ!$D$16,'Données (Défauts, Talents)'!$D$2:$T$79,ROW($B76)-1,FALSE)=\"/2\",$W76*2,IF(HLOOKUP(PJ!$D$16,'Données (Défauts, Talents)'!$D$2:$T$79,ROW($B76)-1,FALSE)=\"+5\",0,$W76))","v":{"$error":"#N/A"}},"Le personnage est sujet à une peur panique des animaux. Si le personnage est en contact avec ce qui lui fait peur, il doit réussir un jet de INx5% pour ne pas s'enfuir immédiatement."]
[{"$f":"_xlfn.IFNA(MATCH(U77,PJ!$D$22:$D$27,0),0)","v":0},"Réservé",10,null,null,null,null,null,null,"+5","+5",null,"/2","+5",null,null,null,"+5","/2",null,{"$f":"B77&\" (\"&C77&HLOOKUP(PJ!$D$16,'Données (Défauts, Talents)'!$D$2:$T$79,ROW(B77)-1,FALSE)&\")\"&IF(X77<>0,\" PP\" &X77,\"\")","v":{"$error":"#N/A"}},{"$f":"IF(HLOOKUP(PJ!$D$16,'Données (Défauts, Talents)'!$D$2:$T$79,ROW($B77)-1,FALSE)=\"/2\",ROUNDUP($C77/2,0),$C77+HLOOKUP(PJ!$D$16,'Données (Défauts, Talents)'!$D$2:$T$79,ROW($B77)-1,FALSE))","v":{"$error":"#N/A"}},null,{"$f":"IF(HLOOKUP(PJ!$D$16,'Données (Défauts, Talents)'!$D$2:$T$79,ROW($B77)-1,FALSE)=\"/2\",$W77*2,IF(HLOOKUP(PJ!$D$16,'Données (Défauts, Talents)'!$D$2:$T$79,ROW($B77)-1,FALSE)=\"+5\",0,$W77))","v":{"$error":"#N/A"}},"Le joueur ne doit pas prononcer plus de cinq mots à la suite, sauf s'il donne des ordres au maître du jeu ayant rapport aux actions de son personnage. Il subit un malus de 20% au marchandage.",null,null,null,null,null,-20]
[{"$f":"_xlfn.IFNA(MATCH(U78,PJ!$D$22:$D$27,0),0)","v":0},"Sourd",20,null,null,null,"+5",null,null,null,null,null,null,"+5",null,"/2",null,null,"/2",null,{"$f":"B78&\" (\"&C78&HLOOKUP(PJ!$D$16,'Données (Défauts, Talents)'!$D$2:$T$79,ROW(B78)-1,FALSE)&\")\"&IF(X78<>0,\" PP\" &X78,\"\")","v":{"$error":"#N/A"}},{"$f":"IF(HLOOKUP(PJ!$D$16,'Données (Défauts, Talents)'!$D$2:$T$79,ROW($B78)-1,FALSE)=\"/2\",ROUNDUP($C78/2,0),$C78+HLOOKUP(PJ!$D$16,'Données (Défauts, Talents)'!$D$2:$T$79,ROW($B78)-1,FALSE))","v":{"$error":"#N/A"}},null,{"$f":"IF(HLOOKUP(PJ!$D$16,'Données (Défauts, Talents)'!$D$2:$T$79,ROW($B78)-1,FALSE)=\"/2\",$W78*2,IF(HLOOKUP(PJ!$D$16,'Données (Défauts, Talents)'!$D$2:$T$79,ROW($B78)-1,FALSE)=\"+5\",0,$W78))","v":{"$error":"#N/A"}},"Le joueur ne doit pas écouter ce que disent les autres. Le personnage subit un malus de 10% a la séduction et de 40% au marchandage.",null,null,null,null,null,-40,null,null,null,null,-10]
[{"$f":"_xlfn.IFNA(MATCH(U79,PJ!$D$22:$D$27,0),0)","v":0},"Vieux",15,"/2",null,"-1000","+5",null,"+5","+5","+5",null,null,"+5",null,null,null,null,"+5","+5",{"$f":"B79&\" (\"&C79&HLOOKUP(PJ!$D$16,'Données (Défauts, Talents)'!$D$2:$T$79,ROW(B79)-1,FALSE)&\")\"&IF(X79<>0,\" PP\" &X79,\"\")","v":{"$error":"#N/A"}},{"$f":"IF(HLOOKUP(PJ!$D$16,'Données (Défauts, Talents)'!$D$2:$T$79,ROW($B79)-1,FALSE)=\"/2\",ROUNDUP($C79/2,0),$C79+HLOOKUP(PJ!$D$16,'Données (Défauts, Talents)'!$D$2:$T$79,ROW($B79)-1,FALSE))","v":{"$error":"#N/A"}},null,{"$f":"IF(HLOOKUP(PJ!$D$16,'Données (Défauts, Talents)'!$D$2:$T$79,ROW($B79)-1,FALSE)=\"/2\",$W79*2,IF(HLOOKUP(PJ!$D$16,'Données (Défauts, Talents)'!$D$2:$T$79,ROW($B79)-1,FALSE)=\"+5\",0,$W79))","v":{"$error":"#N/A"}},"Le personnage débute le jeu entre 35 et 40 ans. Il réduit sa force et son endurance de deux points avec toutes les modifications qui en résultent. Il ne peut pas posséder le talent Jeune.",null,null,null,null,null,null,null,null,null,null,null,null,null,null,-2,-2]
[null,"Talents spéciaux","PPe ","Amazones","Conf. Serpent","Enfants","Conservateurs","Fils du métal","Fermiers","Guerisseurs","Garagistes","Skinheads","Punks","Yankees","Vikings","Indiens","Hell's Angels","Mercenaires","Marchands","Justiciers","Affichage","PPe ajustés","PP","PP ajustés","Explication","Acrobatie","Combat","Conduite","Discrétion","Lancer","Marchandage","Mécanique","Premiers Soins","Repérage","Résistance","Séduction","Tir","Agilité","Beauté","Endurance","Force","Intelligence","Perception","Precision","Rapidité","Acrobatie","Combat","Conduite","Discrétion","Lancer","Marchandage","Mécanique","Premiers Soins","Repérage","Résistance","Séduction","Tir"]
[{"$f":"_xlfn.IFNA(MATCH(U81,PJ!$C$48:$C$53,0),0)","v":0},"Agriculture et élevage",-10,null,null,null,"*2","*2","+5",null,null,null,"*2",null,"*2",null,null,"*2",null,null,{"$f":"B81&\" (\"&C81&HLOOKUP(PJ!$D$16,'Données (Défauts, Talents)'!$D$80:$T$124,ROW(B81)-79,FALSE)&\")\"&IF(X81<>0,\" PP+\" &X81,\"\")&\" [+\"&BG81&\"%]\"","v":{"$error":"#N/A"}},{"$f":"IF(HLOOKUP(PJ!$D$16,'Données (Défauts, Talents)'!$D$80:$T$124,ROW($B81)-79,FALSE)=\"*2\",$C81*2,$C81+HLOOKUP(PJ!$D$16,'Données (Défauts, Talents)'!$D$80:$T$124,ROW($B81)-79,FALSE))","v":{"$error":"#N/A"}},15,{"$f":"IF(AND(HLOOKUP(PJ!$D$16,'Données (Défauts, Talents)'!$D$80:$T$124,ROW($B81)-79,FALSE)=\"+5\",$W81<>0),$W81+10,IF(AND(HLOOKUP(PJ!$D$16,'Données (Défauts, Talents)'!$D$80:$T$124,ROW($B81)-79,FALSE)=\"*2\",$W81<>0),$W81-5,$W81))","v":{"$error":"#N/A"}},"Ce talent permet au personnage de faire pousser des légumes, des céréales et d'élever des animaux qui lui fournissent de la nourriture.",null,null,null,null,null,null,null,null,null,null,null,null,null,null,null,null,null,null,null,null,null,null,null,null,null,null,null,null,null,null,null,null,null,40,{"$f":"IF(A81=0,BG81,0)","v":40},{"$f":"PJ!W16","v":5}]
[{"$f":"_xlfn.IFNA(MATCH(U82,PJ!$C$48:$C$53,0),0)","v":0},"Amitié",-50,null,null,"*2","*2","*2",null,"+5",null,null,null,"*2",null,null,null,null,null,null,{"$f":"B82&\" (\"&C82&HLOOKUP(PJ!$D$16,'Données (Défauts, Talents)'!$D$80:$T$124,ROW(B82)-79,FALSE)&\")\"&IF(X82<>0,\" PP+\" &X82,\"\")&\" [+\"&BG82&\"%]\"","v":{"$error":"#N/A"}},{"$f":"IF(HLOOKUP(PJ!$D$16,'Données (Défauts, Talents)'!$D$80:$T$124,ROW($B82)-79,FALSE)=\"*2\",$C82*2,$C82+HLOOKUP(PJ!$D$16,'Données (Défauts, Talents)'!$D$80:$T$124,ROW($B82)-79,FALSE))","v":{"$error":"#N/A"}},null,{"$f":"IF(AND(HLOOKUP(PJ!$D$16,'Données (Défauts, Talents)'!$D$80:$T$124,ROW($B82)-79,FALSE)=\"+5\",$W82<>0),$W82+10,IF(AND(HLOOKUP(PJ!$D$16,'Données (Défauts, Talents)'!$D$80:$T$124,ROW($B82)-79,FALSE)=\"*2\",$W82<>0),$W82-5,$W82))","v":{"$error":"#N/A"}},"Il ne s'agit pas d'un talent à part entière. Le personnage possède un ami auquel il est très lié. Cet ami est prêt à l'aider et peut tirer de bien des mauvais pas. Il apparaît quand le personnage a besoin de lui. Cet ami doit être créé par le maître du jeu en accord avec le joueur.",null,null,null,null,null,null,null,null,null,null,null,null,null,null,null,null,null,null,null,null,null,null,null,null,null,null,null,null,null,null,null,null,null,10,10,{"$f":"PJ!W17","v":5}]
[{"$f":"_xlfn.IFNA(MATCH(U83,PJ!$C$48:$C$53,0),0)","v":0},"Camouflage",-25,"+5","+5",null,"*2",null,null,"+5",null,null,"+5",null,null,"+5",null,null,null,null,{"$f":"B83&\" (\"&C83&HLOOKUP(PJ!$D$16,'Données (Défauts, Talents)'!$D$80:$T$124,ROW(B83)-79,FALSE)&\")\"&IF(X83<>0,\" PP+\" &X83,\"\")&\" [+\"&BG83&\"%]\"","v":{"$error":"#N/A"}},{"$f":"IF(HLOOKUP(PJ!$D$16,'Données (Défauts, Talents)'!$D$80:$T$124,ROW($B83)-79,FALSE)=\"*2\",$C83*2,$C83+HLOOKUP(PJ!$D$16,'Données (Défauts, Talents)'!$D$80:$T$124,ROW($B83)-79,FALSE))","v":{"$error":"#N/A"}},null,{"$f":"IF(AND(HLOOKUP(PJ!$D$16,'Données (Défauts, Talents)'!$D$80:$T$124,ROW($B83)-79,FALSE)=\"+5\",$W83<>0),$W83+10,IF(AND(HLOOKUP(PJ!$D$16,'Données (Défauts, Talents)'!$D$80:$T$124,ROW($B83)-79,FALSE)=\"*2\",$W83<>0),$W83-5,$W83))","v":{"$error":"#N/A"}},"Ce talent permet au personnage de diminuer le talent de repérage d'un adversaire qui le cherche. Pour ce faire, il faut que le personnage se soit préparé pendant 10-IN tours et qu'il dispose des matériaux adéquats. Le malus au repérage est de IN+PEx3%.",null,null,null,null,null,null,null,null,null,null,null,null,null,null,null,null,null,null,null,null,null,null,null,null,null,null,null,null,null,null,null,null,null,20,20,{"$f":"PJ!W18","v":5}]
[{"$f":"_xlfn.IFNA(MATCH(U84,PJ!$C$48:$C$53,0),0)","v":0},"Célébrité",-10,null,null,null,"+5",null,null,"+5",null,"+5",null,"*2",null,null,null,null,"+5","+5",{"$f":"B84&\" (\"&C84&HLOOKUP(PJ!$D$16,'Données (Défauts, Talents)'!$D$80:$T$124,ROW(B84)-79,FALSE)&\")\"&IF(X84<>0,\" PP+\" &X84,\"\")&\" [+\"&BG84&\"%]\"","v":{"$error":"#N/A"}},{"$f":"IF(HLOOKUP(PJ!$D$16,'Données (Défauts, Talents)'!$D$80:$T$124,ROW($B84)-79,FALSE)=\"*2\",$C84*2,$C84+HLOOKUP(PJ!$D$16,'Données (Défauts, Talents)'!$D$80:$T$124,ROW($B84)-79,FALSE))","v":{"$error":"#N/A"}},30,{"$f":"IF(AND(HLOOKUP(PJ!$D$16,'Données (Défauts, Talents)'!$D$80:$T$124,ROW($B84)-79,FALSE)=\"+5\",$W84<>0),$W84+10,IF(AND(HLOOKUP(PJ!$D$16,'Données (Défauts, Talents)'!$D$80:$T$124,ROW($B84)-79,FALSE)=\"*2\",$W84<>0),$W84-5,$W84))","v":{"$error":"#N/A"}},"Ce talent ne fait que rajouter 30 points de prestige au personnage et ne sert vraiment à rien d'autre.",null,null,null,null,null,null,null,null,null,null,null,null,null,null,null,null,null,null,null,null,null,null,null,null,null,null,null,null,null,null,null,null,null,40,40,{"$f":"PJ!W19","v":5}]
[{"$f":"_xlfn.IFNA(MATCH(U85,PJ!$C$48:$C$53,0),0)","v":0},"Chance",-40,null,null,null,"*2",null,null,null,null,null,null,"+5",null,null,null,null,null,null,{"$f":"B85&\" (\"&C85&HLOOKUP(PJ!$D$16,'Données (Défauts, Talents)'!$D$80:$T$124,ROW(B85)-79,FALSE)&\")\"&IF(X85<>0,\" PP+\" &X85,\"\")&\" [+\"&BG85&\"%]\"","v":{"$error":"#N/A"}},{"$f":"IF(HLOOKUP(PJ!$D$16,'Données (Défauts, Talents)'!$D$80:$T$124,ROW($B85)-79,FALSE)=\"*2\",$C85*2,$C85+HLOOKUP(PJ!$D$16,'Données (Défauts, Talents)'!$D$80:$T$124,ROW($B85)-79,FALSE))","v":{"$error":"#N/A"}},null,{"$f":"IF(AND(HLOOKUP(PJ!$D$16,'Données (Défauts, Talents)'!$D$80:$T$124,ROW($B85)-79,FALSE)=\"+5\",$W85<>0),$W85+10,IF(AND(HLOOKUP(PJ!$D$16,'Données (Défauts, Talents)'!$D$80:$T$124,ROW($B85)-79,FALSE)=\"*2\",$W85<>0),$W85-5,$W85))","v":{"$error":"#N/A"}},"Le joueur peut une fois toutes les deux heures (en temps réel) demander au maître du jeu de relancer un jet de dé. Si le deuxième résultat est plus avantageux que le premierpour le personnage, le maître du jeu estimera que le premier jet n'a jamais existé et ne tiendra compte que du deuxième, avec toutes les conséquences qui en découlent.",null,null,null,null,null,null,null,null,null,null,null,null,null,null,null,null,null,null,null,null,null,null,null,null,null,null,null,null,null,null,null,null,null,30,30,{"$f":"PJ!W20","v":5}]
[{"$f":"_xlfn.IFNA(MATCH(U86,PJ!$C$48:$C$53,0),0)","v":0},"Combat motorisé",-40,null,"*1000",null,"*2","+5",null,"*2",null,null,null,null,null,null,"+5","+5",null,null,{"$f":"B86&\" (\"&C86&HLOOKUP(PJ!$D$16,'Données (Défauts, Talents)'!$D$80:$T$124,ROW(B86)-79,FALSE)&\")\"&IF(X86<>0,\" PP+\" &X86,\"\")&\" [+\"&BG86&\"%]\"","v":{"$error":"#N/A"}},{"$f":"IF(HLOOKUP(PJ!$D$16,'Données (Défauts, Talents)'!$D$80:$T$124,ROW($B86)-79,FALSE)=\"*2\",$C86*2,$C86+HLOOKUP(PJ!$D$16,'Données (Défauts, Talents)'!$D$80:$T$124,ROW($B86)-79,FALSE))","v":{"$error":"#N/A"}},null,{"$f":"IF(AND(HLOOKUP(PJ!$D$16,'Données (Défauts, Talents)'!$D$80:$T$124,ROW($B86)-79,FALSE)=\"+5\",$W86<>0),$W86+10,IF(AND(HLOOKUP(PJ!$D$16,'Données (Défauts, Talents)'!$D$80:$T$124,ROW($B86)-79,FALSE)=\"*2\",$W86<>0),$W86-5,$W86))","v":{"$error":"#N/A"}},"Ce talent permet d'augmenter tous les talents suivants de 20%, mais seulement lors d'un combat motorisé : Conduite, Repérage et Tir",null,null,null,null,null,null,null,null,null,null,null,null,null,null,null,null,null,null,null,null,null,null,20,null,null,null,null,null,20,null,null,20,null,30,30,{"$f":"PJ!W21","v":5}]
[{"$f":"_xlfn.IFNA(MATCH(U87,PJ!$C$48:$C$53,0),0)","v":0},"Combat nocturne",-40,"+5","+5","+5","*2",null,null,"*2",null,null,"+5","+5",null,"*2",null,"+5","*2",null,{"$f":"B87&\" (\"&C87&HLOOKUP(PJ!$D$16,'Données (Défauts, Talents)'!$D$80:$T$124,ROW(B87)-79,FALSE)&\")\"&IF(X87<>0,\" PP+\" &X87,\"\")&\" [+\"&BG87&\"%]\"","v":{"$error":"#N/A"}},{"$f":"IF(A68<>0,\"\",IF(HLOOKUP(PJ!$D$16,'Données (Défauts, Talents)'!$D$80:$T$124,ROW($B87)-79,FALSE)=\"*2\",$C87*2,$C87+HLOOKUP(PJ!$D$16,'Données (Défauts, Talents)'!$D$80:$T$124,ROW($B87)-79,FALSE)))","v":{"$error":"#N/A"}},null,{"$f":"IF(AND(HLOOKUP(PJ!$D$16,'Données (Défauts, Talents)'!$D$80:$T$124,ROW($B87)-79,FALSE)=\"+5\",$W87<>0),$W87+10,IF(AND(HLOOKUP(PJ!$D$16,'Données (Défauts, Talents)'!$D$80:$T$124,ROW($B87)-79,FALSE)=\"*2\",$W87<>0),$W87-5,$W87))","v":{"$error":"#N/A"}},"Ce talent permet d'augmenter les talents suivants de 10% lors des rencontres nocturnes : Repérage, Tir, Acrobatie, Combat, Discrétion et Lancer. Lorsqu'un personnage est confronté à une source de lumière et que celle-ci est assez puissante pour annuler les malus de conduite et/ou de tir, les bonus accordés par le talent \"combat nocturne\" sont alors annulés.",null,null,null,null,null,null,null,null,null,null,null,null,null,null,null,null,null,null,null,null,10,10,null,10,10,null,null,null,10,null,null,10,null,30,30,{"$f":"PJ!W22","v":5}]
[{"$f":"_xlfn.IFNA(MATCH(U88,PJ!$C$48:$C$53,0),0)","v":0},"Combat rural",-40,null,null,null,"*2",null,null,"*2",null,null,null,null,null,"+5",null,"+5","*2",null,{"$f":"B88&\" (\"&C88&HLOOKUP(PJ!$D$16,'Données (Défauts, Talents)'!$D$80:$T$124,ROW(B88)-79,FALSE)&\")\"&IF(X88<>0,\" PP+\" &X88,\"\")&\" [+\"&BG88&\"%]\"","v":{"$error":"#N/A"}},{"$f":"IF(A56<>0,\"\",IF(HLOOKUP(PJ!$D$16,'Données (Défauts, Talents)'!$D$80:$T$124,ROW($B88)-79,FALSE)=\"*2\",$C88*2,$C88+HLOOKUP(PJ!$D$16,'Données (Défauts, Talents)'!$D$80:$T$124,ROW($B88)-79,FALSE)))","v":{"$error":"#N/A"}},null,{"$f":"IF(AND(HLOOKUP(PJ!$D$16,'Données (Défauts, Talents)'!$D$80:$T$124,ROW($B88)-79,FALSE)=\"+5\",$W88<>0),$W88+10,IF(AND(HLOOKUP(PJ!$D$16,'Données (Défauts, Talents)'!$D$80:$T$124,ROW($B88)-79,FALSE)=\"*2\",$W88<>0),$W88-5,$W88))","v":{"$error":"#N/A"}},"Ce talent permet au personnage d'augmenter tous les talents suivants de 20% (seulement dans le cas d'une rencontre en milieu rural classique, et non pas en cavernes ou en montagnes) : Repérage, Tir, Combat, Discrétion et Lancer. On entend par milieu rural une situation se déroulant dans un espace naturel non bati, y compris les parcs situés en pleine ville.",null,null,null,null,null,null,null,null,null,null,null,null,null,null,null,null,null,null,null,null,20,20,null,20,20,null,null,null,20,null,null,20,null,30,30,{"$f":"PJ!W23","v":5}]
[{"$f":"_xlfn.IFNA(MATCH(U89,PJ!$C$48:$C$53,0),0)","v":0},"Combat sans armes",-20,null,null,null,"*2",null,null,"*2",null,null,null,null,"+5",null,"+5","+5",null,null,{"$f":"B89&\" (\"&C89&HLOOKUP(PJ!$D$16,'Données (Défauts, Talents)'!$D$80:$T$124,ROW(B89)-79,FALSE)&\")\"&IF(X89<>0,\" PP+\" &X89,\"\")&\" [+\"&BG89&\"%]\"","v":{"$error":"#N/A"}},{"$f":"IF(HLOOKUP(PJ!$D$16,'Données (Défauts, Talents)'!$D$80:$T$124,ROW($B89)-79,FALSE)=\"*2\",$C89*2,$C89+HLOOKUP(PJ!$D$16,'Données (Défauts, Talents)'!$D$80:$T$124,ROW($B89)-79,FALSE))","v":{"$error":"#N/A"}},null,{"$f":"IF(AND(HLOOKUP(PJ!$D$16,'Données (Défauts, Talents)'!$D$80:$T$124,ROW($B89)-79,FALSE)=\"+5\",$W89<>0),$W89+10,IF(AND(HLOOKUP(PJ!$D$16,'Données (Défauts, Talents)'!$D$80:$T$124,ROW($B89)-79,FALSE)=\"*2\",$W89<>0),$W89-5,$W89))","v":{"$error":"#N/A"}},"Ce talent augmente le pouventage de toutes les attaques sans armes de FOx4%.",null,null,null,null,null,null,null,null,null,null,null,null,null,null,null,null,null,null,null,null,null,{"$f":"PJ!I32*4","v":4},null,null,null,null,null,null,null,null,null,null,null,10,10,{"$f":"PJ!W24","v":5}]
[{"$f":"_xlfn.IFNA(MATCH(U90,PJ!$C$48:$C$53,0),0)","v":0},"Combat urbain",-30,null,null,null,"*2",null,"*2","*2",null,null,"+5",null,null,"*2",null,"+5","*2",null,{"$f":"IF(A52<>0,\"\",B90&\" (\"&C90&HLOOKUP(PJ!$D$16,'Données (Défauts, Talents)'!$D$80:$T$124,ROW(B90)-79,FALSE)&\")\"&IF(X90<>0,\" PP+\" &X90,\"\")&\" [+\"&BG90&\"%]\")","v":{"$error":"#N/A"}},{"$f":"IF(A52<>0,\"\",IF(HLOOKUP(PJ!$D$16,'Données (Défauts, Talents)'!$D$80:$T$124,ROW($B90)-79,FALSE)=\"*2\",$C90*2,$C90+HLOOKUP(PJ!$D$16,'Données (Défauts, Talents)'!$D$80:$T$124,ROW($B90)-79,FALSE)))","v":{"$error":"#N/A"}},null,{"$f":"IF(AND(HLOOKUP(PJ!$D$16,'Données (Défauts, Talents)'!$D$80:$T$124,ROW($B90)-79,FALSE)=\"+5\",$W90<>0),$W90+10,IF(AND(HLOOKUP(PJ!$D$16,'Données (Défauts, Talents)'!$D$80:$T$124,ROW($B90)-79,FALSE)=\"*2\",$W90<>0),$W90-5,$W90))","v":{"$error":"#N/A"}},"Ce talent permet au personnag d'augmenter tous les talents suivants de 10%, mais seulement dans le cas d'une rencontre en milieu urbain : Repérage, Tir, Acrobatie, Combat, Discrétion et Lancer. On entend par milieu urbain une situation ayant pour décor des bâtiments (même si ceux-ci se trouvent en rase-campagne).",null,null,null,null,null,null,null,null,null,null,null,null,null,null,null,null,null,null,null,null,10,10,null,10,10,null,null,null,10,null,null,10,null,30,30,{"$f":"PJ!W25","v":5}]
[{"$f":"_xlfn.IFNA(MATCH(U91,PJ!$C$48:$C$53,0),0)","v":0},"Commandement",-25,null,null,null,"*2",null,null,"*2",null,"+5","*2","*2","+5",null,null,"+5",null,null,{"$f":"B91&\" (\"&C91&HLOOKUP(PJ!$D$16,'Données (Défauts, Talents)'!$D$80:$T$124,ROW(B91)-79,FALSE)&\")\"&IF(X91<>0,\" PP+\" &X91,\"\")&\" [+\"&BG91&\"%]\"","v":{"$error":"#N/A"}},{"$f":"IF(HLOOKUP(PJ!$D$16,'Données (Défauts, Talents)'!$D$80:$T$124,ROW($B91)-79,FALSE)=\"*2\",$C91*2,$C91+HLOOKUP(PJ!$D$16,'Données (Défauts, Talents)'!$D$80:$T$124,ROW($B91)-79,FALSE))","v":{"$error":"#N/A"}},20,{"$f":"IF(AND(HLOOKUP(PJ!$D$16,'Données (Défauts, Talents)'!$D$80:$T$124,ROW($B91)-79,FALSE)=\"+5\",$W91<>0),$W91+10,IF(AND(HLOOKUP(PJ!$D$16,'Données (Défauts, Talents)'!$D$80:$T$124,ROW($B91)-79,FALSE)=\"*2\",$W91<>0),$W91-5,$W91))","v":{"$error":"#N/A"}},"Ce talent permet au personnage de diriger un nombre de personnes égal à son intelligence multiplié par 5. Il est bien évident qu'il ne peut s'agir que de PNJ.",null,null,null,null,null,null,null,null,null,null,null,null,null,null,null,null,null,null,null,null,null,null,null,null,null,null,null,null,null,null,null,null,null,20,20,{"$f":"PJ!W27","v":5}]
[{"$f":"_xlfn.IFNA(MATCH(U92,PJ!$C$48:$C$53,0),0)","v":0},"Conduite spécialisée",-10,null,"*1000",null,"*2","+5",null,null,"+5",null,null,null,"+5",null,"+5",null,null,null,{"$f":"B92&\" (\"&C92&HLOOKUP(PJ!$D$16,'Données (Défauts, Talents)'!$D$80:$T$124,ROW(B92)-79,FALSE)&\")\"&IF(X92<>0,\" PP+\" &X92,\"\")&\" [+\"&BG92&\"%]\"","v":{"$error":"#N/A"}},{"$f":"IF(HLOOKUP(PJ!$D$16,'Données (Défauts, Talents)'!$D$80:$T$124,ROW($B92)-79,FALSE)=\"*2\",$C92*2,$C92+HLOOKUP(PJ!$D$16,'Données (Défauts, Talents)'!$D$80:$T$124,ROW($B92)-79,FALSE))","v":{"$error":"#N/A"}},null,{"$f":"IF(AND(HLOOKUP(PJ!$D$16,'Données (Défauts, Talents)'!$D$80:$T$124,ROW($B92)-79,FALSE)=\"+5\",$W92<>0),$W92+10,IF(AND(HLOOKUP(PJ!$D$16,'Données (Défauts, Talents)'!$D$80:$T$124,ROW($B92)-79,FALSE)=\"*2\",$W92<>0),$W92-5,$W92))","v":{"$error":"#N/A"}},"Ce talent permet au personnage d'augmenter son talent de conduite de 20% pour un type de véhicule (moto ou grande voiture par exemple).",null,null,null,null,null,null,null,null,null,null,null,null,null,null,null,null,null,null,null,null,null,null,20,null,null,null,null,null,null,null,null,null,null,10,10,{"$f":"PJ!W30","v":5}]
[{"$f":"_xlfn.IFNA(MATCH(U93,PJ!$C$48:$C$53,0),0)","v":0},"Conduite sportive",-10,null,"*1000",null,"*2",null,null,"*2","+5",null,"+5",null,"*2","+5","+5",null,null,null,{"$f":"B93&\" (\"&C93&HLOOKUP(PJ!$D$16,'Données (Défauts, Talents)'!$D$80:$T$124,ROW(B93)-79,FALSE)&\")\"&IF(X93<>0,\" PP+\" &X93,\"\")&\" [+\"&BG93&\"%]\"","v":{"$error":"#N/A"}},{"$f":"IF(HLOOKUP(PJ!$D$16,'Données (Défauts, Talents)'!$D$80:$T$124,ROW($B93)-79,FALSE)=\"*2\",$C93*2,$C93+HLOOKUP(PJ!$D$16,'Données (Défauts, Talents)'!$D$80:$T$124,ROW($B93)-79,FALSE))","v":{"$error":"#N/A"}},null,{"$f":"IF(AND(HLOOKUP(PJ!$D$16,'Données (Défauts, Talents)'!$D$80:$T$124,ROW($B93)-79,FALSE)=\"+5\",$W93<>0),$W93+10,IF(AND(HLOOKUP(PJ!$D$16,'Données (Défauts, Talents)'!$D$80:$T$124,ROW($B93)-79,FALSE)=\"*2\",$W93<>0),$W93-5,$W93))","v":{"$error":"#N/A"}},"Ce talent permet d'augmenter son talent de conduite de 20% lors des jets ayant trait à l'accélération ou au freinage.",null,null,null,null,null,null,null,null,null,null,null,null,null,null,null,null,null,null,null,null,null,null,20,null,null,null,null,null,null,null,null,null,null,30,30,{"$f":"PJ!W32","v":5}]
[{"$f":"_xlfn.IFNA(MATCH(U94,PJ!$C$48:$C$53,0),0)","v":0},"Construction",-20,null,null,null,"*2",null,"+5",null,null,"+5","*2",null,null,"*2",null,null,null,null,{"$f":"B94&\" (\"&C94&HLOOKUP(PJ!$D$16,'Données (Défauts, Talents)'!$D$80:$T$124,ROW(B94)-79,FALSE)&\")\"&IF(X94<>0,\" PP+\" &X94,\"\")&\" [+\"&BG94&\"%]\"","v":{"$error":"#N/A"}},{"$f":"IF(HLOOKUP(PJ!$D$16,'Données (Défauts, Talents)'!$D$80:$T$124,ROW($B94)-79,FALSE)=\"*2\",$C94*2,$C94+HLOOKUP(PJ!$D$16,'Données (Défauts, Talents)'!$D$80:$T$124,ROW($B94)-79,FALSE))","v":{"$error":"#N/A"}},15,{"$f":"IF(AND(HLOOKUP(PJ!$D$16,'Données (Défauts, Talents)'!$D$80:$T$124,ROW($B94)-79,FALSE)=\"+5\",$W94<>0),$W94+10,IF(AND(HLOOKUP(PJ!$D$16,'Données (Défauts, Talents)'!$D$80:$T$124,ROW($B94)-79,FALSE)=\"*2\",$W94<>0),$W94-5,$W94))","v":{"$error":"#N/A"}},"Le personnage qui possède ce talent peut construire de petites huttes, fabriquer des barricades ou creuser des tranchées. Combiné au talent de \"pose de pièges\", il peut être utilisé pour créer des fosses assez grandes pour endommager des véhicules.",null,null,null,null,null,null,null,null,null,null,null,null,null,null,null,null,null,null,null,null,null,null,null,null,null,null,null,null,null,null,null,null,null,40,40,{"$f":"PJ!W34","v":5}]
[{"$f":"_xlfn.IFNA(MATCH(U95,PJ!$C$48:$C$53,0),0)","v":0},"Course",-10,"+5","+5","+5","*2","*2","+5",null,null,null,"+5","+5",null,null,"*2",null,null,null,{"$f":"IF($A$33<>0,\"\",B95&\" (\"&C95&HLOOKUP(PJ!$D$16,'Données (Défauts, Talents)'!$D$80:$T$124,ROW(B95)-79,FALSE)&\")\"&IF(X95<>0,\" PP+\" &X95,\"\")&\" [+\"&BG95&\"%]\")","v":{"$error":"#N/A"}},{"$f":"IF($A$33<>0,\"\",IF(HLOOKUP(PJ!$D$16,'Données (Défauts, Talents)'!$D$80:$T$124,ROW($B95)-79,FALSE)=\"*2\",$C95*2,$C95+HLOOKUP(PJ!$D$16,'Données (Défauts, Talents)'!$D$80:$T$124,ROW($B95)-79,FALSE)))","v":{"$error":"#N/A"}},null,{"$f":"IF(AND(HLOOKUP(PJ!$D$16,'Données (Défauts, Talents)'!$D$80:$T$124,ROW($B95)-79,FALSE)=\"+5\",$W95<>0),$W95+10,IF(AND(HLOOKUP(PJ!$D$16,'Données (Défauts, Talents)'!$D$80:$T$124,ROW($B95)-79,FALSE)=\"*2\",$W95<>0),$W95-5,$W95))","v":{"$error":"#N/A"}},"Un personnage, s'il n'a pas dépasse son seuil de charge et s'il possède ce talent, peut alors, en courant, se déplacer de 30 mètres par tour pendant un nombre de tours égal à l'endurance du personnage.",null,null,null,null,null,null,null,null,null,null,null,null,null,null,null,null,null,null,null,null,null,null,null,null,null,null,null,null,null,null,null,null,null,10,10,{"$f":"PJ!W39","v":5}]
[{"$f":"_xlfn.IFNA(MATCH(U96,PJ!$C$48:$C$53,0),0)","v":0},"Dessin",-10,null,null,"+5","+5",null,"+5",null,"+5","*2",null,null,null,null,null,"*2","+5",null,{"$f":"B96&\" (\"&C96&HLOOKUP(PJ!$D$16,'Données (Défauts, Talents)'!$D$80:$T$124,ROW(B96)-79,FALSE)&\")\"&IF(X96<>0,\" PP+\" &X96,\"\")&\" [+\"&BG96&\"%]\"","v":{"$error":"#N/A"}},{"$f":"IF(HLOOKUP(PJ!$D$16,'Données (Défauts, Talents)'!$D$80:$T$124,ROW($B96)-79,FALSE)=\"*2\",$C96*2,$C96+HLOOKUP(PJ!$D$16,'Données (Défauts, Talents)'!$D$80:$T$124,ROW($B96)-79,FALSE))","v":{"$error":"#N/A"}},10,{"$f":"IF(AND(HLOOKUP(PJ!$D$16,'Données (Défauts, Talents)'!$D$80:$T$124,ROW($B96)-79,FALSE)=\"+5\",$W96<>0),$W96+10,IF(AND(HLOOKUP(PJ!$D$16,'Données (Défauts, Talents)'!$D$80:$T$124,ROW($B96)-79,FALSE)=\"*2\",$W96<>0),$W96-5,$W96))","v":{"$error":"#N/A"}},"Le personnage sait estimer les distances et connait les techniques de base du dessin.",null,null,null,null,null,null,null,null,null,null,null,null,null,null,null,null,null,null,null,null,null,null,null,null,null,null,null,null,null,null,null,null,null,40,40,{"$f":"PJ!W43","v":5}]
[{"$f":"_xlfn.IFNA(MATCH(U97,PJ!$C$48:$C$53,0),0)","v":0},"Déguisement",-35,null,"+5",null,"*2",null,null,null,"*2",null,null,"+5","*2",null,"*2",null,"+5","*2",{"$f":"B97&\" (\"&C97&HLOOKUP(PJ!$D$16,'Données (Défauts, Talents)'!$D$80:$T$124,ROW(B97)-79,FALSE)&\")\"&IF(X97<>0,\" PP+\" &X97,\"\")&\" [+\"&BG97&\"%]\"","v":{"$error":"#N/A"}},{"$f":"IF(HLOOKUP(PJ!$D$16,'Données (Défauts, Talents)'!$D$80:$T$124,ROW($B97)-79,FALSE)=\"*2\",$C97*2,$C97+HLOOKUP(PJ!$D$16,'Données (Défauts, Talents)'!$D$80:$T$124,ROW($B97)-79,FALSE))","v":{"$error":"#N/A"}},null,{"$f":"IF(AND(HLOOKUP(PJ!$D$16,'Données (Défauts, Talents)'!$D$80:$T$124,ROW($B97)-79,FALSE)=\"+5\",$W97<>0),$W97+10,IF(AND(HLOOKUP(PJ!$D$16,'Données (Défauts, Talents)'!$D$80:$T$124,ROW($B97)-79,FALSE)=\"*2\",$W97<>0),$W97-5,$W97))","v":{"$error":"#N/A"}},"Ce talent permet de se déguiser. Pour que l'adversaire remarque le subterfuge, il doit réussir un jet de repérage avec un malus de (PR+IN+PE)%.",null,null,null,null,null,null,null,null,null,null,null,null,null,null,null,null,null,null,null,null,null,null,null,null,null,null,null,null,null,null,null,null,null,20,20,{"$f":"PJ!W46","v":5}]
[{"$f":"_xlfn.IFNA(MATCH(U98,PJ!$C$48:$C$53,0),0)","v":0},"Démolition",-35,null,"+5",null,"*2",null,null,null,null,null,"+5",null,null,null,null,null,"*2",null,{"$f":"B98&\" (\"&C98&HLOOKUP(PJ!$D$16,'Données (Défauts, Talents)'!$D$80:$T$124,ROW(B98)-79,FALSE)&\")\"&IF(X98<>0,\" PP+\" &X98,\"\")&\" [+\"&BG98&\"%]\"","v":{"$error":"#N/A"}},{"$f":"IF(HLOOKUP(PJ!$D$16,'Données (Défauts, Talents)'!$D$80:$T$124,ROW($B98)-79,FALSE)=\"*2\",$C98*2,$C98+HLOOKUP(PJ!$D$16,'Données (Défauts, Talents)'!$D$80:$T$124,ROW($B98)-79,FALSE))","v":{"$error":"#N/A"}},null,{"$f":"IF(AND(HLOOKUP(PJ!$D$16,'Données (Défauts, Talents)'!$D$80:$T$124,ROW($B98)-79,FALSE)=\"+5\",$W98<>0),$W98+10,IF(AND(HLOOKUP(PJ!$D$16,'Données (Défauts, Talents)'!$D$80:$T$124,ROW($B98)-79,FALSE)=\"*2\",$W98<>0),$W98-5,$W98))","v":{"$error":"#N/A"}},"Ce talent comprend le transport et la pose de l'explosif. Formule de calcul : (IN+PR)x5% pour le transport et (PR+PE)x5% pour la pose.",null,null,null,null,null,null,null,null,null,null,null,null,null,null,null,null,null,null,null,null,null,null,null,null,null,null,null,null,null,null,null,null,null,20,20,{"$f":"PJ!W47","v":5}]
[{"$f":"_xlfn.IFNA(MATCH(U99,PJ!$C$48:$C$53,0),0)","v":0},"Dressage d'animaux",-30,null,null,null,"*2",null,null,null,null,null,null,null,null,null,null,null,null,null,{"$f":"B99&\" (\"&C99&HLOOKUP(PJ!$D$16,'Données (Défauts, Talents)'!$D$80:$T$124,ROW(B99)-79,FALSE)&\")\"&IF(X99<>0,\" PP+\" &X99,\"\")&\" [+\"&BG99&\"%]\"","v":{"$error":"#N/A"}},{"$f":"IF(A5<>0,\"\",IF(HLOOKUP(PJ!$D$16,'Données (Défauts, Talents)'!$D$80:$T$124,ROW($B99)-79,FALSE)=\"*2\",$C99*2,$C99+HLOOKUP(PJ!$D$16,'Données (Défauts, Talents)'!$D$80:$T$124,ROW($B99)-79,FALSE)))","v":{"$error":"#N/A"}},null,{"$f":"IF(AND(HLOOKUP(PJ!$D$16,'Données (Défauts, Talents)'!$D$80:$T$124,ROW($B99)-79,FALSE)=\"+5\",$W99<>0),$W99+10,IF(AND(HLOOKUP(PJ!$D$16,'Données (Défauts, Talents)'!$D$80:$T$124,ROW($B99)-79,FALSE)=\"*2\",$W99<>0),$W99-5,$W99))","v":{"$error":"#N/A"}},"Ce talent permet de choisir un type d'animal que le personnage peut apprivoiser et dont il connait le mode de vie. Tous les animaux semi-intelligents sont possibles (rat, chien, loup, aigle …). Un personnage ne peut apprivoiser qu'un seul animal à la fois. Formule de calcul pour le dressage : (IN+PE)x5%. Le personnage ne reçoit pas l'animal au début du jeu, il doit le trouver, le capturer et le dresser.",null,null,null,null,null,null,null,null,null,null,null,null,null,null,null,null,null,null,null,null,null,null,null,null,null,null,null,null,null,null,null,null,null,40,40,{"$f":"PJ!W48","v":5}]
[{"$f":"_xlfn.IFNA(MATCH(U100,PJ!$C$48:$C$53,0),0)","v":0},"Escalade",-15,"+5","+5","+5","*2","*2",null,null,null,null,"+5","+5",null,"+5",null,null,null,null,{"$f":"B100&\" (\"&C100&HLOOKUP(PJ!$D$16,'Données (Défauts, Talents)'!$D$80:$T$124,ROW(B100)-79,FALSE)&\")\"&IF(X100<>0,\" PP+\" &X100,\"\")&\" [+\"&BG100&\"%]\"","v":{"$error":"#N/A"}},{"$f":"IF(A43<>0,\"\",IF(HLOOKUP(PJ!$D$16,'Données (Défauts, Talents)'!$D$80:$T$124,ROW($B100)-79,FALSE)=\"*2\",$C100*2,$C100+HLOOKUP(PJ!$D$16,'Données (Défauts, Talents)'!$D$80:$T$124,ROW($B100)-79,FALSE)))","v":{"$error":"#N/A"}},null,{"$f":"IF(AND(HLOOKUP(PJ!$D$16,'Données (Défauts, Talents)'!$D$80:$T$124,ROW($B100)-79,FALSE)=\"+5\",$W100<>0),$W100+10,IF(AND(HLOOKUP(PJ!$D$16,'Données (Défauts, Talents)'!$D$80:$T$124,ROW($B100)-79,FALSE)=\"*2\",$W100<>0),$W100-5,$W100))","v":{"$error":"#N/A"}},"Ce talent permet au personnage d'augmenter son talent d'acrobatie de 30% pour tout jet ayant rapport à l'escalade (que ce soit une falaise, un mur, ou un semi-remorque).",null,null,null,null,null,null,null,null,null,null,null,null,null,null,null,null,null,null,null,null,30,null,null,null,null,null,null,null,null,null,null,null,null,30,30,{"$f":"PJ!W49","v":5}]
[{"$f":"_xlfn.IFNA(MATCH(U101,PJ!$C$48:$C$53,0),0)","v":0},"Esquive",-20,"+5",null,"+5","*2",null,null,null,null,"*2","+5","+5",null,"+5","*2",null,null,null,{"$f":"B101&\" (\"&C101&HLOOKUP(PJ!$D$16,'Données (Défauts, Talents)'!$D$80:$T$124,ROW(B101)-79,FALSE)&\")\"&IF(X101<>0,\" PP+\" &X101,\"\")&\" [+\"&BG101&\"%]\"","v":{"$error":"#N/A"}},{"$f":"IF(HLOOKUP(PJ!$D$16,'Données (Défauts, Talents)'!$D$80:$T$124,ROW($B101)-79,FALSE)=\"*2\",$C101*2,$C101+HLOOKUP(PJ!$D$16,'Données (Défauts, Talents)'!$D$80:$T$124,ROW($B101)-79,FALSE))","v":{"$error":"#N/A"}},null,{"$f":"IF(AND(HLOOKUP(PJ!$D$16,'Données (Défauts, Talents)'!$D$80:$T$124,ROW($B101)-79,FALSE)=\"+5\",$W101<>0),$W101+10,IF(AND(HLOOKUP(PJ!$D$16,'Données (Défauts, Talents)'!$D$80:$T$124,ROW($B101)-79,FALSE)=\"*2\",$W101<>0),$W101-5,$W101))","v":{"$error":"#N/A"}},"Si un personnage souhaite esquiver un coup, il subit 20% de malus pour toutes action qu'il voudrait entreprendre pendant le tour, mais réduit la valeur du talent d'attaque de l'adversaire de (AG+RA)x2%, seulement (AG+RA)% si le personnage ne possède pas ce talent.",null,null,null,null,null,null,null,null,null,null,null,null,null,null,null,null,null,null,null,null,null,null,null,null,null,null,null,null,null,null,null,null,null,10,10,{"$f":"PJ!AG16","v":5}]
[{"$f":"_xlfn.IFNA(MATCH(U102,PJ!$C$48:$C$53,0),0)","v":0},"Flatterie",-25,null,"+5","+5","*2",null,null,null,null,null,null,"+5",null,null,"*2",null,"+5","*2",{"$f":"B102&\" (\"&C102&HLOOKUP(PJ!$D$16,'Données (Défauts, Talents)'!$D$80:$T$124,ROW(B102)-79,FALSE)&\")\"&IF(X102<>0,\" PP+\" &X102,\"\")&\" [+\"&BG102&\"%]\"","v":{"$error":"#N/A"}},{"$f":"IF(HLOOKUP(PJ!$D$16,'Données (Défauts, Talents)'!$D$80:$T$124,ROW($B102)-79,FALSE)=\"*2\",$C102*2,$C102+HLOOKUP(PJ!$D$16,'Données (Défauts, Talents)'!$D$80:$T$124,ROW($B102)-79,FALSE))","v":{"$error":"#N/A"}},null,{"$f":"IF(AND(HLOOKUP(PJ!$D$16,'Données (Défauts, Talents)'!$D$80:$T$124,ROW($B102)-79,FALSE)=\"+5\",$W102<>0),$W102+10,IF(AND(HLOOKUP(PJ!$D$16,'Données (Défauts, Talents)'!$D$80:$T$124,ROW($B102)-79,FALSE)=\"*2\",$W102<>0),$W102-5,$W102))","v":{"$error":"#N/A"}},"Quand le personnage choisit d'en flatter un autre, qui est sensible à ce genre de pratiques, il reçoit un bonus de INx3% au marchandage et INx5% à la séduction.",null,null,null,null,null,null,null,null,null,null,null,null,null,null,null,null,null,null,null,null,null,null,null,null,null,{"$f":"PJ!C34*3","v":3},null,null,null,null,{"$f":"PJ!C34*5","v":5},null,null,10,10,{"$f":"PJ!AG17","v":5}]
[{"$f":"_xlfn.IFNA(MATCH(U103,PJ!$C$48:$C$53,0),0)","v":0},"Forgeron",-30,null,null,"*2","*2",null,null,null,"+5",null,"*2",null,"+5","*2",null,null,null,null,{"$f":"B103&\" (\"&C103&HLOOKUP(PJ!$D$16,'Données (Défauts, Talents)'!$D$80:$T$124,ROW(B103)-79,FALSE)&\")\"&IF(X103<>0,\" PP+\" &X103,\"\")&\" [+\"&BG103&\"%]\"","v":{"$error":"#N/A"}},{"$f":"IF(HLOOKUP(PJ!$D$16,'Données (Défauts, Talents)'!$D$80:$T$124,ROW($B103)-79,FALSE)=\"*2\",$C103*2,$C103+HLOOKUP(PJ!$D$16,'Données (Défauts, Talents)'!$D$80:$T$124,ROW($B103)-79,FALSE))","v":{"$error":"#N/A"}},15,{"$f":"IF(AND(HLOOKUP(PJ!$D$16,'Données (Défauts, Talents)'!$D$80:$T$124,ROW($B103)-79,FALSE)=\"+5\",$W103<>0),$W103+10,IF(AND(HLOOKUP(PJ!$D$16,'Données (Défauts, Talents)'!$D$80:$T$124,ROW($B103)-79,FALSE)=\"*2\",$W103<>0),$W103-5,$W103))","v":{"$error":"#N/A"}},"Le personnage connait les techniques de fonte et de travail du métal. Il reçoit un bonus de 30% à la construction d'armes en métal et de 20% en mécanique. Le personnage doit disposer d'une forge pour profiter de ces bonus.",null,null,null,null,null,null,null,null,null,null,null,null,null,null,null,null,null,null,null,null,null,null,null,null,null,null,20,null,null,null,null,null,null,40,40,{"$f":"PJ!AG18","v":5}]
[{"$f":"_xlfn.IFNA(MATCH(U104,PJ!$C$48:$C$53,0),0)","v":0},"Héraldique",-10,null,null,null,"*2",null,null,null,null,null,null,null,null,null,null,null,"+5",null,{"$f":"B104&\" (\"&C104&HLOOKUP(PJ!$D$16,'Données (Défauts, Talents)'!$D$80:$T$124,ROW(B104)-79,FALSE)&\")\"&IF(X104<>0,\" PP+\" &X104,\"\")&\" [+\"&BG104&\"%]\"","v":{"$error":"#N/A"}},{"$f":"IF(HLOOKUP(PJ!$D$16,'Données (Défauts, Talents)'!$D$80:$T$124,ROW($B104)-79,FALSE)=\"*2\",$C104*2,$C104+HLOOKUP(PJ!$D$16,'Données (Défauts, Talents)'!$D$80:$T$124,ROW($B104)-79,FALSE))","v":{"$error":"#N/A"}},null,{"$f":"IF(AND(HLOOKUP(PJ!$D$16,'Données (Défauts, Talents)'!$D$80:$T$124,ROW($B104)-79,FALSE)=\"+5\",$W104<>0),$W104+10,IF(AND(HLOOKUP(PJ!$D$16,'Données (Défauts, Talents)'!$D$80:$T$124,ROW($B104)-79,FALSE)=\"*2\",$W104<>0),$W104-5,$W104))","v":{"$error":"#N/A"}},"Ce talent permet de reconnaitre le type de tribu d'un véhicule ou d'un personnage en réussissant un jet de repérage à +10%.",null,null,null,null,null,null,null,null,null,null,null,null,null,null,null,null,null,null,null,null,null,null,null,null,null,null,null,null,10,null,null,null,null,30,30,{"$f":"PJ!AG19","v":5}]
[{"$f":"_xlfn.IFNA(MATCH(U105,PJ!$C$48:$C$53,0),0)","v":0},"Histoire",-40,null,null,"*2","+5","*2","*2","+5",null,null,"*2",null,null,"*2",null,"*2","+5","+5",{"$f":"B105&\" (\"&C105&HLOOKUP(PJ!$D$16,'Données (Défauts, Talents)'!$D$80:$T$124,ROW(B105)-79,FALSE)&\")\"&IF(X105<>0,\" PP+\" &X105,\"\")&\" [+\"&BG105&\"%]\"","v":{"$error":"#N/A"}},{"$f":"IF(HLOOKUP(PJ!$D$16,'Données (Défauts, Talents)'!$D$80:$T$124,ROW($B105)-79,FALSE)=\"*2\",$C105*2,$C105+HLOOKUP(PJ!$D$16,'Données (Défauts, Talents)'!$D$80:$T$124,ROW($B105)-79,FALSE))+IF(A79<>0,10,0)","v":{"$error":"#N/A"}},20,{"$f":"IF(AND(HLOOKUP(PJ!$D$16,'Données (Défauts, Talents)'!$D$80:$T$124,ROW($B105)-79,FALSE)=\"+5\",$W105<>0),$W105+10,IF(AND(HLOOKUP(PJ!$D$16,'Données (Défauts, Talents)'!$D$80:$T$124,ROW($B105)-79,FALSE)=\"*2\",$W105<>0),$W105-5,$W105))","v":{"$error":"#N/A"}},"Le personage connaît (ou se souvient) de \"l'avant-comète\", et de la façon dont les gens vivaient en ces temps là. Il sait ce qui s'est passé durant \"la grande folie\" et est conscient de ses conséquences. Ce talent ne coûte que 30 Ppe si le personnage est \"vieux\".",null,null,null,null,null,null,null,null,null,null,null,null,null,null,null,null,null,null,null,null,null,null,null,null,null,null,null,null,null,null,null,null,null,40,40,{"$f":"PJ!AG20","v":5}]
[{"$f":"_xlfn.IFNA(MATCH(U106,PJ!$C$48:$C$53,0),0)","v":0},"Lire et écrire",-10,null,null,"*2","+5","*2","*2","+5",null,null,"*2",null,null,"*2",null,"*2","+5","+5",{"$f":"B106&\" (\"&C106&HLOOKUP(PJ!$D$16,'Données (Défauts, Talents)'!$D$80:$T$124,ROW(B106)-79,FALSE)&\")\"&IF(X106<>0,\" PP+\" &X106,\"\")&\" [+\"&BG106&\"%]\"","v":{"$error":"#N/A"}},{"$f":"IF(HLOOKUP(PJ!$D$16,'Données (Défauts, Talents)'!$D$80:$T$124,ROW($B106)-79,FALSE)=\"*2\",$C106*2,$C106+HLOOKUP(PJ!$D$16,'Données (Défauts, Talents)'!$D$80:$T$124,ROW($B106)-79,FALSE))+IF(A79<>0,5,0)","v":{"$error":"#N/A"}},5,{"$f":"IF(AND(HLOOKUP(PJ!$D$16,'Données (Défauts, Talents)'!$D$80:$T$124,ROW($B106)-79,FALSE)=\"+5\",$W106<>0),$W106+10,IF(AND(HLOOKUP(PJ!$D$16,'Données (Défauts, Talents)'!$D$80:$T$124,ROW($B106)-79,FALSE)=\"*2\",$W106<>0),$W106-5,$W106))","v":{"$error":"#N/A"}},"Le talent ne coûte que 5 si le personnage est \"vieux\". Pour cela, il doit posséder le défaut correspondant. Le talent \"Histoire\" comprend déjà ce talent spécial.",null,null,null,null,null,null,null,null,null,null,null,null,null,null,null,null,null,null,null,null,null,null,null,null,null,null,null,null,null,null,null,null,null,40,40,{"$f":"PJ!AG21","v":5}]
[{"$f":"_xlfn.IFNA(MATCH(U107,PJ!$C$48:$C$53,0),0)","v":0},"Maître d'arme",-40,null,null,"*2","*2",null,null,null,null,null,null,"*2",null,null,null,"+5","*2",null,{"$f":"B107&\" (\"&C107&HLOOKUP(PJ!$D$16,'Données (Défauts, Talents)'!$D$80:$T$124,ROW(B107)-79,FALSE)&\")\"&IF(X107<>0,\" PP+\" &X107,\"\")&\" [+\"&BG107&\"%]\"","v":{"$error":"#N/A"}},{"$f":"IF(HLOOKUP(PJ!$D$16,'Données (Défauts, Talents)'!$D$80:$T$124,ROW($B107)-79,FALSE)=\"*2\",$C107*2,$C107+HLOOKUP(PJ!$D$16,'Données (Défauts, Talents)'!$D$80:$T$124,ROW($B107)-79,FALSE))","v":{"$error":"#N/A"}},15,{"$f":"IF(AND(HLOOKUP(PJ!$D$16,'Données (Défauts, Talents)'!$D$80:$T$124,ROW($B107)-79,FALSE)=\"+5\",$W107<>0),$W107+10,IF(AND(HLOOKUP(PJ!$D$16,'Données (Défauts, Talents)'!$D$80:$T$124,ROW($B107)-79,FALSE)=\"*2\",$W107<>0),$W107-5,$W107))","v":{"$error":"#N/A"}},"Ce talent permet de bénédicier d'un bonus de 30% au talent de combat pour une arme de corps à corps (au choix : épée, normale ou courte ou à deux mains, sabre, fleuret ou glaive). Ce talent est cumulable avec les talents de spécialisation et de tir rapide. De plus, en accpetant un malus de 60%, le personnage peut viser un endroit précis (la tête, par exemple et par hasard). Note : on peut être maître d'arme au fusil de haute précision",null,null,null,null,null,null,null,null,null,null,null,null,null,null,null,null,null,null,null,null,null,null,null,null,null,null,null,null,null,null,null,null,null,30,30,{"$f":"PJ!AG22","v":5}]
[{"$f":"_xlfn.IFNA(MATCH(U108,PJ!$C$48:$C$53,0),0)","v":0},"Manipulation",-30,null,null,"+5","*2",null,null,null,null,"*2",null,null,null,null,null,null,"+5",null,{"$f":"B108&\" (\"&C108&HLOOKUP(PJ!$D$16,'Données (Défauts, Talents)'!$D$80:$T$124,ROW(B108)-79,FALSE)&\")\"&IF(X108<>0,\" PP+\" &X108,\"\")&\" [+\"&BG108&\"%]\"","v":{"$error":"#N/A"}},{"$f":"IF(HLOOKUP(PJ!$D$16,'Données (Défauts, Talents)'!$D$80:$T$124,ROW($B108)-79,FALSE)=\"*2\",$C108*2,$C108+HLOOKUP(PJ!$D$16,'Données (Défauts, Talents)'!$D$80:$T$124,ROW($B108)-79,FALSE))","v":{"$error":"#N/A"}},null,{"$f":"IF(AND(HLOOKUP(PJ!$D$16,'Données (Défauts, Talents)'!$D$80:$T$124,ROW($B108)-79,FALSE)=\"+5\",$W108<>0),$W108+10,IF(AND(HLOOKUP(PJ!$D$16,'Données (Défauts, Talents)'!$D$80:$T$124,ROW($B108)-79,FALSE)=\"*2\",$W108<>0),$W108-5,$W108))","v":{"$error":"#N/A"}},"Ce talent permet de faire disparaitre de petits objets en les cachant sur soi, de jongler ou d'exécuter d'autres tours de passe-passe. Formule de calcul : (PR+RA)x5%.",null,null,null,null,null,null,null,null,null,null,null,null,null,null,null,null,null,null,null,null,null,null,null,null,null,null,null,null,null,null,null,null,null,20,20,{"$f":"PJ!AG23","v":5}]
[{"$f":"_xlfn.IFNA(MATCH(U109,PJ!$C$48:$C$53,0),0)","v":0},"Manufacture d'armes",-40,null,null,null,"*2","+5",null,null,"+5",null,null,null,null,null,null,null,null,null,{"$f":"B109&\" (\"&C109&HLOOKUP(PJ!$D$16,'Données (Défauts, Talents)'!$D$80:$T$124,ROW(B109)-79,FALSE)&\")\"&IF(X109<>0,\" PP+\" &X109,\"\")&\" [+\"&BG109&\"%]\"","v":{"$error":"#N/A"}},{"$f":"IF(HLOOKUP(PJ!$D$16,'Données (Défauts, Talents)'!$D$80:$T$124,ROW($B109)-79,FALSE)=\"*2\",$C109*2,$C109+HLOOKUP(PJ!$D$16,'Données (Défauts, Talents)'!$D$80:$T$124,ROW($B109)-79,FALSE))","v":{"$error":"#N/A"}},20,{"$f":"IF(AND(HLOOKUP(PJ!$D$16,'Données (Défauts, Talents)'!$D$80:$T$124,ROW($B109)-79,FALSE)=\"+5\",$W109<>0),$W109+10,IF(AND(HLOOKUP(PJ!$D$16,'Données (Défauts, Talents)'!$D$80:$T$124,ROW($B109)-79,FALSE)=\"*2\",$W109<>0),$W109-5,$W109))","v":{"$error":"#N/A"}},"Le personange sait construire toutes les formes d'armes, mais doit disposer du matériel adéquat. Formule de calcul : (IN+RA)x5%.",null,null,null,null,null,null,null,null,null,null,null,null,null,null,null,null,null,null,null,null,null,30,null,null,null,null,null,null,null,null,null,null,null,30,30,{"$f":"PJ!AG24","v":5}]
[{"$f":"_xlfn.IFNA(MATCH(U110,PJ!$C$48:$C$53,0),0)","v":0},"Manufacture de vêtements",-25,null,null,null,"*2",null,"+5",null,null,null,null,null,null,null,null,null,null,null,{"$f":"B110&\" (\"&C110&HLOOKUP(PJ!$D$16,'Données (Défauts, Talents)'!$D$80:$T$124,ROW(B110)-79,FALSE)&\")\"&IF(X110<>0,\" PP+\" &X110,\"\")&\" [+\"&BG110&\"%]\"","v":{"$error":"#N/A"}},{"$f":"IF(HLOOKUP(PJ!$D$16,'Données (Défauts, Talents)'!$D$80:$T$124,ROW($B110)-79,FALSE)=\"*2\",$C110*2,$C110+HLOOKUP(PJ!$D$16,'Données (Défauts, Talents)'!$D$80:$T$124,ROW($B110)-79,FALSE))","v":{"$error":"#N/A"}},10,{"$f":"IF(AND(HLOOKUP(PJ!$D$16,'Données (Défauts, Talents)'!$D$80:$T$124,ROW($B110)-79,FALSE)=\"+5\",$W110<>0),$W110+10,IF(AND(HLOOKUP(PJ!$D$16,'Données (Défauts, Talents)'!$D$80:$T$124,ROW($B110)-79,FALSE)=\"*2\",$W110<>0),$W110-5,$W110))","v":{"$error":"#N/A"}},"Le personnage sait réparer et créer des nouveaux vêtements, mais dois disposer du matériel adéquat. Formule de calcul : (PR+IN)x5%.",null,null,null,null,null,null,null,null,null,null,null,null,null,null,null,null,null,null,null,null,null,null,null,null,null,null,null,null,null,null,null,null,null,30,30,{"$f":"PJ!AG25","v":5}]
[{"$f":"_xlfn.IFNA(MATCH(U111,PJ!$C$48:$C$53,0),0)","v":0},"Maquillage",-5,"+5",null,null,"+5",null,null,null,"*2",null,"+5","+5",null,null,"*2","*2","+5","*2",{"$f":"B111&\" (\"&C111&HLOOKUP(PJ!$D$16,'Données (Défauts, Talents)'!$D$80:$T$124,ROW(B111)-79,FALSE)&\")\"&IF(X111<>0,\" PP+\" &X111,\"\")&\" [+\"&BG111&\"%]\"","v":{"$error":"#N/A"}},{"$f":"IF(HLOOKUP(PJ!$D$16,'Données (Défauts, Talents)'!$D$80:$T$124,ROW($B111)-79,FALSE)=\"*2\",$C111*2,$C111+HLOOKUP(PJ!$D$16,'Données (Défauts, Talents)'!$D$80:$T$124,ROW($B111)-79,FALSE))","v":{"$error":"#N/A"}},null,{"$f":"IF(AND(HLOOKUP(PJ!$D$16,'Données (Défauts, Talents)'!$D$80:$T$124,ROW($B111)-79,FALSE)=\"+5\",$W111<>0),$W111+10,IF(AND(HLOOKUP(PJ!$D$16,'Données (Défauts, Talents)'!$D$80:$T$124,ROW($B111)-79,FALSE)=\"*2\",$W111<>0),$W111-5,$W111))","v":{"$error":"#N/A"}},"Ce talent permet au personnage d'augmenter sa séduction de 5%. (15% pour une femme). Ces bonus sont cumulables avec ceux accordés par la trousse de maquillage, qui est d'ailleurs obligatoire pour la bonne utilisation du talent.",null,null,null,null,null,null,null,null,null,null,{"$f":"IF(PJ!F17=\"M\",5,15)","v":15},null,null,null,null,null,null,null,null,null,null,null,null,null,null,null,null,null,null,null,null,null,null,20,20,{"$f":"PJ!AG26","v":5}]
[{"$f":"_xlfn.IFNA(MATCH(U112,PJ!$C$48:$C$53,0),0)","v":0},"Musicien",-10,null,null,null,"+5",null,null,null,null,"*2",null,null,null,null,null,"*2",null,null,{"$f":"B112&\" (\"&C112&HLOOKUP(PJ!$D$16,'Données (Défauts, Talents)'!$D$80:$T$124,ROW(B112)-79,FALSE)&\")\"&IF(X112<>0,\" PP+\" &X112,\"\")&\" [+\"&BG112&\"%]\"","v":{"$error":"#N/A"}},{"$f":"IF(HLOOKUP(PJ!$D$16,'Données (Défauts, Talents)'!$D$80:$T$124,ROW($B112)-79,FALSE)=\"*2\",$C112*2,$C112+HLOOKUP(PJ!$D$16,'Données (Défauts, Talents)'!$D$80:$T$124,ROW($B112)-79,FALSE))","v":{"$error":"#N/A"}},5,{"$f":"IF(AND(HLOOKUP(PJ!$D$16,'Données (Défauts, Talents)'!$D$80:$T$124,ROW($B112)-79,FALSE)=\"+5\",$W112<>0),$W112+10,IF(AND(HLOOKUP(PJ!$D$16,'Données (Défauts, Talents)'!$D$80:$T$124,ROW($B112)-79,FALSE)=\"*2\",$W112<>0),$W112-5,$W112))","v":{"$error":"#N/A"}},"Le personnage sait (à peu près…) chanter et jouer d'un instrument. Un personnage qui joue d'un instrument et qui possède ce talent peut, s'il est inspiré (jet INx5%) ajouter ou soustraire un modificateur de 10% aux talents de ses camarades ou adversaires. Le maître de jeu devra s'assurer de la logique de la situation.",null,null,null,null,null,null,null,null,null,null,null,null,null,null,null,null,null,null,null,null,null,null,null,null,null,null,null,null,null,null,null,null,null,40,40,{"$f":"PJ!AG27","v":5}]
[{"$f":"_xlfn.IFNA(MATCH(U113,PJ!$C$48:$C$53,0),0)","v":0},"Nage",-20,null,null,null,"+5","*2",null,null,null,null,"*2",null,"*2","*2","*2",null,null,null,{"$f":"IF(A62<>0,\"\",B113&\" (\"&C113&HLOOKUP(PJ!$D$16,'Données (Défauts, Talents)'!$D$80:$T$124,ROW(B113)-79,FALSE)&\")\"&IF(X113<>0,\" PP+\" &X113,\"\")&\" [+\"&BG113&\"%]\")","v":{"$error":"#N/A"}},{"$f":"IF(A62<>0,\"\",IF(HLOOKUP(PJ!$D$16,'Données (Défauts, Talents)'!$D$80:$T$124,ROW($B113)-79,FALSE)=\"*2\",$C113*2,$C113+HLOOKUP(PJ!$D$16,'Données (Défauts, Talents)'!$D$80:$T$124,ROW($B113)-79,FALSE)))","v":{"$error":"#N/A"}},null,{"$f":"IF(AND(HLOOKUP(PJ!$D$16,'Données (Défauts, Talents)'!$D$80:$T$124,ROW($B113)-79,FALSE)=\"+5\",$W113<>0),$W113+10,IF(AND(HLOOKUP(PJ!$D$16,'Données (Défauts, Talents)'!$D$80:$T$124,ROW($B113)-79,FALSE)=\"*2\",$W113<>0),$W113-5,$W113))","v":{"$error":"#N/A"}},"Ce talent permet au joueur de se déplacer dans l'eau. Le pourcentage de réussite n'est utilisé qu'en cas de problème majeur (courant, combat,…). Formule de calcul : (AG+FO)x5%. Un personnage qui doit réussir un jet de Nage et qui ne possède pas cette compétence doit réussir un jet d'ENx1%.",null,null,null,null,null,null,null,null,null,null,null,null,null,null,null,null,null,null,null,null,null,null,null,null,null,null,null,null,null,null,null,null,null,30,30,{"$f":"PJ!AG30","v":5}]
[{"$f":"_xlfn.IFNA(MATCH(U114,PJ!$C$48:$C$53,0),0)","v":0},"Parade",-20,null,"+5",null,"*2",null,null,null,null,null,null,null,"+5","+5","+5",null,"*2",null,{"$f":"B114&\" (\"&C114&HLOOKUP(PJ!$D$16,'Données (Défauts, Talents)'!$D$80:$T$124,ROW(B114)-79,FALSE)&\")\"&IF(X114<>0,\" PP+\" &X114,\"\")&\" [+\"&BG114&\"%]\"","v":{"$error":"#N/A"}},{"$f":"IF(HLOOKUP(PJ!$D$16,'Données (Défauts, Talents)'!$D$80:$T$124,ROW($B114)-79,FALSE)=\"*2\",$C114*2,$C114+HLOOKUP(PJ!$D$16,'Données (Défauts, Talents)'!$D$80:$T$124,ROW($B114)-79,FALSE))","v":{"$error":"#N/A"}},null,{"$f":"IF(AND(HLOOKUP(PJ!$D$16,'Données (Défauts, Talents)'!$D$80:$T$124,ROW($B114)-79,FALSE)=\"+5\",$W114<>0),$W114+10,IF(AND(HLOOKUP(PJ!$D$16,'Données (Défauts, Talents)'!$D$80:$T$124,ROW($B114)-79,FALSE)=\"*2\",$W114<>0),$W114-5,$W114))","v":{"$error":"#N/A"}},"Ce talent permet de réduire, lors d'un corps à corps, le talent de combat de l'adversaire en réduisant le sien. La réduction est de 1 pour 1, seulement 2 pour 1 si le personnage ne possède pas ce talent.",null,null,null,null,null,null,null,null,null,null,null,null,null,null,null,null,null,null,null,null,null,null,null,null,null,null,null,null,null,null,null,null,null,10,10,{"$f":"PJ!AG32","v":5}]
[{"$f":"_xlfn.IFNA(MATCH(U115,PJ!$C$48:$C$53,0),0)","v":0},"Pêche",-20,null,null,null,"+5","*2","+5",null,null,null,"*2",null,"*2","*2","*2","*2",null,null,{"$f":"IF(A62<>0,\"\",B115&\" (\"&C115&HLOOKUP(PJ!$D$16,'Données (Défauts, Talents)'!$D$80:$T$124,ROW(B115)-79,FALSE)&\")\"&IF(X115<>0,\" PP+\" &X115,\"\")&\" [+\"&BG115&\"%]\")","v":{"$error":"#N/A"}},{"$f":"IF(A62<>0,\"\",IF(HLOOKUP(PJ!$D$16,'Données (Défauts, Talents)'!$D$80:$T$124,ROW($B115)-79,FALSE)=\"*2\",$C115*2,$C115+HLOOKUP(PJ!$D$16,'Données (Défauts, Talents)'!$D$80:$T$124,ROW($B115)-79,FALSE)))","v":{"$error":"#N/A"}},null,{"$f":"IF(AND(HLOOKUP(PJ!$D$16,'Données (Défauts, Talents)'!$D$80:$T$124,ROW($B115)-79,FALSE)=\"+5\",$W115<>0),$W115+10,IF(AND(HLOOKUP(PJ!$D$16,'Données (Défauts, Talents)'!$D$80:$T$124,ROW($B115)-79,FALSE)=\"*2\",$W115<>0),$W115-5,$W115))","v":{"$error":"#N/A"}},"Ce talent permet au personange de ramener l'équivalent d'une journée de nourriture par trois heures passée à pêcher. Le personnage doit avoir à sa disposition le matériel de pêche, une rivière et surtout beaucoup de calme.",null,null,null,null,null,null,null,null,null,null,null,null,null,null,null,null,null,null,null,null,null,null,null,null,null,null,null,null,null,null,null,null,null,20,20,{"$f":"PJ!AG34","v":5}]
[{"$f":"_xlfn.IFNA(MATCH(U116,PJ!$C$48:$C$53,0),0)","v":0},"Pistage",-15,null,"+5",null,"*2",null,null,null,null,null,null,null,null,"+5",null,null,null,"+5",{"$f":"B116&\" (\"&C116&HLOOKUP(PJ!$D$16,'Données (Défauts, Talents)'!$D$80:$T$124,ROW(B116)-79,FALSE)&\")\"&IF(X116<>0,\" PP+\" &X116,\"\")&\" [+\"&BG116&\"%]\"","v":{"$error":"#N/A"}},{"$f":"IF(HLOOKUP(PJ!$D$16,'Données (Défauts, Talents)'!$D$80:$T$124,ROW($B116)-79,FALSE)=\"*2\",$C116*2,$C116+HLOOKUP(PJ!$D$16,'Données (Défauts, Talents)'!$D$80:$T$124,ROW($B116)-79,FALSE))","v":{"$error":"#N/A"}},null,{"$f":"IF(AND(HLOOKUP(PJ!$D$16,'Données (Défauts, Talents)'!$D$80:$T$124,ROW($B116)-79,FALSE)=\"+5\",$W116<>0),$W116+10,IF(AND(HLOOKUP(PJ!$D$16,'Données (Défauts, Talents)'!$D$80:$T$124,ROW($B116)-79,FALSE)=\"*2\",$W116<>0),$W116-5,$W116))","v":{"$error":"#N/A"}},"Ce talent augmente le repérage du personnage de INx3%, mais seulement en ce qui concerne le pistage et la reconnaissance des traces.",null,null,null,null,null,null,null,null,null,null,null,null,null,null,null,null,null,null,null,null,null,null,null,null,null,null,null,null,{"$f":"PJ!C34*3","v":3},null,null,null,null,20,20,{"$f":"PJ!AG37","v":5}]
[{"$f":"_xlfn.IFNA(MATCH(U117,PJ!$C$48:$C$53,0),0)","v":0},"Pose de pièges",-25,null,null,null,"*2",null,null,null,null,null,null,null,null,"+5",null,null,null,null,{"$f":"B117&\" (\"&C117&HLOOKUP(PJ!$D$16,'Données (Défauts, Talents)'!$D$80:$T$124,ROW(B117)-79,FALSE)&\")\"&IF(X117<>0,\" PP+\" &X117,\"\")&\" [+\"&BG117&\"%]\"","v":{"$error":"#N/A"}},{"$f":"IF(HLOOKUP(PJ!$D$16,'Données (Défauts, Talents)'!$D$80:$T$124,ROW($B117)-79,FALSE)=\"*2\",$C117*2,$C117+HLOOKUP(PJ!$D$16,'Données (Défauts, Talents)'!$D$80:$T$124,ROW($B117)-79,FALSE))","v":{"$error":"#N/A"}},null,{"$f":"IF(AND(HLOOKUP(PJ!$D$16,'Données (Défauts, Talents)'!$D$80:$T$124,ROW($B117)-79,FALSE)=\"+5\",$W117<>0),$W117+10,IF(AND(HLOOKUP(PJ!$D$16,'Données (Défauts, Talents)'!$D$80:$T$124,ROW($B117)-79,FALSE)=\"*2\",$W117<>0),$W117-5,$W117))","v":{"$error":"#N/A"}},"Ce talent permet de poser des petits pièges (collets, trappes, …) pour attraper des petits animaux qui permettront de se nourrir. Le pourcentage de réussite n'est valable que pour savoir si le piège est bien construit… C'est au maître du jeu de décider si animal est pris ou non (selon la faune locale, par exemple). Formule de calcul : (PR+IN)x5%.",null,null,null,null,null,null,null,null,null,null,null,null,null,null,null,null,null,null,null,null,null,null,null,null,null,null,null,null,null,null,null,null,null,30,30,{"$f":"PJ!AG39","v":5}]
[{"$f":"_xlfn.IFNA(MATCH(U118,PJ!$C$48:$C$53,0),0)","v":0},"Résistance à l'alcool",-20,"*2",null,null,"*2",null,null,null,null,null,null,null,null,null,"+5",null,null,null,{"$f":"B118&\" (\"&IF(A3<>0,C118+10,C118)&HLOOKUP(PJ!$D$16,'Données (Défauts, Talents)'!$D$80:$T$124,ROW(B118)-79,FALSE)&\")\"&IF(X118<>0,\" PP+\" &X118,\"\")&\" [+\"&BG118&\"%]\"","v":{"$error":"#N/A"}},{"$f":"IF(HLOOKUP(PJ!$D$16,'Données (Défauts, Talents)'!$D$80:$T$124,ROW($B118)-79,FALSE)=\"*2\",$C118*2,$C118+HLOOKUP(PJ!$D$16,'Données (Défauts, Talents)'!$D$80:$T$124,ROW($B118)-79,FALSE))+IF(A3<>0,10,0)","v":{"$error":"#N/A"}},null,{"$f":"IF(AND(HLOOKUP(PJ!$D$16,'Données (Défauts, Talents)'!$D$80:$T$124,ROW($B118)-79,FALSE)=\"+5\",$W118<>0),$W118+10,IF(AND(HLOOKUP(PJ!$D$16,'Données (Défauts, Talents)'!$D$80:$T$124,ROW($B118)-79,FALSE)=\"*2\",$W118<>0),$W118-5,$W118))","v":{"$error":"#N/A"}},"Ce talent permet d'augmenter son talent de résistance de ENx4% lors des jets dus à une trop forte consommation d'alcool. Si le personnage est alcoolique, ce talent ne lui coûte que 10 Ppe.",null,null,null,null,null,null,null,null,null,null,null,null,null,null,null,null,null,null,null,null,null,null,null,null,null,null,null,null,null,{"$f":"PJ!G32*4","v":4},null,null,null,10,10,{"$f":"PJ!AG41","v":5}]
[{"$f":"_xlfn.IFNA(MATCH(U119,PJ!$C$48:$C$53,0),0)","v":0},"Résistant",-15,"*2",null,"*2","*2","+5",null,"*2",null,null,null,"*2","+5",null,null,"+5",null,null,{"$f":"B119&\" (\"&C119&HLOOKUP(PJ!$D$16,'Données (Défauts, Talents)'!$D$80:$T$124,ROW(B119)-79,FALSE)&\")\"&IF(X119<>0,\" PP+\" &X119,\"\")","v":{"$error":"#N/A"}},{"$f":"IF(HLOOKUP(PJ!$D$16,'Données (Défauts, Talents)'!$D$80:$T$124,ROW($B119)-79,FALSE)=\"*2\",$C119*2,$C119+HLOOKUP(PJ!$D$16,'Données (Défauts, Talents)'!$D$80:$T$124,ROW($B119)-79,FALSE))","v":{"$error":"#N/A"}},null,{"$f":"IF(AND(HLOOKUP(PJ!$D$16,'Données (Défauts, Talents)'!$D$80:$T$124,ROW($B119)-79,FALSE)=\"+5\",$W119<>0),$W119+10,IF(AND(HLOOKUP(PJ!$D$16,'Données (Défauts, Talents)'!$D$80:$T$124,ROW($B119)-79,FALSE)=\"*2\",$W119<>0),$W119-5,$W119))","v":{"$error":"#N/A"}},"Le personnage est habitué à recevoir des coups. Son Seuil d'Inconscience est majoré de 2, et ses points de vie de 4.",null,null,null,null,null,null,null,null,null,null,null,null,null,null,null,null,null,null,null,null,null,null,null,null,null,null,null,null,null,null,null,null,null,null,0,{"$f":"PJ!AG41","v":5}]
[{"$f":"_xlfn.IFNA(MATCH(U120,PJ!$C$48:$C$53,0),0)","v":0},"Richesse",-25,null,null,null,"*2",null,null,null,null,null,null,null,null,null,null,null,"+5",null,{"$f":"B120&\" (\"&C120&HLOOKUP(PJ!$D$16,'Données (Défauts, Talents)'!$D$80:$T$124,ROW(B120)-79,FALSE)&\")\"&IF(X120<>0,\" PP+\" &X120,\"\")&\" [+\"&BG120&\"%]\"","v":{"$error":"#N/A"}},{"$f":"IF(HLOOKUP(PJ!$D$16,'Données (Défauts, Talents)'!$D$80:$T$124,ROW($B120)-79,FALSE)=\"*2\",$C120*2,$C120+HLOOKUP(PJ!$D$16,'Données (Défauts, Talents)'!$D$80:$T$124,ROW($B120)-79,FALSE))","v":{"$error":"#N/A"}},null,{"$f":"IF(AND(HLOOKUP(PJ!$D$16,'Données (Défauts, Talents)'!$D$80:$T$124,ROW($B120)-79,FALSE)=\"+5\",$W120<>0),$W120+10,IF(AND(HLOOKUP(PJ!$D$16,'Données (Défauts, Talents)'!$D$80:$T$124,ROW($B120)-79,FALSE)=\"*2\",$W120<>0),$W120-5,$W120))","v":{"$error":"#N/A"}},"Ce talent permet au personnage de recevoir, en plus du matériel normal, 3 objets (armes, vêtements ou accessoires) de moins de 2000 francs chacun.",null,null,null,null,null,null,null,null,null,null,null,null,null,null,null,null,null,null,null,null,null,null,null,null,null,null,null,null,null,null,null,null,null,40,40,{"$f":"PJ!AG43","v":5}]
[{"$f":"_xlfn.IFNA(MATCH(U121,PJ!$C$48:$C$53,0),0)","v":0},"Spécialisation en arme",-10,null,"+5",null,"*2","+5",null,"*2",null,null,null,null,"+5",null,"+5","+5","*2",null,{"$f":"B121&\" (\"&C121&HLOOKUP(PJ!$D$16,'Données (Défauts, Talents)'!$D$80:$T$124,ROW(B121)-79,FALSE)&\")\"&IF(X121<>0,\" PP+\" &X121,\"\")&\" [+\"&BG121&\"%]\"","v":{"$error":"#N/A"}},{"$f":"IF(HLOOKUP(PJ!$D$16,'Données (Défauts, Talents)'!$D$80:$T$124,ROW($B121)-79,FALSE)=\"*2\",$C121*2,$C121+HLOOKUP(PJ!$D$16,'Données (Défauts, Talents)'!$D$80:$T$124,ROW($B121)-79,FALSE))","v":{"$error":"#N/A"}},null,{"$f":"IF(AND(HLOOKUP(PJ!$D$16,'Données (Défauts, Talents)'!$D$80:$T$124,ROW($B121)-79,FALSE)=\"+5\",$W121<>0),$W121+10,IF(AND(HLOOKUP(PJ!$D$16,'Données (Défauts, Talents)'!$D$80:$T$124,ROW($B121)-79,FALSE)=\"*2\",$W121<>0),$W121-5,$W121))","v":{"$error":"#N/A"}},"Ce talent permet au joueur de choisir une arme à laquelle il est habitué. Il reçoit alors, uniquement pour l'arme concernée, un bonus de 20% au toucher.",null,null,null,null,null,null,null,null,null,null,null,null,null,null,null,null,null,null,null,null,null,20,null,null,20,null,null,null,null,null,null,20,null,10,10,{"$f":"PJ!AG46","v":5}]
[{"$f":"_xlfn.IFNA(MATCH(U122,PJ!$C$48:$C$53,0),0)","v":0},"Tir indirect",-20,"*2",null,"*2","*2",null,null,"*2",null,null,null,null,null,null,null,"+5","*2",null,{"$f":"B122&\" (\"&C122&HLOOKUP(PJ!$D$16,'Données (Défauts, Talents)'!$D$80:$T$124,ROW(B122)-79,FALSE)&\")\"&IF(X122<>0,\" PP+\" &X122,\"\")&\" [+\"&BG122&\"%]\"","v":{"$error":"#N/A"}},{"$f":"IF(HLOOKUP(PJ!$D$16,'Données (Défauts, Talents)'!$D$80:$T$124,ROW($B122)-79,FALSE)=\"*2\",$C122*2,$C122+HLOOKUP(PJ!$D$16,'Données (Défauts, Talents)'!$D$80:$T$124,ROW($B122)-79,FALSE))","v":{"$error":"#N/A"}},null,{"$f":"IF(AND(HLOOKUP(PJ!$D$16,'Données (Défauts, Talents)'!$D$80:$T$124,ROW($B122)-79,FALSE)=\"+5\",$W122<>0),$W122+10,IF(AND(HLOOKUP(PJ!$D$16,'Données (Défauts, Talents)'!$D$80:$T$124,ROW($B122)-79,FALSE)=\"*2\",$W122<>0),$W122-5,$W122))","v":{"$error":"#N/A"}},"Le personnage est spécialisé dans l'utilisation de toutes les armes indirectes (de la catapulte à l'obusier, en passant par le mortier). Le pourcentage de réussite de ce talent est (IN+PE)x5%.",null,null,null,null,null,null,null,null,null,null,null,null,null,null,null,null,null,null,null,null,null,null,null,null,null,null,null,null,null,null,null,null,null,30,30,{"$f":"PJ!AG47","v":5}]
[{"$f":"_xlfn.IFNA(MATCH(U123,PJ!$C$48:$C$53,0),0)","v":0},"Tir rapide",-15,"+5","+5",null,"*2","+5","*2","*2",null,null,null,null,null,"+5",null,"+5",null,"+5",{"$f":"B123&\" (\"&C123&HLOOKUP(PJ!$D$16,'Données (Défauts, Talents)'!$D$80:$T$124,ROW(B123)-79,FALSE)&\")\"&IF(X123<>0,\" PP+\" &X123,\"\")&\" [+\"&BG123&\"%]\"","v":{"$error":"#N/A"}},{"$f":"IF(HLOOKUP(PJ!$D$16,'Données (Défauts, Talents)'!$D$80:$T$124,ROW($B123)-79,FALSE)=\"*2\",$C123*2,$C123+HLOOKUP(PJ!$D$16,'Données (Défauts, Talents)'!$D$80:$T$124,ROW($B123)-79,FALSE))","v":{"$error":"#N/A"}},null,{"$f":"IF(AND(HLOOKUP(PJ!$D$16,'Données (Défauts, Talents)'!$D$80:$T$124,ROW($B123)-79,FALSE)=\"+5\",$W123<>0),$W123+10,IF(AND(HLOOKUP(PJ!$D$16,'Données (Défauts, Talents)'!$D$80:$T$124,ROW($B123)-79,FALSE)=\"*2\",$W123<>0),$W123-5,$W123))","v":{"$error":"#N/A"}},"Le joueur choisit une arme qu'il connaît parfaitement. Il obtient un binus de 5% au toucher et multiplie par 2 sa rapidité lors de l'initiative quand il utilise cette arme.",null,null,null,null,null,null,null,null,null,null,null,null,null,null,null,null,null,null,null,null,null,null,null,null,null,null,null,null,null,null,null,null,null,30,30,{"$f":"PJ!AG48","v":5}]
[{"$f":"_xlfn.IFNA(MATCH(U124,PJ!$C$48:$C$53,0),0)","v":0},"Tricherie",-20,"*2",null,null,"*2",null,null,null,null,null,"+5","+5",null,null,null,null,"+5","*2",{"$f":"B124&\" (\"&C124&HLOOKUP(PJ!$D$16,'Données (Défauts, Talents)'!$D$80:$T$124,ROW(B124)-79,FALSE)&\")\"&IF(X124<>0,\" PP+\" &X124,\"\")&\" [+\"&BG124&\"%]\"","v":{"$error":"#N/A"}},{"$f":"IF(HLOOKUP(PJ!$D$16,'Données (Défauts, Talents)'!$D$80:$T$124,ROW($B124)-79,FALSE)=\"*2\",$C124*2,$C124+HLOOKUP(PJ!$D$16,'Données (Défauts, Talents)'!$D$80:$T$124,ROW($B124)-79,FALSE))","v":{"$error":"#N/A"}},null,{"$f":"IF(AND(HLOOKUP(PJ!$D$16,'Données (Défauts, Talents)'!$D$80:$T$124,ROW($B124)-79,FALSE)=\"+5\",$W124<>0),$W124+10,IF(AND(HLOOKUP(PJ!$D$16,'Données (Défauts, Talents)'!$D$80:$T$124,ROW($B124)-79,FALSE)=\"*2\",$W124<>0),$W124-5,$W124))","v":{"$error":"#N/A"}},"Le personnage qui possède ce talent peut tricher sans se faire remarquer, en modifiant les chances de gain de INx8%. Ses adversaires ont droit à un jet de repérage pour remarquer la supercherie.",null,null,null,null,null,null,null,null,null,null,null,null,null,null,null,null,null,null,null,null,null,null,null,null,null,null,null,null,null,null,null,null,null,20,20,{"$f":"PJ!AG49","v":5}]
[null,"Prestige et Réputation"]
[{"$f":"IF(PJ!$P$18<C126,1,0)","v":0},"Malus de Prestige",-100,null,null,null,null,null,null,null,null,null,null,null,null,null,null,null,null,null,null,null,null,null,null,null,null,null,null,null,null,null,null,null,null,null,null,null,null,null,null,null,null,null,null,null,null,null,null,null,-100,null,null,null,null,-50]
[{"$f":"IF(AND(PJ!$P$18<C127,PJ!$P$18>=C126),1,0)","v":0},"Malus de Prestige",-50,null,null,null,null,null,null,null,null,null,null,null,null,null,null,null,null,null,null,null,null,null,null,null,null,null,null,null,null,null,null,null,null,null,null,null,null,null,null,null,null,null,null,null,null,null,null,null,-80,null,null,null,null,-30]
[{"$f":"IF(AND(PJ!$P$18<C128,PJ!$P$18>=C127),1,0)","v":0},"Malus de Prestige",0,null,null,null,null,null,null,null,null,null,null,null,null,null,null,null,null,null,null,null,null,null,null,null,null,null,null,null,null,null,null,null,null,null,null,null,null,null,null,null,null,null,null,null,null,null,null,null,-30,null,null,null,null,-10]
[{"$f":"IF(AND(PJ!$P$18<C129,PJ!$P$18>=C128),1,0)","v":1},"Malus de Prestige",10,null,null,null,null,null,null,null,null,null,null,null,null,null,null,null,null,null,null,null,null,null,null,null,null,null,null,null,null,null,null,null,null,null,null,null,null,null,null,null,null,null,null,null,null,null,null,null,-10]
[{"$f":"IF(AND(PJ!$P$18<C130,PJ!$P$18>=C129),1,0)","v":0},null,20]
[{"$f":"IF(AND(PJ!$P$18<C131,PJ!$P$18>=C130),1,0)","v":0},"Bonus de Prestige",100,null,null,null,null,null,null,null,null,null,null,null,null,null,null,null,null,null,null,null,null,null,null,null,null,null,null,null,null,null,null,null,null,null,null,null,null,null,null,null,null,null,null,null,null,null,null,null,10,null,null,null,null,10]
[{"$f":"IF(AND(PJ!$P$18<C132,PJ!$P$18>=C131),1,0)","v":0},"Bonus de Prestige",500,null,null,null,null,null,null,null,null,null,null,null,null,null,null,null,null,null,null,null,null,null,null,null,null,null,null,null,null,null,null,null,null,null,null,null,null,null,null,null,null,null,null,null,null,null,null,null,40,null,null,null,null,30]
[{"$f":"IF(AND(PJ!$P$18<C133,PJ!$P$18>=C132),1,0)","v":0},"Bonus de Prestige",1000,null,null,null,null,null,null,null,null,null,null,null,null,null,null,null,null,null,null,null,null,null,null,null,null,null,null,null,null,null,null,null,null,null,null,null,null,null,null,null,null,null,null,null,null,null,null,null,45,null,null,null,null,35]
[{"$f":"IF(AND(PJ!$P$18<C134,PJ!$P$18>=C133),1,0)","v":0},"Bonus de Prestige",5000,null,null,null,null,null,null,null,null,null,null,null,null,null,null,null,null,null,null,null,null,null,null,null,null,null,null,null,null,null,null,null,null,null,null,null,null,null,null,null,null,null,null,null,null,null,null,null,50,null,null,null,null,40]
[{"$f":"IF(PJ!$P$18>=C134,1,0)","v":0},"Bonus de Prestige","+",null,null,null,null,null,null,null,null,null,null,null,null,null,null,null,null,null,null,null,null,null,null,null,null,null,null,null,null,null,null,null,null,null,null,null,null,null,null,null,null,null,null,null,null,null,null,null,55,null,null,null,null,45]
[null,"Equipement spécial"]
[{"$f":"IFERROR(INDEX(PJ!B85:B105,MATCH(B137,PJ!C85:C105,0))*ROUNDUP(1/VLOOKUP(B137,PJ!C85:G105,5,FALSE),0),0)","v":0},"Trousse de soins ($ 4 000)",null,null,null,null,null,null,null,null,null,null,null,null,null,null,null,null,null,null,null,null,null,null,null,null,null,null,null,null,null,null,null,null,null,null,null,null,null,null,null,null,null,null,null,null,null,null,null,null,null,null,20]
[{"$f":"IFERROR(INDEX(PJ!B86:B106,MATCH(B138,PJ!C86:C106,0))*ROUNDUP(1/VLOOKUP(B138,PJ!C86:G106,5,FALSE),0),0)","v":0},"Trousse de maquillage ($ 300)",null,null,null,null,null,null,null,null,null,null,null,null,null,null,null,null,null,null,null,null,null,null,null,null,null,null,null,null,null,null,null,null,null,null,null,null,null,null,null,null,null,null,null,null,null,null,null,null,null,null,null,null,null,10]
[{"$f":"IFERROR(INDEX(PJ!B87:B107,MATCH(\"Viseur infra-rouge ($ 6 000)\",PJ!C87:C107,0))*ROUNDUP(1/VLOOKUP(\"Viseur infra-rouge ($ 6 000)\",PJ!C87:G107,5,FALSE),0),0)","v":0},"Tir de nuit avec Viseur IR",null,null,null,null,null,null,null,null,null,null,null,null,null,null,null,null,null,null,null,null,null,null,null,null,null,null,null,null,null,null,null,null,null,null,null,null,null,null,null,null,null,null,null,null,null,null,null,null,null,null,null,null,null,null,25]

{"sheet":"Données (Equipements)","index":3,"n_rows":153,"n_cols":36,"rows_kept":153,"cut":false,"hidden":true,"merged":[]}
[]
[{"$f":"SUBTOTAL(3,PJ!C59:C68)","v":0},"Armes de jet","Affichage",null,"Amazones","Conf. Serpent","Enfants","Conservateurs","Fils du métal","Fermiers","Guerisseurs","Garagistes","Skinheads","Punks","Yankees","Vikings","Indiens","Hell's Angels","Mercenaires","Marchands","Justiciers","Précision","Dommage","Portée / Rayon","CDF","Poids","Prix","Mains / Hommes","Magasin","Pose","Transport","Qtt / Type de munitions","Explication","Utilisation","Jet min","Jet max"]
[{"$f":"IF(ISERROR(SEARCH($A$2+1,HLOOKUP(PJ!$D$16,$E$2:$U$88,ROW($B3)-1,FALSE))),A2,A2+1)","v":0},"Boomerang",{"$f":"B3&\" (\"&TEXT(AA3,\"$ # ##0\")&\")\"","v":"Boomerang ($ 450)"},{"$f":"_xlfn.IFNA(VLOOKUP(ROW(A3)+$A$2-2,A3:C88,3,FALSE),)","v":0},23,1234,null,null,245,3,null,12,1234,1,12,3,23,23,123456,null,3,"-10","D6+2","25/50","1",900,450,"1",null,null,null,"2",null,2,3,8]
[{"$f":"IF(ISERROR(SEARCH($A$2+1,HLOOKUP(PJ!$D$16,$E$2:$U$88,ROW($B4)-1,FALSE))),A3,A3+1)","v":0},"Cocktail Molotov","Cocktail Molotov ($ 300)",0,23,1234,234,null,245,3,null,12,1234,123456,12,3,23,23,123456,null,3,"+5","D6+2","07/15","1",400,300,"2",null,null,null,"4",null,2,3,8]
[{"$f":"IF(ISERROR(SEARCH($A$2+1,HLOOKUP(PJ!$D$16,$E$2:$U$88,ROW($B5)-1,FALSE))),A4,A4+1)","v":0},"Cran d'arrêt","Cran d'arrêt ($ 280)",0,23,1234,234,null,245,3,null,12,1234,123456,12,3,23,23,123456,null,3,"+5","D6-1","05/10","2",250,280,"1",null,null,null,"4",null,4,0,5]
[{"$f":"IF(ISERROR(SEARCH($A$2+1,HLOOKUP(PJ!$D$16,$E$2:$U$88,ROW($B6)-1,FALSE))),A5,A5+1)","v":0},"Epieu","Epieu ($ 400)",0,23,1234,234,null,245,3,1,12,1234,123456,12,3,23,23,123456,null,3,"0","D6+2","04/08","1",3500,400,"1",null,null,null,"4",null,4,3,8]
[{"$f":"IF(ISERROR(SEARCH($A$2+1,HLOOKUP(PJ!$D$16,$E$2:$U$88,ROW($B7)-1,FALSE))),A6,A6+1)","v":0},"Filet","Filet ($ 500)",0,23,1234,null,null,245,3,null,12,1234,1,12,3,23,23,123456,null,3,"+10",null,"01/02","1/3",1000,500,"2",null,null,null,"1",null,2]
[{"$f":"IF(ISERROR(SEARCH($A$2+1,HLOOKUP(PJ!$D$16,$E$2:$U$88,ROW($B8)-1,FALSE))),A7,A7+1)","v":0},"Fléchette","Fléchette ($ 100)",0,23,1234,234,null,245,3,1,12,1234,123456,12,3,23,23,123456,null,3,"+10","D6-2","03/06","3",50,100,"1",null,null,null,"4",null,2,0,4]
[{"$f":"IF(ISERROR(SEARCH($A$2+1,HLOOKUP(PJ!$D$16,$E$2:$U$88,ROW($B9)-1,FALSE))),A8,A8+1)","v":0},"Grappin","Grappin ($ 700)",0,23,1234,null,null,245,null,null,12,1234,1,12,3,23,23,123456,null,3,"-10","D6+2","05/10","1/2",3000,700,"2",null,null,null,"1",null,2,3,8]
[{"$f":"IF(ISERROR(SEARCH($A$2+1,HLOOKUP(PJ!$D$16,$E$2:$U$88,ROW($B10)-1,FALSE))),A9,A9+1)","v":0},"Grenade Défensive","Grenade Défensive ($ 600)",0,23,1234,null,null,245,null,null,12,1234,1,12,3,23,23,123456,null,3,"+10","6D6E10","20/30","1",500,600,"1",null,null,null,"1",null,2,6,36]
[{"$f":"IF(ISERROR(SEARCH($A$2+1,HLOOKUP(PJ!$D$16,$E$2:$U$88,ROW($B11)-1,FALSE))),A10,A10+1)","v":0},"Grenade Fumigène","Grenade Fumigène ($ 350)",0,23,1234,234,null,245,3,null,12,1234,1,12,3,23,23,123456,null,3,"+10",null,"25/35","1",200,350,"1",null,null,null,"2",null,2]
[{"$f":"IF(ISERROR(SEARCH($A$2+1,HLOOKUP(PJ!$D$16,$E$2:$U$88,ROW($B12)-1,FALSE))),A11,A11+1)","v":0},"Grenade Incendiaire","Grenade Incendiaire ($ 950)",0,23,1234,null,null,245,null,null,12,1234,1,12,3,23,23,123456,null,3,"+10","5D6E10","20/30","1",400,950,"1",null,null,null,"1",null,2,5,30]
[{"$f":"IF(ISERROR(SEARCH($A$2+1,HLOOKUP(PJ!$D$16,$E$2:$U$88,ROW($B13)-1,FALSE))),A12,A12+1)","v":0},"Grenade Lacrymogène","Grenade Lacrymogène ($ 400)",0,23,1234,234,null,245,3,null,12,1234,1,12,3,23,23,123456,null,3,"+10",null,"25/35","1",200,400,"1",null,null,null,"2",null,2]
[{"$f":"IF(ISERROR(SEARCH($A$2+1,HLOOKUP(PJ!$D$16,$E$2:$U$88,ROW($B14)-1,FALSE))),A13,A13+1)","v":0},"Grenade Offensive","Grenade Offensive ($ 500)",0,23,1234,null,null,245,3,null,12,1234,1,12,3,23,23,123456,null,3,"+10","4D6E2","20/30","1",400,500,"1",null,null,null,"1",null,2,4,24]
[{"$f":"IF(ISERROR(SEARCH($A$2+1,HLOOKUP(PJ!$D$16,$E$2:$U$88,ROW($B15)-1,FALSE))),A14,A14+1)","v":0},"Hachette","Hachette ($ 300)",0,23,1234,234,null,245,3,null,12,1234,123456,12,3,23,23,123456,null,3,"0","D6","04/08","1",2000,300,"1",null,null,null,"4",null,4,1,6]
[{"$f":"IF(ISERROR(SEARCH($A$2+1,HLOOKUP(PJ!$D$16,$E$2:$U$88,ROW($B16)-1,FALSE))),A15,A15+1)","v":0},"Javeline","Javeline ($ 250)",{"$f":"_xlfn.IFNA(VLOOKUP(ROW(A16)+$A$2-2,A16:C104,3,FALSE),)","v":0},23,1234,234,null,245,3,null,12,1234,123456,12,3,23,23,123456,null,3,"+10","D6+1","25/50","1",900,250,"1",null,null,null,"4",null,2,2,7]
[{"$f":"IF(ISERROR(SEARCH($A$2+1,HLOOKUP(PJ!$D$16,$E$2:$U$88,ROW($B17)-1,FALSE))),A16,A16+1)","v":0},"Poignard","Poignard ($ 250)",{"$f":"_xlfn.IFNA(VLOOKUP(ROW(A17)+$A$2-2,A17:C108,3,FALSE),)","v":0},23,1234,234,null,245,3,null,12,1234,123456,12,3,23,23,123456,null,3,"+5","D6","07/15","2",400,250,"1",null,null,null,"4",null,4,1,6]
[{"$f":"IF(ISERROR(SEARCH($A$2+1,HLOOKUP(PJ!$D$16,$E$2:$U$88,ROW($B18)-1,FALSE))),A17,A17+1)","v":0},"Shuriken","Shuriken ($ 250)",{"$f":"_xlfn.IFNA(VLOOKUP(ROW(A18)+$A$2-2,A18:C109,3,FALSE),)","v":0},23,1234,234,null,245,3,null,12,1234,123456,12,3,23,23,123456,null,3,"+10","D6-1","05/10","3",75,250,"1",null,null,null,"4",null,2,0,5]
[{"$f":"IF(ISERROR(SEARCH($A$2+1,HLOOKUP(PJ!$D$16,$E$2:$U$88,ROW($B19)-1,FALSE))),A18,A18+1)","v":0},"Trident","Trident ($ 450)",{"$f":"_xlfn.IFNA(VLOOKUP(ROW(A19)+$A$2-2,A19:C110,3,FALSE),)","v":0},23,1234,null,null,245,3,null,12,1234,1,12,3,23,23,123456,null,3,"-5","D6+2","02/04","1",4000,450,"1",null,null,null,"2",null,4,3,8]
[{"$f":"IF(ISERROR(SEARCH($A$2+1,HLOOKUP(PJ!$D$16,$E$2:$U$88,ROW($B20)-1,FALSE))),A19,A19+1)","v":0},"Armes de Corps à Corps",null,{"$f":"_xlfn.IFNA(VLOOKUP(ROW(A20)+$A$2-2,A20:C111,3,FALSE),)","v":0}]
[{"$f":"IF(ISERROR(SEARCH($A$2+1,HLOOKUP(PJ!$D$16,$E$2:$U$88,ROW($B21)-1,FALSE))),A20,A20+1)","v":0},"Chaine de moto",{"$f":"B21&\" (\"&TEXT(AA21,\"$ # ##0\")&\")\"","v":"Chaine de moto ($ 150)"},{"$f":"_xlfn.IFNA(VLOOKUP(ROW(A21)+$A$2-2,A21:C112,3,FALSE),)","v":0},23,1234,234,null,145,13,1,12,1234,123456,12,3,23,123,123456,2,13,"-5","D6-1",null,null,1500,150,"1",null,null,null,"1",null,1,0,5]
[{"$f":"IF(ISERROR(SEARCH($A$2+1,HLOOKUP(PJ!$D$16,$E$2:$U$88,ROW($B22)-1,FALSE))),A21,A21+1)","v":0},"Cran d'arrêt","Cran d'arrêt ($ 280)",{"$f":"_xlfn.IFNA(VLOOKUP(ROW(A22)+$A$2-2,A22:C115,3,FALSE),)","v":0},23,1234,234,null,145,13,null,12,1234,123456,12,3,23,123,123456,2,13,"+10","D6-1",null,null,250,280,"1",null,null,null,"1",null,4,0,5]
[{"$f":"IF(ISERROR(SEARCH($A$2+1,HLOOKUP(PJ!$D$16,$E$2:$U$88,ROW($B23)-1,FALSE))),A22,A22+1)","v":0},"Epée","Epée ($ 300)",{"$f":"_xlfn.IFNA(VLOOKUP(ROW(A23)+$A$2-2,A23:C116,3,FALSE),)","v":0},23,1234,234,null,145,13,null,12,1234,123456,12,3,23,123,123456,2,13,"+5","D6+1",null,null,2000,300,"1-2",null,null,null,"1",null,1,2,7]
[{"$f":"IF(ISERROR(SEARCH($A$2+1,HLOOKUP(PJ!$D$16,$E$2:$U$88,ROW($B24)-1,FALSE))),A23,A23+1)","v":0},"Epée à deux mains","Epée à deux mains ($ 350)",{"$f":"_xlfn.IFNA(VLOOKUP(ROW(A24)+$A$2-2,A24:C117,3,FALSE),)","v":0},23,1234,234,null,145,13,null,12,1234,1,12,3,23,123,123456,2,13,"0","D6+2",null,null,3000,350,"2",null,null,null,"1",null,1,3,8]
[{"$f":"IF(ISERROR(SEARCH($A$2+1,HLOOKUP(PJ!$D$16,$E$2:$U$88,ROW($B25)-1,FALSE))),A24,A24+1)","v":0},"Epée courte","Epée courte ($ 250)",{"$f":"_xlfn.IFNA(VLOOKUP(ROW(A25)+$A$2-2,A25:C118,3,FALSE),)","v":0},23,1234,234,null,145,13,null,12,1234,123456,12,3,23,123,123456,2,13,"+5","D6",null,null,1500,250,"1",null,null,null,"1",null,1,1,6]
[{"$f":"IF(ISERROR(SEARCH($A$2+1,HLOOKUP(PJ!$D$16,$E$2:$U$88,ROW($B26)-1,FALSE))),A25,A25+1)","v":0},"Epieu","Epieu ($ 400)",{"$f":"_xlfn.IFNA(VLOOKUP(ROW(A26)+$A$2-2,A26:C123,3,FALSE),)","v":0},23,1234,234,null,145,13,null,12,1234,1,12,3,23,123,123456,2,13,"+5","D6+2",null,null,3500,400,"2",null,null,null,"1",null,4,3,8]
[{"$f":"IF(ISERROR(SEARCH($A$2+1,HLOOKUP(PJ!$D$16,$E$2:$U$88,ROW($B27)-1,FALSE))),A26,A26+1)","v":0},"Fléau","Fléau ($ 300)",{"$f":"_xlfn.IFNA(VLOOKUP(ROW(A27)+$A$2-2,A27:C124,3,FALSE),)","v":0},23,1234,234,null,145,13,null,12,1234,123456,12,3,23,123,123456,2,13,"-10","D6+3",null,null,4500,300,"2",null,null,null,"1",null,1,4,9]
[{"$f":"IF(ISERROR(SEARCH($A$2+1,HLOOKUP(PJ!$D$16,$E$2:$U$88,ROW($B28)-1,FALSE))),A27,A27+1)","v":0},"Fleuret","Fleuret ($ 400)",{"$f":"_xlfn.IFNA(VLOOKUP(ROW(A28)+$A$2-2,A28:C125,3,FALSE),)","v":0},23,1234,234,null,145,13,null,12,1234,1,12,3,23,123,123456,2,13,"+10","D6",null,null,500,400,"1",null,null,null,"1",null,1,1,6]
[{"$f":"IF(ISERROR(SEARCH($A$2+1,HLOOKUP(PJ!$D$16,$E$2:$U$88,ROW($B29)-1,FALSE))),A28,A28+1)","v":0},"Fouet","Fouet ($ 90)",{"$f":"_xlfn.IFNA(VLOOKUP(ROW(A29)+$A$2-2,A29:C127,3,FALSE),)","v":0},23,1234,234,null,145,13,1,12,1234,123456,12,3,23,123,123456,2,13,"0","D6-2",null,null,1100,90,"1",null,null,null,"1",null,1,0,4]
[{"$f":"IF(ISERROR(SEARCH($A$2+1,HLOOKUP(PJ!$D$16,$E$2:$U$88,ROW($B30)-1,FALSE))),A29,A29+1)","v":0},"Fourche","Fourche ($ 350)",0,23,1234,234,null,145,123,null,12,1234,1,12,3,23,123,123456,2,13,"0","D6+1",null,null,3500,350,"2",null,null,null,"1",null,1,2,7]
[{"$f":"IF(ISERROR(SEARCH($A$2+1,HLOOKUP(PJ!$D$16,$E$2:$U$88,ROW($B31)-1,FALSE))),A30,A30+1)","v":0},"Garrot","Garrot ($ 70)",0,23,1234,234,null,145,13,1,12,1234,123456,12,3,23,123,123456,2,13,"+5","D6-3",null,null,20,70,"2",null,null,null,"1",null,1,0,3]
[{"$f":"IF(ISERROR(SEARCH($A$2+1,HLOOKUP(PJ!$D$16,$E$2:$U$88,ROW($B32)-1,FALSE))),A31,A31+1)","v":0},"Glaive","Glaive ($ 250)",0,23,1234,234,null,145,13,null,12,1234,123456,12,3,23,123,123456,2,13,"0","D6+1",null,null,1500,250,"1-2",null,null,null,"1",null,1,2,7]
[{"$f":"IF(ISERROR(SEARCH($A$2+1,HLOOKUP(PJ!$D$16,$E$2:$U$88,ROW($B33)-1,FALSE))),A32,A32+1)","v":0},"Griffe de combat","Griffe de combat ($ 100)",0,23,1234,234,null,145,13,1,12,1234,123456,12,3,23,123,123456,2,13,"+5","D6",null,null,200,100,"1",null,null,null,"1",null,1,1,6]
[{"$f":"IF(ISERROR(SEARCH($A$2+1,HLOOKUP(PJ!$D$16,$E$2:$U$88,ROW($B34)-1,FALSE))),A33,A33+1)","v":0},"Hache","Hache ($ 400)",0,23,1234,234,null,145,123,null,12,1234,1,12,13,23,123,123456,2,13,"0","D6+1",null,null,4000,400,"1-2",null,null,null,"1",null,1,2,7]
[{"$f":"IF(ISERROR(SEARCH($A$2+1,HLOOKUP(PJ!$D$16,$E$2:$U$88,ROW($B35)-1,FALSE))),A34,A34+1)","v":0},"Hachette","Hachette ($ 300)",{"$f":"_xlfn.IFNA(VLOOKUP(ROW(A35)+$A$2-2,A35:C134,3,FALSE),)","v":0},23,1234,234,null,145,13,null,12,1234,123456,12,3,23,123,123456,2,13,"0","D6",null,null,2000,300,"1",null,null,null,"1",null,4,1,6]
[{"$f":"IF(ISERROR(SEARCH($A$2+1,HLOOKUP(PJ!$D$16,$E$2:$U$88,ROW($B36)-1,FALSE))),A35,A35+1)","v":0},"Katana","Katana ($ 2 000)",{"$f":"_xlfn.IFNA(VLOOKUP(ROW(A36)+$A$2-2,A36:C135,3,FALSE),)","v":0},null,12,null,null,1,null,null,null,1234,null,null,null,null,1,1,null,1,"+5","D6+2",null,null,1800,2000,"1-2",null,null,null,"1",null,1,3,8]
[{"$f":"IF(ISERROR(SEARCH($A$2+1,HLOOKUP(PJ!$D$16,$E$2:$U$88,ROW($B37)-1,FALSE))),A36,A36+1)","v":0},"Lance","Lance ($ 500)",{"$f":"_xlfn.IFNA(VLOOKUP(ROW(A37)+$A$2-2,A37:C136,3,FALSE),)","v":0},23,1234,null,null,145,13,null,12,1234,1,12,3,23,123,123456,2,13,"-5","D6+2",null,null,4000,500,"1",null,null,null,"1",null,1,3,8]
[{"$f":"IF(ISERROR(SEARCH($A$2+1,HLOOKUP(PJ!$D$16,$E$2:$U$88,ROW($B38)-1,FALSE))),A37,A37+1)","v":0},"Masse d'arme","Masse d'arme ($ 350)",{"$f":"_xlfn.IFNA(VLOOKUP(ROW(A38)+$A$2-2,A38:C136,3,FALSE),)","v":0},23,1234,234,null,145,13,null,12,1234,1,12,3,23,123,123456,2,13,"-5","D6+2",null,null,3000,350,"1-2",null,null,null,"1",null,1,3,8]
[{"$f":"IF(ISERROR(SEARCH($A$2+1,HLOOKUP(PJ!$D$16,$E$2:$U$88,ROW($B39)-1,FALSE))),A38,A38+1)","v":0},"Matraque","Matraque ($ 200)",{"$f":"_xlfn.IFNA(VLOOKUP(ROW(A39)+$A$2-2,A39:C137,3,FALSE),)","v":0},23,1234,234,null,145,13,1,12,1234,123456,12,3,23,123,123456,2,13,"+5","D6-1",null,null,800,200,"1",null,null,null,"1",null,1,0,5]
[{"$f":"IF(ISERROR(SEARCH($A$2+1,HLOOKUP(PJ!$D$16,$E$2:$U$88,ROW($B40)-1,FALSE))),A39,A39+1)","v":0},"Ninjato",{"$f":"B40&\" (\"&TEXT(AA40,\"$ # ##0\")&\")\"","v":"Ninjato ($ 1 500)"},{"$f":"_xlfn.IFNA(VLOOKUP(ROW(A40)+$A$2-2,A40:C138,3,FALSE),)","v":0},null,12,null,null,1,null,null,null,1234,null,null,null,null,1,1,null,1,"+10","D6+1",null,null,800,1500,"1",null,null,null,"1",null,1,2,7]
[{"$f":"IF(ISERROR(SEARCH($A$2+1,HLOOKUP(PJ!$D$16,$E$2:$U$88,ROW($B41)-1,FALSE))),A40,A40+1)","v":0},"Nuchaku",{"$f":"B41&\" (\"&TEXT(AA41,\"$ # ##0\")&\")\"","v":"Nuchaku ($ 300)"},{"$f":"_xlfn.IFNA(VLOOKUP(ROW(A41)+$A$2-2,A41:C142,3,FALSE),)","v":0},23,1234,234,null,145,13,null,12,1234,123456,12,3,23,123,123456,2,13,"-5","D6",null,null,1000,300,"1",null,null,null,"1",null,1,1,6]
[{"$f":"IF(ISERROR(SEARCH($A$2+1,HLOOKUP(PJ!$D$16,$E$2:$U$88,ROW($B42)-1,FALSE))),A41,A41+1)","v":0},"Parcmètre",{"$f":"B42&\" (\"&TEXT(AA42,\"$ # ##0\")&\")\"","v":"Parcmètre ($ 150)"},{"$f":"_xlfn.IFNA(VLOOKUP(ROW(A42)+$A$2-2,A42:C143,3,FALSE),)","v":0},23,1234,234,null,145,13,1,12,1234,123456,12,3,23,123,123456,2,13,"-10","D6-2",null,null,1200,150,"1-2",null,null,null,"1",null,1,0,4]
[{"$f":"IF(ISERROR(SEARCH($A$2+1,HLOOKUP(PJ!$D$16,$E$2:$U$88,ROW($B43)-1,FALSE))),A42,A42+1)","v":0},"Poignard","Poignard ($ 250)",{"$f":"_xlfn.IFNA(VLOOKUP(ROW(A43)+$A$2-2,A43:C145,3,FALSE),)","v":0},23,1234,234,null,145,13,null,12,1234,123456,12,3,23,123,123456,2,13,"+5","D6",null,null,400,250,"1",null,null,null,"1",null,4,1,6]
[{"$f":"IF(ISERROR(SEARCH($A$2+1,HLOOKUP(PJ!$D$16,$E$2:$U$88,ROW($B44)-1,FALSE))),A43,A43+1)","v":0},"Poing Américain","Poing Américain ($ 180)",{"$f":"_xlfn.IFNA(VLOOKUP(ROW(A44)+$A$2-2,A44:C143,3,FALSE),)","v":0},23,1234,234,null,145,13,1,12,1234,123456,12,3,23,123,123456,2,13,"0",null,null,null,500,180,"1",null,null,null,"1",null,1]
[{"$f":"IF(ISERROR(SEARCH($A$2+1,HLOOKUP(PJ!$D$16,$E$2:$U$88,ROW($B45)-1,FALSE))),A44,A44+1)","v":0},"Sabre","Sabre ($ 350)",{"$f":"_xlfn.IFNA(VLOOKUP(ROW(A45)+$A$2-2,A45:C145,3,FALSE),)","v":0},23,1234,234,null,145,13,null,12,1234,1,12,3,23,123,123456,2,13,"-5","D6+1",null,null,2500,350,"1",null,null,null,"1",null,1,2,7]
[{"$f":"IF(ISERROR(SEARCH($A$2+1,HLOOKUP(PJ!$D$16,$E$2:$U$88,ROW($B46)-1,FALSE))),A45,A45+1)","v":0},"Trident","Trident ($ 450)",{"$f":"_xlfn.IFNA(VLOOKUP(ROW(A46)+$A$2-2,A46:C146,3,FALSE),)","v":0},23,1234,null,null,145,13,null,12,1234,1,12,3,23,123,123456,2,13,"0","D6+2",null,null,4000,450,"1-2",null,null,null,"1",null,4,3,8]
[{"$f":"IF(ISERROR(SEARCH($A$2+1,HLOOKUP(PJ!$D$16,$E$2:$U$88,ROW($B47)-1,FALSE))),A46,A46+1)","v":0},"Tronçonneuse","Tronçonneuse ($ 3 000)",{"$f":"_xlfn.IFNA(VLOOKUP(ROW(A47)+$A$2-2,A47:C147,3,FALSE),)","v":0},null,12,null,null,1,null,null,null,1234,null,null,null,null,1,1,null,1,"-5","2D6+1",null,null,6000,3000,"2",null,null,null,"1",null,1,3,13]
[{"$f":"IF(ISERROR(SEARCH($A$2+1,HLOOKUP(PJ!$D$16,$E$2:$U$88,ROW($B48)-1,FALSE))),A47,A47+1)","v":0},"Bouclier",null,{"$f":"_xlfn.IFNA(VLOOKUP(ROW(A48)+$A$2-2,A48:C147,3,FALSE),)","v":0}]
[{"$f":"IF(ISERROR(SEARCH($A$2+1,HLOOKUP(PJ!$D$16,$E$2:$U$88,ROW($B49)-1,FALSE))),A48,A48+1)","v":0},"Targe",{"$f":"B49&\" (\"&TEXT(AA49,\"$ # ##0\")&\")\"","v":"Targe ($ 150)"},{"$f":"_xlfn.IFNA(VLOOKUP(ROW(A49)+$A$2-2,A49:C147,3,FALSE),)","v":0},23,1234,234,null,145,13,1,12,1234,123456,12,3,23,23,123456,2,3,null,null,null,null,500,150,"0",null,null,null,"1",null,1]
[{"$f":"IF(ISERROR(SEARCH($A$2+1,HLOOKUP(PJ!$D$16,$E$2:$U$88,ROW($B50)-1,FALSE))),A49,A49+1)","v":0},"Bouclier",{"$f":"B50&\" (\"&TEXT(AA50,\"$ # ##0\")&\")\"","v":"Bouclier ($ 300)"},{"$f":"_xlfn.IFNA(VLOOKUP(ROW(A50)+$A$2-2,A50:C147,3,FALSE),)","v":0},23,1234,234,null,145,13,null,12,1234,123456,12,23,23,23,123456,2,3,null,null,null,null,1000,300,"1",null,null,null,"1",null,1]
[{"$f":"IF(ISERROR(SEARCH($A$2+1,HLOOKUP(PJ!$D$16,$E$2:$U$88,ROW($B51)-1,FALSE))),A50,A50+1)","v":0},"Pavois",{"$f":"B51&\" (\"&TEXT(AA51,\"$ # ##0\")&\")\"","v":"Pavois ($ 600)"},{"$f":"_xlfn.IFNA(VLOOKUP(ROW(A51)+$A$2-2,A51:C147,3,FALSE),)","v":0},23,1234,null,null,145,1,null,12,1234,1,12,3,23,23,123456,2,3,null,null,null,null,3000,600,"1",null,null,null,"1",null,1]
[{"$f":"IF(ISERROR(SEARCH($A$2+1,HLOOKUP(PJ!$D$16,$E$2:$U$88,ROW($B52)-1,FALSE))),A51,A51+1)","v":0},"Armes à Distance",null,{"$f":"_xlfn.IFNA(VLOOKUP(ROW(A52)+$A$2-2,A52:C147,3,FALSE),)","v":0}]
[{"$f":"IF(ISERROR(SEARCH($A$2+1,HLOOKUP(PJ!$D$16,$E$2:$U$88,ROW($B53)-1,FALSE))),A52,A52+1)","v":0},"Arbalète",{"$f":"B53&\" (\"&TEXT(AA53,\"$ # ##0\")&\")\"","v":"Arbalète ($ 600)"},{"$f":"_xlfn.IFNA(VLOOKUP(ROW(A53)+$A$2-2,A53:C147,3,FALSE),)","v":0},123,1234,1,null,345,null,null,12,1234,1,12,3,123,23,123456,1,23,"+10","D6+2","50/100","1/3",{"$f":"2500-AC53*Z91","v":2480},600,"2","1",null,null,"B",null,3,3,8]
[{"$f":"IF(ISERROR(SEARCH($A$2+1,HLOOKUP(PJ!$D$16,$E$2:$U$88,ROW($B54)-1,FALSE))),A53,A53+1)","v":0},"Arbalète de poing","Arbalète de poing ($ 400)",{"$f":"_xlfn.IFNA(VLOOKUP(ROW(A54)+$A$2-2,A54:C147,3,FALSE),)","v":0},123,1234,1234,null,345,3,null,12,1234,1,12,3,123,23,123456,1,23,"+5","D6+1","15/30","1/3",{"$f":"900-AC54*Z91","v":880},400,"1-2","1",null,null,"B",null,3,2,7]
[{"$f":"IF(ISERROR(SEARCH($A$2+1,HLOOKUP(PJ!$D$16,$E$2:$U$88,ROW($B55)-1,FALSE))),A54,A54+1)","v":0},"Arbalète à répétition","Arbalète à répétition ($ 2 000)",{"$f":"_xlfn.IFNA(VLOOKUP(ROW(A55)+$A$2-2,A55:C147,3,FALSE),)","v":0},1,12,1,null,3,null,null,null,1234,null,null,null,1,null,1,1,2,"0","D6+1","25/50","1",{"$f":"4000-AC55*Z91","v":3900},2000,"2","5",null,null,"B",null,3,2,7]
[{"$f":"IF(ISERROR(SEARCH($A$2+1,HLOOKUP(PJ!$D$16,$E$2:$U$88,ROW($B56)-1,FALSE))),A55,A55+1)","v":0},"Arbalète fixe","Arbalète fixe ($ 500)",{"$f":"_xlfn.IFNA(VLOOKUP(ROW(A56)+$A$2-2,A56:C147,3,FALSE),)","v":0},123,1234,1,null,345,3,null,12,1234,1,12,3,123,23,123456,1,23,"+5","D6+1","05/10","1/2",{"$f":"800-AC56*Z91","v":780},500,"0","1",null,null,"B",null,3,2,7]
[{"$f":"IF(ISERROR(SEARCH($A$2+1,HLOOKUP(PJ!$D$16,$E$2:$U$88,ROW($B57)-1,FALSE))),A56,A56+1)","v":0},"Arc","Arc ($ 800)",{"$f":"_xlfn.IFNA(VLOOKUP(ROW(A57)+$A$2-2,A57:C147,3,FALSE),)","v":0},123,1234,1,null,345,null,null,12,1234,1,12,3,123,23,123456,1,23,"0","D6+2","50/100","1/2",{"$f":"1500-AC57*Z91","v":1480},800,"2","1",null,null,"B",null,3,3,8]
[{"$f":"IF(ISERROR(SEARCH($A$2+1,HLOOKUP(PJ!$D$16,$E$2:$U$88,ROW($B58)-1,FALSE))),A57,A57+1)","v":0},"Bazooka","Bazooka ($ 15 000)",{"$f":"_xlfn.IFNA(VLOOKUP(ROW(A58)+$A$2-2,A58:C147,3,FALSE),)","v":0},null,null,null,null,3,null,null,null,null,null,null,null,null,null,null,null,null,"0","5D6E5","50/100","1/4",{"$f":"10000-AC58*Z99","v":7000},15000,"2","1",null,null,"J",null,3,5,30]
[{"$f":"IF(ISERROR(SEARCH($A$2+1,HLOOKUP(PJ!$D$16,$E$2:$U$88,ROW($B59)-1,FALSE))),A58,A58+1)","v":0},"Canon scié","Canon scié ($ 7 800)",{"$f":"_xlfn.IFNA(VLOOKUP(ROW(A59)+$A$2-2,A59:C147,3,FALSE),)","v":0},1,12,1,null,3,null,null,null,1234,null,null,null,1,null,1,null,2,"-5","4D6E2","05/10","2",{"$f":"2500-AC59*Z95","v":2480},7800,"1","2",null,null,"F",null,3,4,24]
[{"$f":"IF(ISERROR(SEARCH($A$2+1,HLOOKUP(PJ!$D$16,$E$2:$U$88,ROW($B60)-1,FALSE))),A59,A59+1)","v":0},"Carabine","Carabine ($ 9 000)",{"$f":"_xlfn.IFNA(VLOOKUP(ROW(A60)+$A$2-2,A60:C147,3,FALSE),)","v":0},1,12,1,null,3,null,null,null,1234,null,null,null,1,null,1,null,2,"+10","D6+2","400/800","2",{"$f":"2800-AC60*Z93","v":2725},9000,"2","15",null,null,"D",null,3,3,8]
[{"$f":"IF(ISERROR(SEARCH($A$2+1,HLOOKUP(PJ!$D$16,$E$2:$U$88,ROW($B61)-1,FALSE))),A60,A60+1)","v":0},"Fronde","Fronde ($ 100)",{"$f":"_xlfn.IFNA(VLOOKUP(ROW(A61)+$A$2-2,A61:C147,3,FALSE),)","v":0},123,1234,1234,null,345,3,1,12,1234,123456,12,3,123,23,123456,1,23,"-5","D6+1","20/40","1",{"$f":"150-AC61*Z90","v":140},100,"2","1",null,null,"A",null,3,2,7]
[{"$f":"IF(ISERROR(SEARCH($A$2+1,HLOOKUP(PJ!$D$16,$E$2:$U$88,ROW($B62)-1,FALSE))),A61,A61+1)","v":0},"Fusil","Fusil ($ 7 000)",{"$f":"_xlfn.IFNA(VLOOKUP(ROW(A62)+$A$2-2,A62:C147,3,FALSE),)","v":0},1,12,1,null,3,null,null,null,1234,null,null,null,1,null,1,null,2,"+10","D6+2","200/400","1",{"$f":"3200-AC62*Z93","v":3170},7000,"2","6",null,null,"D",null,3,3,8]
[{"$f":"IF(ISERROR(SEARCH($A$2+1,HLOOKUP(PJ!$D$16,$E$2:$U$88,ROW($B63)-1,FALSE))),A62,A62+1)","v":0},"Fusil à pompe","Fusil à pompe ($ 9 000)",{"$f":"_xlfn.IFNA(VLOOKUP(ROW(A63)+$A$2-2,A63:C147,3,FALSE),)","v":0},1,12,1,null,3,null,null,null,1234,null,null,null,1,null,1,null,2,"+5","2D6","20/40","1",{"$f":"5000-AC63*Z94","v":4950},9000,"2","10",null,null,"E",null,3,2,12]
[{"$f":"IF(ISERROR(SEARCH($A$2+1,HLOOKUP(PJ!$D$16,$E$2:$U$88,ROW($B64)-1,FALSE))),A63,A63+1)","v":0},"Fusil à poudre","Fusil à poudre ($ 2 000)",{"$f":"_xlfn.IFNA(VLOOKUP(ROW(A64)+$A$2-2,A64:C147,3,FALSE),)","v":0},1,12,1,null,3,null,null,null,1234,null,null,null,1,null,1,1,2,"-10","D6+1","10/20","1/5",{"$f":"5000-AC64*Z92","v":4995},2000,"2","1",null,null,"C",null,3,2,7]
[{"$f":"IF(ISERROR(SEARCH($A$2+1,HLOOKUP(PJ!$D$16,$E$2:$U$88,ROW($B65)-1,FALSE))),A64,A64+1)","v":0},"Fusil de chasse","Fusil de chasse ($ 8 000)",{"$f":"_xlfn.IFNA(VLOOKUP(ROW(A65)+$A$2-2,A65:C147,3,FALSE),)","v":0},1,12,1,null,3,null,null,null,1234,null,null,null,1,null,1,null,2,"+5","2D6E1","40/80","2",{"$f":"2700-AC65*Z95","v":2680},8000,"2","2",null,null,"F",null,3,2,12]
[{"$f":"IF(ISERROR(SEARCH($A$2+1,HLOOKUP(PJ!$D$16,$E$2:$U$88,ROW($B66)-1,FALSE))),A65,A65+1)","v":0},"Fusil harpon ","Fusil harpon  ($ 1 000)",{"$f":"_xlfn.IFNA(VLOOKUP(ROW(A66)+$A$2-2,A66:C147,3,FALSE),)","v":0},1,1234,1,null,345,null,null,12,1234,1,12,3,123,23,123456,1,23,"-5","D6+2","05/10","1/3",{"$f":"2000-AC66*Z97","v":1960},1000,"1-2","1",null,null,"H",null,3,3,8]
[{"$f":"IF(ISERROR(SEARCH($A$2+1,HLOOKUP(PJ!$D$16,$E$2:$U$88,ROW($B67)-1,FALSE))),A66,A66+1)","v":0},"Fusil de sniper","Fusil de sniper ($ 20 000)",{"$f":"_xlfn.IFNA(VLOOKUP(ROW(A67)+$A$2-2,A67:C147,3,FALSE),)","v":0},null,null,null,null,3,null,null,null,null,null,null,null,null,null,null,null,null,"+15","D6+3","500/1000","2",{"$f":"4000-AC67*Z98","v":3900},20000,"2","20",null,null,"I",null,3,4,9]
[{"$f":"IF(ISERROR(SEARCH($A$2+1,HLOOKUP(PJ!$D$16,$E$2:$U$88,ROW($B68)-1,FALSE))),A67,A67+1)","v":0},"Fusil mitrailleur","Fusil mitrailleur ($ 13 000)",{"$f":"_xlfn.IFNA(VLOOKUP(ROW(A68)+$A$2-2,A68:C147,3,FALSE),)","v":0},null,null,null,null,3,null,null,null,null,null,null,null,null,null,null,null,null,"0","D6+2R","200/400","1",{"$f":"6000-AC68*Z96","v":5700},13000,"2","30",null,null,"G",null,3,1,6]
[{"$f":"IF(ISERROR(SEARCH($A$2+1,HLOOKUP(PJ!$D$16,$E$2:$U$88,ROW($B69)-1,FALSE))),A68,A68+1)","v":0},"Lance-flammes","Lance-flammes ($ 18 000)",{"$f":"_xlfn.IFNA(VLOOKUP(ROW(A69)+$A$2-2,A69:C147,3,FALSE),)","v":0},null,null,null,null,3,null,null,null,null,null,null,null,null,null,null,null,null,"+5","5D6E3","10/20","1",{"$f":"18000-AC69*Z100","v":8000},18000,"2","5",null,null,"K",null,3,5,30]
[{"$f":"IF(ISERROR(SEARCH($A$2+1,HLOOKUP(PJ!$D$16,$E$2:$U$88,ROW($B70)-1,FALSE))),A69,A69+1)","v":0},"Lance-grenades Mk1","Lance-grenades Mk1 ($ 11 000)",{"$f":"_xlfn.IFNA(VLOOKUP(ROW(A70)+$A$2-2,A70:C147,3,FALSE),)","v":0},null,null,null,null,3,null,null,null,null,null,null,null,null,null,null,null,null,"-10",null,"50/100","1/2",{"$f":"3000-AC70*Z98","v":2995},11000,"2","1",null,null,"I",null,3]
[{"$f":"IF(ISERROR(SEARCH($A$2+1,HLOOKUP(PJ!$D$16,$E$2:$U$88,ROW($B71)-1,FALSE))),A70,A70+1)","v":0},"Lance-grenades Mk2","Lance-grenades Mk2 ($ 2 000)",{"$f":"_xlfn.IFNA(VLOOKUP(ROW(A71)+$A$2-2,A71:C147,3,FALSE),)","v":0},1,12,1,null,3,null,null,null,1234,null,null,null,1,null,1,1,2,"-10",null,"50/100","1/2",{"$f":"500-AC71*Z98","v":495},2000,"2","1",null,null,"I",null,3]
[{"$f":"IF(ISERROR(SEARCH($A$2+1,HLOOKUP(PJ!$D$16,$E$2:$U$88,ROW($B72)-1,FALSE))),A71,A71+1)","v":0},"Lance-pierre","Lance-pierre ($ 200)",{"$f":"_xlfn.IFNA(VLOOKUP(ROW(A72)+$A$2-2,A72:C147,3,FALSE),)","v":0},123,1234,1234,null,345,3,1,12,1234,123456,12,3,123,23,123456,1,23,"+5","D6+1","10/20","1/2",{"$f":"250-AC72*Z90","v":240},200,"2","1",null,null,"A",null,3,2,7]
[{"$f":"IF(ISERROR(SEARCH($A$2+1,HLOOKUP(PJ!$D$16,$E$2:$U$88,ROW($B73)-1,FALSE))),A72,A72+1)","v":0},"Lance-roquette jetable","Lance-roquette jetable ($ 9 000)",{"$f":"_xlfn.IFNA(VLOOKUP(ROW(A73)+$A$2-2,A73:C147,3,FALSE),)","v":0},1,12,1,null,3,null,null,null,1234,null,null,null,1,null,1,null,2,"-5","4D6E3","10/20","1/3",{"$f":"5000-AC73*Z99","v":2000},9000,"2","1",null,null,"J",null,3,4,24]
[{"$f":"IF(ISERROR(SEARCH($A$2+1,HLOOKUP(PJ!$D$16,$E$2:$U$88,ROW($B74)-1,FALSE))),A73,A73+1)","v":0},"Pistolet","Pistolet ($ 2 500)",{"$f":"_xlfn.IFNA(VLOOKUP(ROW(A74)+$A$2-2,A74:C147,3,FALSE),)","v":0},1,12,1,null,3,null,null,null,1234,null,null,null,1,null,1,1,2,"0","D6+2","20/40","2",{"$f":"1100-AC74*Z93","v":1050},2500,"1-2","10",null,null,"D",null,3,3,8]
[{"$f":"IF(ISERROR(SEARCH($A$2+1,HLOOKUP(PJ!$D$16,$E$2:$U$88,ROW($B75)-1,FALSE))),A74,A74+1)","v":0},"Pistolet à poudre","Pistolet à poudre ($ 600)",{"$f":"_xlfn.IFNA(VLOOKUP(ROW(A75)+$A$2-2,A75:C147,3,FALSE),)","v":0},123,1234,1,null,345,null,null,12,1234,1,12,3,123,23,123456,1,23,"-5","D6","05/10","1/3",{"$f":"1500-AC75*Z92","v":1495},600,"1-2","1",null,null,"C",null,3,1,6]
[{"$f":"IF(ISERROR(SEARCH($A$2+1,HLOOKUP(PJ!$D$16,$E$2:$U$88,ROW($B76)-1,FALSE))),A75,A75+1)","v":0},"Pistolet mitrailleur","Pistolet mitrailleur ($ 11 000)",{"$f":"_xlfn.IFNA(VLOOKUP(ROW(A76)+$A$2-2,A76:C147,3,FALSE),)","v":0},null,null,null,null,3,null,null,null,null,null,null,null,null,null,null,null,null,"-5","D6+1R","50/100","1",{"$f":"2100-AC76*Z96","v":1800},11000,"1-2","30",null,null,"G",null,3,1,6]
[{"$f":"IF(ISERROR(SEARCH($A$2+1,HLOOKUP(PJ!$D$16,$E$2:$U$88,ROW($B77)-1,FALSE))),A76,A76+1)","v":0},"Revolver","Revolver ($ 2 000)",0,1,12,1,null,3,null,null,null,1234,null,null,null,1,null,1,1,2,"0","D6+2","20/40","1",{"$f":"900-AC77*Z93","v":870},2000,"1-2","6",null,null,"D",null,3,3,8]
[{"$f":"IF(ISERROR(SEARCH($A$2+1,HLOOKUP(PJ!$D$16,$E$2:$U$88,ROW($B78)-1,FALSE))),A77,A77+1)","v":0},"Tube lance-dards","Tube lance-dards ($ 450)",0,123,1234,1,null,345,3,null,12,1234,1,12,3,123,23,123456,1,23,"0","D6","05/10","1/2",{"$f":"400-AC78*Z90","v":390},450,"0","1",null,null,"A",null,3,1,6]
[{"$f":"IF(ISERROR(SEARCH($A$2+1,HLOOKUP(PJ!$D$16,$E$2:$U$88,ROW($B79)-1,FALSE))),A78,A78+1)","v":0},"Armes de soutien",null,0]
[{"$f":"IF(ISERROR(SEARCH($A$2+1,HLOOKUP(PJ!$D$16,$E$2:$U$88,ROW($B80)-1,FALSE))),A79,A79+1)","v":0},"Catapulte",{"$f":"B80&\" (\"&TEXT(AA80,\"$ # ##0\")&\")\"","v":"Catapulte ($ 30 000)"},0,null,null,null,null,null,null,null,null,null,null,null,null,null,null,null,null,null,"-10","4D6","100/200","1/10",null,30000,"4","1",null,null,"L",null,null,4,24]
[{"$f":"IF(ISERROR(SEARCH($A$2+1,HLOOKUP(PJ!$D$16,$E$2:$U$88,ROW($B81)-1,FALSE))),A80,A80+1)","v":0},"Mortier",{"$f":"B81&\" (\"&TEXT(AA81,\"$ # ##0\")&\")\"","v":"Mortier ($ 50 000)"},0,null,null,null,null,null,null,null,null,null,null,null,null,null,null,null,null,null,"+10","7D6E2","200/400","1/2",null,50000,"2","1",null,null,"M",null,null,7,42]
[{"$f":"IF(ISERROR(SEARCH($A$2+1,HLOOKUP(PJ!$D$16,$E$2:$U$88,ROW($B82)-1,FALSE))),A81,A81+1)","v":0},"Obusier",{"$f":"B82&\" (\"&TEXT(AA82,\"$ # ##0\")&\")\"","v":"Obusier ($ 100 000)"},0,null,null,null,null,null,null,null,null,null,null,null,null,null,null,null,null,null,"0","14D6E4","1000/2000","1/6",null,100000,"6","1",null,null,"N",null,null,14,84]
[{"$f":"IF(ISERROR(SEARCH($A$2+1,HLOOKUP(PJ!$D$16,$E$2:$U$88,ROW($B83)-1,FALSE))),A82,A82+1)","v":0},"Explosifs",null,0]
[{"$f":"IF(ISERROR(SEARCH($A$2+1,HLOOKUP(PJ!$D$16,$E$2:$U$88,ROW($B84)-1,FALSE))),A83,A83+1)","v":0},"Poudre noir",{"$f":"B84&\" (\"&TEXT(AA84,\"$ # ##0\")&\")\"","v":"Poudre noir ($ 1 000)"},0,23,1234,null,null,45,null,null,12,1234,1,12,3,23,23,123456,null,3,null,"D6E2","2",null,null,1000,null,null,"+10%","-10%","100 g",null,null,1,6]
[{"$f":"IF(ISERROR(SEARCH($A$2+1,HLOOKUP(PJ!$D$16,$E$2:$U$88,ROW($B85)-1,FALSE))),A84,A84+1)","v":0},"Dynamite",{"$f":"B85&\" (\"&TEXT(AA85,\"$ # ##0\")&\")\"","v":"Dynamite ($ 3 000)"},0,null,12,null,null,null,null,null,null,1234,null,null,null,null,null,1,null,null,null,"D6+2E5","5",null,null,3000,null,null,"+20%","-10%","100 g",null,null,3,8]
[{"$f":"IF(ISERROR(SEARCH($A$2+1,HLOOKUP(PJ!$D$16,$E$2:$U$88,ROW($B86)-1,FALSE))),A85,A85+1)","v":0},"Nitroglycérine",{"$f":"B86&\" (\"&TEXT(AA86,\"$ # ##0\")&\")\"","v":"Nitroglycérine ($ 6 000)"},0,null,12,null,null,null,null,null,null,1234,null,null,null,null,null,1,null,null,null,"3D6E7","7",null,null,6000,null,null,"+30%","-30%","100 g",null,null,3,18]
[{"$f":"IF(ISERROR(SEARCH($A$2+1,HLOOKUP(PJ!$D$16,$E$2:$U$88,ROW($B87)-1,FALSE))),A86,A86+1)","v":0},"TNT",{"$f":"B87&\" (\"&TEXT(AA87,\"$ # ##0\")&\")\"","v":"TNT ($ 1 500)"},0,null,12,null,null,null,null,null,null,1234,null,null,null,null,null,1,null,null,null,"2D6E4","4",null,null,1500,null,null,"-10%","+20%","100 g",null,null,2,12]
[{"$f":"IF(ISERROR(SEARCH($A$2+1,HLOOKUP(PJ!$D$16,$E$2:$U$88,ROW($B88)-1,FALSE))),A87,A87+1)","v":0},"Plastic",{"$f":"B88&\" (\"&TEXT(AA88,\"$ # ##0\")&\")\"","v":"Plastic ($ 2 000)"},0,null,12,null,null,null,null,null,null,1234,null,null,null,null,null,1,null,null,null,"2D6+2E5","5",null,null,2000,null,null,"-10%","+20%","100 g",null,null,4,14]
[null,"Munitions pour"]
["A","Lance-pierre, Fronde, Tube Lance-dards",{"$f":"B90&\" (\"&TEXT(AA90,\"$ # ##0\")&\")\"","v":"Lance-pierre, Fronde, Tube Lance-dards ($ 5)"},null,null,null,null,null,null,null,null,null,null,null,null,null,null,null,null,null,null,null,null,null,null,10,5]
["B","Arc, Arbalète","Arc, Arbalète ($ 5)",null,null,null,null,null,null,null,null,null,null,null,null,null,null,null,null,null,null,null,null,null,null,20,5]
["C","Arme à poudre","Arme à poudre ($ 5)",null,null,null,null,null,null,null,null,null,null,null,null,null,null,null,null,null,null,null,null,null,null,5,5]
["D","Pistolet, Revolver, Fusil, Carabine","Pistolet, Revolver, Fusil, Carabine ($ 15)",null,null,null,null,null,null,null,null,null,null,null,null,null,null,null,null,null,null,null,null,null,null,5,15]
["E","Fusil à pompe","Fusil à pompe ($ 15)",null,null,null,null,null,null,null,null,null,null,null,null,null,null,null,null,null,null,null,null,null,null,5,15]
["F","Fusil de chasse, Canon scié","Fusil de chasse, Canon scié ($ 40)",null,null,null,null,null,null,null,null,null,null,null,null,null,null,null,null,null,null,null,null,null,null,10,40]
["G","Fusil mitrailleur, Pistolet mitrailleur","Fusil mitrailleur, Pistolet mitrailleur ($ 30)",null,null,null,null,null,null,null,null,null,null,null,null,null,null,null,null,null,null,null,null,null,null,10,30]
["H","Fusil harpon ","Fusil harpon  ($ 10)",null,null,null,null,null,null,null,null,null,null,null,null,null,null,null,null,null,null,null,null,null,null,40,10]
["I","Fusil de sniper, Cartouche de Lance-grenade","Fusil de sniper, Cartouche de Lance-grenade ($ 40)",null,null,null,null,null,null,null,null,null,null,null,null,null,null,null,null,null,null,null,null,null,null,5,40]
["J","Bazooka, Lance roquette","Bazooka, Lance roquette ($ 1 000)",null,null,null,null,null,null,null,null,null,null,null,null,null,null,null,null,null,null,null,null,null,null,3000,1000]
["K","Lance-flammes","Lance-flammes ($ 1 500)",null,null,null,null,null,null,null,null,null,null,null,null,null,null,null,null,null,null,null,null,null,null,2000,1500]
["L","Catapulte","Catapulte ($ 50)",null,null,null,null,null,null,null,null,null,null,null,null,null,null,null,null,null,null,null,null,null,null,"---",50]
["M","Mortier","Mortier ($ 5 000)",null,null,null,null,null,null,null,null,null,null,null,null,null,null,null,null,null,null,null,null,null,null,"---",5000]
["N","Obusier","Obusier ($ 10 000)",null,null,null,null,null,null,null,null,null,null,null,null,null,null,null,null,null,null,null,null,null,null,"---",10000]
[{"$f":"SUM(PJ!G85:G105,PJ!O85:O105)","v":0},"Accessoires"]
[{"$f":"IF(HLOOKUP(PJ!$D$16,$E$2:$U$146,ROW($B105)-1,FALSE)>=$A$104+1,A104+1,A104)","v":{"$error":"#N/A"}},"Ampli",{"$f":"B105&\" (\"&TEXT(AA105,\"$ # ##0\")&\")\"","v":"Ampli ($ 40 000)"},{"$f":"_xlfn.IFNA(VLOOKUP(ROW(A105)+$A$104-104,A105:C146,3,FALSE),)","v":0},null,null,null,null,null,null,null,null,null,null,null,null,null,null,null,null,null,null,null,null,null,10000,40000]
[{"$f":"IF(HLOOKUP(PJ!$D$16,$E$2:$U$146,ROW($B106)-1,FALSE)>=$A$104+1,A105+1,A105)","v":{"$error":"#N/A"}},"Basse","Basse ($ 25 000)",{"$f":"_xlfn.IFNA(VLOOKUP(ROW(A106)+$A$104-104,A106:C147,3,FALSE),)","v":0},null,null,null,null,null,null,null,null,null,null,null,null,null,null,null,null,null,null,null,null,null,7000,25000]
[{"$f":"IF(HLOOKUP(PJ!$D$16,$E$2:$U$146,ROW($B107)-1,FALSE)>=$A$104+1,A106+1,A106)","v":{"$error":"#N/A"}},"Batterie","Batterie ($ 100 000)",{"$f":"_xlfn.IFNA(VLOOKUP(ROW(A107)+$A$104-104,A107:C147,3,FALSE),)","v":0},null,null,null,null,null,null,null,null,null,null,null,null,null,null,null,null,null,null,null,null,null,30000,100000]
[{"$f":"IF(HLOOKUP(PJ!$D$16,$E$2:$U$146,ROW($B108)-1,FALSE)>=$A$104+1,A107+1,A107)","v":{"$error":"#N/A"}},"Boîte de conserve",{"$f":"B108&\" (\"&TEXT(AA108,\"$ # ##0\")&\")\"","v":"Boîte de conserve ($ 50)"},{"$f":"_xlfn.IFNA(VLOOKUP(ROW(A108)+$A$104-104,A108:C147,3,FALSE),)","v":0},5,4,5,10,3,5,7,6,3,3,3,3,3,3,2,40,3,null,null,null,null,200,50]
[{"$f":"IF(HLOOKUP(PJ!$D$16,$E$2:$U$146,ROW($B109)-1,FALSE)>=$A$104+1,A108+1,A108)","v":{"$error":"#N/A"}},"Bombe de peinture","Bombe de peinture ($ 100)",{"$f":"_xlfn.IFNA(VLOOKUP(ROW(A109)+$A$104-104,A109:C147,3,FALSE),)","v":0},5,4,5,10,3,5,7,6,3,3,3,3,3,3,2,40,3,null,null,null,null,200,100]
[{"$f":"IF(HLOOKUP(PJ!$D$16,$E$2:$U$146,ROW($B110)-1,FALSE)>=$A$104+1,A109+1,A109)","v":{"$error":"#N/A"}},"Boussole","Boussole ($ 300)",{"$f":"_xlfn.IFNA(VLOOKUP(ROW(A110)+$A$104-104,A110:C147,3,FALSE),)","v":0},5,4,null,10,3,5,7,6,null,3,3,3,3,3,2,40,3,null,null,null,null,50,300]
[{"$f":"IF(HLOOKUP(PJ!$D$16,$E$2:$U$146,ROW($B111)-1,FALSE)>=$A$104+1,A110+1,A110)","v":{"$error":"#N/A"}},"Briquet à essence","Briquet à essence ($ 300)",{"$f":"_xlfn.IFNA(VLOOKUP(ROW(A111)+$A$104-104,A111:C147,3,FALSE),)","v":0},5,4,null,10,3,5,7,6,null,3,3,3,3,3,2,40,3,null,null,null,null,20,300]
[{"$f":"IF(HLOOKUP(PJ!$D$16,$E$2:$U$146,ROW($B112)-1,FALSE)>=$A$104+1,A111+1,A111)","v":{"$error":"#N/A"}},"Caisse à outils",{"$f":"B112&\" (\"&TEXT(AA112,\"$ # ##0\")&\")\"","v":"Caisse à outils ($ 3 000)"},{"$f":"_xlfn.IFNA(VLOOKUP(ROW(A112)+$A$104-104,A112:C147,3,FALSE),)","v":0},null,null,null,null,null,null,null,null,null,null,null,null,null,null,null,null,null,null,null,null,null,5000,3000]
[{"$f":"IF(HLOOKUP(PJ!$D$16,$E$2:$U$146,ROW($B113)-1,FALSE)>=$A$104+1,A112+1,A112)","v":{"$error":"#N/A"}},"Contrebasse","Contrebasse ($ 25 000)",{"$f":"_xlfn.IFNA(VLOOKUP(ROW(A113)+$A$104-104,A113:C147,3,FALSE),)","v":0},null,null,null,null,null,null,null,null,null,null,null,null,null,null,null,null,null,null,null,null,null,12000,25000]
[{"$f":"IF(HLOOKUP(PJ!$D$16,$E$2:$U$146,ROW($B114)-1,FALSE)>=$A$104+1,A113+1,A113)","v":{"$error":"#N/A"}},"Cor de chasse","Cor de chasse ($ 5 000)",{"$f":"_xlfn.IFNA(VLOOKUP(ROW(A114)+$A$104-104,A114:C147,3,FALSE),)","v":0},null,null,null,null,null,null,null,null,null,null,null,null,null,null,null,null,null,null,null,null,null,7000,5000]
[{"$f":"IF(HLOOKUP(PJ!$D$16,$E$2:$U$146,ROW($B115)-1,FALSE)>=$A$104+1,A114+1,A114)","v":{"$error":"#N/A"}},"Corde (1m)","Corde (1m) ($ 10)",{"$f":"_xlfn.IFNA(VLOOKUP(ROW(A115)+$A$104-104,A115:C147,3,FALSE),)","v":0},5,4,5,10,3,5,7,6,3,3,3,3,3,3,2,40,3,null,null,null,null,100,10]
[{"$f":"IF(HLOOKUP(PJ!$D$16,$E$2:$U$146,ROW($B116)-1,FALSE)>=$A$104+1,A115+1,A115)","v":{"$error":"#N/A"}},"Couteau multi-lames",{"$f":"B116&\" (\"&TEXT(AA116,\"$ # ##0\")&\")\"","v":"Couteau multi-lames ($ 150)"},{"$f":"_xlfn.IFNA(VLOOKUP(ROW(A116)+$A$104-104,A116:C147,3,FALSE),)","v":0},5,4,5,10,3,5,7,6,3,3,3,3,3,3,2,40,3,null,null,null,null,300,150]
[{"$f":"IF(HLOOKUP(PJ!$D$16,$E$2:$U$146,ROW($B117)-1,FALSE)>=$A$104+1,A116+1,A116)","v":{"$error":"#N/A"}},"Ficelle (1m)","Ficelle (1m) ($ 5)",{"$f":"_xlfn.IFNA(VLOOKUP(ROW(A117)+$A$104-104,A117:C147,3,FALSE),)","v":0},5,4,5,10,3,5,7,6,3,3,3,3,3,3,2,40,3,null,null,null,null,10,5]
[{"$f":"IF(HLOOKUP(PJ!$D$16,$E$2:$U$146,ROW($B118)-1,FALSE)>=$A$104+1,A117+1,A117)","v":{"$error":"#N/A"}},"Gourde remplie","Gourde remplie ($ 500)",{"$f":"_xlfn.IFNA(VLOOKUP(ROW(A118)+$A$104-104,A118:C147,3,FALSE),)","v":0},5,4,null,10,3,null,7,6,null,null,3,3,null,3,null,40,3,null,null,null,null,1100,500]
[{"$f":"IF(HLOOKUP(PJ!$D$16,$E$2:$U$146,ROW($B119)-1,FALSE)>=$A$104+1,A118+1,A118)","v":{"$error":"#N/A"}},"Guitare électrique","Guitare électrique ($ 25 000)",{"$f":"_xlfn.IFNA(VLOOKUP(ROW(A119)+$A$104-104,A119:C147,3,FALSE),)","v":0},null,null,null,null,null,null,null,null,null,null,null,null,null,null,null,null,null,null,null,null,null,5000,25000]
[{"$f":"IF(HLOOKUP(PJ!$D$16,$E$2:$U$146,ROW($B120)-1,FALSE)>=$A$104+1,A119+1,A119)","v":{"$error":"#N/A"}},"Guitare sèche",{"$f":"B120&\" (\"&TEXT(AA120,\"$ # ##0\")&\")\"","v":"Guitare sèche ($ 12 000)"},{"$f":"_xlfn.IFNA(VLOOKUP(ROW(A120)+$A$104-104,A120:C147,3,FALSE),)","v":0},null,null,null,null,null,null,null,null,null,null,null,null,null,null,null,null,null,null,null,null,null,2000,12000]
[{"$f":"IF(HLOOKUP(PJ!$D$16,$E$2:$U$146,ROW($B121)-1,FALSE)>=$A$104+1,A120+1,A120)","v":{"$error":"#N/A"}},"Guitare-synthé","Guitare-synthé ($ 25 000)",{"$f":"_xlfn.IFNA(VLOOKUP(ROW(A121)+$A$104-104,A121:C147,3,FALSE),)","v":0},null,null,null,null,null,null,null,null,null,null,null,null,null,null,null,null,null,null,null,null,null,2000,25000]
[{"$f":"IF(HLOOKUP(PJ!$D$16,$E$2:$U$146,ROW($B122)-1,FALSE)>=$A$104+1,A121+1,A121)","v":{"$error":"#N/A"}},"Harmonica","Harmonica ($ 1 000)",{"$f":"_xlfn.IFNA(VLOOKUP(ROW(A122)+$A$104-104,A122:C147,3,FALSE),)","v":0},null,4,null,10,null,null,7,null,null,null,null,3,null,null,null,null,3,null,null,null,null,3000,1000]
[{"$f":"IF(HLOOKUP(PJ!$D$16,$E$2:$U$146,ROW($B123)-1,FALSE)>=$A$104+1,A122+1,A122)","v":{"$error":"#N/A"}},"Jerrican vide et tuyau","Jerrican vide et tuyau ($ 200)",{"$f":"_xlfn.IFNA(VLOOKUP(ROW(A123)+$A$104-104,A123:C147,3,FALSE),)","v":0},5,4,5,10,3,5,7,6,3,3,3,3,3,3,2,40,3,null,null,null,null,1000,200]
[{"$f":"IF(HLOOKUP(PJ!$D$16,$E$2:$U$146,ROW($B124)-1,FALSE)>=$A$104+1,A123+1,A123)","v":{"$error":"#N/A"}},"Lampe électrique",{"$f":"B124&\" (\"&TEXT(AA124,\"$ # ##0\")&\")\"","v":"Lampe électrique ($ 350)"},{"$f":"_xlfn.IFNA(VLOOKUP(ROW(A124)+$A$104-104,A124:C147,3,FALSE),)","v":0},5,4,null,10,3,null,7,6,null,null,3,3,3,3,null,40,3,null,null,null,null,1000,350]
[{"$f":"IF(HLOOKUP(PJ!$D$16,$E$2:$U$146,ROW($B125)-1,FALSE)>=$A$104+1,A124+1,A124)","v":{"$error":"#N/A"}},"Loupe","Loupe ($ 150)",{"$f":"_xlfn.IFNA(VLOOKUP(ROW(A125)+$A$104-104,A125:C147,3,FALSE),)","v":0},5,4,5,10,3,5,7,6,3,3,3,3,3,3,2,40,3,null,null,null,null,50,150]
[{"$f":"IF(HLOOKUP(PJ!$D$16,$E$2:$U$146,ROW($B126)-1,FALSE)>=$A$104+1,A125+1,A125)","v":{"$error":"#N/A"}},"Micro","Micro ($ 20 000)",{"$f":"_xlfn.IFNA(VLOOKUP(ROW(A126)+$A$104-104,A126:C147,3,FALSE),)","v":0},null,null,null,null,null,null,null,null,null,null,null,null,null,null,null,null,null,null,null,null,null,3000,20000]
[{"$f":"IF(HLOOKUP(PJ!$D$16,$E$2:$U$146,ROW($B127)-1,FALSE)>=$A$104+1,A126+1,A126)","v":{"$error":"#N/A"}},"Miroir","Miroir ($ 200)",{"$f":"_xlfn.IFNA(VLOOKUP(ROW(A127)+$A$104-104,A127:C147,3,FALSE),)","v":0},5,4,5,10,3,5,7,6,3,3,3,3,3,3,2,40,3,null,null,null,null,50,200]
[{"$f":"IF(HLOOKUP(PJ!$D$16,$E$2:$U$146,ROW($B128)-1,FALSE)>=$A$104+1,A127+1,A127)","v":{"$error":"#N/A"}},"Nécessaire de couture",{"$f":"B128&\" (\"&TEXT(AA128,\"$ # ##0\")&\")\"","v":"Nécessaire de couture ($ 100)"},{"$f":"_xlfn.IFNA(VLOOKUP(ROW(A128)+$A$104-104,A128:C147,3,FALSE),)","v":0},5,4,5,10,3,5,7,6,3,3,3,3,3,3,2,40,3,null,null,null,null,300,100]
[{"$f":"IF(HLOOKUP(PJ!$D$16,$E$2:$U$146,ROW($B129)-1,FALSE)>=$A$104+1,A128+1,A128)","v":{"$error":"#N/A"}},"Nourriture déshydratée","Nourriture déshydratée ($ 300)",{"$f":"_xlfn.IFNA(VLOOKUP(ROW(A129)+$A$104-104,A129:C147,3,FALSE),)","v":0},5,4,null,10,3,5,7,6,null,3,3,3,3,3,2,40,3,null,null,null,null,50,300]
[{"$f":"IF(HLOOKUP(PJ!$D$16,$E$2:$U$146,ROW($B130)-1,FALSE)>=$A$104+1,A129+1,A129)","v":{"$error":"#N/A"}},"Paire de jumelles","Paire de jumelles ($ 800)",0,null,4,null,10,3,null,7,null,null,null,null,3,null,null,null,null,3,null,null,null,null,500,800]
[{"$f":"IF(HLOOKUP(PJ!$D$16,$E$2:$U$146,ROW($B131)-1,FALSE)>=$A$104+1,A130+1,A130)","v":{"$error":"#N/A"}},"Paire de menottes","Paire de menottes ($ 300)",0,5,4,null,10,3,5,7,6,null,3,3,3,3,3,2,40,3,null,null,null,null,100,300]
[{"$f":"IF(HLOOKUP(PJ!$D$16,$E$2:$U$146,ROW($B132)-1,FALSE)>=$A$104+1,A131+1,A131)","v":{"$error":"#N/A"}},"Papier et crayon",{"$f":"B132&\" (\"&TEXT(AA132,\"$ # ##0\")&\")\"","v":"Papier et crayon ($ 10)"},0,5,4,5,10,3,5,7,6,3,3,3,3,3,3,2,40,3,null,null,null,null,100,10]
[{"$f":"IF(HLOOKUP(PJ!$D$16,$E$2:$U$146,ROW($B133)-1,FALSE)>=$A$104+1,A132+1,A132)","v":{"$error":"#N/A"}},"Piano","Piano ($ 200 000)",0,null,null,null,null,null,null,null,null,null,null,null,null,null,null,null,null,null,null,null,null,null,150000,200000]
[{"$f":"IF(HLOOKUP(PJ!$D$16,$E$2:$U$146,ROW($B134)-1,FALSE)>=$A$104+1,A133+1,A133)","v":{"$error":"#N/A"}},"Popote","Popote ($ 400)",0,5,4,null,10,3,null,7,6,null,null,3,3,3,3,null,40,3,null,null,null,null,2500,400]
[{"$f":"IF(HLOOKUP(PJ!$D$16,$E$2:$U$146,ROW($B135)-1,FALSE)>=$A$104+1,A134+1,A134)","v":{"$error":"#N/A"}},"Pot de peinture","Pot de peinture ($ 100)",0,5,4,5,10,3,5,7,6,3,3,3,3,3,3,2,40,3,null,null,null,null,2000,100]
[{"$f":"IF(HLOOKUP(PJ!$D$16,$E$2:$U$146,ROW($B136)-1,FALSE)>=$A$104+1,A135+1,A135)","v":{"$error":"#N/A"}},"Réchaud à gaz",{"$f":"B136&\" (\"&TEXT(AA136,\"$ # ##0\")&\")\"","v":"Réchaud à gaz ($ 200)"},0,5,4,5,10,3,5,7,6,3,3,3,3,3,3,2,40,3,null,null,null,null,1000,200]
[{"$f":"IF(HLOOKUP(PJ!$D$16,$E$2:$U$146,ROW($B137)-1,FALSE)>=$A$104+1,A136+1,A136)","v":{"$error":"#N/A"}},"Sac à dos","Sac à dos ($ 500)",0,5,4,null,10,3,null,7,6,null,null,3,3,null,3,null,40,3,null,null,null,null,1500,500]
[{"$f":"IF(HLOOKUP(PJ!$D$16,$E$2:$U$146,ROW($B138)-1,FALSE)>=$A$104+1,A137+1,A137)","v":{"$error":"#N/A"}},"Sac de couchage","Sac de couchage ($ 900)",0,null,4,null,10,null,null,7,null,null,null,null,3,null,null,null,null,3,null,null,null,null,2000,900]
[{"$f":"IF(HLOOKUP(PJ!$D$16,$E$2:$U$146,ROW($B139)-1,FALSE)>=$A$104+1,A138+1,A138)","v":{"$error":"#N/A"}},"Saxophone","Saxophone ($ 20 000)",0,null,null,null,null,null,null,null,null,null,null,null,null,null,null,null,null,null,null,null,null,null,5000,20000]
[{"$f":"IF(HLOOKUP(PJ!$D$16,$E$2:$U$146,ROW($B140)-1,FALSE)>=$A$104+1,A139+1,A139)","v":{"$error":"#N/A"}},"Synthé",{"$f":"B140&\" (\"&TEXT(AA140,\"$ # ##0\")&\")\"","v":"Synthé ($ 50 000)"},0,null,null,null,null,null,null,null,null,null,null,null,null,null,null,null,null,null,null,null,null,null,5000,50000]
[{"$f":"IF(HLOOKUP(PJ!$D$16,$E$2:$U$146,ROW($B141)-1,FALSE)>=$A$104+1,A140+1,A140)","v":{"$error":"#N/A"}},"Trompette",{"$f":"B141&\" (\"&TEXT(AA141,\"$ # ##0\")&\")\"","v":"Trompette ($ 10 000)"},0,null,null,null,null,null,null,null,null,null,null,null,null,null,null,null,null,null,null,null,null,null,3000,10000]
[{"$f":"IF(HLOOKUP(PJ!$D$16,$E$2:$U$146,ROW($B142)-1,FALSE)>=$A$104+1,A141+1,A141)","v":{"$error":"#N/A"}},"Trousse de maquillage","Trousse de maquillage ($ 300)",0,5,4,null,10,3,5,7,6,null,3,3,3,3,3,2,40,3,null,null,null,null,300,300]
[{"$f":"IF(HLOOKUP(PJ!$D$16,$E$2:$U$146,ROW($B143)-1,FALSE)>=$A$104+1,A142+1,A142)","v":{"$error":"#N/A"}},"Trousse de soins","Trousse de soins ($ 4 000)",0,null,null,null,null,null,null,null,null,null,null,null,null,null,null,null,null,null,null,null,null,null,1000,4000]
[{"$f":"IF(HLOOKUP(PJ!$D$16,$E$2:$U$146,ROW($B144)-1,FALSE)>=$A$104+1,A143+1,A143)","v":{"$error":"#N/A"}},"Violon","Violon ($ 20 000)",0,null,null,null,null,null,null,null,null,null,null,null,null,null,null,null,null,null,null,null,null,null,900,20000]
[{"$f":"IF(HLOOKUP(PJ!$D$16,$E$2:$U$146,ROW($B145)-1,FALSE)>=$A$104+1,A144+1,A144)","v":{"$error":"#N/A"}},"Viseur",{"$f":"B145&\" (\"&TEXT(AA145,\"$ # ##0\")&\")\"","v":"Viseur ($ 2 000)"},0,null,null,null,null,null,null,null,null,null,null,null,null,null,null,null,null,null,null,null,null,null,200,2000]
[{"$f":"IF(HLOOKUP(PJ!$D$16,$E$2:$U$146,ROW($B146)-1,FALSE)>=$A$104+1,A145+1,A145)","v":{"$error":"#N/A"}},"Viseur infra-rouge","Viseur infra-rouge ($ 6 000)",0,null,null,null,null,null,null,null,null,null,null,null,null,null,null,null,null,null,null,null,null,null,300,6000]
[null,"Vêtements et armures",null,null,null,null,null,null,null,null,null,null,null,null,null,null,null,null,null,null,null,"Protection",null,null,null,"Poids","Prix"]
[{"$f":"IF(SUMIF(PJ!$AK$87:$AK$102,C148,PJ!$AJ$87:$AJ$102)+SUMIF(PJ!$AK$87:$AK$102,\"\",PJ!$AJ$87:$AJ$102)<=HLOOKUP(PJ!$D$16,$E$2:$U$153,ROW($B148)-1,FALSE),A147+1,A147)","v":{"$error":"#N/A"}},"Tissu",{"$f":"B148&\" (Protection \" & V148 &\")\"","v":"Tissu (Protection 1)"},{"$f":"_xlfn.IFNA(VLOOKUP(ROW(A148)-147,A148:C153,3,FALSE),)","v":0},{"$f":"15-SUMIF(PJ!$AK$87:$AK$102,\"<>\"&$A$147,PJ!$AJ$87:$AJ$102)","v":15},1000,1000,1000,null,1000,1000,1000,1000,1000,8,null,{"$f":"15-SUMIF(PJ!$AK$87:$AK$102,C149,PJ!$AJ$87:$AJ$102)","v":15},1000,4,1000,1000,1,null,null,null,50,20]
[{"$f":"IF(SUMIF(PJ!$AK$87:$AK$102,C149,PJ!$AJ$87:$AJ$102)+SUMIF(PJ!$AK$87:$AK$102,\"\",PJ!$AJ$87:$AJ$102)<=HLOOKUP(PJ!$D$16,$E$2:$U$153,ROW($B149)-1,FALSE),A148+1,A148)","v":{"$error":"#N/A"}},"Cuir","Cuir (Protection 2)",0,{"$f":"15-SUMIF(PJ!$AK$87:$AK$102,\"<>\"&$A$147,PJ!$AJ$87:$AJ$102)","v":15},null,1000,3,1000,1000,null,6,1000,1000,{"$f":"3-SUMIF(PJ!$AK$87:$AK$102,C152,PJ!$AJ$87:$AJ$102)","v":3},1000,{"$f":"15-SUMIF(PJ!$AK$87:$AK$102,C148,PJ!$AJ$87:$AJ$102)","v":15},6,1000,1000,1000,2,null,null,null,100,100]
[{"$f":"IF(SUMIF(PJ!$AK$87:$AK$102,C150,PJ!$AJ$87:$AJ$102)+SUMIF(PJ!$AK$87:$AK$102,\"\",PJ!$AJ$87:$AJ$102)<=HLOOKUP(PJ!$D$16,$E$2:$U$153,ROW($B150)-1,FALSE),A149+1,A149)","v":{"$error":"#N/A"}},"Fourrures","Fourrures (Protection 2)",0,{"$f":"15-SUMIF(PJ!$AK$87:$AK$102,\"<>\"&$A$147,PJ!$AJ$87:$AJ$102)","v":15},1000,1000,1000,1000,null,null,null,1000,1000,3,1000,null,null,1000,1000,1000,2,null,null,null,100,100]
[{"$f":"IF(SUMIF(PJ!$AK$87:$AK$102,C151,PJ!$AJ$87:$AJ$102)+SUMIF(PJ!$AK$87:$AK$102,\"\",PJ!$AJ$87:$AJ$102)<=HLOOKUP(PJ!$D$16,$E$2:$U$153,ROW($B151)-1,FALSE),A150+1,A150)","v":{"$error":"#N/A"}},"Fibre de verre","Fibre de verre (Protection 2)",0,{"$f":"15-SUMIF(PJ!$AK$87:$AK$102,\"<>\"&$A$147,PJ!$AJ$87:$AJ$102)","v":15},null,1000,null,1000,null,null,null,1000,{"$f":"6-SUMIF(PJ!$AK$87:$AK$102,C153,PJ!$AJ$87:$AJ$102)","v":6},{"$f":"2-SUMIF(PJ!$AK$87:$AK$102,C153,PJ!$AJ$87:$AJ$102)","v":2},null,null,null,1000,null,{"$f":"5-SUMIF(PJ!$AK$87:$AK$102,J149,PJ!$AJ$87:$AJ$102)","v":5},2,null,null,null,50,200]
[{"$f":"IF(SUMIF(PJ!$AK$87:$AK$102,C152,PJ!$AJ$87:$AJ$102)+SUMIF(PJ!$AK$87:$AK$102,\"\",PJ!$AJ$87:$AJ$102)<=HLOOKUP(PJ!$D$16,$E$2:$U$153,ROW($B152)-1,FALSE),A151+1,A151)","v":{"$error":"#N/A"}},"Cuir clouté","Cuir clouté (Protection 3)",0,{"$f":"15-SUMIF(PJ!$AK$87:$AK$102,\"<>\"&$A$147,PJ!$AJ$87:$AJ$102)","v":15},3,1000,null,1000,null,null,null,1000,1000,{"$f":"3-SUMIF(PJ!$AK$87:$AK$102,C149,PJ!$AJ$87:$AJ$102)","v":3},1000,null,null,1000,null,5,3,null,null,null,150,150]
[{"$f":"IF(SUMIF(PJ!$AK$87:$AK$102,C153,PJ!$AJ$87:$AJ$102)+SUMIF(PJ!$AK$87:$AK$102,\"\",PJ!$AJ$87:$AJ$102)<=HLOOKUP(PJ!$D$16,$E$2:$U$153,ROW($B153)-1,FALSE),A152+1,A152)","v":{"$error":"#N/A"}},"Acier","Acier (Protection 4)",0,{"$f":"15-SUMIF(PJ!$AK$87:$AK$102,\"<>\"&$A$147,PJ!$AJ$87:$AJ$102)","v":15},null,1000,null,1000,null,null,null,1000,{"$f":"6-SUMIF(PJ!$AK$87:$AK$102,C151,PJ!$AJ$87:$AJ$102)","v":6},{"$f":"2-SUMIF(PJ!$AK$87:$AK$102,C151,PJ!$AJ$87:$AJ$102)","v":2},6,null,null,1000,null,5,4,null,null,null,200,400]

{"sheet":"Stat","index":4,"n_rows":2,"n_cols":27,"rows_kept":2,"cut":false,"hidden":false,"merged":[]}
["Date et heure","Caractéristique Ou Talents","Valeur de base","Valeur corrigée","Jet","RC","EC","Agilité","Beauté","Endurance","Force","Intelligence","Perception","Precision","Rapidité","Acrobatie","Combat","Conduite","Discrétion","Lancer","Marchandage","Mécanique","Premiers Soins","Repérage","Résistance","Séduction","Tir"]
["Date et heure",null,null,null,null,{"$f":"IF(AND(E2<=D2/10,D2<>\"\",E2<>\"\"),1,\"\")","v":""},{"$f":"IF(AND(E2>=90+D2/10,D2<>\"\",E2<>\"\"),1,\"\")","v":""},{"$f":"PJ!C32","v":1},{"$f":"PJ!E32","v":1},{"$f":"PJ!G32","v":1},{"$f":"PJ!I32","v":1},{"$f":"PJ!C34","v":1},{"$f":"PJ!E34","v":1},{"$f":"PJ!G34","v":1},{"$f":"PJ!I34","v":1},{"$f":"PJ!C39","v":10},{"$f":"PJ!E39","v":10},{"$f":"PJ!G39","v":10},{"$f":"PJ!I39","v":10},{"$f":"PJ!C41","v":10},{"$f":"PJ!E41","v":10},{"$f":"PJ!G41","v":10},{"$f":"PJ!I41","v":10},{"$f":"PJ!C43","v":10},{"$f":"PJ!E43","v":10},{"$f":"PJ!G43","v":10},{"$f":"PJ!I43","v":10}]